Workbook

Sheet StartUp (hidden)

Sheet IN Lớp 9 (hidden)
A1: Stt | B1: HoTen | C1: Ten | D1: NgaySinh | E1: Bo | F1: Xom | G1: HK | H1: HL | I1: Văn | J1: Toán | K1: Anh | M1: Tổng | N1: HSTT | O1: HSG | P1: Lop | Q1: DHTD | R1: TT
A2: 17 | B2: Trần Thùy Anh | C2: Anh | D2: 09/05/2009 | E2: Trần Văn Đăng | F2: Xóm 7 | G2: G | H2: T | I2: 7.75 | J2: 6.75 | K2: 8 | M2: =SUM(I2:L2) -> 22.5 | O2: x | P2: 9C | Q2: =IF(O2="","HäC SINH TI£N TIÕN","HäC SINH GIáI") -> HäC SINH GIáI | R2: 01
A3: 18 | B3: Nguyễn Hồng Thiên Ân | C3: Ân | D3: 13/01/2009 | E3: Nguyễn Hồng Phương | F3: Xóm 8 | G3: G | H3: T | I3: 7.75 | J3: 7.5 | K3: 9.25 | M3: 24.5 | O3: x | P3: 9C | Q3: HäC SINH GIáI | R3: 02
A4: 19 | B4: Phạm Mai Chi | C4: Chi | D4: 13/12/2009 | E4: Phạm Văn Hoài | F4: Xóm 7 | G4: G | H4: T | I4: 7 | J4: 7.5 | K4: 9.5 | M4: 24 | O4: x | P4: 9C | Q4: HäC SINH GIáI | R4: 03
A5: 20 | B5: Trần Đức Cường | C5: Cường | D5: 17/05/2009 | E5: Trần Văn Sơn | F5: Xóm 6 | G5: G | H5: T | I5: 7 | J5: 7 | K5: 8 | M5: 22 | O5: x | P5: 9C | Q5: HäC SINH GIáI | R5: 04
A6: 21 | B6: Mai Hồng Hạnh | C6: Hạnh | D6: 26/09/2009 | E6: Mai Ngọc Tỉnh | F6: Xóm 3 | G6: G | H6: T | I6: 7.25 | J6: 7.25 | K6: 7.5 | M6: 22 | O6: x | P6: 9C | Q6: HäC SINH GIáI | R6: 05
A7: 22 | B7: Phạm Minh Hằng | C7: Hằng | D7: 12/11/2009 | E7: Phạm Văn Dung | F7: Xóm 7 | G7: G | H7: T | I7: 9.5 | J7: 7.5 | K7: 7 | M7: 24 | O7: x | P7: 9C | Q7: HäC SINH GIáI | R7: 06
A8: 23 | B8: Bùi Diệp Linh | C8: Linh | D8: 05/04/2009 | E8: Bùi Quang Thảo | F8: Xóm 7 | G8: G | H8: T | I8: 8.5 | J8: 7 | K8: 8.5 | M8: 24 | O8: x | P8: 9C | Q8: HäC SINH GIáI | R8: 07
A9: 24 | B9: Mai Hà Linh | C9: Linh | D9: 24/03/2009 | E9: Mai Phúc Lợi | F9: Xóm 3 | G9: G | H9: T | I9: 8.5 | J9: 7 | K9: 8 | M9: 23.5 | O9: x | P9: 9C | Q9: HäC SINH GIáI | R9: 08
A10: 25 | B10: Trần Diệu Linh | C10: Linh | D10: 19/10/2009 | E10: Trần Trọng Cảnh | F10: Xóm 7 | G10: G | H10: T | I10: 8.25 | J10: 7 | K10: 8 | M10: 23.25 | O10: x | P10: 9C | Q10: HäC SINH GIáI | R10: 09
A11: 26 | B11: Trần Khánh Linh | C11: Linh | D11: 17/07/2009 | E11: Trần Mỹ Sang | F11: Xóm 5 | G11: G | H11: T | I11: 8.25 | J11: 8 | K11: 9.25 | M11: 25.5 | O11: x | P11: 9C | Q11: HäC SINH GIáI | R11: 10
A12: 27 | B12: Trần Đức Mạnh | C12: Mạnh | D12: 17/05/2009 | E12: Trần Văn Sơn | F12: Xóm 6 | G12: G | H12: T | I12: 8.25 | J12: 7.5 | K12: 7.75 | M12: 23.5 | O12: x | P12: 9C | Q12: HäC SINH GIáI | R12: 11
A13: 28 | B13: Lê Nguyễn Huyền My | C13: My | D13: 16/11/2009 | E13: Lê Hồng Tiến | F13: Xóm 6 | G13: G | H13: T | I13: 8.5 | J13: 7.25 | K13: 8.25 | M13: 24 | O13: x | P13: 9C | Q13: HäC SINH GIáI | R13: 12
A14: 29 | B14: Bùi Hoàng Nhi | C14: Nhi | D14: 17/10/2009 | E14: Bùi Văn Chư | F14: Xóm 7 | G14: G | H14: T | I14: 7.25 | J14: 7.25 | K14: 8.25 | M14: 22.75 | O14: x | P14: 9C | Q14: HäC SINH GIáI | R14: 13
A15: 30 | B15: Đặng Yến Nhi | C15: Nhi | D15: 23/11/2009 | E15: Đặng Văn Ngọc | F15: Xóm 4 | G15: G | H15: T | I15: 8.75 | J15: 7.25 | K15: 6.75 | M15: 22.75 | O15: x | P15: 9C | Q15: HäC SINH GIáI | R15: 14
A16: 31 | B16: Trần Anh Thư | C16: Thư | D16: 12/12/2009 | E16: Trần Thanh Vệ | F16: Xóm 3 | G16: G | H16: T | I16: 7.75 | J16: 7.5 | K16: 7.75 | M16: 23 | O16: x | P16: 9C | Q16: HäC SINH GIáI | R16: 15
A17: 32 | B17: Mai Huyền Trang | C17: Trang | D17: 29/10/2009 | E17: Mai Văn Hựu | F17: Xóm 3 | G17: G | H17: T | I17: 8 | J17: 7.5 | K17: 9 | M17: 24.5 | O17: x | P17: 9C | Q17: HäC SINH GIáI | R17: 16
A18: 1 | B18: Phạm Bảo Châu | C18: Châu | D18: 2009-07-03 | E18: Phạm Trung Hiếu | F18: xóm 7 | G18: T | H18: G | I18: 6.75 | J18: 5.75 | K18: 7 | M18: =SUM(I18:L18) -> 19.5 | N18: x | P18: 9A | Q18: HäC SINH TI£N TIÕN | R18: 17
A19: 2 | B19: Trần Trọng Danh | C19: Danh | D19: 2009-05-22 | E19: Trần Trung Trực | F19: xóm 7 | G19: T | H19: K | I19: 5.5 | J19: 5 | K19: 7 | M19: 17.5 | N19: x | P19: 9A | Q19: HäC SINH TI£N TIÕN | R19: 18
A20: 3 | B20: Nguyễn Thị Thanh Diễm | C20: Diễm | D20: 2009-07-28 | E20: Nguyễn Văn Ái | F20: xóm 1 | G20: T | H20: G | I20: 7.75 | J20: 6.75 | K20: 6.5 | M20: 21 | N20: x | P20: 9A | Q20: HäC SINH TI£N TIÕN | R20: 19
A21: 4 | B21: Lê Thành Long | C21: Long | D21: 2009-11-11 | E21: Lê Văn Đoàn | F21: xóm 7 | G21: T | H21: K | I21: 7.25 | J21: 5.5 | K21: 7.25 | M21: 20 | N21: x | P21: 9A | Q21: HäC SINH TI£N TIÕN | R21: 20
A22: 5 | B22: Mai Ngọc Đại | C22: Đại | D22: 2009-07-12 | E22: Vũ Thị Hằng | F22: xóm 2 | G22: T | H22: K | I22: 6.25 | J22: 6.75 | K22: 6.75 | M22: 19.75 | N22: x | P22: 9A | Q22: HäC SINH TI£N TIÕN | R22: 21
A23: 6 | B23: Trần Phạm Nhân Tài | C23: Tài | D23: 2009-02-26 | E23: Trần Chí Thiện | F23: xóm 1 | G23: T | H23: K | I23: 7.75 | J23: 5.5 | K23: 5.25 | M23: 18.5 | N23: x | P23: 9A | Q23: HäC SINH TI£N TIÕN | R23: 22
A24: 7 | B24: Lê Hoàng Nam | C24: Nam | D24: 2009-06-22 | E24: Lê Ngọc Khoa | F24: xóm 6 | G24: T | H24: K | I24: 6.25 | J24: 5.5 | K24: 7.25 | M24: 19 | N24: x | P24: 9A | Q24: HäC SINH TI£N TIÕN | R24: 23
A25: 8 | B25: Mai Tiến Đạt | C25: Đạt | D25: 2009-08-28 | E25: Mai Đức Tuyến | F25: xóm 2 | G25: T | H25: K | I25: 5.25 | J25: 5.75 | K25: 6.5 | M25: 17.5 | N25: x | P25: 9A | Q25: HäC SINH TI£N TIÕN | R25: 24
A26: 9 | B26: Trần Khánh Linh | C26: Linh | D26: 2009-09-23 | E26: Trần Văn Sáng | F26: xóm 8 | G26: T | H26: G | I26: 5.5 | J26: 5.5 | K26: 6.5 | M26: 17.5 | N26: x | P26: 9A | Q26: HäC SINH TI£N TIÕN | R26: 25
A27: 10 | B27: Mai Hữu Phúc | C27: Phúc | D27: 2009-08-19 | E27: Mai Văn Ứng | F27: xóm 3 | G27: T | H27: K | I27: 7 | J27: 5.25 | K27: 5 | M27: 17.25 | N27: x | P27: 9A | Q27: HäC SINH TI£N TIÕN | R27: 26
A28: 11 | B28: Lê Thị Huyền Diệu | C28: Diệu | D28: 2009-07-10 | E28: Lê Quốc Vụ | F28: xóm 6 | G28: T | H28: G | I28: 6.75 | J28: 6.5 | K28: 8 | M28: 21.25 | N28: x | P28: 9B | Q28: HäC SINH TI£N TIÕN | R28: 27
A29: 12 | B29: Phạm Thùy Linh | C29: Linh | D29: 23/01/2009 | E29: Phạm Văn Đan | F29: xóm 1 | G29: T | H29: G | I29: 7.25 | J29: 6.25 | K29: 8 | M29: 21.5 | N29: x | P29: 9B | Q29: HäC SINH TI£N TIÕN | R29: 28
A30: 13 | B30: Mai Quốc Đạt | C30: Đạt | D30: 13/11/2009 | E30: Mai Khắc Tiệp | F30: xóm 2 | G30: T | H30: K | I30: 5 | J30: 6.75 | K30: 5.75 | M30: 17.5 | N30: x | P30: 9B | Q30: HäC SINH TI£N TIÕN | R30: 29
A31: 14 | B31: Trần Xuân Hóa | C31: Hóa | D31: 2009-10-02 | E31: Trần Văn Huynh | F31: xóm6 | G31: T | H31: K | I31: 6 | J31: 6.25 | K31: 5.5 | M31: 17.75 | N31: x | P31: 9B | Q31: HäC SINH TI£N TIÕN | R31: 30
A32: 15 | B32: Đỗ Quỳnh Nga | C32: Nga | D32: 2009-06-07 | E32: Đỗ Văn Việt | F32: xóm 7 | G32: T | H32: K | I32: 5.5 | J32: 5.5 | K32: 7.5 | M32: 18.5 | N32: x | P32: 9B | Q32: HäC SINH TI£N TIÕN | R32: 31
A33: 16 | B33: Nguyễn Minh Quân | C33: Quân | D33: 19/09/2009 | E33: Nguyễn Đức Xoái | F33: xóm5 | G33: T | H33: K | I33: 8 | J33: 6 | K33: 6.5 | M33: 20.5 | N33: x | P33: 9B | Q33: HäC SINH TI£N TIÕN | R33: 32
A34: 33 | B34: Bùi Nam Anh | C34: Anh | D34: 11/09/2009 | E34: Bùi Văn Chuẩn | F34: Xóm 7 | G34: G | H34: T | I34: 7.25 | J34: 6 | K34: 8.5 | M34: =SUM(I34:L34) -> 21.75 | N34: x | P34: 9C | Q34: HäC SINH TI£N TIÕN | R34: 33
A35: 34 | B35: Lê Phương Anh | C35: Anh | D35: 31/10/2009 | E35: Lê Xuân Bắc | F35: Xóm 6 | G35: G | H35: T | I35: 7.75 | J35: 5.75 | K35: 7 | M35: 20.5 | N35: x | P35: 9C | Q35: HäC SINH TI£N TIÕN | R35: 34
A36: 35 | B36: Mai Ngọc Ánh | C36: Ánh | D36: 01/03/2009 | E36: Mai Hữu Tăng | F36: Xóm 2 | G36: G | H36: T | I36: 7 | J36: 5 | K36: 7.25 | M36: 19.25 | N36: x | P36: 9C | Q36: HäC SINH TI£N TIÕN | R36: 35
A37: 36 | B37: Phạm Minh Danh | C37: Danh | D37: 22/11/2009 | E37: Phạm Văn Tài | F37: Xóm 1 | G37: G | H37: T | I37: 6.5 | J37: 7.5 | K37: 6.5 | M37: 20.5 | N37: x | P37: 9C | Q37: HäC SINH TI£N TIÕN | R37: 36
A38: 37 | B38: Mai Thị Thùy Dung | C38: Dung | D38: 24/05/2009 | E38: Mai Ngọc Thùy | F38: Xóm 3 | G38: G | H38: T | I38: 6.5 | J38: 7.5 | K38: 6.5 | M38: 20.5 | N38: x | P38: 9C | Q38: HäC SINH TI£N TIÕN | R38: 37
A39: 38 | B39: Lê Hoàng Dương | C39: Dương | D39: 18/09/2009 | E39: Lê Hoàng Sáng | F39: Xóm 6 | G39: G | H39: T | I39: 6.75 | J39: 7.5 | K39: 6.75 | M39: 21 | N39: x | P39: 9C | Q39: HäC SINH TI£N TIÕN | R39: 38
A40: 39 | B40: Trần Hữu Hào | C40: Hào | D40: 10/06/2009 | E40: Trần Hữu Hồi | F40: Xóm 3 | G40: K | H40: T | I40: 6.5 | J40: 7 | K40: 5.75 | M40: 19.25 | N40: x | P40: 9C | Q40: HäC SINH TI£N TIÕN | R40: 39
A41: 40 | B41: Trần Huy Hoàng | C41: Hoàng | D41: 29/07/2009 | E41: Trần Văn Đông | F41: Xóm 1 | G41: G | H41: T | I41: 8 | J41: 5.75 | K41: 9 | M41: 22.75 | N41: x | P41: 9C | Q41: HäC SINH TI£N TIÕN | R41: 40
A42: 41 | B42: Trần Đức Long | C42: Long | D42: 24/08/2009 | E42: Trần Văn Thiềm | F42: Xóm 7 | G42: K | H42: T | I42: 6.5 | J42: 7.25 | K42: 8 | M42: 21.75 | N42: x | P42: 9C | Q42: HäC SINH TI£N TIÕN | R42: 41
A43: 42 | B43: Trần Nguyên Nam | C43: Nam | D43: 08/05/2009 | E43: Trần Xuân Lãng | F43: Xóm 8 | G43: G | H43: T | I43: 6.25 | J43: 7 | K43: 8.5 | M43: 21.75 | N43: x | P43: 9C | Q43: HäC SINH TI£N TIÕN | R43: 42
A44: 43 | B44: Vũ Kim Oanh | C44: Oanh | D44: 11/09/2009 | E44: Vũ Đình Sinh | F44: Xóm 4 | G44: K | H44: T | I44: 7 | J44: 6.75 | K44: 5.25 | M44: 19 | N44: x | P44: 9C | Q44: HäC SINH TI£N TIÕN | R44: 43
A45: 44 | B45: Trần Tiến Thành | C45: Thành | D45: 06/08/2009 | E45: Trần Đấu Thuật | F45: Xóm 1 | G45: G | H45: T | I45: 7 | J45: 5.5 | K45: 7 | M45: 19.5 | N45: x | P45: 9C | Q45: HäC SINH TI£N TIÕN | R45: 44
A46: 45 | B46: Mai Anh Thư | C46: Thư | D46: 10/11/2009 | E46: Mai Gia Triển | F46: Xóm 5 | G46: G | H46: T | I46: 6 | J46: 7.5 | K46: 8.5 | M46: 22 | N46: x | P46: 9C | Q46: HäC SINH TI£N TIÕN | R46: 45
A47: 46 | B47: Nguyễn Mai Yến | C47: Yến | D47: 01/09/2009 | E47: Mai Thị Hạt | F47: Xóm 6 | G47: G | H47: T | I47: 7.25 | J47: 7.25 | K47: 6.25 | M47: 20.75 | N47: x | P47: 9C | Q47: HäC SINH TI£N TIÕN | R47: 46
A48: 47 | B48: Vũ Hải Yến | C48: Yến | D48: 23/03/2009 | E48: Vũ Kế Toán | F48: Xóm 4 | G48: G | H48: T | I48: 5.75 | J48: 7 | K48: 6.75 | M48: 19.5 | N48: x | P48: 9C | Q48: HäC SINH TI£N TIÕN | R48: 47
A49: 35 | M49: =SUM(I49:L49) -> 0
A50: 36 | M50: 0
A51: 37 | M51: 0
A52: 38 | M52: 0
A53: 39 | M53: 0
A54: 40 | M54: 0
A55: 41 | M55: 0
A56: ="Tổng số học sinh khen thưởng: "&COUNTA(B2:B55)&" (Trong đó " &COUNTIF(O2:O55,"x")&" HS Giỏi và "&COUNTIF(N2:N55,"x")&" HS Tiên tiến)" -> Tổng số học sinh khen thưởng: 47 (Trong đó 16 HS Giỏi và 31 HS Tiên tiến)
F57: ="Hải Nam, ngày "&(IF(DAY(TODAY())<10,"0"&DAY(TODAY()),DAY(TODAY()))&" tháng "&(IF(MONTH(TODAY())<3,"0"&MONTH(TODAY()),MONTH(TODAY()))&" năm "&YEAR(TODAY()))) -> Hải Nam, ngày 19 tháng 5 năm 2026
F58: GVCN
F59: (Ký, ghi rõ họ tên)
F61: Trần Thanh Danh

Sheet IN Lớp 6,7,8 (hidden)
A1: DANH SÁCH KHEN THƯỞNG HỌC SINH XUẤT SẮC - HỌC SINH GIỎI NĂM HỌC 2022-2023 (Có 45 học sinh Tiên tiến)
A2: Lớp | B2: Số lượng | C2: STT | D2: Họ tên | E2: Xếp loại Hạnh kiểm (Rèn luyện) | F2: Xếp loại Học lực (học tập | G2: Điểm khảo sát cuối năm | L2: Danh Hiệu thi đua đề nghị | M2: Đạt danh hiệu | N2: Lớp | O2: Ghi chú
A3: STT | B3: HoTen | D3: NgaySinh | E3: Bo | F3: Xom | G3: RL | H3: HT | I3: Văn | J3: Toán | K3: Anh | L3: M4 | M3: Tổng | N3: HSG | O3: HSXS | P3: Lơp | Q3: DanhHieu | R3: So
A4: 01 | B4: Hoàng Thiên Bảo | C4: Bảo | D4: 13/10/2012 | E4: Hoàng Văn Phú | F4: Xóm 3 | G4: T | H4: T | I4: 9 | J4: 10 | K4: 9 | L4: 10 | M4: =SUM(I4:L4) -> 38 | O4: x | P4: 6C | Q4: =IF(O4="","HäC SINH GIáI","HäC SINH XUÊT S¾C") -> HäC SINH XUÊT S¾C | R4: 01
A5: 02 | B5: Phạm Gia Bảo | C5: Bảo | D5: 14/12/2012 | E5: Phạm Văn Học | F5: Xóm 3 | G5: T | H5: T | I5: 8.75 | J5: 9.5 | K5: 8.75 | L5: 9.25 | M5: 36.25 | O5: x | P5: 6C | Q5: HäC SINH XUÊT S¾C | R5: 02
A6: 03 | B6: Trần Thanh Bình | C6: Bình | D6: 30/01/2012 | E6: Trần Thanh Danh | F6: Xóm 7 | G6: T | H6: T | I6: 8.75 | J6: 9.75 | K6: 8.5 | L6: 9.75 | M6: 36.75 | O6: x | P6: 6C | Q6: HäC SINH XUÊT S¾C | R6: 03
A7: 04 | B7: Vũ Ánh Thùy Dương | C7: Dương | D7: 24/5/2012 | E7: Vũ Thanh Ngọc | F7: Xóm 4 | G7: T | H7: T | I7: 9.75 | J7: 9.25 | K7: 7.5 | L7: 8.5 | M7: 35 | O7: x | P7: 6C | Q7: HäC SINH XUÊT S¾C | R7: 04
A8: 05 | B8: Trần Khánh Huyền | C8: Huyền | D8: 17/6/2012 | E8: Trần Văn Thiện | F8: Xóm 1 | G8: T | H8: T | I8: 9.5 | J8: 9.5 | K8: 7.5 | L8: 9.75 | M8: 36.25 | O8: x | P8: 6C | Q8: HäC SINH XUÊT S¾C | R8: 05
A9: 06 | B9: Lã Diệu Linh | C9: Linh | D9: 29/10/2012 | E9: Lã Đức Hải | F9: Xóm 4 | G9: T | H9: T | I9: 9.25 | J9: 9.75 | K9: 7.25 | L9: 9.25 | M9: 35.5 | O9: x | P9: 6C | Q9: HäC SINH XUÊT S¾C | R9: 06
A10: 07 | B10: Vũ Thị Thanh Bình | C10: Bình | D10: 13/7/2012 | E10: Vũ Văn Khuông | F10: Xóm 4 | G10: T | H10: T | I10: 9.75 | J10: 8.25 | K10: 5.5 | L10: 8.75 | M10: 32.25 | O10: x | P10: 6C | Q10: HäC SINH XUÊT S¾C | R10: 07
A11: 08 | B11: Lê Việt Dũng | C11: Dũng | D11: 2011-01-21 | E11: Lê Chí Thức | F11: 7 | G11: T | H11: XS | I11: 8.25 | J11: 9.25 | K11: 9.5 | L11: 9.5 | M11: =SUM(I11:L11) -> 36.5 | O11: x | P11: 7C | Q11: HäC SINH XUÊT S¾C | R11: 08
A12: 09 | B12: Phạm Thị Thảo Ly | C12: Ly | D12: 2011-02-14 | E12: Phạm Văn Đan | F12: 1 | G12: T | H12: XS | I12: 7.75 | J12: 9 | K12: 8.5 | L12: 7.75 | M12: 33 | O12: x | P12: 7C | Q12: HäC SINH XUÊT S¾C | R12: 09
A13: 10 | B13: Trần Bảo Nam | C13: Nam | D13: 2011-08-27 | E13: Trần văn Huấn | F13: 7 | G13: T | H13: XS | I13: 7.25 | J13: 8 | K13: 9.5 | L13: 7.25 | M13: 32 | O13: x | P13: 7C | Q13: HäC SINH XUÊT S¾C | R13: 10
A14: 11 | B14: Bùi Quang Phát | C14: Phát | D14: 2011-08-13 | E14: Bùi Quang Thảo | F14: 7 | G14: T | H14: XS | I14: 5.75 | J14: 9 | K14: 8 | L14: 7.5 | M14: 30.25 | O14: x | P14: 7C | Q14: HäC SINH XUÊT S¾C | R14: 11
A15: 12 | B15: Đỗ Thu Trang | C15: Trang | D15: 2011-02-12 | E15: Đỗ Huy Hoàng | F15: 7 | G15: T | H15: XS | I15: 5.75 | J15: 9 | K15: 7.5 | L15: 7 | M15: 29.25 | O15: x | P15: 7C | Q15: HäC SINH XUÊT S¾C | R15: 12
A16: 13 | B16: Nguyễn Thiện Chí | C16: Chí | D16: 2011-10-26 | E16: Nguyễn Hùng Mạnh | F16: 6 | G16: T | H16: XS | I16: 7.25 | J16: 9 | K16: 8.5 | L16: 6.5 | M16: 31.25 | O16: x | P16: 7C | Q16: HäC SINH XUÊT S¾C | R16: 13
A17: 14 | B17: Lê Trần Hoàng Anh | C17: Anh | D17: 2010-08-12 | E17: Lê Văn Tuyến | F17: Xóm 6 | G17: T | H17: T | I17: 7.75 | J17: 8.25 | K17: 6.5 | L17: 9.75 | M17: 32.25 | O17: x | P17: 8C | Q17: HäC SINH XUÊT S¾C | R17: 14
A18: 15 | B18: Mai Thị Linh Chi | C18: Chi | D18: 2010-11-11 | E18: Mai Thế Kỷ | F18: Xóm 2 | G18: T | H18: T | I18: 8.5 | J18: 8.25 | K18: 8.5 | L18: 9.25 | M18: 34.5 | O18: x | P18: 8C | Q18: HäC SINH XUÊT S¾C | R18: 15
A19: 16 | B19: Trần Gia Huy | C19: Huy | D19: 25/06/2010 | E19: Trần Trung Hiệu | F19: X11-HV | G19: T | H19: T | I19: 8 | J19: 6.75 | K19: 7.5 | L19: 9.5 | M19: 31.75 | O19: x | P19: 8C | Q19: HäC SINH XUÊT S¾C | R19: 16
A20: 17 | B20: Trần Hương Trà | C20: Trà | D20: 2010-02-03 | E20: Trần Ngọc Ký | F20: Xóm 1 | G20: T | H20: T | I20: 7.75 | J20: 8.25 | K20: 6.5 | L20: 8.5 | M20: 31 | O20: x | P20: 8C | Q20: HäC SINH XUÊT S¾C | R20: 17
A21: 18 | B21: Mai Thảo Yến | C21: Yến | D21: 2010-03-10 | E21: Mai VĂn Chinh | F21: Xóm 2 | G21: T | H21: T | I21: 7.5 | J21: 8.25 | K21: 8.25 | L21: 9.25 | M21: 33.25 | O21: x | P21: 8C | Q21: HäC SINH XUÊT S¾C | R21: 18
A22: 19 | B22: Mai Thị Huyền Diệp | C22: Diệp | D22: 20/11/2010 | E22: Mai Văn Luân | F22: Xóm 9 | G22: T | H22: T | I22: 7.75 | J22: 7.5 | K22: 8 | L22: 10 | M22: 33.25 | O22: x | P22: 8C | Q22: HäC SINH XUÊT S¾C | R22: 19
A23: 20 | B23: Nguyễn Thảo Anh | C23: Anh | D23: 18/10/2012 | E23: Nguyễn Văn cẩn | F23: Xóm 7 | G23: T | H23: T | I23: 7.75 | J23: 7.5 | K23: 5 | L23: 9.75 | M23: 30 | N23: x | P23: 6A | Q23: HäC SINH GIáI | R23: 20
A24: 21 | B24: Trần Văn Hiệu | C24: Hiệu | D24: 20/02/2012 | E24: Trần Văn Hà | F24: Xóm 9 | G24: T | H24: T | I24: 9.25 | J24: 8.5 | K24: 5 | L24: 9 | M24: 31.75 | N24: x | P24: 6A | Q24: HäC SINH GIáI | R24: 21
A25: 22 | B25: Lê Diệu Hòa | C25: Hòa | D25: 2012-12-10 | E25: Lê Văn Lương | F25: Xóm 6 | G25: T | H25: T | I25: 9.25 | J25: 8 | K25: 5 | L25: 8.25 | M25: 30.5 | N25: x | P25: 6A | Q25: HäC SINH GIáI | R25: 22
A26: 23 | B26: Vũ Quốc Ân | C26: Ân | D26: 2012-05-13 | E26: Vũ Thanh Vương | F26: Xóm 4 | G26: T | H26: T | I26: 8 | J26: 7 | K26: 5.25 | L26: 9,0 | M26: 20.25 | N26: x | P26: 6B | Q26: HäC SINH GIáI | R26: 23
A27: 24 | B27: Bùi Huy Hoàng | C27: Hoàng | D27: 2012-04-10 | E27: Bùi Văn Vĩnh | F27: X1 - H Vân | G27: T | H27: T | I27: 9 | J27: 8 | K27: 5,5 | L27: 10,00 | M27: 17 | N27: x | P27: 6B | Q27: HäC SINH GIáI | R27: 24
A28: 25 | B28: Lê Anh Tú | C28: Tú | D28: 2012-11-05 | E28: Lê Quốc Đạt | F28: Xóm 4 | G28: T | H28: T | I28: 8 | J28: 8,5 | K28: 5 | L28: 9,25 | M28: 13 | N28: x | P28: 6B | Q28: HäC SINH GIáI | R28: 25
A29: 26 | B29: Trần Thuỳ Dương | C29: Dương | D29: 2012-07-12 | E29: Trần Ngọc Văn | F29: Xóm 9 | G29: T | H29: T | I29: 9,25 | J29: 8,25 | K29: 6,75 | L29: 6,75 | M29: 0 | N29: x | P29: 6B | Q29: HäC SINH GIáI | R29: 26
A30: 27 | B30: Lê Kiều Anh | C30: Anh | D30: 20/7/2012 | E30: Lê Văn Phương | F30: Xóm 7 | G30: T | H30: T | I30: 9.5 | J30: 8.5 | K30: 6 | L30: 7.25 | M30: =SUM(I30:L30) -> 31.25 | N30: x | P30: 6C | Q30: HäC SINH GIáI | R30: 27
A31: 28 | B31: Lê Trần Phương Anh | C31: Anh | D31: 23/3/2012 | E31: Lê Đức Thiện | F31: Xóm 5 | G31: T | H31: T | I31: 9.5 | J31: 9 | K31: 6.5 | L31: 8.25 | M31: 33.25 | N31: x | P31: 6C | Q31: HäC SINH GIáI | R31: 28
A32: 29 | B32: Phạm Thị Lan Anh | C32: Anh | D32: 24/10/2012 | E32: Phạm Văn Định | F32: Xóm 2 | G32: T | H32: T | I32: 9.25 | J32: 8.75 | K32: 7 | L32: 9.25 | M32: 34.25 | N32: x | P32: 6C | Q32: HäC SINH GIáI | R32: 29
A33: 30 | B33: Lê Gia Bảo | C33: Bảo | D33: 2012-10-10 | E33: Lê Văn Tới | F33: Xóm 9 | G33: T | H33: T | I33: 8.75 | J33: 8 | K33: 5 | L33: 8 | M33: 29.75 | N33: x | P33: 6C | Q33: HäC SINH GIáI | R33: 30
A34: 31 | B34: Lê Thùy Dung | C34: Dung | D34: 30/01/2012 | E34: Lê Tiến Tới | F34: Xóm 6 | G34: T | H34: T | I34: 9.25 | J34: 8.75 | K34: 5.25 | L34: 8.25 | M34: 31.5 | N34: x | P34: 6C | Q34: HäC SINH GIáI | R34: 31
A35: 32 | B35: Trần Tiến Đạt | C35: Đạt | D35: 2012-07-04 | E35: Trần Văn Tư | F35: Xóm 9 | G35: T | H35: T | I35: 8.75 | J35: 9.5 | K35: 6.75 | L35: 8.75 | M35: 33.75 | N35: x | P35: 6C | Q35: HäC SINH GIáI | R35: 32
A36: 33 | B36: Mai Ngọc Hằng | C36: Hằng | D36: 2012-08-06 | E36: Mai Song Toàn | F36: Xóm 3 | G36: T | H36: T | I36: 9.25 | J36: 8.5 | K36: 5.75 | L36: 7 | M36: 30.5 | N36: x | P36: 6C | Q36: =IF(O36="","HäC SINH GIáI","HäC SINH XUÊT S¾C") -> HäC SINH GIáI | R36: 33
A37: 34 | B37: Trần Trung Hiếu | C37: Hiếu | D37: 15/05/2012 | E37: Trần Thanh Vệ | F37: Xóm 3 | G37: T | H37: T | I37: 8.25 | J37: 9.25 | K37: 5 | L37: 9 | M37: 31.5 | N37: x | P37: 6C | Q37: HäC SINH GIáI | R37: 34
A38: 35 | B38: Trần Thanh Hoàng | C38: Hoàng | D38: 20/9/2012 | E38: Trần Thanh Hưởng | F38: Xóm 9 | G38: T | H38: T | I38: 9.25 | J38: 8.5 | K38: 5.75 | L38: 8.25 | M38: 31.75 | N38: x | P38: 6C | Q38: HäC SINH GIáI | R38: 35
A39: 36 | B39: Lê Khánh Huyền | C39: Huyền | D39: 2012-02-07 | E39: Lê Thành Nam | F39: Xóm 5 | G39: T | H39: T | I39: 9 | J39: 9 | K39: 7 | L39: 7.25 | M39: 32.25 | N39: x | P39: 6C | Q39: HäC SINH GIáI | R39: 36
A40: 37 | B40: Trần Thu Huyền | C40: Huyền | D40: 24/08/2012 | E40: Trần Đức Cảnh | F40: Xóm 3 | G40: T | H40: T | I40: 9.25 | J40: 9 | K40: 6.5 | L40: 7.75 | M40: 32.5 | N40: x | P40: 6C | Q40: HäC SINH GIáI | R40: 37
A41: 38 | B41: Nịnh Thị Ngân Khánh | C41: Khánh | D41: 19/07/2012 | E41: Nịnh Văn Thiệu | F41: Xóm 1 | G41: T | H41: T | I41: 9.5 | J41: 9 | K41: 5.25 | L41: 8.5 | M41: 32.25 | N41: x | P41: 6C | Q41: HäC SINH GIáI | R41: 38
A42: 39 | B42: Đặng Sỹ Lâm | C42: Lâm | D42: 23/10/2012 | E42: Đặng Thanh Cao | F42: H Vân | G42: T | H42: T | I42: 8.75 | J42: 9.5 | K42: 5.5 | L42: 9.5 | M42: 33.25 | N42: x | P42: 6C | Q42: HäC SINH GIáI | R42: 39
A43: 40 | B43: Phạm Thảo Nguyên | C43: Nguyên | D43: 2012-10-04 | E43: Phạm Văn Đình | F43: Xóm 1 | G43: T | H43: T | I43: 8.5 | J43: 9.25 | K43: 7.25 | L43: 9 | M43: 34 | N43: x | P43: 6C | Q43: HäC SINH GIáI | R43: 40
A44: 41 | B44: Trần Yến Nhi | C44: Nhi | D44: 13/10/2012 | E44: Trần Thị Nhài | F44: Xóm 7 | G44: T | H44: T | I44: 9 | J44: 8.75 | K44: 6 | L44: 8 | M44: 31.75 | N44: x | P44: 6C | Q44: HäC SINH GIáI | R44: 41
A45: 42 | B45: Nguyễn Thị Thanh Thảo | C45: Thảo | D45: 14/03/2012 | E45: Nguyễn Văn Ba | F45: Xóm 8 | G45: T | H45: T | I45: 9.5 | J45: 9.5 | K45: 5.75 | L45: 8.75 | M45: 33.5 | N45: x | P45: 6C | Q45: HäC SINH GIáI | R45: 42
A46: 43 | B46: Phạm Trần Khánh Thư | C46: Thư | D46: 2012-09-10 | E46: Phạm Khánh Toàn | F46: Xóm 3 | G46: T | H46: T | I46: 9.5 | J46: 9 | K46: 5.5 | L46: 8.25 | M46: 32.25 | N46: x | P46: 6C | Q46: HäC SINH GIáI | R46: 43
A47: 44 | B47: Vũ Anh Thư | C47: Thư | D47: 17/05/2012 | E47: Vũ Cao Tuyên | F47: Xóm 9 | G47: T | H47: T | I47: 9.25 | J47: 8.25 | K47: 6.75 | L47: 9.75 | M47: 34 | N47: x | P47: 6C | Q47: HäC SINH GIáI | R47: 44
A48: 45 | B48: Lê Bảo Trâm | C48: Trâm | D48: 24/09/2012 | E48: Lê Văn Toàn | F48: Xóm 5 | G48: T | H48: T | I48: 9.75 | J48: 9 | K48: 8 | L48: 9.25 | M48: 36 | N48: x | P48: 6C | Q48: HäC SINH GIáI | R48: 45
A49: 46 | B49: Lê Phương Tuyến | C49: Tuyến | D49: 2012-08-02 | E49: Lê Văn Bốn | F49: Xóm 4 | G49: T | H49: T | I49: 9.5 | J49: 9.5 | K49: 5.5 | L49: 9 | M49: 33.5 | N49: x | P49: 6C | Q49: HäC SINH GIáI | R49: 46
A50: 47 | B50: Phạm Thị Tố Uyên | C50: Uyên | D50: 25/12/2012 | E50: Phạm Đình Tuyển | F50: Xóm 3 | G50: T | H50: T | I50: 8.5 | J50: 8 | K50: 8.25 | L50: 6 | M50: 30.75 | N50: x | P50: 6C | Q50: HäC SINH GIáI | R50: 47
A51: 48 | B51: Tống Khánh Vy | C51: Vy | D51: 2012-10-02 | E51: Tống Đức Xuân | F51: Xóm 3 | G51: T | H51: T | I51: 9.25 | J51: 8.75 | K51: 6 | L51: 8.25 | M51: 32.25 | N51: x | P51: 6C | Q51: HäC SINH GIáI | R51: 48
A52: 49 | B52: Trần Diệu Quỳnh | C52: Quỳnh | D52: 19/10/2012 | E52: Trần Văn Trường | F52: Xóm 9 | G52: T | H52: T | I52: 8.5 | J52: 8.5 | K52: 6 | L52: 7.5 | M52: 30.5 | N52: x | P52: 6C | Q52: HäC SINH GIáI | R52: 49
A53: 50 | B53: Lê Nhật Khánh | C53: Khánh | D53: 2011-06-10 | E53: Lê Hồng Duy | F53: Xóm 5 | G53: T | H53: T | I53: 7.5 | J53: 7.75 | K53: 6 | L53: 5 | M53: =SUM(I53:L53) -> 26.25 | N53: x | P53: 7A | Q53: HäC SINH GIáI | R53: 50
A54: 51 | B54: Lương Trần Hương Trà | C54: Trà | D54: 22/04/2011 | E54: Lương Văn Bằng | F54: Xóm 8 | G54: T | H54: T | I54: 7.25 | J54: 8,5 | K54: 5,5 | L54: 5.5 | M54: 12.75 | N54: x | P54: 7A | Q54: HäC SINH GIáI | R54: 51
A55: 52 | B55: Vũ Minh Đức | C55: Đức | D55: 2011-12-09 | E55: Vũ Thanh Lương | F55: Xóm 4 | G55: T | H55: T | I55: 7.25 | J55: 8 | K55: 7.5 | L55: 3.75 | M55: 26.5 | N55: x | P55: 7A | Q55: HäC SINH GIáI | R55: 52
A56: 53 | B56: Lê Mai Hà Vy | C56: Vy | D56: 13/06/2011 | E56: Lê Văn Huy | F56: Xóm 6 | G56: T | H56: T | I56: 7.75 | J56: 7.5 | K56: 8.5 | L56: 4.25 | M56: 28 | N56: x | P56: 7A | Q56: HäC SINH GIáI | R56: 53
A57: 54 | B57: Lê Phương Nga | C57: Nga | D57: 06/07/2011 | E57: Trần Thị Phượng | F57: Xóm 6 | G57: T | H57: T | I57: 7.5 | J57: 7.25 | K57: 7 | L57: 5.25 | M57: 27 | N57: x | P57: 7B | Q57: HäC SINH GIáI | R57: 54
A58: 55 | B58: Bùi Tấn Phát | C58: Phát | D58: 01/09/2011 | E58: Bùi Văn Chuẩn | F58: Xóm 7 | G58: T | H58: T | I58: 6.75 | J58: 7.25 | K58: 7.25 | L58: 6.25 | M58: 27.5 | N58: x | P58: 7B | Q58: HäC SINH GIáI | R58: 55
A59: 56 | B59: Hoàng Thị Thu Trang | C59: Trang | D59: 27/04/2011 | E59: Hoàng Xuân Vĩ | F59: Xóm 3 | G59: T | H59: T | I59: 7.25 | J59: 7.5 | K59: 6 | L59: 7 | M59: 27.75 | N59: x | P59: 7B | Q59: HäC SINH GIáI | R59: 56
A60: 57 | B60: Phạm Hoài An | C60: An | D60: 2011-05-06 | E60: Phạm Quốc Trung | F60: 2 | G60: T | H60: T | I60: 6.25 | J60: 8.75 | K60: 7.5 | L60: 7.5 | M60: 30 | N60: x | P60: 7C | Q60: HäC SINH GIáI | R60: 57
A61: 58 | B61: Lê Phương Anh | C61: Anh | D61: 2011-04-28 | E61: Lê Văn Cảnh | F61: 9 | G61: T | H61: T | I61: 8 | J61: 8.75 | K61: 7 | L61: 6 | M61: 29.75 | N61: x | P61: 7C | Q61: HäC SINH GIáI | R61: 58
A62: 59 | B62: Phạm Thị Ngọc Anh | C62: Anh | D62: 2011-08-30 | E62: Phạm Văn Định | F62: 2 | G62: T | H62: T | I62: 8.25 | J62: 8.25 | K62: 7 | L62: 5.75 | M62: 29.25 | N62: x | P62: 7C | Q62: HäC SINH GIáI | R62: 59
A63: 60 | B63: Nguyễn Tiến Đạt | C63: Đạt | D63: 2011-01-11 | E63: Nguyễn Trọng Đoài | F63: 3 | G63: T | H63: T | I63: 7.25 | J63: 9 | K63: 7.5 | L63: 6.25 | M63: 30 | N63: x | P63: 7C | Q63: HäC SINH GIáI | R63: 60
A64: 61 | B64: Trần Minh Đức | C64: Đức | D64: 2011-07-14 | E64: Trần Văn Độ | F64: 5 | G64: T | H64: T | I64: 6.75 | J64: 8.75 | K64: 7.5 | L64: 6.25 | M64: 29.25 | N64: x | P64: 7C | Q64: HäC SINH GIáI | R64: 61
A65: 62 | B65: Phạm Thị Hoa | C65: Hoa | D65: 2011-04-29 | E65: Phạm Văn Đồng | F65: 2 | G65: T | H65: T | I65: 8.25 | J65: 7.75 | K65: 7 | L65: 5 | M65: 28 | N65: x | P65: 7C | Q65: HäC SINH GIáI | R65: 62
A66: 63 | B66: Phạm Huy Hoàng | C66: Hoàng | D66: 2011-06-27 | E66: Phạm Thanh Hưởng | F66: 1 | G66: T | H66: T | I66: 7.5 | J66: 7.5 | K66: 9 | L66: 6.75 | M66: 30.75 | N66: x | P66: 7C | Q66: HäC SINH GIáI | R66: 63
A67: 64 | B67: Lê Khánh Huyền | C67: Huyền | D67: 2011-10-20 | E67: Lê Cao Oánh | F67: 5 | G67: T | H67: T | I67: 6 | J67: 8.75 | K67: 8.75 | L67: 5.25 | M67: 28.75 | N67: x | P67: 7C | Q67: HäC SINH GIáI | R67: 64
A68: 65 | B68: Đinh Khắc Huynh | C68: Huynh | D68: 2011-09-01 | E68: Đinh Khắc Hoạt | F68: 7 | G68: T | H68: T | I68: 7.75 | J68: 8.75 | K68: 8 | L68: 7.5 | M68: 32 | N68: x | P68: 7C | Q68: =IF(O68="","HäC SINH GIáI","HäC SINH XUÊT S¾C") -> HäC SINH GIáI | R68: 65
A69: 66 | B69: Nguyễn Phương Linh | C69: Linh | D69: 2011-02-02 | E69: Nguyễn Đức Tài | F69: 3 | G69: T | H69: T | I69: 7.25 | J69: 9 | K69: 6.25 | L69: 6.5 | M69: 29 | N69: x | P69: 7C | Q69: HäC SINH GIáI | R69: 66
A70: 67 | B70: Phạm Kim Ngân | C70: Ngân | D70: 2011-01-29 | E70: Phạm Văn Lượng | F70: 1 | G70: T | H70: T | I70: 7.75 | J70: 8.5 | K70: 7.5 | L70: 6.25 | M70: 30 | N70: x | P70: 7C | Q70: HäC SINH GIáI | R70: 67
A71: 68 | B71: Trần Bảo Ngọc | C71: Ngọc | D71: 2011-03-17 | E71: Trần trọng Cảnh | F71: 7 | G71: T | H71: T | I71: 7.5 | J71: 8.5 | K71: 7.25 | L71: 5.75 | M71: 29 | N71: x | P71: 7C | Q71: HäC SINH GIáI | R71: 68
A72: 69 | B72: Lê Yến Nhi | C72: Nhi | D72: 2011-11-16 | E72: Lê Quang Dinh | F72: 4 | G72: T | H72: T | I72: 8 | J72: 9 | K72: 8 | L72: 6.25 | M72: 31.25 | N72: x | P72: 7C | Q72: HäC SINH GIáI | R72: 69
A73: 70 | B73: Trần Minh Oanh | C73: Oanh | D73: 2011-01-18 | E73: Trần Văn Động | F73: 4 | G73: T | H73: T | I73: 5.5 | J73: 9 | K73: 6.75 | L73: 7.5 | M73: 28.75 | N73: x | P73: 7C | Q73: HäC SINH GIáI | R73: 70
A74: 71 | B74: Trần Đình Phong | C74: Phong | D74: 2011-01-01 | E74: Trần Xuân Kỳ | F74: 7 | G74: T | H74: T | I74: 5.5 | J74: 9 | K74: 7 | L74: 7 | M74: 28.5 | N74: x | P74: 7C | Q74: HäC SINH GIáI | R74: 71
A75: 72 | B75: Mai Hồng Phúc | C75: Phúc | D75: 2011-07-04 | E75: Mai Văn Hải | F75: 2 | G75: T | H75: T | I75: 5 | J75: 8.75 | K75: 8.5 | L75: 5.75 | M75: 28 | N75: x | P75: 7C | Q75: HäC SINH GIáI | R75: 72
A76: 73 | B76: Nguyễn Phương Thảo | C76: Thảo | D76: 2011-03-07 | E76: Nguyễn Văn Thắng | F76: 7 | G76: T | H76: T | I76: 6.75 | J76: 8.75 | K76: 7.5 | L76: 6.5 | M76: 29.5 | N76: x | P76: 7C | Q76: HäC SINH GIáI | R76: 73
A77: 74 | B77: Trần Thanh Trúc | C77: Trúc | D77: 2011-12-01 | E77: Trần Văn Vũ | F77: 7 | G77: T | H77: T | I77: 8 | J77: 7.75 | K77: 8 | L77: 6 | M77: 29.75 | N77: x | P77: 7C | Q77: HäC SINH GIáI | R77: 74
A78: 75 | B78: Đỗ Xuân Trung Kiên | C78: Kiên | D78: 2011-09-17 | E78: Đỗ Xuân Ninh | F78: 7 | G78: T | H78: T | I78: 6.5 | J78: 8 | K78: 8 | L78: 4.25 | M78: 26.75 | N78: x | P78: 7C | Q78: HäC SINH GIáI | R78: 75
A79: 76 | B79: Phạm Thu Hà | C79: Hà | D79: 2010-11-29 | E79: Phạm Văn Hậu | F79: 1 | G79: T | H79: T | I79: 7.25 | J79: 6.25 | K79: 6 | L79: 8.75 | M79: 28.25 | N79: x | P79: 8A | Q79: HäC SINH GIáI | R79: 76
A80: 77 | B80: Phạm Đức Long | C80: Long | D80: 2010-08-09 | E80: Phạm Văn Đình | F80: Xóm 3 | G80: T | H80: T | I80: 6.75 | J80: 5.5 | K80: 6 | L80: 5 | M80: 23.25 | N80: x | P80: 8B | Q80: HäC SINH GIáI | R80: 77
A81: 78 | B81: Phạm Anh Thư | C81: Thư | D81: 2010-10-13 | E81: Phạm Văn Hiệp | F81: X6 - X. Ninh | G81: T | H81: T | I81: 8 | J81: 7.5 | K81: 7.5 | L81: 5 | M81: 28 | N81: x | P81: 8B | Q81: HäC SINH GIáI | R81: 78
A82: 79 | B82: Mai Trà My | C82: My | D82: 2010-08-03 | E82: Mai Văn Điệp | F82: Xóm 9 | G82: T | H82: T | I82: 8 | J82: 5.75 | K82: 6 | L82: 5 | M82: 24.75 | N82: x | P82: 8B | Q82: HäC SINH GIáI | R82: 79
A83: 80 | B83: Mai Thanh An | C83: An | D83: 28/05/2010 | E83: Mai Thanh Phúc | F83: Xóm 8 | G83: T | H83: T | I83: 7.25 | J83: 7.5 | K83: 6 | L83: 9.5 | M83: 30.25 | N83: x | P83: 8C | Q83: HäC SINH GIáI | R83: 80
A84: 81 | B84: Nguyễn Thành Công | C84: Công | D84: 21/06/2010 | E84: Nguyễn Văn Ân | F84: Xóm 1 | G84: T | H84: T | I84: 8.25 | J84: 5.25 | K84: 7.5 | L84: 8.5 | M84: 29.5 | N84: x | P84: 8C | Q84: HäC SINH GIáI | R84: 81
A85: 82 | B85: Lê Ánh Duyên | C85: Duyên | D85: 25/10/2010 | E85: Lê Văn Huy | F85: Xóm 9 | G85: T | H85: T | I85: 7.75 | J85: 8.25 | K85: 7 | L85: 9.25 | M85: 32.25 | N85: x | P85: 8C | Q85: HäC SINH GIáI | R85: 82
A86: 83 | B86: Trần Trung Đức | C86: Đức | D86: 18/11/2010 | E86: Trần Văn Thưởng | F86: Xóm 7 | G86: T | H86: T | I86: 8 | J86: 8 | K86: 7.5 | L86: 8.5 | M86: 32 | N86: x | P86: 8C | Q86: HäC SINH GIáI | R86: 83
A87: 84 | B87: Mai Thu Hiền | C87: Hiền | D87: 2010-01-12 | E87: Mai Thế Đắc | F87: Xóm 3 | G87: T | H87: T | I87: 8.25 | J87: 7.75 | K87: 7 | L87: 9.5 | M87: 32.5 | N87: x | P87: 8C | Q87: HäC SINH GIáI | R87: 84
A88: 85 | B88: Mai Việt Hoàng | C88: Hoàng | D88: 28/04/2010 | E88: Mai VĂn Trinh | F88: Xóm 3 | G88: T | H88: T | I88: 7 | J88: 7.5 | K88: 8 | L88: 9.25 | M88: 31.75 | N88: x | P88: 8C | Q88: HäC SINH GIáI | R88: 85
A89: 86 | B89: Bùi Đức Khánh | C89: Khánh | D89: 23/07/2010 | E89: Bùi Xuân Khoát | F89: Xóm 7 | G89: T | H89: T | I89: 7.5 | J89: 7.5 | K89: 6.75 | L89: 8.25 | M89: 30 | N89: x | P89: 8C | Q89: HäC SINH GIáI | R89: 86
A90: 87 | B90: Lê Hạnh Khôi | C90: Khôi | D90: 17/01/2010 | E90: Lê Thị Tuất | F90: Xóm 6 | G90: T | H90: T | I90: 8 | J90: 8 | K90: 7 | L90: 9.5 | M90: 32.5 | N90: x | P90: 8C | Q90: HäC SINH GIáI | R90: 87
A91: 88 | B91: Phạm Nhật Nam | C91: Nam | D91: 18/11/2010 | E91: Phạm Thanh TrườngXóm 3 | G91: T | H91: T | I91: 7.5 | J91: 8.25 | K91: 7 | L91: 8.25 | M91: 31 | N91: x | P91: 8C | Q91: HäC SINH GIáI | R91: 88
A92: 89 | B92: Đỗ Như Nguyệt | C92: Nguyệt | D92: 2010-10-11 | E92: Đỗ Như Ngọc | F92: Xóm 6 | G92: T | H92: T | I92: 8 | J92: 7.5 | K92: 7 | L92: 9.25 | M92: 31.75 | N92: x | P92: 8C | Q92: HäC SINH GIáI | R92: 89
A93: 90 | B93: Nguyễn Thị Phương Nga | C93: Nga | D93: 13/03/2010 | E93: Nguyễn VănTuân | F93: Xóm 1 | G93: T | H93: T | I93: 8.25 | J93: 7.5 | K93: 8 | L93: 9.25 | M93: 33 | N93: x | P93: 8C | Q93: HäC SINH GIáI | R93: 90
A94: 91 | B94: Nguyễn Minh Nhật | C94: Nhật | D94: 2010-07-05 | E94: Nguyễn Hồng Khanh | F94: Xóm 2 | G94: T | H94: T | I94: 7.5 | J94: 8 | K94: 7 | L94: 9.25 | M94: 31.75 | N94: x | P94: 8C | Q94: HäC SINH GIáI | R94: 91
A95: 92 | B95: Trần Minh Phương | C95: Phương | D95: 24/02/2010 | E95: Trần Văn Tú | F95: Xóm 8 | G95: T | H95: T | I95: 8.25 | J95: 6 | K95: 6 | L95: 8.5 | M95: 28.75 | N95: x | P95: 8C | Q95: HäC SINH GIáI | R95: 92
A96: 93 | B96: Trần Phương Thảo | C96: Thảo | D96: 23/06/2010 | E96: Mai Văn Thụy | F96: Xóm 2 | G96: T | H96: T | I96: 7.75 | J96: 8 | K96: 7.5 | L96: 9.5 | M96: 32.75 | N96: x | P96: 8C | Q96: HäC SINH GIáI | R96: 93
A97: 94 | B97: Lê Thùy Trang | C97: Trang | D97: 2010-10-10 | E97: Lê Văn Nhiệm | F97: Xóm 6 | G97: T | H97: T | I97: 7.25 | J97: 7.5 | K97: 6.5 | L97: 8.5 | M97: 29.75 | N97: x | P97: 8C | Q97: HäC SINH GIáI | R97: 94
A98: 95 | B98: Nguyễn Minh Trang | C98: Trang | D98: 16/02/2010 | E98: Nguyễn Văn Bài | F98: Xóm 3 | G98: T | H98: T | I98: 8 | J98: 6 | K98: 8.5 | L98: 9 | M98: 31.5 | N98: x | P98: 8C | Q98: HäC SINH GIáI | R98: 95
A99: 96 | B99: Nguyễn Thị Thu Yến | C99: Yến | D99: 20/02/2010 | E99: Nguyễn Văn Long | F99: Xóm 9 | G99: T | H99: T | I99: 8.25 | J99: 7.75 | K99: 8 | L99: 9.5 | M99: 33.5 | N99: x | P99: 8C | Q99: HäC SINH GIáI | R99: 96
A100: 31 | B100: Lê Thị Kim Hoa | C100: Hoa | D100: 30/5/2012 | E100: Lê Văn Tình | F100: Xóm 5 | G100: T | H100: T | I100: 9.25 | J100: 8.75 | K100: 6 | L100: 9 | M100: =SUM(I100:L100) -> 33 | N100: x | P100: 6C | Q100: =IF(O100="","HäC SINH GIáI","HäC SINH XUÊT S¾C") -> HäC SINH GIáI | R100: 97
A101: 32 | B101: Trần Đức Anh | C101: Anh | D101: 22/7/2012 | E101: Trần Văn Bắc | F101: Xóm 9 | G101: T | H101: T | I101: 7.25 | J101: 8.25 | K101: 6 | L101: 7.5 | M101: =SUM(I101:L101) -> 29 | N101: x | P101: 6C | Q101: =IF(O101="","HäC SINH GIáI","HäC SINH XUÊT S¾C") -> HäC SINH GIáI | R101: 98
A102: ="Tổng số học sinh khen thưởng: "&COUNTA(B4:B99)&" (Trong đó " &COUNTIF(O4:O99,"x")&" HSXS và "&COUNTIF(N4:N99,"x")&" HSG)" -> Tổng số học sinh khen thưởng: 96 (Trong đó 19 HSXS và 77 HSG)
F103: ="Hải Nam, ngày "&(IF(DAY(TODAY())<10,"0"&DAY(TODAY()),DAY(TODAY()))&" tháng "&(IF(MONTH(TODAY())<3,"0"&MONTH(TODAY()),MONTH(TODAY()))&" năm "&YEAR(TODAY()))) -> Hải Nam, ngày 19 tháng 5 năm 2026
F104: GVCN
F105: (Ký, ghi rõ họ tên)
F107: Trần Thanh Danh

Sheet TongHop (goc)
A1: STT | B1: HoTen | C1: Ten | D1: NgaySinh | E1: Bo | F1: Xom | G1: RL | H1: HT | I1: Văn | J1: Toán | K1: Anh | L1: M4 | M1: Tổng | N1: HSXS | O1: HSG | P1: Lơp | Q1: DanhHieu | R1: So | S1: Column1 | T1: Column2 | AH1: HỌC SINH XUẤT SẮC | AI1: =COUNTIF(Table1[DanhHieu],AH1) -> 31
A2: 01 | B2: Nguyễn Thiện | C2: Chí | D2: 26/10/2011 | E2: Nguyễn Hùng Mạnh | F2: Xóm 6 | G2: T | H2: T | I2: 7 | J2: 8.75 | K2: 8.75 | M2: =IF(AND(I2="",J2="",K2="",L2=""),"",SUM(I2:L2)) -> 24.5 | N2: x | P2: 9C | Q2: =IF(AND(N2="",O2=""),"",IF(N2="x","HỌC SINH XUẤT SẮC","HỌC SINH GIỎI")) -> HỌC SINH XUẤT SẮC | R2: =IF(Table1[[#This Row],[STT]]="","",ROW()-1) -> 1 | S2: =IF(Table1[[#This Row],[Lơp]]="","",VLOOKUP(Table1[[#This Row],[Lơp]],$AC$3:$AD$14,2,0)) -> 10 | T2: =IF(AND(Q2="HỌC SINH XUẤT SẮC",LEFT(P2,1)="9"),Table1[[#This Row],[Column1]]+(ROUND(M2,3))+400+ROW()/10000,IF(AND(Q2="HỌC SINH XUẤT SẮC",LEFT(P2,1)="8"),Table1[[#This Row],[Column1]]+(ROUND(M2,3))+450+ROW()/10000,IF(AND(Q2="HỌC SINH XUẤT SẮC",LEFT(P2,1)="7"),Table1[[#This Row],[Column1]]+(ROUND(M2,3))+500+ROW()/10000,IF(AND(Q2="HỌC SINH XUẤT SẮC",LEFT(P2,1)="6"),Table1[[#This Row],[Column1]]+(ROUND(M2,3))+550+ROW()/10000,IF(AND(Q2="HỌC SINH GIỎI",LEFT(P2,1)="9"),Table1[[#This Row],[Column1]]+(ROUND(M2,3))+10+ROW()/10000,IF(AND(Q2="HỌC SINH GIỎI",LEFT(P2,1)="8"),Table1[[#This Row],[Column1]]+(ROUND(M2,3))+ 50+ROW()/10000,IF(AND(Q2="HỌC SINH GIỎI",LEFT(P2,1)="7"),Table1[[#This Row],[Column1]]+(ROUND(M2,3))+100+ROW()/10000,IF(AND(Q2="HỌC SINH GIỎI",LEFT(P2,1)="6"),Table1[[#This Row],[Column1]]+(ROUND(M2,3))+150+ROW()/10000,"")))))))) -> 434.5002 | U2: =IF(AND(Q2="HỌC SINH XUẤT SẮC",LEFT(P2,1)="9"),(ROUND(M2,3))+Table1[[#This Row],[Column1]]+10+ROW()/10000,IF(AND(Q2="HỌC SINH XUẤT SẮC",LEFT(P2,1)="8"),Table1[[#This Row],[Column1]]+(ROUND(M2,3))+50+ROW()/10000,IF(AND(Q2="HỌC SINH XUẤT SẮC",LEFT(P2,1)="7"),Table1[[#This Row],[Column1]]+(ROUND(M2,3))+100+ROW()/10000,IF(AND(Q2="HỌC SINH XUẤT SẮC",LEFT(P2,1)="6"),Table1[[#This Row],[Column1]]+(ROUND(M2,3))+150+ROW()/10000,"")))) -> 44.5002 | V2: =IF(AND(Q2="HỌC SINH GIỎI",LEFT(P2,1)="9"),Table1[[#This Row],[Column1]]+(ROUND(M2,3))+200+ROW()/10000,IF(AND(Q2="HỌC SINH GIỎI",LEFT(P2,1)="8"),Table1[[#This Row],[Column1]]+(ROUND(M2,3))+250+ROW()/10000,IF(AND(Q2="HỌC SINH GIỎI",LEFT(P2,1)="7"),Table1[[#This Row],[Column1]]+(ROUND(M2,3))+300+ROW()/10000,IF(AND(Q2="HỌC SINH GIỎI",LEFT(P2,1)="6"),Table1[[#This Row],[Column1]]+(ROUND(M2,3))+350+ROW()/10000,"")))) ->  | W2: =IF(AND(V2="",U2=""),"",B2) -> Nguyễn Thiện | X2: =IF(W2="","",C2) -> Chí | Y2: =IF(X2="","",Q2) -> HỌC SINH XUẤT SẮC | Z2: =IF(Y2="","",P2) -> 9C | AH2: HỌC SINH GIỎI | AI2: =COUNTIF(Table1[DanhHieu],AH2) -> 142
A3: 02 | B3: Lê Việt | C3: Dũng | D3: 2011-01-21 | E3: Lê Chí Thức | F3: Xóm 7 | G3: T | H3: T | I3: 8.75 | J3: 8.25 | K3: 9.65 | M3: =IF(AND(I3="",J3="",K3="",L3=""),"",SUM(I3:L3)) -> 26.65 | N3: x | P3: 9C | Q3: =IF(AND(N3="",O3=""),"",IF(N3="x","HỌC SINH XUẤT SẮC","HỌC SINH GIỎI")) -> HỌC SINH XUẤT SẮC | R3: =IF(Table1[[#This Row],[STT]]="","",ROW()-1) -> 2 | S3: =IF(Table1[[#This Row],[Lơp]]="","",VLOOKUP(Table1[[#This Row],[Lơp]],$AC$3:$AD$14,2,0)) -> 10 | T3: =IF(AND(Q3="HỌC SINH XUẤT SẮC",LEFT(P3,1)="9"),Table1[[#This Row],[Column1]]+(ROUND(M3,3))+400+ROW()/10000,IF(AND(Q3="HỌC SINH XUẤT SẮC",LEFT(P3,1)="8"),Table1[[#This Row],[Column1]]+(ROUND(M3,3))+450+ROW()/10000,IF(AND(Q3="HỌC SINH XUẤT SẮC",LEFT(P3,1)="7"),Table1[[#This Row],[Column1]]+(ROUND(M3,3))+500+ROW()/10000,IF(AND(Q3="HỌC SINH XUẤT SẮC",LEFT(P3,1)="6"),Table1[[#This Row],[Column1]]+(ROUND(M3,3))+550+ROW()/10000,IF(AND(Q3="HỌC SINH GIỎI",LEFT(P3,1)="9"),Table1[[#This Row],[Column1]]+(ROUND(M3,3))+10+ROW()/10000,IF(AND(Q3="HỌC SINH GIỎI",LEFT(P3,1)="8"),Table1[[#This Row],[Column1]]+(ROUND(M3,3))+ 50+ROW()/10000,IF(AND(Q3="HỌC SINH GIỎI",LEFT(P3,1)="7"),Table1[[#This Row],[Column1]]+(ROUND(M3,3))+100+ROW()/10000,IF(AND(Q3="HỌC SINH GIỎI",LEFT(P3,1)="6"),Table1[[#This Row],[Column1]]+(ROUND(M3,3))+150+ROW()/10000,"")))))))) -> 436.6503 | U3: =IF(AND(Q3="HỌC SINH XUẤT SẮC",LEFT(P3,1)="9"),(ROUND(M3,3))+Table1[[#This Row],[Column1]]+10+ROW()/10000,IF(AND(Q3="HỌC SINH XUẤT SẮC",LEFT(P3,1)="8"),Table1[[#This Row],[Column1]]+(ROUND(M3,3))+50+ROW()/10000,IF(AND(Q3="HỌC SINH XUẤT SẮC",LEFT(P3,1)="7"),Table1[[#This Row],[Column1]]+(ROUND(M3,3))+100+ROW()/10000,IF(AND(Q3="HỌC SINH XUẤT SẮC",LEFT(P3,1)="6"),Table1[[#This Row],[Column1]]+(ROUND(M3,3))+150+ROW()/10000,"")))) -> 46.6503 | V3: =IF(AND(Q3="HỌC SINH GIỎI",LEFT(P3,1)="9"),Table1[[#This Row],[Column1]]+(ROUND(M3,3))+200+ROW()/10000,IF(AND(Q3="HỌC SINH GIỎI",LEFT(P3,1)="8"),Table1[[#This Row],[Column1]]+(ROUND(M3,3))+250+ROW()/10000,IF(AND(Q3="HỌC SINH GIỎI",LEFT(P3,1)="7"),Table1[[#This Row],[Column1]]+(ROUND(M3,3))+300+ROW()/10000,IF(AND(Q3="HỌC SINH GIỎI",LEFT(P3,1)="6"),Table1[[#This Row],[Column1]]+(ROUND(M3,3))+350+ROW()/10000,"")))) ->  | W3: =IF(AND(V3="",U3=""),"",B3) -> Lê Việt | X3: Dũng | Y3: =IF(X3="","",Q3) -> HỌC SINH XUẤT SẮC | Z3: =IF(Y3="","",P3) -> 9C | AC3: 6a | AD3: 120
A4: 03 | B4: Trần Bảo | C4: Nam | D4: 27/08/2011 | E4: Trần Văn Huấn | F4: Xóm 7 | G4: T | H4: T | I4: 9 | J4: 7.75 | K4: 8.75 | M4: 25.5 | N4: x | P4: 9C | Q4: HỌC SINH XUẤT SẮC | R4: =IF(Table1[[#This Row],[STT]]="","",ROW()-1) -> 3 | S4: =IF(Table1[[#This Row],[Lơp]]="","",VLOOKUP(Table1[[#This Row],[Lơp]],$AC$3:$AD$14,2,0)) -> 10 | T4: =IF(AND(Q4="HỌC SINH XUẤT SẮC",LEFT(P4,1)="9"),Table1[[#This Row],[Column1]]+(ROUND(M4,3))+400+ROW()/10000,IF(AND(Q4="HỌC SINH XUẤT SẮC",LEFT(P4,1)="8"),Table1[[#This Row],[Column1]]+(ROUND(M4,3))+450+ROW()/10000,IF(AND(Q4="HỌC SINH XUẤT SẮC",LEFT(P4,1)="7"),Table1[[#This Row],[Column1]]+(ROUND(M4,3))+500+ROW()/10000,IF(AND(Q4="HỌC SINH XUẤT SẮC",LEFT(P4,1)="6"),Table1[[#This Row],[Column1]]+(ROUND(M4,3))+550+ROW()/10000,IF(AND(Q4="HỌC SINH GIỎI",LEFT(P4,1)="9"),Table1[[#This Row],[Column1]]+(ROUND(M4,3))+10+ROW()/10000,IF(AND(Q4="HỌC SINH GIỎI",LEFT(P4,1)="8"),Table1[[#This Row],[Column1]]+(ROUND(M4,3))+ 50+ROW()/10000,IF(AND(Q4="HỌC SINH GIỎI",LEFT(P4,1)="7"),Table1[[#This Row],[Column1]]+(ROUND(M4,3))+100+ROW()/10000,IF(AND(Q4="HỌC SINH GIỎI",LEFT(P4,1)="6"),Table1[[#This Row],[Column1]]+(ROUND(M4,3))+150+ROW()/10000,"")))))))) -> 435.5004 | U4: =IF(AND(Q4="HỌC SINH XUẤT SẮC",LEFT(P4,1)="9"),(ROUND(M4,3))+Table1[[#This Row],[Column1]]+10+ROW()/10000,IF(AND(Q4="HỌC SINH XUẤT SẮC",LEFT(P4,1)="8"),Table1[[#This Row],[Column1]]+(ROUND(M4,3))+50+ROW()/10000,IF(AND(Q4="HỌC SINH XUẤT SẮC",LEFT(P4,1)="7"),Table1[[#This Row],[Column1]]+(ROUND(M4,3))+100+ROW()/10000,IF(AND(Q4="HỌC SINH XUẤT SẮC",LEFT(P4,1)="6"),Table1[[#This Row],[Column1]]+(ROUND(M4,3))+150+ROW()/10000,"")))) -> 45.5004 | V4: =IF(AND(Q4="HỌC SINH GIỎI",LEFT(P4,1)="9"),Table1[[#This Row],[Column1]]+(ROUND(M4,3))+200+ROW()/10000,IF(AND(Q4="HỌC SINH GIỎI",LEFT(P4,1)="8"),Table1[[#This Row],[Column1]]+(ROUND(M4,3))+250+ROW()/10000,IF(AND(Q4="HỌC SINH GIỎI",LEFT(P4,1)="7"),Table1[[#This Row],[Column1]]+(ROUND(M4,3))+300+ROW()/10000,IF(AND(Q4="HỌC SINH GIỎI",LEFT(P4,1)="6"),Table1[[#This Row],[Column1]]+(ROUND(M4,3))+350+ROW()/10000,"")))) ->  | W4: Trần Bảo | X4: Nam | Y4: HỌC SINH XUẤT SẮC | Z4: 9C | AC4: 6b | AD4: 110
A5: 04 | B5: Hoàng Văn | C5: An | D5: 15/09/2011 | E5: Hoàng Thanh Bình | F5: Xóm 7 | G5: T | H5: T | I5: 8 | J5: 7.5 | K5: 6.9 | M5: =IF(AND(I5="",J5="",K5="",L5=""),"",SUM(I5:L5)) -> 22.4 | O5: x | P5: 9C | Q5: HỌC SINH GIỎI | R5: =IF(Table1[[#This Row],[STT]]="","",ROW()-1) -> 4 | S5: =IF(Table1[[#This Row],[Lơp]]="","",VLOOKUP(Table1[[#This Row],[Lơp]],$AC$3:$AD$14,2,0)) -> 10 | T5: =IF(AND(Q5="HỌC SINH XUẤT SẮC",LEFT(P5,1)="9"),Table1[[#This Row],[Column1]]+(ROUND(M5,3))+400+ROW()/10000,IF(AND(Q5="HỌC SINH XUẤT SẮC",LEFT(P5,1)="8"),Table1[[#This Row],[Column1]]+(ROUND(M5,3))+450+ROW()/10000,IF(AND(Q5="HỌC SINH XUẤT SẮC",LEFT(P5,1)="7"),Table1[[#This Row],[Column1]]+(ROUND(M5,3))+500+ROW()/10000,IF(AND(Q5="HỌC SINH XUẤT SẮC",LEFT(P5,1)="6"),Table1[[#This Row],[Column1]]+(ROUND(M5,3))+550+ROW()/10000,IF(AND(Q5="HỌC SINH GIỎI",LEFT(P5,1)="9"),Table1[[#This Row],[Column1]]+(ROUND(M5,3))+10+ROW()/10000,IF(AND(Q5="HỌC SINH GIỎI",LEFT(P5,1)="8"),Table1[[#This Row],[Column1]]+(ROUND(M5,3))+ 50+ROW()/10000,IF(AND(Q5="HỌC SINH GIỎI",LEFT(P5,1)="7"),Table1[[#This Row],[Column1]]+(ROUND(M5,3))+100+ROW()/10000,IF(AND(Q5="HỌC SINH GIỎI",LEFT(P5,1)="6"),Table1[[#This Row],[Column1]]+(ROUND(M5,3))+150+ROW()/10000,"")))))))) -> 42.4005 | U5: =IF(AND(Q5="HỌC SINH XUẤT SẮC",LEFT(P5,1)="9"),(ROUND(M5,3))+Table1[[#This Row],[Column1]]+10+ROW()/10000,IF(AND(Q5="HỌC SINH XUẤT SẮC",LEFT(P5,1)="8"),Table1[[#This Row],[Column1]]+(ROUND(M5,3))+50+ROW()/10000,IF(AND(Q5="HỌC SINH XUẤT SẮC",LEFT(P5,1)="7"),Table1[[#This Row],[Column1]]+(ROUND(M5,3))+100+ROW()/10000,IF(AND(Q5="HỌC SINH XUẤT SẮC",LEFT(P5,1)="6"),Table1[[#This Row],[Column1]]+(ROUND(M5,3))+150+ROW()/10000,"")))) ->  | V5: =IF(AND(Q5="HỌC SINH GIỎI",LEFT(P5,1)="9"),Table1[[#This Row],[Column1]]+(ROUND(M5,3))+200+ROW()/10000,IF(AND(Q5="HỌC SINH GIỎI",LEFT(P5,1)="8"),Table1[[#This Row],[Column1]]+(ROUND(M5,3))+250+ROW()/10000,IF(AND(Q5="HỌC SINH GIỎI",LEFT(P5,1)="7"),Table1[[#This Row],[Column1]]+(ROUND(M5,3))+300+ROW()/10000,IF(AND(Q5="HỌC SINH GIỎI",LEFT(P5,1)="6"),Table1[[#This Row],[Column1]]+(ROUND(M5,3))+350+ROW()/10000,"")))) -> 232.4005 | W5: Hoàng Văn | X5: An | Y5: HỌC SINH GIỎI | Z5: 9C | AC5: 6c | AD5: 100
A6: 05 | B6: Phạm Hoài | C6: An | D6: 06/05/2011 | E6: Phạm Quốc Trung | F6: Xóm 2 | G6: T | H6: T | I6: 8.75 | J6: 8.5 | K6: 8.4 | M6: 25.65 | O6: x | P6: 9C | Q6: HỌC SINH GIỎI | R6: =IF(Table1[[#This Row],[STT]]="","",ROW()-1) -> 5 | S6: =IF(Table1[[#This Row],[Lơp]]="","",VLOOKUP(Table1[[#This Row],[Lơp]],$AC$3:$AD$14,2,0)) -> 10 | T6: =IF(AND(Q6="HỌC SINH XUẤT SẮC",LEFT(P6,1)="9"),Table1[[#This Row],[Column1]]+(ROUND(M6,3))+400+ROW()/10000,IF(AND(Q6="HỌC SINH XUẤT SẮC",LEFT(P6,1)="8"),Table1[[#This Row],[Column1]]+(ROUND(M6,3))+450+ROW()/10000,IF(AND(Q6="HỌC SINH XUẤT SẮC",LEFT(P6,1)="7"),Table1[[#This Row],[Column1]]+(ROUND(M6,3))+500+ROW()/10000,IF(AND(Q6="HỌC SINH XUẤT SẮC",LEFT(P6,1)="6"),Table1[[#This Row],[Column1]]+(ROUND(M6,3))+550+ROW()/10000,IF(AND(Q6="HỌC SINH GIỎI",LEFT(P6,1)="9"),Table1[[#This Row],[Column1]]+(ROUND(M6,3))+10+ROW()/10000,IF(AND(Q6="HỌC SINH GIỎI",LEFT(P6,1)="8"),Table1[[#This Row],[Column1]]+(ROUND(M6,3))+ 50+ROW()/10000,IF(AND(Q6="HỌC SINH GIỎI",LEFT(P6,1)="7"),Table1[[#This Row],[Column1]]+(ROUND(M6,3))+100+ROW()/10000,IF(AND(Q6="HỌC SINH GIỎI",LEFT(P6,1)="6"),Table1[[#This Row],[Column1]]+(ROUND(M6,3))+150+ROW()/10000,"")))))))) -> 45.6506 | U6: =IF(AND(Q6="HỌC SINH XUẤT SẮC",LEFT(P6,1)="9"),(ROUND(M6,3))+Table1[[#This Row],[Column1]]+10+ROW()/10000,IF(AND(Q6="HỌC SINH XUẤT SẮC",LEFT(P6,1)="8"),Table1[[#This Row],[Column1]]+(ROUND(M6,3))+50+ROW()/10000,IF(AND(Q6="HỌC SINH XUẤT SẮC",LEFT(P6,1)="7"),Table1[[#This Row],[Column1]]+(ROUND(M6,3))+100+ROW()/10000,IF(AND(Q6="HỌC SINH XUẤT SẮC",LEFT(P6,1)="6"),Table1[[#This Row],[Column1]]+(ROUND(M6,3))+150+ROW()/10000,"")))) ->  | V6: =IF(AND(Q6="HỌC SINH GIỎI",LEFT(P6,1)="9"),Table1[[#This Row],[Column1]]+(ROUND(M6,3))+200+ROW()/10000,IF(AND(Q6="HỌC SINH GIỎI",LEFT(P6,1)="8"),Table1[[#This Row],[Column1]]+(ROUND(M6,3))+250+ROW()/10000,IF(AND(Q6="HỌC SINH GIỎI",LEFT(P6,1)="7"),Table1[[#This Row],[Column1]]+(ROUND(M6,3))+300+ROW()/10000,IF(AND(Q6="HỌC SINH GIỎI",LEFT(P6,1)="6"),Table1[[#This Row],[Column1]]+(ROUND(M6,3))+350+ROW()/10000,"")))) -> 235.6506 | W6: Phạm Hoài | X6: An | Y6: =IF(X6="","",Q6) -> HỌC SINH GIỎI | Z6: =IF(Y6="","",P6) -> 9C | AC6: 7a | AD6: 90
A7: 06 | B7: Trần Bảo | C7: An | D7: 01/04/2011 | E7: Trần Văn Thuật | F7: Xóm 9 | G7: T | H7: T | I7: 8.25 | J7: 7 | K7: 6.15 | M7: =IF(AND(I7="",J7="",K7="",L7=""),"",SUM(I7:L7)) -> 21.4 | O7: x | P7: 9C | Q7: HỌC SINH GIỎI | R7: =IF(Table1[[#This Row],[STT]]="","",ROW()-1) -> 6 | S7: =IF(Table1[[#This Row],[Lơp]]="","",VLOOKUP(Table1[[#This Row],[Lơp]],$AC$3:$AD$14,2,0)) -> 10 | T7: =IF(AND(Q7="HỌC SINH XUẤT SẮC",LEFT(P7,1)="9"),Table1[[#This Row],[Column1]]+(ROUND(M7,3))+400+ROW()/10000,IF(AND(Q7="HỌC SINH XUẤT SẮC",LEFT(P7,1)="8"),Table1[[#This Row],[Column1]]+(ROUND(M7,3))+450+ROW()/10000,IF(AND(Q7="HỌC SINH XUẤT SẮC",LEFT(P7,1)="7"),Table1[[#This Row],[Column1]]+(ROUND(M7,3))+500+ROW()/10000,IF(AND(Q7="HỌC SINH XUẤT SẮC",LEFT(P7,1)="6"),Table1[[#This Row],[Column1]]+(ROUND(M7,3))+550+ROW()/10000,IF(AND(Q7="HỌC SINH GIỎI",LEFT(P7,1)="9"),Table1[[#This Row],[Column1]]+(ROUND(M7,3))+10+ROW()/10000,IF(AND(Q7="HỌC SINH GIỎI",LEFT(P7,1)="8"),Table1[[#This Row],[Column1]]+(ROUND(M7,3))+ 50+ROW()/10000,IF(AND(Q7="HỌC SINH GIỎI",LEFT(P7,1)="7"),Table1[[#This Row],[Column1]]+(ROUND(M7,3))+100+ROW()/10000,IF(AND(Q7="HỌC SINH GIỎI",LEFT(P7,1)="6"),Table1[[#This Row],[Column1]]+(ROUND(M7,3))+150+ROW()/10000,"")))))))) -> 41.4007 | U7: =IF(AND(Q7="HỌC SINH XUẤT SẮC",LEFT(P7,1)="9"),(ROUND(M7,3))+Table1[[#This Row],[Column1]]+10+ROW()/10000,IF(AND(Q7="HỌC SINH XUẤT SẮC",LEFT(P7,1)="8"),Table1[[#This Row],[Column1]]+(ROUND(M7,3))+50+ROW()/10000,IF(AND(Q7="HỌC SINH XUẤT SẮC",LEFT(P7,1)="7"),Table1[[#This Row],[Column1]]+(ROUND(M7,3))+100+ROW()/10000,IF(AND(Q7="HỌC SINH XUẤT SẮC",LEFT(P7,1)="6"),Table1[[#This Row],[Column1]]+(ROUND(M7,3))+150+ROW()/10000,"")))) ->  | V7: =IF(AND(Q7="HỌC SINH GIỎI",LEFT(P7,1)="9"),Table1[[#This Row],[Column1]]+(ROUND(M7,3))+200+ROW()/10000,IF(AND(Q7="HỌC SINH GIỎI",LEFT(P7,1)="8"),Table1[[#This Row],[Column1]]+(ROUND(M7,3))+250+ROW()/10000,IF(AND(Q7="HỌC SINH GIỎI",LEFT(P7,1)="7"),Table1[[#This Row],[Column1]]+(ROUND(M7,3))+300+ROW()/10000,IF(AND(Q7="HỌC SINH GIỎI",LEFT(P7,1)="6"),Table1[[#This Row],[Column1]]+(ROUND(M7,3))+350+ROW()/10000,"")))) -> 231.4007 | W7: Trần Bảo | X7: An | Y7: HỌC SINH GIỎI | Z7: 9C | AC7: 7b | AD7: 80
A8: 07 | B8: Lê Phương | C8: Anh | D8: 28/04/2011 | E8: Lê Văn Cảnh | F8: Xóm 9 | G8: T | H8: T | I8: 7.5 | J8: 7 | K8: 6.5 | M8: 21 | O8: x | P8: 9C | Q8: HỌC SINH GIỎI | R8: =IF(Table1[[#This Row],[STT]]="","",ROW()-1) -> 7 | S8: =IF(Table1[[#This Row],[Lơp]]="","",VLOOKUP(Table1[[#This Row],[Lơp]],$AC$3:$AD$14,2,0)) -> 10 | T8: =IF(AND(Q8="HỌC SINH XUẤT SẮC",LEFT(P8,1)="9"),Table1[[#This Row],[Column1]]+(ROUND(M8,3))+400+ROW()/10000,IF(AND(Q8="HỌC SINH XUẤT SẮC",LEFT(P8,1)="8"),Table1[[#This Row],[Column1]]+(ROUND(M8,3))+450+ROW()/10000,IF(AND(Q8="HỌC SINH XUẤT SẮC",LEFT(P8,1)="7"),Table1[[#This Row],[Column1]]+(ROUND(M8,3))+500+ROW()/10000,IF(AND(Q8="HỌC SINH XUẤT SẮC",LEFT(P8,1)="6"),Table1[[#This Row],[Column1]]+(ROUND(M8,3))+550+ROW()/10000,IF(AND(Q8="HỌC SINH GIỎI",LEFT(P8,1)="9"),Table1[[#This Row],[Column1]]+(ROUND(M8,3))+10+ROW()/10000,IF(AND(Q8="HỌC SINH GIỎI",LEFT(P8,1)="8"),Table1[[#This Row],[Column1]]+(ROUND(M8,3))+ 50+ROW()/10000,IF(AND(Q8="HỌC SINH GIỎI",LEFT(P8,1)="7"),Table1[[#This Row],[Column1]]+(ROUND(M8,3))+100+ROW()/10000,IF(AND(Q8="HỌC SINH GIỎI",LEFT(P8,1)="6"),Table1[[#This Row],[Column1]]+(ROUND(M8,3))+150+ROW()/10000,"")))))))) -> 41.0008 | U8: =IF(AND(Q8="HỌC SINH XUẤT SẮC",LEFT(P8,1)="9"),(ROUND(M8,3))+Table1[[#This Row],[Column1]]+10+ROW()/10000,IF(AND(Q8="HỌC SINH XUẤT SẮC",LEFT(P8,1)="8"),Table1[[#This Row],[Column1]]+(ROUND(M8,3))+50+ROW()/10000,IF(AND(Q8="HỌC SINH XUẤT SẮC",LEFT(P8,1)="7"),Table1[[#This Row],[Column1]]+(ROUND(M8,3))+100+ROW()/10000,IF(AND(Q8="HỌC SINH XUẤT SẮC",LEFT(P8,1)="6"),Table1[[#This Row],[Column1]]+(ROUND(M8,3))+150+ROW()/10000,"")))) ->  | V8: =IF(AND(Q8="HỌC SINH GIỎI",LEFT(P8,1)="9"),Table1[[#This Row],[Column1]]+(ROUND(M8,3))+200+ROW()/10000,IF(AND(Q8="HỌC SINH GIỎI",LEFT(P8,1)="8"),Table1[[#This Row],[Column1]]+(ROUND(M8,3))+250+ROW()/10000,IF(AND(Q8="HỌC SINH GIỎI",LEFT(P8,1)="7"),Table1[[#This Row],[Column1]]+(ROUND(M8,3))+300+ROW()/10000,IF(AND(Q8="HỌC SINH GIỎI",LEFT(P8,1)="6"),Table1[[#This Row],[Column1]]+(ROUND(M8,3))+350+ROW()/10000,"")))) -> 231.0008 | W8: Lê Phương | X8: Anh | Y8: HỌC SINH GIỎI | Z8: 9C | AC8: 7c | AD8: 70
A9: 08 | B9: Nguyễn Thùy | C9: Dương | D9: 01/12/2011 | E9: Nguyễn Xuân Hòa | F9: Xóm 13 | G9: T | H9: T | I9: 8.5 | J9: 7.25 | K9: 8.7 | M9: 24.45 | O9: x | P9: 9C | Q9: HỌC SINH GIỎI | R9: =IF(Table1[[#This Row],[STT]]="","",ROW()-1) -> 8 | S9: =IF(Table1[[#This Row],[Lơp]]="","",VLOOKUP(Table1[[#This Row],[Lơp]],$AC$3:$AD$14,2,0)) -> 10 | T9: =IF(AND(Q9="HỌC SINH XUẤT SẮC",LEFT(P9,1)="9"),Table1[[#This Row],[Column1]]+(ROUND(M9,3))+400+ROW()/10000,IF(AND(Q9="HỌC SINH XUẤT SẮC",LEFT(P9,1)="8"),Table1[[#This Row],[Column1]]+(ROUND(M9,3))+450+ROW()/10000,IF(AND(Q9="HỌC SINH XUẤT SẮC",LEFT(P9,1)="7"),Table1[[#This Row],[Column1]]+(ROUND(M9,3))+500+ROW()/10000,IF(AND(Q9="HỌC SINH XUẤT SẮC",LEFT(P9,1)="6"),Table1[[#This Row],[Column1]]+(ROUND(M9,3))+550+ROW()/10000,IF(AND(Q9="HỌC SINH GIỎI",LEFT(P9,1)="9"),Table1[[#This Row],[Column1]]+(ROUND(M9,3))+10+ROW()/10000,IF(AND(Q9="HỌC SINH GIỎI",LEFT(P9,1)="8"),Table1[[#This Row],[Column1]]+(ROUND(M9,3))+ 50+ROW()/10000,IF(AND(Q9="HỌC SINH GIỎI",LEFT(P9,1)="7"),Table1[[#This Row],[Column1]]+(ROUND(M9,3))+100+ROW()/10000,IF(AND(Q9="HỌC SINH GIỎI",LEFT(P9,1)="6"),Table1[[#This Row],[Column1]]+(ROUND(M9,3))+150+ROW()/10000,"")))))))) -> 44.4509 | U9: =IF(AND(Q9="HỌC SINH XUẤT SẮC",LEFT(P9,1)="9"),(ROUND(M9,3))+Table1[[#This Row],[Column1]]+10+ROW()/10000,IF(AND(Q9="HỌC SINH XUẤT SẮC",LEFT(P9,1)="8"),Table1[[#This Row],[Column1]]+(ROUND(M9,3))+50+ROW()/10000,IF(AND(Q9="HỌC SINH XUẤT SẮC",LEFT(P9,1)="7"),Table1[[#This Row],[Column1]]+(ROUND(M9,3))+100+ROW()/10000,IF(AND(Q9="HỌC SINH XUẤT SẮC",LEFT(P9,1)="6"),Table1[[#This Row],[Column1]]+(ROUND(M9,3))+150+ROW()/10000,"")))) ->  | V9: =IF(AND(Q9="HỌC SINH GIỎI",LEFT(P9,1)="9"),Table1[[#This Row],[Column1]]+(ROUND(M9,3))+200+ROW()/10000,IF(AND(Q9="HỌC SINH GIỎI",LEFT(P9,1)="8"),Table1[[#This Row],[Column1]]+(ROUND(M9,3))+250+ROW()/10000,IF(AND(Q9="HỌC SINH GIỎI",LEFT(P9,1)="7"),Table1[[#This Row],[Column1]]+(ROUND(M9,3))+300+ROW()/10000,IF(AND(Q9="HỌC SINH GIỎI",LEFT(P9,1)="6"),Table1[[#This Row],[Column1]]+(ROUND(M9,3))+350+ROW()/10000,"")))) -> 234.4509 | W9: Nguyễn Thùy | X9: Dương | Y9: HỌC SINH GIỎI | Z9: 9C | AC9: 8a | AD9: 60
A10: 09 | B10: Nguyễn Tiến | C10: Đạt | D10: 2011-01-11 | E10: Nguyễn Trọng Đoài | F10: Xóm 3 | G10: T | H10: T | I10: 7.75 | J10: 7.5 | K10: 5.4 | M10: 20.65 | O10: x | P10: 9C | Q10: HỌC SINH GIỎI | R10: =IF(Table1[[#This Row],[STT]]="","",ROW()-1) -> 9 | S10: =IF(Table1[[#This Row],[Lơp]]="","",VLOOKUP(Table1[[#This Row],[Lơp]],$AC$3:$AD$14,2,0)) -> 10 | T10: =IF(AND(Q10="HỌC SINH XUẤT SẮC",LEFT(P10,1)="9"),Table1[[#This Row],[Column1]]+(ROUND(M10,3))+400+ROW()/10000,IF(AND(Q10="HỌC SINH XUẤT SẮC",LEFT(P10,1)="8"),Table1[[#This Row],[Column1]]+(ROUND(M10,3))+450+ROW()/10000,IF(AND(Q10="HỌC SINH XUẤT SẮC",LEFT(P10,1)="7"),Table1[[#This Row],[Column1]]+(ROUND(M10,3))+500+ROW()/10000,IF(AND(Q10="HỌC SINH XUẤT SẮC",LEFT(P10,1)="6"),Table1[[#This Row],[Column1]]+(ROUND(M10,3))+550+ROW()/10000,IF(AND(Q10="HỌC SINH GIỎI",LEFT(P10,1)="9"),Table1[[#This Row],[Column1]]+(ROUND(M10,3))+10+ROW()/10000,IF(AND(Q10="HỌC SINH GIỎI",LEFT(P10,1)="8"),Table1[[#This Row],[Column1]]+(ROUND(M10,3))+ 50+ROW()/10000,IF(AND(Q10="HỌC SINH GIỎI",LEFT(P10,1)="7"),Table1[[#This Row],[Column1]]+(ROUND(M10,3))+100+ROW()/10000,IF(AND(Q10="HỌC SINH GIỎI",LEFT(P10,1)="6"),Table1[[#This Row],[Column1]]+(ROUND(M10,3))+150+ROW()/10000,"")))))))) -> 40.651 | U10: =IF(AND(Q10="HỌC SINH XUẤT SẮC",LEFT(P10,1)="9"),(ROUND(M10,3))+Table1[[#This Row],[Column1]]+10+ROW()/10000,IF(AND(Q10="HỌC SINH XUẤT SẮC",LEFT(P10,1)="8"),Table1[[#This Row],[Column1]]+(ROUND(M10,3))+50+ROW()/10000,IF(AND(Q10="HỌC SINH XUẤT SẮC",LEFT(P10,1)="7"),Table1[[#This Row],[Column1]]+(ROUND(M10,3))+100+ROW()/10000,IF(AND(Q10="HỌC SINH XUẤT SẮC",LEFT(P10,1)="6"),Table1[[#This Row],[Column1]]+(ROUND(M10,3))+150+ROW()/10000,"")))) ->  | V10: =IF(AND(Q10="HỌC SINH GIỎI",LEFT(P10,1)="9"),Table1[[#This Row],[Column1]]+(ROUND(M10,3))+200+ROW()/10000,IF(AND(Q10="HỌC SINH GIỎI",LEFT(P10,1)="8"),Table1[[#This Row],[Column1]]+(ROUND(M10,3))+250+ROW()/10000,IF(AND(Q10="HỌC SINH GIỎI",LEFT(P10,1)="7"),Table1[[#This Row],[Column1]]+(ROUND(M10,3))+300+ROW()/10000,IF(AND(Q10="HỌC SINH GIỎI",LEFT(P10,1)="6"),Table1[[#This Row],[Column1]]+(ROUND(M10,3))+350+ROW()/10000,"")))) -> 230.651 | W10: Nguyễn Tiến | X10: Đạt | Y10: HỌC SINH GIỎI | Z10: 9C | AC10: 8b | AD10: 50
A11: 10 | B11: Trần Minh | C11: Đức | D11: 14/07/2011 | E11: Trần Văn Độ | F11: Xóm 5 | G11: T | H11: T | I11: 7.5 | J11: 8 | K11: 7.9 | M11: 23.4 | O11: x | P11: 9C | Q11: HỌC SINH GIỎI | R11: =IF(Table1[[#This Row],[STT]]="","",ROW()-1) -> 10 | S11: =IF(Table1[[#This Row],[Lơp]]="","",VLOOKUP(Table1[[#This Row],[Lơp]],$AC$3:$AD$14,2,0)) -> 10 | T11: =IF(AND(Q11="HỌC SINH XUẤT SẮC",LEFT(P11,1)="9"),Table1[[#This Row],[Column1]]+(ROUND(M11,3))+400+ROW()/10000,IF(AND(Q11="HỌC SINH XUẤT SẮC",LEFT(P11,1)="8"),Table1[[#This Row],[Column1]]+(ROUND(M11,3))+450+ROW()/10000,IF(AND(Q11="HỌC SINH XUẤT SẮC",LEFT(P11,1)="7"),Table1[[#This Row],[Column1]]+(ROUND(M11,3))+500+ROW()/10000,IF(AND(Q11="HỌC SINH XUẤT SẮC",LEFT(P11,1)="6"),Table1[[#This Row],[Column1]]+(ROUND(M11,3))+550+ROW()/10000,IF(AND(Q11="HỌC SINH GIỎI",LEFT(P11,1)="9"),Table1[[#This Row],[Column1]]+(ROUND(M11,3))+10+ROW()/10000,IF(AND(Q11="HỌC SINH GIỎI",LEFT(P11,1)="8"),Table1[[#This Row],[Column1]]+(ROUND(M11,3))+ 50+ROW()/10000,IF(AND(Q11="HỌC SINH GIỎI",LEFT(P11,1)="7"),Table1[[#This Row],[Column1]]+(ROUND(M11,3))+100+ROW()/10000,IF(AND(Q11="HỌC SINH GIỎI",LEFT(P11,1)="6"),Table1[[#This Row],[Column1]]+(ROUND(M11,3))+150+ROW()/10000,"")))))))) -> 43.4011 | U11: =IF(AND(Q11="HỌC SINH XUẤT SẮC",LEFT(P11,1)="9"),(ROUND(M11,3))+Table1[[#This Row],[Column1]]+10+ROW()/10000,IF(AND(Q11="HỌC SINH XUẤT SẮC",LEFT(P11,1)="8"),Table1[[#This Row],[Column1]]+(ROUND(M11,3))+50+ROW()/10000,IF(AND(Q11="HỌC SINH XUẤT SẮC",LEFT(P11,1)="7"),Table1[[#This Row],[Column1]]+(ROUND(M11,3))+100+ROW()/10000,IF(AND(Q11="HỌC SINH XUẤT SẮC",LEFT(P11,1)="6"),Table1[[#This Row],[Column1]]+(ROUND(M11,3))+150+ROW()/10000,"")))) ->  | V11: =IF(AND(Q11="HỌC SINH GIỎI",LEFT(P11,1)="9"),Table1[[#This Row],[Column1]]+(ROUND(M11,3))+200+ROW()/10000,IF(AND(Q11="HỌC SINH GIỎI",LEFT(P11,1)="8"),Table1[[#This Row],[Column1]]+(ROUND(M11,3))+250+ROW()/10000,IF(AND(Q11="HỌC SINH GIỎI",LEFT(P11,1)="7"),Table1[[#This Row],[Column1]]+(ROUND(M11,3))+300+ROW()/10000,IF(AND(Q11="HỌC SINH GIỎI",LEFT(P11,1)="6"),Table1[[#This Row],[Column1]]+(ROUND(M11,3))+350+ROW()/10000,"")))) -> 233.4011 | W11: Trần Minh | X11: Đức | Y11: HỌC SINH GIỎI | Z11: 9C | AC11: 8c | AD11: 40
A12: 11 | B12: Phạm Thị | C12: Hoa | D12: 29/04/2011 | E12: Phạm Văn Đồng | F12: Xóm 2 | G12: T | H12: T | I12: 8.5 | J12: 7.75 | K12: 6.4 | M12: 22.65 | O12: x | P12: 9C | Q12: HỌC SINH GIỎI | R12: =IF(Table1[[#This Row],[STT]]="","",ROW()-1) -> 11 | S12: =IF(Table1[[#This Row],[Lơp]]="","",VLOOKUP(Table1[[#This Row],[Lơp]],$AC$3:$AD$14,2,0)) -> 10 | T12: =IF(AND(Q12="HỌC SINH XUẤT SẮC",LEFT(P12,1)="9"),Table1[[#This Row],[Column1]]+(ROUND(M12,3))+400+ROW()/10000,IF(AND(Q12="HỌC SINH XUẤT SẮC",LEFT(P12,1)="8"),Table1[[#This Row],[Column1]]+(ROUND(M12,3))+450+ROW()/10000,IF(AND(Q12="HỌC SINH XUẤT SẮC",LEFT(P12,1)="7"),Table1[[#This Row],[Column1]]+(ROUND(M12,3))+500+ROW()/10000,IF(AND(Q12="HỌC SINH XUẤT SẮC",LEFT(P12,1)="6"),Table1[[#This Row],[Column1]]+(ROUND(M12,3))+550+ROW()/10000,IF(AND(Q12="HỌC SINH GIỎI",LEFT(P12,1)="9"),Table1[[#This Row],[Column1]]+(ROUND(M12,3))+10+ROW()/10000,IF(AND(Q12="HỌC SINH GIỎI",LEFT(P12,1)="8"),Table1[[#This Row],[Column1]]+(ROUND(M12,3))+ 50+ROW()/10000,IF(AND(Q12="HỌC SINH GIỎI",LEFT(P12,1)="7"),Table1[[#This Row],[Column1]]+(ROUND(M12,3))+100+ROW()/10000,IF(AND(Q12="HỌC SINH GIỎI",LEFT(P12,1)="6"),Table1[[#This Row],[Column1]]+(ROUND(M12,3))+150+ROW()/10000,"")))))))) -> 42.6512 | U12: =IF(AND(Q12="HỌC SINH XUẤT SẮC",LEFT(P12,1)="9"),(ROUND(M12,3))+Table1[[#This Row],[Column1]]+10+ROW()/10000,IF(AND(Q12="HỌC SINH XUẤT SẮC",LEFT(P12,1)="8"),Table1[[#This Row],[Column1]]+(ROUND(M12,3))+50+ROW()/10000,IF(AND(Q12="HỌC SINH XUẤT SẮC",LEFT(P12,1)="7"),Table1[[#This Row],[Column1]]+(ROUND(M12,3))+100+ROW()/10000,IF(AND(Q12="HỌC SINH XUẤT SẮC",LEFT(P12,1)="6"),Table1[[#This Row],[Column1]]+(ROUND(M12,3))+150+ROW()/10000,"")))) ->  | V12: =IF(AND(Q12="HỌC SINH GIỎI",LEFT(P12,1)="9"),Table1[[#This Row],[Column1]]+(ROUND(M12,3))+200+ROW()/10000,IF(AND(Q12="HỌC SINH GIỎI",LEFT(P12,1)="8"),Table1[[#This Row],[Column1]]+(ROUND(M12,3))+250+ROW()/10000,IF(AND(Q12="HỌC SINH GIỎI",LEFT(P12,1)="7"),Table1[[#This Row],[Column1]]+(ROUND(M12,3))+300+ROW()/10000,IF(AND(Q12="HỌC SINH GIỎI",LEFT(P12,1)="6"),Table1[[#This Row],[Column1]]+(ROUND(M12,3))+350+ROW()/10000,"")))) -> 232.6512 | W12: Phạm Thị | X12: Hoa | Y12: HỌC SINH GIỎI | Z12: 9C | AC12: 9a | AD12: 30
A13: 12 | B13: Phạm Huy | C13: Hoàng | D13: 27/06/2011 | E13: Phạm Thanh Hưởng | F13: Xóm 1 | G13: T | H13: T | I13: 9 | J13: 8.25 | K13: 8 | M13: 25.25 | O13: x | P13: 9C | Q13: HỌC SINH GIỎI | R13: =IF(Table1[[#This Row],[STT]]="","",ROW()-1) -> 12 | S13: =IF(Table1[[#This Row],[Lơp]]="","",VLOOKUP(Table1[[#This Row],[Lơp]],$AC$3:$AD$14,2,0)) -> 10 | T13: =IF(AND(Q13="HỌC SINH XUẤT SẮC",LEFT(P13,1)="9"),Table1[[#This Row],[Column1]]+(ROUND(M13,3))+400+ROW()/10000,IF(AND(Q13="HỌC SINH XUẤT SẮC",LEFT(P13,1)="8"),Table1[[#This Row],[Column1]]+(ROUND(M13,3))+450+ROW()/10000,IF(AND(Q13="HỌC SINH XUẤT SẮC",LEFT(P13,1)="7"),Table1[[#This Row],[Column1]]+(ROUND(M13,3))+500+ROW()/10000,IF(AND(Q13="HỌC SINH XUẤT SẮC",LEFT(P13,1)="6"),Table1[[#This Row],[Column1]]+(ROUND(M13,3))+550+ROW()/10000,IF(AND(Q13="HỌC SINH GIỎI",LEFT(P13,1)="9"),Table1[[#This Row],[Column1]]+(ROUND(M13,3))+10+ROW()/10000,IF(AND(Q13="HỌC SINH GIỎI",LEFT(P13,1)="8"),Table1[[#This Row],[Column1]]+(ROUND(M13,3))+ 50+ROW()/10000,IF(AND(Q13="HỌC SINH GIỎI",LEFT(P13,1)="7"),Table1[[#This Row],[Column1]]+(ROUND(M13,3))+100+ROW()/10000,IF(AND(Q13="HỌC SINH GIỎI",LEFT(P13,1)="6"),Table1[[#This Row],[Column1]]+(ROUND(M13,3))+150+ROW()/10000,"")))))))) -> 45.2513 | U13: =IF(AND(Q13="HỌC SINH XUẤT SẮC",LEFT(P13,1)="9"),(ROUND(M13,3))+Table1[[#This Row],[Column1]]+10+ROW()/10000,IF(AND(Q13="HỌC SINH XUẤT SẮC",LEFT(P13,1)="8"),Table1[[#This Row],[Column1]]+(ROUND(M13,3))+50+ROW()/10000,IF(AND(Q13="HỌC SINH XUẤT SẮC",LEFT(P13,1)="7"),Table1[[#This Row],[Column1]]+(ROUND(M13,3))+100+ROW()/10000,IF(AND(Q13="HỌC SINH XUẤT SẮC",LEFT(P13,1)="6"),Table1[[#This Row],[Column1]]+(ROUND(M13,3))+150+ROW()/10000,"")))) ->  | V13: =IF(AND(Q13="HỌC SINH GIỎI",LEFT(P13,1)="9"),Table1[[#This Row],[Column1]]+(ROUND(M13,3))+200+ROW()/10000,IF(AND(Q13="HỌC SINH GIỎI",LEFT(P13,1)="8"),Table1[[#This Row],[Column1]]+(ROUND(M13,3))+250+ROW()/10000,IF(AND(Q13="HỌC SINH GIỎI",LEFT(P13,1)="7"),Table1[[#This Row],[Column1]]+(ROUND(M13,3))+300+ROW()/10000,IF(AND(Q13="HỌC SINH GIỎI",LEFT(P13,1)="6"),Table1[[#This Row],[Column1]]+(ROUND(M13,3))+350+ROW()/10000,"")))) -> 235.2513 | W13: Phạm Huy | X13: Hoàng | Y13: HỌC SINH GIỎI | Z13: 9C | AC13: 9b | AD13: 20
A14: 13 | B14: Phạm Huy | C14: Hoàng | D14: 25/07/2011 | E14: Phạm Văn Sáng | F14: Xóm 1 | G14: T | H14: T | I14: 8.5 | J14: 7.5 | K14: 7.55 | M14: 23.55 | O14: x | P14: 9C | Q14: HỌC SINH GIỎI | R14: =IF(Table1[[#This Row],[STT]]="","",ROW()-1) -> 13 | S14: =IF(Table1[[#This Row],[Lơp]]="","",VLOOKUP(Table1[[#This Row],[Lơp]],$AC$3:$AD$14,2,0)) -> 10 | T14: =IF(AND(Q14="HỌC SINH XUẤT SẮC",LEFT(P14,1)="9"),Table1[[#This Row],[Column1]]+(ROUND(M14,3))+400+ROW()/10000,IF(AND(Q14="HỌC SINH XUẤT SẮC",LEFT(P14,1)="8"),Table1[[#This Row],[Column1]]+(ROUND(M14,3))+450+ROW()/10000,IF(AND(Q14="HỌC SINH XUẤT SẮC",LEFT(P14,1)="7"),Table1[[#This Row],[Column1]]+(ROUND(M14,3))+500+ROW()/10000,IF(AND(Q14="HỌC SINH XUẤT SẮC",LEFT(P14,1)="6"),Table1[[#This Row],[Column1]]+(ROUND(M14,3))+550+ROW()/10000,IF(AND(Q14="HỌC SINH GIỎI",LEFT(P14,1)="9"),Table1[[#This Row],[Column1]]+(ROUND(M14,3))+10+ROW()/10000,IF(AND(Q14="HỌC SINH GIỎI",LEFT(P14,1)="8"),Table1[[#This Row],[Column1]]+(ROUND(M14,3))+ 50+ROW()/10000,IF(AND(Q14="HỌC SINH GIỎI",LEFT(P14,1)="7"),Table1[[#This Row],[Column1]]+(ROUND(M14,3))+100+ROW()/10000,IF(AND(Q14="HỌC SINH GIỎI",LEFT(P14,1)="6"),Table1[[#This Row],[Column1]]+(ROUND(M14,3))+150+ROW()/10000,"")))))))) -> 43.5514 | U14: =IF(AND(Q14="HỌC SINH XUẤT SẮC",LEFT(P14,1)="9"),(ROUND(M14,3))+Table1[[#This Row],[Column1]]+10+ROW()/10000,IF(AND(Q14="HỌC SINH XUẤT SẮC",LEFT(P14,1)="8"),Table1[[#This Row],[Column1]]+(ROUND(M14,3))+50+ROW()/10000,IF(AND(Q14="HỌC SINH XUẤT SẮC",LEFT(P14,1)="7"),Table1[[#This Row],[Column1]]+(ROUND(M14,3))+100+ROW()/10000,IF(AND(Q14="HỌC SINH XUẤT SẮC",LEFT(P14,1)="6"),Table1[[#This Row],[Column1]]+(ROUND(M14,3))+150+ROW()/10000,"")))) ->  | V14: =IF(AND(Q14="HỌC SINH GIỎI",LEFT(P14,1)="9"),Table1[[#This Row],[Column1]]+(ROUND(M14,3))+200+ROW()/10000,IF(AND(Q14="HỌC SINH GIỎI",LEFT(P14,1)="8"),Table1[[#This Row],[Column1]]+(ROUND(M14,3))+250+ROW()/10000,IF(AND(Q14="HỌC SINH GIỎI",LEFT(P14,1)="7"),Table1[[#This Row],[Column1]]+(ROUND(M14,3))+300+ROW()/10000,IF(AND(Q14="HỌC SINH GIỎI",LEFT(P14,1)="6"),Table1[[#This Row],[Column1]]+(ROUND(M14,3))+350+ROW()/10000,"")))) -> 233.5514 | W14: Phạm Huy | X14: Hoàng | Y14: HỌC SINH GIỎI | Z14: 9C | AC14: 9c | AD14: 10
A15: 14 | B15: Lê Khánh | C15: Huyền | D15: 20/10/2011 | E15: Lê Cao Oánh | F15: Xóm 5 | G15: T | H15: T | I15: 8.25 | J15: 8.5 | K15: 8 | M15: 24.75 | N15: x | P15: 9C | Q15: HỌC SINH XUẤT SẮC | R15: =IF(Table1[[#This Row],[STT]]="","",ROW()-1) -> 14 | S15: =IF(Table1[[#This Row],[Lơp]]="","",VLOOKUP(Table1[[#This Row],[Lơp]],$AC$3:$AD$14,2,0)) -> 10 | T15: =IF(AND(Q15="HỌC SINH XUẤT SẮC",LEFT(P15,1)="9"),Table1[[#This Row],[Column1]]+(ROUND(M15,3))+400+ROW()/10000,IF(AND(Q15="HỌC SINH XUẤT SẮC",LEFT(P15,1)="8"),Table1[[#This Row],[Column1]]+(ROUND(M15,3))+450+ROW()/10000,IF(AND(Q15="HỌC SINH XUẤT SẮC",LEFT(P15,1)="7"),Table1[[#This Row],[Column1]]+(ROUND(M15,3))+500+ROW()/10000,IF(AND(Q15="HỌC SINH XUẤT SẮC",LEFT(P15,1)="6"),Table1[[#This Row],[Column1]]+(ROUND(M15,3))+550+ROW()/10000,IF(AND(Q15="HỌC SINH GIỎI",LEFT(P15,1)="9"),Table1[[#This Row],[Column1]]+(ROUND(M15,3))+10+ROW()/10000,IF(AND(Q15="HỌC SINH GIỎI",LEFT(P15,1)="8"),Table1[[#This Row],[Column1]]+(ROUND(M15,3))+ 50+ROW()/10000,IF(AND(Q15="HỌC SINH GIỎI",LEFT(P15,1)="7"),Table1[[#This Row],[Column1]]+(ROUND(M15,3))+100+ROW()/10000,IF(AND(Q15="HỌC SINH GIỎI",LEFT(P15,1)="6"),Table1[[#This Row],[Column1]]+(ROUND(M15,3))+150+ROW()/10000,"")))))))) -> 434.7515 | U15: =IF(AND(Q15="HỌC SINH XUẤT SẮC",LEFT(P15,1)="9"),(ROUND(M15,3))+Table1[[#This Row],[Column1]]+10+ROW()/10000,IF(AND(Q15="HỌC SINH XUẤT SẮC",LEFT(P15,1)="8"),Table1[[#This Row],[Column1]]+(ROUND(M15,3))+50+ROW()/10000,IF(AND(Q15="HỌC SINH XUẤT SẮC",LEFT(P15,1)="7"),Table1[[#This Row],[Column1]]+(ROUND(M15,3))+100+ROW()/10000,IF(AND(Q15="HỌC SINH XUẤT SẮC",LEFT(P15,1)="6"),Table1[[#This Row],[Column1]]+(ROUND(M15,3))+150+ROW()/10000,"")))) -> 44.7515 | V15: =IF(AND(Q15="HỌC SINH GIỎI",LEFT(P15,1)="9"),Table1[[#This Row],[Column1]]+(ROUND(M15,3))+200+ROW()/10000,IF(AND(Q15="HỌC SINH GIỎI",LEFT(P15,1)="8"),Table1[[#This Row],[Column1]]+(ROUND(M15,3))+250+ROW()/10000,IF(AND(Q15="HỌC SINH GIỎI",LEFT(P15,1)="7"),Table1[[#This Row],[Column1]]+(ROUND(M15,3))+300+ROW()/10000,IF(AND(Q15="HỌC SINH GIỎI",LEFT(P15,1)="6"),Table1[[#This Row],[Column1]]+(ROUND(M15,3))+350+ROW()/10000,"")))) ->  | W15: Lê Khánh | X15: Huyền | Y15: HỌC SINH XUẤT SẮC | Z15: 9C
A16: 15 | B16: Đinh Khắc | C16: Huynh | D16: 01/09/2011 | E16: Đinh Khắc Hoạt | F16: Xóm 7 | G16: T | H16: T | I16: 8.5 | J16: 8 | K16: 8 | M16: 24.5 | O16: x | P16: 9C | Q16: HỌC SINH GIỎI | R16: =IF(Table1[[#This Row],[STT]]="","",ROW()-1) -> 15 | S16: =IF(Table1[[#This Row],[Lơp]]="","",VLOOKUP(Table1[[#This Row],[Lơp]],$AC$3:$AD$14,2,0)) -> 10 | T16: =IF(AND(Q16="HỌC SINH XUẤT SẮC",LEFT(P16,1)="9"),Table1[[#This Row],[Column1]]+(ROUND(M16,3))+400+ROW()/10000,IF(AND(Q16="HỌC SINH XUẤT SẮC",LEFT(P16,1)="8"),Table1[[#This Row],[Column1]]+(ROUND(M16,3))+450+ROW()/10000,IF(AND(Q16="HỌC SINH XUẤT SẮC",LEFT(P16,1)="7"),Table1[[#This Row],[Column1]]+(ROUND(M16,3))+500+ROW()/10000,IF(AND(Q16="HỌC SINH XUẤT SẮC",LEFT(P16,1)="6"),Table1[[#This Row],[Column1]]+(ROUND(M16,3))+550+ROW()/10000,IF(AND(Q16="HỌC SINH GIỎI",LEFT(P16,1)="9"),Table1[[#This Row],[Column1]]+(ROUND(M16,3))+10+ROW()/10000,IF(AND(Q16="HỌC SINH GIỎI",LEFT(P16,1)="8"),Table1[[#This Row],[Column1]]+(ROUND(M16,3))+ 50+ROW()/10000,IF(AND(Q16="HỌC SINH GIỎI",LEFT(P16,1)="7"),Table1[[#This Row],[Column1]]+(ROUND(M16,3))+100+ROW()/10000,IF(AND(Q16="HỌC SINH GIỎI",LEFT(P16,1)="6"),Table1[[#This Row],[Column1]]+(ROUND(M16,3))+150+ROW()/10000,"")))))))) -> 44.5016 | U16: =IF(AND(Q16="HỌC SINH XUẤT SẮC",LEFT(P16,1)="9"),(ROUND(M16,3))+Table1[[#This Row],[Column1]]+10+ROW()/10000,IF(AND(Q16="HỌC SINH XUẤT SẮC",LEFT(P16,1)="8"),Table1[[#This Row],[Column1]]+(ROUND(M16,3))+50+ROW()/10000,IF(AND(Q16="HỌC SINH XUẤT SẮC",LEFT(P16,1)="7"),Table1[[#This Row],[Column1]]+(ROUND(M16,3))+100+ROW()/10000,IF(AND(Q16="HỌC SINH XUẤT SẮC",LEFT(P16,1)="6"),Table1[[#This Row],[Column1]]+(ROUND(M16,3))+150+ROW()/10000,"")))) ->  | V16: =IF(AND(Q16="HỌC SINH GIỎI",LEFT(P16,1)="9"),Table1[[#This Row],[Column1]]+(ROUND(M16,3))+200+ROW()/10000,IF(AND(Q16="HỌC SINH GIỎI",LEFT(P16,1)="8"),Table1[[#This Row],[Column1]]+(ROUND(M16,3))+250+ROW()/10000,IF(AND(Q16="HỌC SINH GIỎI",LEFT(P16,1)="7"),Table1[[#This Row],[Column1]]+(ROUND(M16,3))+300+ROW()/10000,IF(AND(Q16="HỌC SINH GIỎI",LEFT(P16,1)="6"),Table1[[#This Row],[Column1]]+(ROUND(M16,3))+350+ROW()/10000,"")))) -> 234.5016 | W16: Đinh Khắc | X16: Huynh | Y16: HỌC SINH GIỎI | Z16: 9C
A17: 16 | B17: Lê Quang | C17: Khải | D17: 17/06/2011 | E17: Lê Văn Kiệt | F17: Xóm 6 | G17: T | H17: T | I17: 7.25 | J17: 6.75 | K17: 7.15 | M17: 21.15 | O17: x | P17: 9C | Q17: HỌC SINH GIỎI | R17: =IF(Table1[[#This Row],[STT]]="","",ROW()-1) -> 16 | S17: =IF(Table1[[#This Row],[Lơp]]="","",VLOOKUP(Table1[[#This Row],[Lơp]],$AC$3:$AD$14,2,0)) -> 10 | T17: =IF(AND(Q17="HỌC SINH XUẤT SẮC",LEFT(P17,1)="9"),Table1[[#This Row],[Column1]]+(ROUND(M17,3))+400+ROW()/10000,IF(AND(Q17="HỌC SINH XUẤT SẮC",LEFT(P17,1)="8"),Table1[[#This Row],[Column1]]+(ROUND(M17,3))+450+ROW()/10000,IF(AND(Q17="HỌC SINH XUẤT SẮC",LEFT(P17,1)="7"),Table1[[#This Row],[Column1]]+(ROUND(M17,3))+500+ROW()/10000,IF(AND(Q17="HỌC SINH XUẤT SẮC",LEFT(P17,1)="6"),Table1[[#This Row],[Column1]]+(ROUND(M17,3))+550+ROW()/10000,IF(AND(Q17="HỌC SINH GIỎI",LEFT(P17,1)="9"),Table1[[#This Row],[Column1]]+(ROUND(M17,3))+10+ROW()/10000,IF(AND(Q17="HỌC SINH GIỎI",LEFT(P17,1)="8"),Table1[[#This Row],[Column1]]+(ROUND(M17,3))+ 50+ROW()/10000,IF(AND(Q17="HỌC SINH GIỎI",LEFT(P17,1)="7"),Table1[[#This Row],[Column1]]+(ROUND(M17,3))+100+ROW()/10000,IF(AND(Q17="HỌC SINH GIỎI",LEFT(P17,1)="6"),Table1[[#This Row],[Column1]]+(ROUND(M17,3))+150+ROW()/10000,"")))))))) -> 41.1517 | U17: =IF(AND(Q17="HỌC SINH XUẤT SẮC",LEFT(P17,1)="9"),(ROUND(M17,3))+Table1[[#This Row],[Column1]]+10+ROW()/10000,IF(AND(Q17="HỌC SINH XUẤT SẮC",LEFT(P17,1)="8"),Table1[[#This Row],[Column1]]+(ROUND(M17,3))+50+ROW()/10000,IF(AND(Q17="HỌC SINH XUẤT SẮC",LEFT(P17,1)="7"),Table1[[#This Row],[Column1]]+(ROUND(M17,3))+100+ROW()/10000,IF(AND(Q17="HỌC SINH XUẤT SẮC",LEFT(P17,1)="6"),Table1[[#This Row],[Column1]]+(ROUND(M17,3))+150+ROW()/10000,"")))) ->  | V17: =IF(AND(Q17="HỌC SINH GIỎI",LEFT(P17,1)="9"),Table1[[#This Row],[Column1]]+(ROUND(M17,3))+200+ROW()/10000,IF(AND(Q17="HỌC SINH GIỎI",LEFT(P17,1)="8"),Table1[[#This Row],[Column1]]+(ROUND(M17,3))+250+ROW()/10000,IF(AND(Q17="HỌC SINH GIỎI",LEFT(P17,1)="7"),Table1[[#This Row],[Column1]]+(ROUND(M17,3))+300+ROW()/10000,IF(AND(Q17="HỌC SINH GIỎI",LEFT(P17,1)="6"),Table1[[#This Row],[Column1]]+(ROUND(M17,3))+350+ROW()/10000,"")))) -> 231.1517 | W17: Lê Quang | X17: Khải | Y17: HỌC SINH GIỎI | Z17: 9C
A18: 17 | B18: Phạm Thị Thảo | C18: Ly | D18: 14/02/2011 | E18: Phạm Văn Đan | F18: Xóm 1 | G18: T | H18: T | I18: 9 | J18: 7.75 | K18: 8.5 | M18: 25.25 | N18: x | P18: 9C | Q18: HỌC SINH XUẤT SẮC | R18: =IF(Table1[[#This Row],[STT]]="","",ROW()-1) -> 17 | S18: =IF(Table1[[#This Row],[Lơp]]="","",VLOOKUP(Table1[[#This Row],[Lơp]],$AC$3:$AD$14,2,0)) -> 10 | T18: =IF(AND(Q18="HỌC SINH XUẤT SẮC",LEFT(P18,1)="9"),Table1[[#This Row],[Column1]]+(ROUND(M18,3))+400+ROW()/10000,IF(AND(Q18="HỌC SINH XUẤT SẮC",LEFT(P18,1)="8"),Table1[[#This Row],[Column1]]+(ROUND(M18,3))+450+ROW()/10000,IF(AND(Q18="HỌC SINH XUẤT SẮC",LEFT(P18,1)="7"),Table1[[#This Row],[Column1]]+(ROUND(M18,3))+500+ROW()/10000,IF(AND(Q18="HỌC SINH XUẤT SẮC",LEFT(P18,1)="6"),Table1[[#This Row],[Column1]]+(ROUND(M18,3))+550+ROW()/10000,IF(AND(Q18="HỌC SINH GIỎI",LEFT(P18,1)="9"),Table1[[#This Row],[Column1]]+(ROUND(M18,3))+10+ROW()/10000,IF(AND(Q18="HỌC SINH GIỎI",LEFT(P18,1)="8"),Table1[[#This Row],[Column1]]+(ROUND(M18,3))+ 50+ROW()/10000,IF(AND(Q18="HỌC SINH GIỎI",LEFT(P18,1)="7"),Table1[[#This Row],[Column1]]+(ROUND(M18,3))+100+ROW()/10000,IF(AND(Q18="HỌC SINH GIỎI",LEFT(P18,1)="6"),Table1[[#This Row],[Column1]]+(ROUND(M18,3))+150+ROW()/10000,"")))))))) -> 435.2518 | U18: =IF(AND(Q18="HỌC SINH XUẤT SẮC",LEFT(P18,1)="9"),(ROUND(M18,3))+Table1[[#This Row],[Column1]]+10+ROW()/10000,IF(AND(Q18="HỌC SINH XUẤT SẮC",LEFT(P18,1)="8"),Table1[[#This Row],[Column1]]+(ROUND(M18,3))+50+ROW()/10000,IF(AND(Q18="HỌC SINH XUẤT SẮC",LEFT(P18,1)="7"),Table1[[#This Row],[Column1]]+(ROUND(M18,3))+100+ROW()/10000,IF(AND(Q18="HỌC SINH XUẤT SẮC",LEFT(P18,1)="6"),Table1[[#This Row],[Column1]]+(ROUND(M18,3))+150+ROW()/10000,"")))) -> 45.2518 | V18: =IF(AND(Q18="HỌC SINH GIỎI",LEFT(P18,1)="9"),Table1[[#This Row],[Column1]]+(ROUND(M18,3))+200+ROW()/10000,IF(AND(Q18="HỌC SINH GIỎI",LEFT(P18,1)="8"),Table1[[#This Row],[Column1]]+(ROUND(M18,3))+250+ROW()/10000,IF(AND(Q18="HỌC SINH GIỎI",LEFT(P18,1)="7"),Table1[[#This Row],[Column1]]+(ROUND(M18,3))+300+ROW()/10000,IF(AND(Q18="HỌC SINH GIỎI",LEFT(P18,1)="6"),Table1[[#This Row],[Column1]]+(ROUND(M18,3))+350+ROW()/10000,"")))) ->  | W18: Phạm Thị Thảo | X18: Ly | Y18: HỌC SINH XUẤT SẮC | Z18: 9C
A19: 18 | B19: Phạm Kim | C19: Ngân | D19: 29/01/2011 | E19: Phạm Văn Lượng | F19: Xóm 1 | G19: T | H19: T | I19: 9 | J19: 8.25 | K19: 8.25 | M19: 25.5 | O19: x | P19: 9C | Q19: HỌC SINH GIỎI | R19: =IF(Table1[[#This Row],[STT]]="","",ROW()-1) -> 18 | S19: =IF(Table1[[#This Row],[Lơp]]="","",VLOOKUP(Table1[[#This Row],[Lơp]],$AC$3:$AD$14,2,0)) -> 10 | T19: =IF(AND(Q19="HỌC SINH XUẤT SẮC",LEFT(P19,1)="9"),Table1[[#This Row],[Column1]]+(ROUND(M19,3))+400+ROW()/10000,IF(AND(Q19="HỌC SINH XUẤT SẮC",LEFT(P19,1)="8"),Table1[[#This Row],[Column1]]+(ROUND(M19,3))+450+ROW()/10000,IF(AND(Q19="HỌC SINH XUẤT SẮC",LEFT(P19,1)="7"),Table1[[#This Row],[Column1]]+(ROUND(M19,3))+500+ROW()/10000,IF(AND(Q19="HỌC SINH XUẤT SẮC",LEFT(P19,1)="6"),Table1[[#This Row],[Column1]]+(ROUND(M19,3))+550+ROW()/10000,IF(AND(Q19="HỌC SINH GIỎI",LEFT(P19,1)="9"),Table1[[#This Row],[Column1]]+(ROUND(M19,3))+10+ROW()/10000,IF(AND(Q19="HỌC SINH GIỎI",LEFT(P19,1)="8"),Table1[[#This Row],[Column1]]+(ROUND(M19,3))+ 50+ROW()/10000,IF(AND(Q19="HỌC SINH GIỎI",LEFT(P19,1)="7"),Table1[[#This Row],[Column1]]+(ROUND(M19,3))+100+ROW()/10000,IF(AND(Q19="HỌC SINH GIỎI",LEFT(P19,1)="6"),Table1[[#This Row],[Column1]]+(ROUND(M19,3))+150+ROW()/10000,"")))))))) -> 45.5019 | U19: =IF(AND(Q19="HỌC SINH XUẤT SẮC",LEFT(P19,1)="9"),(ROUND(M19,3))+Table1[[#This Row],[Column1]]+10+ROW()/10000,IF(AND(Q19="HỌC SINH XUẤT SẮC",LEFT(P19,1)="8"),Table1[[#This Row],[Column1]]+(ROUND(M19,3))+50+ROW()/10000,IF(AND(Q19="HỌC SINH XUẤT SẮC",LEFT(P19,1)="7"),Table1[[#This Row],[Column1]]+(ROUND(M19,3))+100+ROW()/10000,IF(AND(Q19="HỌC SINH XUẤT SẮC",LEFT(P19,1)="6"),Table1[[#This Row],[Column1]]+(ROUND(M19,3))+150+ROW()/10000,"")))) ->  | V19: =IF(AND(Q19="HỌC SINH GIỎI",LEFT(P19,1)="9"),Table1[[#This Row],[Column1]]+(ROUND(M19,3))+200+ROW()/10000,IF(AND(Q19="HỌC SINH GIỎI",LEFT(P19,1)="8"),Table1[[#This Row],[Column1]]+(ROUND(M19,3))+250+ROW()/10000,IF(AND(Q19="HỌC SINH GIỎI",LEFT(P19,1)="7"),Table1[[#This Row],[Column1]]+(ROUND(M19,3))+300+ROW()/10000,IF(AND(Q19="HỌC SINH GIỎI",LEFT(P19,1)="6"),Table1[[#This Row],[Column1]]+(ROUND(M19,3))+350+ROW()/10000,"")))) -> 235.5019 | W19: Phạm Kim | X19: Ngân | Y19: HỌC SINH GIỎI | Z19: 9C
A20: 19 | B20: Trần Bảo | C20: Ngọc | D20: 17/03/2011 | E20: Trần Trọng Cảnh | F20: Xóm 7 | G20: T | H20: T | I20: 8.25 | J20: 8 | K20: 7.75 | M20: 24 | O20: x | P20: 9C | Q20: HỌC SINH GIỎI | R20: =IF(Table1[[#This Row],[STT]]="","",ROW()-1) -> 19 | S20: =IF(Table1[[#This Row],[Lơp]]="","",VLOOKUP(Table1[[#This Row],[Lơp]],$AC$3:$AD$14,2,0)) -> 10 | T20: =IF(AND(Q20="HỌC SINH XUẤT SẮC",LEFT(P20,1)="9"),Table1[[#This Row],[Column1]]+(ROUND(M20,3))+400+ROW()/10000,IF(AND(Q20="HỌC SINH XUẤT SẮC",LEFT(P20,1)="8"),Table1[[#This Row],[Column1]]+(ROUND(M20,3))+450+ROW()/10000,IF(AND(Q20="HỌC SINH XUẤT SẮC",LEFT(P20,1)="7"),Table1[[#This Row],[Column1]]+(ROUND(M20,3))+500+ROW()/10000,IF(AND(Q20="HỌC SINH XUẤT SẮC",LEFT(P20,1)="6"),Table1[[#This Row],[Column1]]+(ROUND(M20,3))+550+ROW()/10000,IF(AND(Q20="HỌC SINH GIỎI",LEFT(P20,1)="9"),Table1[[#This Row],[Column1]]+(ROUND(M20,3))+10+ROW()/10000,IF(AND(Q20="HỌC SINH GIỎI",LEFT(P20,1)="8"),Table1[[#This Row],[Column1]]+(ROUND(M20,3))+ 50+ROW()/10000,IF(AND(Q20="HỌC SINH GIỎI",LEFT(P20,1)="7"),Table1[[#This Row],[Column1]]+(ROUND(M20,3))+100+ROW()/10000,IF(AND(Q20="HỌC SINH GIỎI",LEFT(P20,1)="6"),Table1[[#This Row],[Column1]]+(ROUND(M20,3))+150+ROW()/10000,"")))))))) -> 44.002 | U20: =IF(AND(Q20="HỌC SINH XUẤT SẮC",LEFT(P20,1)="9"),(ROUND(M20,3))+Table1[[#This Row],[Column1]]+10+ROW()/10000,IF(AND(Q20="HỌC SINH XUẤT SẮC",LEFT(P20,1)="8"),Table1[[#This Row],[Column1]]+(ROUND(M20,3))+50+ROW()/10000,IF(AND(Q20="HỌC SINH XUẤT SẮC",LEFT(P20,1)="7"),Table1[[#This Row],[Column1]]+(ROUND(M20,3))+100+ROW()/10000,IF(AND(Q20="HỌC SINH XUẤT SẮC",LEFT(P20,1)="6"),Table1[[#This Row],[Column1]]+(ROUND(M20,3))+150+ROW()/10000,"")))) ->  | V20: =IF(AND(Q20="HỌC SINH GIỎI",LEFT(P20,1)="9"),Table1[[#This Row],[Column1]]+(ROUND(M20,3))+200+ROW()/10000,IF(AND(Q20="HỌC SINH GIỎI",LEFT(P20,1)="8"),Table1[[#This Row],[Column1]]+(ROUND(M20,3))+250+ROW()/10000,IF(AND(Q20="HỌC SINH GIỎI",LEFT(P20,1)="7"),Table1[[#This Row],[Column1]]+(ROUND(M20,3))+300+ROW()/10000,IF(AND(Q20="HỌC SINH GIỎI",LEFT(P20,1)="6"),Table1[[#This Row],[Column1]]+(ROUND(M20,3))+350+ROW()/10000,"")))) -> 234.002 | W20: Trần Bảo | X20: Ngọc | Y20: HỌC SINH GIỎI | Z20: 9C
A21: 20 | B21: Lê Yến | C21: Nhi | D21: 16/11/2011 | E21: Lê Quang Dinh | F21: Xóm 4 | G21: T | H21: T | I21: 8.75 | J21: 6.75 | K21: 8.1 | M21: 23.6 | O21: x | P21: 9C | Q21: HỌC SINH GIỎI | R21: =IF(Table1[[#This Row],[STT]]="","",ROW()-1) -> 20 | S21: =IF(Table1[[#This Row],[Lơp]]="","",VLOOKUP(Table1[[#This Row],[Lơp]],$AC$3:$AD$14,2,0)) -> 10 | T21: =IF(AND(Q21="HỌC SINH XUẤT SẮC",LEFT(P21,1)="9"),Table1[[#This Row],[Column1]]+(ROUND(M21,3))+400+ROW()/10000,IF(AND(Q21="HỌC SINH XUẤT SẮC",LEFT(P21,1)="8"),Table1[[#This Row],[Column1]]+(ROUND(M21,3))+450+ROW()/10000,IF(AND(Q21="HỌC SINH XUẤT SẮC",LEFT(P21,1)="7"),Table1[[#This Row],[Column1]]+(ROUND(M21,3))+500+ROW()/10000,IF(AND(Q21="HỌC SINH XUẤT SẮC",LEFT(P21,1)="6"),Table1[[#This Row],[Column1]]+(ROUND(M21,3))+550+ROW()/10000,IF(AND(Q21="HỌC SINH GIỎI",LEFT(P21,1)="9"),Table1[[#This Row],[Column1]]+(ROUND(M21,3))+10+ROW()/10000,IF(AND(Q21="HỌC SINH GIỎI",LEFT(P21,1)="8"),Table1[[#This Row],[Column1]]+(ROUND(M21,3))+ 50+ROW()/10000,IF(AND(Q21="HỌC SINH GIỎI",LEFT(P21,1)="7"),Table1[[#This Row],[Column1]]+(ROUND(M21,3))+100+ROW()/10000,IF(AND(Q21="HỌC SINH GIỎI",LEFT(P21,1)="6"),Table1[[#This Row],[Column1]]+(ROUND(M21,3))+150+ROW()/10000,"")))))))) -> 43.6021 | U21: =IF(AND(Q21="HỌC SINH XUẤT SẮC",LEFT(P21,1)="9"),(ROUND(M21,3))+Table1[[#This Row],[Column1]]+10+ROW()/10000,IF(AND(Q21="HỌC SINH XUẤT SẮC",LEFT(P21,1)="8"),Table1[[#This Row],[Column1]]+(ROUND(M21,3))+50+ROW()/10000,IF(AND(Q21="HỌC SINH XUẤT SẮC",LEFT(P21,1)="7"),Table1[[#This Row],[Column1]]+(ROUND(M21,3))+100+ROW()/10000,IF(AND(Q21="HỌC SINH XUẤT SẮC",LEFT(P21,1)="6"),Table1[[#This Row],[Column1]]+(ROUND(M21,3))+150+ROW()/10000,"")))) ->  | V21: =IF(AND(Q21="HỌC SINH GIỎI",LEFT(P21,1)="9"),Table1[[#This Row],[Column1]]+(ROUND(M21,3))+200+ROW()/10000,IF(AND(Q21="HỌC SINH GIỎI",LEFT(P21,1)="8"),Table1[[#This Row],[Column1]]+(ROUND(M21,3))+250+ROW()/10000,IF(AND(Q21="HỌC SINH GIỎI",LEFT(P21,1)="7"),Table1[[#This Row],[Column1]]+(ROUND(M21,3))+300+ROW()/10000,IF(AND(Q21="HỌC SINH GIỎI",LEFT(P21,1)="6"),Table1[[#This Row],[Column1]]+(ROUND(M21,3))+350+ROW()/10000,"")))) -> 233.6021 | W21: Lê Yến | X21: Nhi | Y21: HỌC SINH GIỎI | Z21: 9C
A22: 21 | B22: Trần Minh | C22: Oanh | D22: 18/01/2011 | E22: Trần Văn Động | F22: Xóm 4 | G22: T | H22: T | I22: 8.75 | J22: 7.25 | K22: 7.9 | M22: 23.9 | O22: x | P22: 9C | Q22: HỌC SINH GIỎI | R22: =IF(Table1[[#This Row],[STT]]="","",ROW()-1) -> 21 | S22: =IF(Table1[[#This Row],[Lơp]]="","",VLOOKUP(Table1[[#This Row],[Lơp]],$AC$3:$AD$14,2,0)) -> 10 | T22: =IF(AND(Q22="HỌC SINH XUẤT SẮC",LEFT(P22,1)="9"),Table1[[#This Row],[Column1]]+(ROUND(M22,3))+400+ROW()/10000,IF(AND(Q22="HỌC SINH XUẤT SẮC",LEFT(P22,1)="8"),Table1[[#This Row],[Column1]]+(ROUND(M22,3))+450+ROW()/10000,IF(AND(Q22="HỌC SINH XUẤT SẮC",LEFT(P22,1)="7"),Table1[[#This Row],[Column1]]+(ROUND(M22,3))+500+ROW()/10000,IF(AND(Q22="HỌC SINH XUẤT SẮC",LEFT(P22,1)="6"),Table1[[#This Row],[Column1]]+(ROUND(M22,3))+550+ROW()/10000,IF(AND(Q22="HỌC SINH GIỎI",LEFT(P22,1)="9"),Table1[[#This Row],[Column1]]+(ROUND(M22,3))+10+ROW()/10000,IF(AND(Q22="HỌC SINH GIỎI",LEFT(P22,1)="8"),Table1[[#This Row],[Column1]]+(ROUND(M22,3))+ 50+ROW()/10000,IF(AND(Q22="HỌC SINH GIỎI",LEFT(P22,1)="7"),Table1[[#This Row],[Column1]]+(ROUND(M22,3))+100+ROW()/10000,IF(AND(Q22="HỌC SINH GIỎI",LEFT(P22,1)="6"),Table1[[#This Row],[Column1]]+(ROUND(M22,3))+150+ROW()/10000,"")))))))) -> 43.9022 | U22: =IF(AND(Q22="HỌC SINH XUẤT SẮC",LEFT(P22,1)="9"),(ROUND(M22,3))+Table1[[#This Row],[Column1]]+10+ROW()/10000,IF(AND(Q22="HỌC SINH XUẤT SẮC",LEFT(P22,1)="8"),Table1[[#This Row],[Column1]]+(ROUND(M22,3))+50+ROW()/10000,IF(AND(Q22="HỌC SINH XUẤT SẮC",LEFT(P22,1)="7"),Table1[[#This Row],[Column1]]+(ROUND(M22,3))+100+ROW()/10000,IF(AND(Q22="HỌC SINH XUẤT SẮC",LEFT(P22,1)="6"),Table1[[#This Row],[Column1]]+(ROUND(M22,3))+150+ROW()/10000,"")))) ->  | V22: =IF(AND(Q22="HỌC SINH GIỎI",LEFT(P22,1)="9"),Table1[[#This Row],[Column1]]+(ROUND(M22,3))+200+ROW()/10000,IF(AND(Q22="HỌC SINH GIỎI",LEFT(P22,1)="8"),Table1[[#This Row],[Column1]]+(ROUND(M22,3))+250+ROW()/10000,IF(AND(Q22="HỌC SINH GIỎI",LEFT(P22,1)="7"),Table1[[#This Row],[Column1]]+(ROUND(M22,3))+300+ROW()/10000,IF(AND(Q22="HỌC SINH GIỎI",LEFT(P22,1)="6"),Table1[[#This Row],[Column1]]+(ROUND(M22,3))+350+ROW()/10000,"")))) -> 233.9022 | W22: Trần Minh | X22: Oanh | Y22: HỌC SINH GIỎI | Z22: 9C
A23: 22 | B23: Bùi Quang | C23: Phát | D23: 13/08/2011 | E23: Bùi Quang Thảo | F23: Xóm 7 | G23: T | H23: T | I23: 8.5 | J23: 8.25 | K23: 9.75 | M23: 26.5 | N23: x | P23: 9C | Q23: HỌC SINH XUẤT SẮC | R23: =IF(Table1[[#This Row],[STT]]="","",ROW()-1) -> 22 | S23: =IF(Table1[[#This Row],[Lơp]]="","",VLOOKUP(Table1[[#This Row],[Lơp]],$AC$3:$AD$14,2,0)) -> 10 | T23: =IF(AND(Q23="HỌC SINH XUẤT SẮC",LEFT(P23,1)="9"),Table1[[#This Row],[Column1]]+(ROUND(M23,3))+400+ROW()/10000,IF(AND(Q23="HỌC SINH XUẤT SẮC",LEFT(P23,1)="8"),Table1[[#This Row],[Column1]]+(ROUND(M23,3))+450+ROW()/10000,IF(AND(Q23="HỌC SINH XUẤT SẮC",LEFT(P23,1)="7"),Table1[[#This Row],[Column1]]+(ROUND(M23,3))+500+ROW()/10000,IF(AND(Q23="HỌC SINH XUẤT SẮC",LEFT(P23,1)="6"),Table1[[#This Row],[Column1]]+(ROUND(M23,3))+550+ROW()/10000,IF(AND(Q23="HỌC SINH GIỎI",LEFT(P23,1)="9"),Table1[[#This Row],[Column1]]+(ROUND(M23,3))+10+ROW()/10000,IF(AND(Q23="HỌC SINH GIỎI",LEFT(P23,1)="8"),Table1[[#This Row],[Column1]]+(ROUND(M23,3))+ 50+ROW()/10000,IF(AND(Q23="HỌC SINH GIỎI",LEFT(P23,1)="7"),Table1[[#This Row],[Column1]]+(ROUND(M23,3))+100+ROW()/10000,IF(AND(Q23="HỌC SINH GIỎI",LEFT(P23,1)="6"),Table1[[#This Row],[Column1]]+(ROUND(M23,3))+150+ROW()/10000,"")))))))) -> 436.5023 | U23: =IF(AND(Q23="HỌC SINH XUẤT SẮC",LEFT(P23,1)="9"),(ROUND(M23,3))+Table1[[#This Row],[Column1]]+10+ROW()/10000,IF(AND(Q23="HỌC SINH XUẤT SẮC",LEFT(P23,1)="8"),Table1[[#This Row],[Column1]]+(ROUND(M23,3))+50+ROW()/10000,IF(AND(Q23="HỌC SINH XUẤT SẮC",LEFT(P23,1)="7"),Table1[[#This Row],[Column1]]+(ROUND(M23,3))+100+ROW()/10000,IF(AND(Q23="HỌC SINH XUẤT SẮC",LEFT(P23,1)="6"),Table1[[#This Row],[Column1]]+(ROUND(M23,3))+150+ROW()/10000,"")))) -> 46.5023 | V23: =IF(AND(Q23="HỌC SINH GIỎI",LEFT(P23,1)="9"),Table1[[#This Row],[Column1]]+(ROUND(M23,3))+200+ROW()/10000,IF(AND(Q23="HỌC SINH GIỎI",LEFT(P23,1)="8"),Table1[[#This Row],[Column1]]+(ROUND(M23,3))+250+ROW()/10000,IF(AND(Q23="HỌC SINH GIỎI",LEFT(P23,1)="7"),Table1[[#This Row],[Column1]]+(ROUND(M23,3))+300+ROW()/10000,IF(AND(Q23="HỌC SINH GIỎI",LEFT(P23,1)="6"),Table1[[#This Row],[Column1]]+(ROUND(M23,3))+350+ROW()/10000,"")))) ->  | W23: Bùi Quang | X23: Phát | Y23: HỌC SINH XUẤT SẮC | Z23: 9C
A24: 23 | B24: Trần Đình | C24: Phong | D24: 01/01/2011 | E24: Trần Xuân Kỳ | F24: Xóm 7 | G24: T | H24: T | I24: 6.5 | J24: 7.5 | K24: 7 | M24: 21 | O24: x | P24: 9C | Q24: HỌC SINH GIỎI | R24: =IF(Table1[[#This Row],[STT]]="","",ROW()-1) -> 23 | S24: =IF(Table1[[#This Row],[Lơp]]="","",VLOOKUP(Table1[[#This Row],[Lơp]],$AC$3:$AD$14,2,0)) -> 10 | T24: =IF(AND(Q24="HỌC SINH XUẤT SẮC",LEFT(P24,1)="9"),Table1[[#This Row],[Column1]]+(ROUND(M24,3))+400+ROW()/10000,IF(AND(Q24="HỌC SINH XUẤT SẮC",LEFT(P24,1)="8"),Table1[[#This Row],[Column1]]+(ROUND(M24,3))+450+ROW()/10000,IF(AND(Q24="HỌC SINH XUẤT SẮC",LEFT(P24,1)="7"),Table1[[#This Row],[Column1]]+(ROUND(M24,3))+500+ROW()/10000,IF(AND(Q24="HỌC SINH XUẤT SẮC",LEFT(P24,1)="6"),Table1[[#This Row],[Column1]]+(ROUND(M24,3))+550+ROW()/10000,IF(AND(Q24="HỌC SINH GIỎI",LEFT(P24,1)="9"),Table1[[#This Row],[Column1]]+(ROUND(M24,3))+10+ROW()/10000,IF(AND(Q24="HỌC SINH GIỎI",LEFT(P24,1)="8"),Table1[[#This Row],[Column1]]+(ROUND(M24,3))+ 50+ROW()/10000,IF(AND(Q24="HỌC SINH GIỎI",LEFT(P24,1)="7"),Table1[[#This Row],[Column1]]+(ROUND(M24,3))+100+ROW()/10000,IF(AND(Q24="HỌC SINH GIỎI",LEFT(P24,1)="6"),Table1[[#This Row],[Column1]]+(ROUND(M24,3))+150+ROW()/10000,"")))))))) -> 41.0024 | U24: =IF(AND(Q24="HỌC SINH XUẤT SẮC",LEFT(P24,1)="9"),(ROUND(M24,3))+Table1[[#This Row],[Column1]]+10+ROW()/10000,IF(AND(Q24="HỌC SINH XUẤT SẮC",LEFT(P24,1)="8"),Table1[[#This Row],[Column1]]+(ROUND(M24,3))+50+ROW()/10000,IF(AND(Q24="HỌC SINH XUẤT SẮC",LEFT(P24,1)="7"),Table1[[#This Row],[Column1]]+(ROUND(M24,3))+100+ROW()/10000,IF(AND(Q24="HỌC SINH XUẤT SẮC",LEFT(P24,1)="6"),Table1[[#This Row],[Column1]]+(ROUND(M24,3))+150+ROW()/10000,"")))) ->  | V24: =IF(AND(Q24="HỌC SINH GIỎI",LEFT(P24,1)="9"),Table1[[#This Row],[Column1]]+(ROUND(M24,3))+200+ROW()/10000,IF(AND(Q24="HỌC SINH GIỎI",LEFT(P24,1)="8"),Table1[[#This Row],[Column1]]+(ROUND(M24,3))+250+ROW()/10000,IF(AND(Q24="HỌC SINH GIỎI",LEFT(P24,1)="7"),Table1[[#This Row],[Column1]]+(ROUND(M24,3))+300+ROW()/10000,IF(AND(Q24="HỌC SINH GIỎI",LEFT(P24,1)="6"),Table1[[#This Row],[Column1]]+(ROUND(M24,3))+350+ROW()/10000,"")))) -> 231.0024 | W24: Trần Đình | X24: Phong | Y24: HỌC SINH GIỎI | Z24: 9C
A25: 24 | B25: Mai Hồng | C25: Phúc | D25: 04/07/2011 | E25: Mai Văn Hải | F25: Xóm 2 | G25: T | H25: T | I25: 7.75 | J25: 8 | K25: 8.5 | M25: 24.25 | O25: x | P25: 9C | Q25: HỌC SINH GIỎI | R25: =IF(Table1[[#This Row],[STT]]="","",ROW()-1) -> 24 | S25: =IF(Table1[[#This Row],[Lơp]]="","",VLOOKUP(Table1[[#This Row],[Lơp]],$AC$3:$AD$14,2,0)) -> 10 | T25: =IF(AND(Q25="HỌC SINH XUẤT SẮC",LEFT(P25,1)="9"),Table1[[#This Row],[Column1]]+(ROUND(M25,3))+400+ROW()/10000,IF(AND(Q25="HỌC SINH XUẤT SẮC",LEFT(P25,1)="8"),Table1[[#This Row],[Column1]]+(ROUND(M25,3))+450+ROW()/10000,IF(AND(Q25="HỌC SINH XUẤT SẮC",LEFT(P25,1)="7"),Table1[[#This Row],[Column1]]+(ROUND(M25,3))+500+ROW()/10000,IF(AND(Q25="HỌC SINH XUẤT SẮC",LEFT(P25,1)="6"),Table1[[#This Row],[Column1]]+(ROUND(M25,3))+550+ROW()/10000,IF(AND(Q25="HỌC SINH GIỎI",LEFT(P25,1)="9"),Table1[[#This Row],[Column1]]+(ROUND(M25,3))+10+ROW()/10000,IF(AND(Q25="HỌC SINH GIỎI",LEFT(P25,1)="8"),Table1[[#This Row],[Column1]]+(ROUND(M25,3))+ 50+ROW()/10000,IF(AND(Q25="HỌC SINH GIỎI",LEFT(P25,1)="7"),Table1[[#This Row],[Column1]]+(ROUND(M25,3))+100+ROW()/10000,IF(AND(Q25="HỌC SINH GIỎI",LEFT(P25,1)="6"),Table1[[#This Row],[Column1]]+(ROUND(M25,3))+150+ROW()/10000,"")))))))) -> 44.2525 | U25: =IF(AND(Q25="HỌC SINH XUẤT SẮC",LEFT(P25,1)="9"),(ROUND(M25,3))+Table1[[#This Row],[Column1]]+10+ROW()/10000,IF(AND(Q25="HỌC SINH XUẤT SẮC",LEFT(P25,1)="8"),Table1[[#This Row],[Column1]]+(ROUND(M25,3))+50+ROW()/10000,IF(AND(Q25="HỌC SINH XUẤT SẮC",LEFT(P25,1)="7"),Table1[[#This Row],[Column1]]+(ROUND(M25,3))+100+ROW()/10000,IF(AND(Q25="HỌC SINH XUẤT SẮC",LEFT(P25,1)="6"),Table1[[#This Row],[Column1]]+(ROUND(M25,3))+150+ROW()/10000,"")))) ->  | V25: =IF(AND(Q25="HỌC SINH GIỎI",LEFT(P25,1)="9"),Table1[[#This Row],[Column1]]+(ROUND(M25,3))+200+ROW()/10000,IF(AND(Q25="HỌC SINH GIỎI",LEFT(P25,1)="8"),Table1[[#This Row],[Column1]]+(ROUND(M25,3))+250+ROW()/10000,IF(AND(Q25="HỌC SINH GIỎI",LEFT(P25,1)="7"),Table1[[#This Row],[Column1]]+(ROUND(M25,3))+300+ROW()/10000,IF(AND(Q25="HỌC SINH GIỎI",LEFT(P25,1)="6"),Table1[[#This Row],[Column1]]+(ROUND(M25,3))+350+ROW()/10000,"")))) -> 234.2525 | W25: Mai Hồng | X25: Phúc | Y25: HỌC SINH GIỎI | Z25: 9C
A26: 25 | B26: Nguyễn Phương | C26: Thảo | D26: 07/03/2011 | E26: Nguyễn Văn Thắng | F26: Xóm 7 | G26: T | H26: T | I26: 8 | J26: 7.75 | K26: 9.1 | M26: 24.85 | O26: x | P26: 9C | Q26: HỌC SINH GIỎI | R26: =IF(Table1[[#This Row],[STT]]="","",ROW()-1) -> 25 | S26: =IF(Table1[[#This Row],[Lơp]]="","",VLOOKUP(Table1[[#This Row],[Lơp]],$AC$3:$AD$14,2,0)) -> 10 | T26: =IF(AND(Q26="HỌC SINH XUẤT SẮC",LEFT(P26,1)="9"),Table1[[#This Row],[Column1]]+(ROUND(M26,3))+400+ROW()/10000,IF(AND(Q26="HỌC SINH XUẤT SẮC",LEFT(P26,1)="8"),Table1[[#This Row],[Column1]]+(ROUND(M26,3))+450+ROW()/10000,IF(AND(Q26="HỌC SINH XUẤT SẮC",LEFT(P26,1)="7"),Table1[[#This Row],[Column1]]+(ROUND(M26,3))+500+ROW()/10000,IF(AND(Q26="HỌC SINH XUẤT SẮC",LEFT(P26,1)="6"),Table1[[#This Row],[Column1]]+(ROUND(M26,3))+550+ROW()/10000,IF(AND(Q26="HỌC SINH GIỎI",LEFT(P26,1)="9"),Table1[[#This Row],[Column1]]+(ROUND(M26,3))+10+ROW()/10000,IF(AND(Q26="HỌC SINH GIỎI",LEFT(P26,1)="8"),Table1[[#This Row],[Column1]]+(ROUND(M26,3))+ 50+ROW()/10000,IF(AND(Q26="HỌC SINH GIỎI",LEFT(P26,1)="7"),Table1[[#This Row],[Column1]]+(ROUND(M26,3))+100+ROW()/10000,IF(AND(Q26="HỌC SINH GIỎI",LEFT(P26,1)="6"),Table1[[#This Row],[Column1]]+(ROUND(M26,3))+150+ROW()/10000,"")))))))) -> 44.8526 | U26: =IF(AND(Q26="HỌC SINH XUẤT SẮC",LEFT(P26,1)="9"),(ROUND(M26,3))+Table1[[#This Row],[Column1]]+10+ROW()/10000,IF(AND(Q26="HỌC SINH XUẤT SẮC",LEFT(P26,1)="8"),Table1[[#This Row],[Column1]]+(ROUND(M26,3))+50+ROW()/10000,IF(AND(Q26="HỌC SINH XUẤT SẮC",LEFT(P26,1)="7"),Table1[[#This Row],[Column1]]+(ROUND(M26,3))+100+ROW()/10000,IF(AND(Q26="HỌC SINH XUẤT SẮC",LEFT(P26,1)="6"),Table1[[#This Row],[Column1]]+(ROUND(M26,3))+150+ROW()/10000,"")))) ->  | V26: =IF(AND(Q26="HỌC SINH GIỎI",LEFT(P26,1)="9"),Table1[[#This Row],[Column1]]+(ROUND(M26,3))+200+ROW()/10000,IF(AND(Q26="HỌC SINH GIỎI",LEFT(P26,1)="8"),Table1[[#This Row],[Column1]]+(ROUND(M26,3))+250+ROW()/10000,IF(AND(Q26="HỌC SINH GIỎI",LEFT(P26,1)="7"),Table1[[#This Row],[Column1]]+(ROUND(M26,3))+300+ROW()/10000,IF(AND(Q26="HỌC SINH GIỎI",LEFT(P26,1)="6"),Table1[[#This Row],[Column1]]+(ROUND(M26,3))+350+ROW()/10000,"")))) -> 234.8526 | W26: Nguyễn Phương | X26: Thảo | Y26: HỌC SINH GIỎI | Z26: 9C
A27: 26 | B27: Đỗ Thu | C27: Trang | D27: 12/02/2011 | E27: Đỗ Huy Hoàng | F27: Xóm 7 | G27: T | H27: T | I27: 8 | J27: 8.25 | K27: 8.25 | M27: 24.5 | O27: x | P27: 9C | Q27: HỌC SINH GIỎI | R27: =IF(Table1[[#This Row],[STT]]="","",ROW()-1) -> 26 | S27: =IF(Table1[[#This Row],[Lơp]]="","",VLOOKUP(Table1[[#This Row],[Lơp]],$AC$3:$AD$14,2,0)) -> 10 | T27: =IF(AND(Q27="HỌC SINH XUẤT SẮC",LEFT(P27,1)="9"),Table1[[#This Row],[Column1]]+(ROUND(M27,3))+400+ROW()/10000,IF(AND(Q27="HỌC SINH XUẤT SẮC",LEFT(P27,1)="8"),Table1[[#This Row],[Column1]]+(ROUND(M27,3))+450+ROW()/10000,IF(AND(Q27="HỌC SINH XUẤT SẮC",LEFT(P27,1)="7"),Table1[[#This Row],[Column1]]+(ROUND(M27,3))+500+ROW()/10000,IF(AND(Q27="HỌC SINH XUẤT SẮC",LEFT(P27,1)="6"),Table1[[#This Row],[Column1]]+(ROUND(M27,3))+550+ROW()/10000,IF(AND(Q27="HỌC SINH GIỎI",LEFT(P27,1)="9"),Table1[[#This Row],[Column1]]+(ROUND(M27,3))+10+ROW()/10000,IF(AND(Q27="HỌC SINH GIỎI",LEFT(P27,1)="8"),Table1[[#This Row],[Column1]]+(ROUND(M27,3))+ 50+ROW()/10000,IF(AND(Q27="HỌC SINH GIỎI",LEFT(P27,1)="7"),Table1[[#This Row],[Column1]]+(ROUND(M27,3))+100+ROW()/10000,IF(AND(Q27="HỌC SINH GIỎI",LEFT(P27,1)="6"),Table1[[#This Row],[Column1]]+(ROUND(M27,3))+150+ROW()/10000,"")))))))) -> 44.5027 | U27: =IF(AND(Q27="HỌC SINH XUẤT SẮC",LEFT(P27,1)="9"),(ROUND(M27,3))+Table1[[#This Row],[Column1]]+10+ROW()/10000,IF(AND(Q27="HỌC SINH XUẤT SẮC",LEFT(P27,1)="8"),Table1[[#This Row],[Column1]]+(ROUND(M27,3))+50+ROW()/10000,IF(AND(Q27="HỌC SINH XUẤT SẮC",LEFT(P27,1)="7"),Table1[[#This Row],[Column1]]+(ROUND(M27,3))+100+ROW()/10000,IF(AND(Q27="HỌC SINH XUẤT SẮC",LEFT(P27,1)="6"),Table1[[#This Row],[Column1]]+(ROUND(M27,3))+150+ROW()/10000,"")))) ->  | V27: =IF(AND(Q27="HỌC SINH GIỎI",LEFT(P27,1)="9"),Table1[[#This Row],[Column1]]+(ROUND(M27,3))+200+ROW()/10000,IF(AND(Q27="HỌC SINH GIỎI",LEFT(P27,1)="8"),Table1[[#This Row],[Column1]]+(ROUND(M27,3))+250+ROW()/10000,IF(AND(Q27="HỌC SINH GIỎI",LEFT(P27,1)="7"),Table1[[#This Row],[Column1]]+(ROUND(M27,3))+300+ROW()/10000,IF(AND(Q27="HỌC SINH GIỎI",LEFT(P27,1)="6"),Table1[[#This Row],[Column1]]+(ROUND(M27,3))+350+ROW()/10000,"")))) -> 234.5027 | W27: Đỗ Thu | X27: Trang | Y27: HỌC SINH GIỎI | Z27: 9C
A28: 27 | B28: Phạm Thị Ngọc | C28: Anh | D28: 30/8/2011 | E28: Phạm Văn Định | F28: xóm 2 | G28: T | H28: T | I28: 8.25 | J28: 7.25 | K28: 8.9 | M28: 24.4 | O28: x | P28: 9C | Q28: HỌC SINH GIỎI | R28: =IF(Table1[[#This Row],[STT]]="","",ROW()-1) -> 27 | S28: =IF(Table1[[#This Row],[Lơp]]="","",VLOOKUP(Table1[[#This Row],[Lơp]],$AC$3:$AD$14,2,0)) -> 10 | T28: =IF(AND(Q28="HỌC SINH XUẤT SẮC",LEFT(P28,1)="9"),Table1[[#This Row],[Column1]]+(ROUND(M28,3))+400+ROW()/10000,IF(AND(Q28="HỌC SINH XUẤT SẮC",LEFT(P28,1)="8"),Table1[[#This Row],[Column1]]+(ROUND(M28,3))+450+ROW()/10000,IF(AND(Q28="HỌC SINH XUẤT SẮC",LEFT(P28,1)="7"),Table1[[#This Row],[Column1]]+(ROUND(M28,3))+500+ROW()/10000,IF(AND(Q28="HỌC SINH XUẤT SẮC",LEFT(P28,1)="6"),Table1[[#This Row],[Column1]]+(ROUND(M28,3))+550+ROW()/10000,IF(AND(Q28="HỌC SINH GIỎI",LEFT(P28,1)="9"),Table1[[#This Row],[Column1]]+(ROUND(M28,3))+10+ROW()/10000,IF(AND(Q28="HỌC SINH GIỎI",LEFT(P28,1)="8"),Table1[[#This Row],[Column1]]+(ROUND(M28,3))+ 50+ROW()/10000,IF(AND(Q28="HỌC SINH GIỎI",LEFT(P28,1)="7"),Table1[[#This Row],[Column1]]+(ROUND(M28,3))+100+ROW()/10000,IF(AND(Q28="HỌC SINH GIỎI",LEFT(P28,1)="6"),Table1[[#This Row],[Column1]]+(ROUND(M28,3))+150+ROW()/10000,"")))))))) -> 44.4028 | U28: =IF(AND(Q28="HỌC SINH XUẤT SẮC",LEFT(P28,1)="9"),(ROUND(M28,3))+Table1[[#This Row],[Column1]]+10+ROW()/10000,IF(AND(Q28="HỌC SINH XUẤT SẮC",LEFT(P28,1)="8"),Table1[[#This Row],[Column1]]+(ROUND(M28,3))+50+ROW()/10000,IF(AND(Q28="HỌC SINH XUẤT SẮC",LEFT(P28,1)="7"),Table1[[#This Row],[Column1]]+(ROUND(M28,3))+100+ROW()/10000,IF(AND(Q28="HỌC SINH XUẤT SẮC",LEFT(P28,1)="6"),Table1[[#This Row],[Column1]]+(ROUND(M28,3))+150+ROW()/10000,"")))) ->  | V28: =IF(AND(Q28="HỌC SINH GIỎI",LEFT(P28,1)="9"),Table1[[#This Row],[Column1]]+(ROUND(M28,3))+200+ROW()/10000,IF(AND(Q28="HỌC SINH GIỎI",LEFT(P28,1)="8"),Table1[[#This Row],[Column1]]+(ROUND(M28,3))+250+ROW()/10000,IF(AND(Q28="HỌC SINH GIỎI",LEFT(P28,1)="7"),Table1[[#This Row],[Column1]]+(ROUND(M28,3))+300+ROW()/10000,IF(AND(Q28="HỌC SINH GIỎI",LEFT(P28,1)="6"),Table1[[#This Row],[Column1]]+(ROUND(M28,3))+350+ROW()/10000,"")))) -> 234.4028 | W28: Phạm Thị Ngọc | X28: Anh | Y28: HỌC SINH GIỎI | Z28: 9C
A29: 28 | B29: Lê Thành | C29: Đạt | D29: 19/06/2011 | E29: Lê Văn Anh | F29: Xóm 6 | G29: T | H29: T | I29: 6.5 | J29: 6.75 | K29: 5.65 | M29: 18.9 | O29: x | P29: 9C | Q29: HỌC SINH GIỎI | R29: =IF(Table1[[#This Row],[STT]]="","",ROW()-1) -> 28 | S29: =IF(Table1[[#This Row],[Lơp]]="","",VLOOKUP(Table1[[#This Row],[Lơp]],$AC$3:$AD$14,2,0)) -> 10 | T29: =IF(AND(Q29="HỌC SINH XUẤT SẮC",LEFT(P29,1)="9"),Table1[[#This Row],[Column1]]+(ROUND(M29,3))+400+ROW()/10000,IF(AND(Q29="HỌC SINH XUẤT SẮC",LEFT(P29,1)="8"),Table1[[#This Row],[Column1]]+(ROUND(M29,3))+450+ROW()/10000,IF(AND(Q29="HỌC SINH XUẤT SẮC",LEFT(P29,1)="7"),Table1[[#This Row],[Column1]]+(ROUND(M29,3))+500+ROW()/10000,IF(AND(Q29="HỌC SINH XUẤT SẮC",LEFT(P29,1)="6"),Table1[[#This Row],[Column1]]+(ROUND(M29,3))+550+ROW()/10000,IF(AND(Q29="HỌC SINH GIỎI",LEFT(P29,1)="9"),Table1[[#This Row],[Column1]]+(ROUND(M29,3))+10+ROW()/10000,IF(AND(Q29="HỌC SINH GIỎI",LEFT(P29,1)="8"),Table1[[#This Row],[Column1]]+(ROUND(M29,3))+ 50+ROW()/10000,IF(AND(Q29="HỌC SINH GIỎI",LEFT(P29,1)="7"),Table1[[#This Row],[Column1]]+(ROUND(M29,3))+100+ROW()/10000,IF(AND(Q29="HỌC SINH GIỎI",LEFT(P29,1)="6"),Table1[[#This Row],[Column1]]+(ROUND(M29,3))+150+ROW()/10000,"")))))))) -> 38.9029 | U29: =IF(AND(Q29="HỌC SINH XUẤT SẮC",LEFT(P29,1)="9"),(ROUND(M29,3))+Table1[[#This Row],[Column1]]+10+ROW()/10000,IF(AND(Q29="HỌC SINH XUẤT SẮC",LEFT(P29,1)="8"),Table1[[#This Row],[Column1]]+(ROUND(M29,3))+50+ROW()/10000,IF(AND(Q29="HỌC SINH XUẤT SẮC",LEFT(P29,1)="7"),Table1[[#This Row],[Column1]]+(ROUND(M29,3))+100+ROW()/10000,IF(AND(Q29="HỌC SINH XUẤT SẮC",LEFT(P29,1)="6"),Table1[[#This Row],[Column1]]+(ROUND(M29,3))+150+ROW()/10000,"")))) ->  | V29: =IF(AND(Q29="HỌC SINH GIỎI",LEFT(P29,1)="9"),Table1[[#This Row],[Column1]]+(ROUND(M29,3))+200+ROW()/10000,IF(AND(Q29="HỌC SINH GIỎI",LEFT(P29,1)="8"),Table1[[#This Row],[Column1]]+(ROUND(M29,3))+250+ROW()/10000,IF(AND(Q29="HỌC SINH GIỎI",LEFT(P29,1)="7"),Table1[[#This Row],[Column1]]+(ROUND(M29,3))+300+ROW()/10000,IF(AND(Q29="HỌC SINH GIỎI",LEFT(P29,1)="6"),Table1[[#This Row],[Column1]]+(ROUND(M29,3))+350+ROW()/10000,"")))) -> 228.9029 | W29: Lê Thành | X29: Đạt | Y29: HỌC SINH GIỎI | Z29: 9C
A30: 29 | B30: Đỗ Trung | C30: Hiếu | D30: 29/03/2011 | E30: Đỗ Văn Cảnh | F30: Xóm 4 | G30: T | H30: T | I30: 8.75 | J30: 7.25 | K30: 7.65 | M30: 23.65 | O30: x | P30: 9C | Q30: HỌC SINH GIỎI | R30: =IF(Table1[[#This Row],[STT]]="","",ROW()-1) -> 29 | S30: =IF(Table1[[#This Row],[Lơp]]="","",VLOOKUP(Table1[[#This Row],[Lơp]],$AC$3:$AD$14,2,0)) -> 10 | T30: =IF(AND(Q30="HỌC SINH XUẤT SẮC",LEFT(P30,1)="9"),Table1[[#This Row],[Column1]]+(ROUND(M30,3))+400+ROW()/10000,IF(AND(Q30="HỌC SINH XUẤT SẮC",LEFT(P30,1)="8"),Table1[[#This Row],[Column1]]+(ROUND(M30,3))+450+ROW()/10000,IF(AND(Q30="HỌC SINH XUẤT SẮC",LEFT(P30,1)="7"),Table1[[#This Row],[Column1]]+(ROUND(M30,3))+500+ROW()/10000,IF(AND(Q30="HỌC SINH XUẤT SẮC",LEFT(P30,1)="6"),Table1[[#This Row],[Column1]]+(ROUND(M30,3))+550+ROW()/10000,IF(AND(Q30="HỌC SINH GIỎI",LEFT(P30,1)="9"),Table1[[#This Row],[Column1]]+(ROUND(M30,3))+10+ROW()/10000,IF(AND(Q30="HỌC SINH GIỎI",LEFT(P30,1)="8"),Table1[[#This Row],[Column1]]+(ROUND(M30,3))+ 50+ROW()/10000,IF(AND(Q30="HỌC SINH GIỎI",LEFT(P30,1)="7"),Table1[[#This Row],[Column1]]+(ROUND(M30,3))+100+ROW()/10000,IF(AND(Q30="HỌC SINH GIỎI",LEFT(P30,1)="6"),Table1[[#This Row],[Column1]]+(ROUND(M30,3))+150+ROW()/10000,"")))))))) -> 43.653 | U30: =IF(AND(Q30="HỌC SINH XUẤT SẮC",LEFT(P30,1)="9"),(ROUND(M30,3))+Table1[[#This Row],[Column1]]+10+ROW()/10000,IF(AND(Q30="HỌC SINH XUẤT SẮC",LEFT(P30,1)="8"),Table1[[#This Row],[Column1]]+(ROUND(M30,3))+50+ROW()/10000,IF(AND(Q30="HỌC SINH XUẤT SẮC",LEFT(P30,1)="7"),Table1[[#This Row],[Column1]]+(ROUND(M30,3))+100+ROW()/10000,IF(AND(Q30="HỌC SINH XUẤT SẮC",LEFT(P30,1)="6"),Table1[[#This Row],[Column1]]+(ROUND(M30,3))+150+ROW()/10000,"")))) ->  | V30: =IF(AND(Q30="HỌC SINH GIỎI",LEFT(P30,1)="9"),Table1[[#This Row],[Column1]]+(ROUND(M30,3))+200+ROW()/10000,IF(AND(Q30="HỌC SINH GIỎI",LEFT(P30,1)="8"),Table1[[#This Row],[Column1]]+(ROUND(M30,3))+250+ROW()/10000,IF(AND(Q30="HỌC SINH GIỎI",LEFT(P30,1)="7"),Table1[[#This Row],[Column1]]+(ROUND(M30,3))+300+ROW()/10000,IF(AND(Q30="HỌC SINH GIỎI",LEFT(P30,1)="6"),Table1[[#This Row],[Column1]]+(ROUND(M30,3))+350+ROW()/10000,"")))) -> 233.653 | W30: Đỗ Trung | X30: Hiếu | Y30: HỌC SINH GIỎI | Z30: 9C
A31: 30 | B31: Lê Nhật | C31: Khánh | D31: 06/10/2011 | E31: Lê Hồng Duy | F31: Xóm 5 | G31: T | H31: T | I31: 7.75 | J31: 7.75 | K31: 6.4 | M31: 21.9 | O31: x | P31: 9C | Q31: HỌC SINH GIỎI | R31: =IF(Table1[[#This Row],[STT]]="","",ROW()-1) -> 30 | S31: =IF(Table1[[#This Row],[Lơp]]="","",VLOOKUP(Table1[[#This Row],[Lơp]],$AC$3:$AD$14,2,0)) -> 10 | T31: =IF(AND(Q31="HỌC SINH XUẤT SẮC",LEFT(P31,1)="9"),Table1[[#This Row],[Column1]]+(ROUND(M31,3))+400+ROW()/10000,IF(AND(Q31="HỌC SINH XUẤT SẮC",LEFT(P31,1)="8"),Table1[[#This Row],[Column1]]+(ROUND(M31,3))+450+ROW()/10000,IF(AND(Q31="HỌC SINH XUẤT SẮC",LEFT(P31,1)="7"),Table1[[#This Row],[Column1]]+(ROUND(M31,3))+500+ROW()/10000,IF(AND(Q31="HỌC SINH XUẤT SẮC",LEFT(P31,1)="6"),Table1[[#This Row],[Column1]]+(ROUND(M31,3))+550+ROW()/10000,IF(AND(Q31="HỌC SINH GIỎI",LEFT(P31,1)="9"),Table1[[#This Row],[Column1]]+(ROUND(M31,3))+10+ROW()/10000,IF(AND(Q31="HỌC SINH GIỎI",LEFT(P31,1)="8"),Table1[[#This Row],[Column1]]+(ROUND(M31,3))+ 50+ROW()/10000,IF(AND(Q31="HỌC SINH GIỎI",LEFT(P31,1)="7"),Table1[[#This Row],[Column1]]+(ROUND(M31,3))+100+ROW()/10000,IF(AND(Q31="HỌC SINH GIỎI",LEFT(P31,1)="6"),Table1[[#This Row],[Column1]]+(ROUND(M31,3))+150+ROW()/10000,"")))))))) -> 41.9031 | U31: =IF(AND(Q31="HỌC SINH XUẤT SẮC",LEFT(P31,1)="9"),(ROUND(M31,3))+Table1[[#This Row],[Column1]]+10+ROW()/10000,IF(AND(Q31="HỌC SINH XUẤT SẮC",LEFT(P31,1)="8"),Table1[[#This Row],[Column1]]+(ROUND(M31,3))+50+ROW()/10000,IF(AND(Q31="HỌC SINH XUẤT SẮC",LEFT(P31,1)="7"),Table1[[#This Row],[Column1]]+(ROUND(M31,3))+100+ROW()/10000,IF(AND(Q31="HỌC SINH XUẤT SẮC",LEFT(P31,1)="6"),Table1[[#This Row],[Column1]]+(ROUND(M31,3))+150+ROW()/10000,"")))) ->  | V31: =IF(AND(Q31="HỌC SINH GIỎI",LEFT(P31,1)="9"),Table1[[#This Row],[Column1]]+(ROUND(M31,3))+200+ROW()/10000,IF(AND(Q31="HỌC SINH GIỎI",LEFT(P31,1)="8"),Table1[[#This Row],[Column1]]+(ROUND(M31,3))+250+ROW()/10000,IF(AND(Q31="HỌC SINH GIỎI",LEFT(P31,1)="7"),Table1[[#This Row],[Column1]]+(ROUND(M31,3))+300+ROW()/10000,IF(AND(Q31="HỌC SINH GIỎI",LEFT(P31,1)="6"),Table1[[#This Row],[Column1]]+(ROUND(M31,3))+350+ROW()/10000,"")))) -> 231.9031 | W31: Lê Nhật | X31: Khánh | Y31: HỌC SINH GIỎI | Z31: 9C
A32: 31 | B32: Đỗ Xuân Trung | C32: Kiên | D32: 17/09/2011 | E32: Đỗ Xuân Ninh | F32: Xóm 7 | G32: T | H32: T | I32: 8 | J32: 8.25 | K32: 9.25 | M32: 25.5 | O32: x | P32: 9C | Q32: HỌC SINH GIỎI | R32: =IF(Table1[[#This Row],[STT]]="","",ROW()-1) -> 31 | S32: =IF(Table1[[#This Row],[Lơp]]="","",VLOOKUP(Table1[[#This Row],[Lơp]],$AC$3:$AD$14,2,0)) -> 10 | T32: =IF(AND(Q32="HỌC SINH XUẤT SẮC",LEFT(P32,1)="9"),Table1[[#This Row],[Column1]]+(ROUND(M32,3))+400+ROW()/10000,IF(AND(Q32="HỌC SINH XUẤT SẮC",LEFT(P32,1)="8"),Table1[[#This Row],[Column1]]+(ROUND(M32,3))+450+ROW()/10000,IF(AND(Q32="HỌC SINH XUẤT SẮC",LEFT(P32,1)="7"),Table1[[#This Row],[Column1]]+(ROUND(M32,3))+500+ROW()/10000,IF(AND(Q32="HỌC SINH XUẤT SẮC",LEFT(P32,1)="6"),Table1[[#This Row],[Column1]]+(ROUND(M32,3))+550+ROW()/10000,IF(AND(Q32="HỌC SINH GIỎI",LEFT(P32,1)="9"),Table1[[#This Row],[Column1]]+(ROUND(M32,3))+10+ROW()/10000,IF(AND(Q32="HỌC SINH GIỎI",LEFT(P32,1)="8"),Table1[[#This Row],[Column1]]+(ROUND(M32,3))+ 50+ROW()/10000,IF(AND(Q32="HỌC SINH GIỎI",LEFT(P32,1)="7"),Table1[[#This Row],[Column1]]+(ROUND(M32,3))+100+ROW()/10000,IF(AND(Q32="HỌC SINH GIỎI",LEFT(P32,1)="6"),Table1[[#This Row],[Column1]]+(ROUND(M32,3))+150+ROW()/10000,"")))))))) -> 45.5032 | U32: =IF(AND(Q32="HỌC SINH XUẤT SẮC",LEFT(P32,1)="9"),(ROUND(M32,3))+Table1[[#This Row],[Column1]]+10+ROW()/10000,IF(AND(Q32="HỌC SINH XUẤT SẮC",LEFT(P32,1)="8"),Table1[[#This Row],[Column1]]+(ROUND(M32,3))+50+ROW()/10000,IF(AND(Q32="HỌC SINH XUẤT SẮC",LEFT(P32,1)="7"),Table1[[#This Row],[Column1]]+(ROUND(M32,3))+100+ROW()/10000,IF(AND(Q32="HỌC SINH XUẤT SẮC",LEFT(P32,1)="6"),Table1[[#This Row],[Column1]]+(ROUND(M32,3))+150+ROW()/10000,"")))) ->  | V32: =IF(AND(Q32="HỌC SINH GIỎI",LEFT(P32,1)="9"),Table1[[#This Row],[Column1]]+(ROUND(M32,3))+200+ROW()/10000,IF(AND(Q32="HỌC SINH GIỎI",LEFT(P32,1)="8"),Table1[[#This Row],[Column1]]+(ROUND(M32,3))+250+ROW()/10000,IF(AND(Q32="HỌC SINH GIỎI",LEFT(P32,1)="7"),Table1[[#This Row],[Column1]]+(ROUND(M32,3))+300+ROW()/10000,IF(AND(Q32="HỌC SINH GIỎI",LEFT(P32,1)="6"),Table1[[#This Row],[Column1]]+(ROUND(M32,3))+350+ROW()/10000,"")))) -> 235.5032 | W32: Đỗ Xuân Trung | X32: Kiên | Y32: HỌC SINH GIỎI | Z32: 9C
A33: 32 | B33: Nguyễn Phương | C33: Linh | D33: 02/02/2011 | E33: Nguyễn Đức Tài | F33: xóm 3 | G33: T | H33: T | I33: 9 | J33: 7.75 | K33: 7.15 | M33: 23.9 | O33: x | P33: 9C | Q33: HỌC SINH GIỎI | R33: =IF(Table1[[#This Row],[STT]]="","",ROW()-1) -> 32 | S33: =IF(Table1[[#This Row],[Lơp]]="","",VLOOKUP(Table1[[#This Row],[Lơp]],$AC$3:$AD$14,2,0)) -> 10 | T33: =IF(AND(Q33="HỌC SINH XUẤT SẮC",LEFT(P33,1)="9"),Table1[[#This Row],[Column1]]+(ROUND(M33,3))+400+ROW()/10000,IF(AND(Q33="HỌC SINH XUẤT SẮC",LEFT(P33,1)="8"),Table1[[#This Row],[Column1]]+(ROUND(M33,3))+450+ROW()/10000,IF(AND(Q33="HỌC SINH XUẤT SẮC",LEFT(P33,1)="7"),Table1[[#This Row],[Column1]]+(ROUND(M33,3))+500+ROW()/10000,IF(AND(Q33="HỌC SINH XUẤT SẮC",LEFT(P33,1)="6"),Table1[[#This Row],[Column1]]+(ROUND(M33,3))+550+ROW()/10000,IF(AND(Q33="HỌC SINH GIỎI",LEFT(P33,1)="9"),Table1[[#This Row],[Column1]]+(ROUND(M33,3))+10+ROW()/10000,IF(AND(Q33="HỌC SINH GIỎI",LEFT(P33,1)="8"),Table1[[#This Row],[Column1]]+(ROUND(M33,3))+ 50+ROW()/10000,IF(AND(Q33="HỌC SINH GIỎI",LEFT(P33,1)="7"),Table1[[#This Row],[Column1]]+(ROUND(M33,3))+100+ROW()/10000,IF(AND(Q33="HỌC SINH GIỎI",LEFT(P33,1)="6"),Table1[[#This Row],[Column1]]+(ROUND(M33,3))+150+ROW()/10000,"")))))))) -> 43.9033 | U33: =IF(AND(Q33="HỌC SINH XUẤT SẮC",LEFT(P33,1)="9"),(ROUND(M33,3))+Table1[[#This Row],[Column1]]+10+ROW()/10000,IF(AND(Q33="HỌC SINH XUẤT SẮC",LEFT(P33,1)="8"),Table1[[#This Row],[Column1]]+(ROUND(M33,3))+50+ROW()/10000,IF(AND(Q33="HỌC SINH XUẤT SẮC",LEFT(P33,1)="7"),Table1[[#This Row],[Column1]]+(ROUND(M33,3))+100+ROW()/10000,IF(AND(Q33="HỌC SINH XUẤT SẮC",LEFT(P33,1)="6"),Table1[[#This Row],[Column1]]+(ROUND(M33,3))+150+ROW()/10000,"")))) ->  | V33: =IF(AND(Q33="HỌC SINH GIỎI",LEFT(P33,1)="9"),Table1[[#This Row],[Column1]]+(ROUND(M33,3))+200+ROW()/10000,IF(AND(Q33="HỌC SINH GIỎI",LEFT(P33,1)="8"),Table1[[#This Row],[Column1]]+(ROUND(M33,3))+250+ROW()/10000,IF(AND(Q33="HỌC SINH GIỎI",LEFT(P33,1)="7"),Table1[[#This Row],[Column1]]+(ROUND(M33,3))+300+ROW()/10000,IF(AND(Q33="HỌC SINH GIỎI",LEFT(P33,1)="6"),Table1[[#This Row],[Column1]]+(ROUND(M33,3))+350+ROW()/10000,"")))) -> 233.9033 | W33: Nguyễn Phương | X33: Linh | Y33: HỌC SINH GIỎI | Z33: 9C
A34: 33 | B34: Phạm Mạnh | C34: Thắng | D34: 11/04/2011 | E34: Phạm Mạnh Tân | F34: Xóm 1 | G34: T | H34: T | I34: 8.5 | J34: 8 | K34: 9.1 | M34: 25.6 | O34: x | P34: 9C | Q34: HỌC SINH GIỎI | R34: =IF(Table1[[#This Row],[STT]]="","",ROW()-1) -> 33 | S34: =IF(Table1[[#This Row],[Lơp]]="","",VLOOKUP(Table1[[#This Row],[Lơp]],$AC$3:$AD$14,2,0)) -> 10 | T34: =IF(AND(Q34="HỌC SINH XUẤT SẮC",LEFT(P34,1)="9"),Table1[[#This Row],[Column1]]+(ROUND(M34,3))+400+ROW()/10000,IF(AND(Q34="HỌC SINH XUẤT SẮC",LEFT(P34,1)="8"),Table1[[#This Row],[Column1]]+(ROUND(M34,3))+450+ROW()/10000,IF(AND(Q34="HỌC SINH XUẤT SẮC",LEFT(P34,1)="7"),Table1[[#This Row],[Column1]]+(ROUND(M34,3))+500+ROW()/10000,IF(AND(Q34="HỌC SINH XUẤT SẮC",LEFT(P34,1)="6"),Table1[[#This Row],[Column1]]+(ROUND(M34,3))+550+ROW()/10000,IF(AND(Q34="HỌC SINH GIỎI",LEFT(P34,1)="9"),Table1[[#This Row],[Column1]]+(ROUND(M34,3))+10+ROW()/10000,IF(AND(Q34="HỌC SINH GIỎI",LEFT(P34,1)="8"),Table1[[#This Row],[Column1]]+(ROUND(M34,3))+ 50+ROW()/10000,IF(AND(Q34="HỌC SINH GIỎI",LEFT(P34,1)="7"),Table1[[#This Row],[Column1]]+(ROUND(M34,3))+100+ROW()/10000,IF(AND(Q34="HỌC SINH GIỎI",LEFT(P34,1)="6"),Table1[[#This Row],[Column1]]+(ROUND(M34,3))+150+ROW()/10000,"")))))))) -> 45.6034 | U34: =IF(AND(Q34="HỌC SINH XUẤT SẮC",LEFT(P34,1)="9"),(ROUND(M34,3))+Table1[[#This Row],[Column1]]+10+ROW()/10000,IF(AND(Q34="HỌC SINH XUẤT SẮC",LEFT(P34,1)="8"),Table1[[#This Row],[Column1]]+(ROUND(M34,3))+50+ROW()/10000,IF(AND(Q34="HỌC SINH XUẤT SẮC",LEFT(P34,1)="7"),Table1[[#This Row],[Column1]]+(ROUND(M34,3))+100+ROW()/10000,IF(AND(Q34="HỌC SINH XUẤT SẮC",LEFT(P34,1)="6"),Table1[[#This Row],[Column1]]+(ROUND(M34,3))+150+ROW()/10000,"")))) ->  | V34: =IF(AND(Q34="HỌC SINH GIỎI",LEFT(P34,1)="9"),Table1[[#This Row],[Column1]]+(ROUND(M34,3))+200+ROW()/10000,IF(AND(Q34="HỌC SINH GIỎI",LEFT(P34,1)="8"),Table1[[#This Row],[Column1]]+(ROUND(M34,3))+250+ROW()/10000,IF(AND(Q34="HỌC SINH GIỎI",LEFT(P34,1)="7"),Table1[[#This Row],[Column1]]+(ROUND(M34,3))+300+ROW()/10000,IF(AND(Q34="HỌC SINH GIỎI",LEFT(P34,1)="6"),Table1[[#This Row],[Column1]]+(ROUND(M34,3))+350+ROW()/10000,"")))) -> 235.6034 | W34: Phạm Mạnh | X34: =IF(W34="","",C34) -> Thắng | Y34: HỌC SINH GIỎI | Z34: 9C
A35: 34 | B35: Trần Thanh | C35: Trúc | D35: 01/12/2011 | E35: Trần Văn Vũ | F35: Xóm 7 | G35: T | H35: T | I35: 8 | J35: 8 | K35: 7 | M35: 23 | O35: x | P35: 9C | Q35: HỌC SINH GIỎI | R35: =IF(Table1[[#This Row],[STT]]="","",ROW()-1) -> 34 | S35: =IF(Table1[[#This Row],[Lơp]]="","",VLOOKUP(Table1[[#This Row],[Lơp]],$AC$3:$AD$14,2,0)) -> 10 | T35: =IF(AND(Q35="HỌC SINH XUẤT SẮC",LEFT(P35,1)="9"),Table1[[#This Row],[Column1]]+(ROUND(M35,3))+400+ROW()/10000,IF(AND(Q35="HỌC SINH XUẤT SẮC",LEFT(P35,1)="8"),Table1[[#This Row],[Column1]]+(ROUND(M35,3))+450+ROW()/10000,IF(AND(Q35="HỌC SINH XUẤT SẮC",LEFT(P35,1)="7"),Table1[[#This Row],[Column1]]+(ROUND(M35,3))+500+ROW()/10000,IF(AND(Q35="HỌC SINH XUẤT SẮC",LEFT(P35,1)="6"),Table1[[#This Row],[Column1]]+(ROUND(M35,3))+550+ROW()/10000,IF(AND(Q35="HỌC SINH GIỎI",LEFT(P35,1)="9"),Table1[[#This Row],[Column1]]+(ROUND(M35,3))+10+ROW()/10000,IF(AND(Q35="HỌC SINH GIỎI",LEFT(P35,1)="8"),Table1[[#This Row],[Column1]]+(ROUND(M35,3))+ 50+ROW()/10000,IF(AND(Q35="HỌC SINH GIỎI",LEFT(P35,1)="7"),Table1[[#This Row],[Column1]]+(ROUND(M35,3))+100+ROW()/10000,IF(AND(Q35="HỌC SINH GIỎI",LEFT(P35,1)="6"),Table1[[#This Row],[Column1]]+(ROUND(M35,3))+150+ROW()/10000,"")))))))) -> 43.0035 | U35: =IF(AND(Q35="HỌC SINH XUẤT SẮC",LEFT(P35,1)="9"),(ROUND(M35,3))+Table1[[#This Row],[Column1]]+10+ROW()/10000,IF(AND(Q35="HỌC SINH XUẤT SẮC",LEFT(P35,1)="8"),Table1[[#This Row],[Column1]]+(ROUND(M35,3))+50+ROW()/10000,IF(AND(Q35="HỌC SINH XUẤT SẮC",LEFT(P35,1)="7"),Table1[[#This Row],[Column1]]+(ROUND(M35,3))+100+ROW()/10000,IF(AND(Q35="HỌC SINH XUẤT SẮC",LEFT(P35,1)="6"),Table1[[#This Row],[Column1]]+(ROUND(M35,3))+150+ROW()/10000,"")))) ->  | V35: =IF(AND(Q35="HỌC SINH GIỎI",LEFT(P35,1)="9"),Table1[[#This Row],[Column1]]+(ROUND(M35,3))+200+ROW()/10000,IF(AND(Q35="HỌC SINH GIỎI",LEFT(P35,1)="8"),Table1[[#This Row],[Column1]]+(ROUND(M35,3))+250+ROW()/10000,IF(AND(Q35="HỌC SINH GIỎI",LEFT(P35,1)="7"),Table1[[#This Row],[Column1]]+(ROUND(M35,3))+300+ROW()/10000,IF(AND(Q35="HỌC SINH GIỎI",LEFT(P35,1)="6"),Table1[[#This Row],[Column1]]+(ROUND(M35,3))+350+ROW()/10000,"")))) -> 233.0035 | W35: Trần Thanh | X35: Trúc | Y35: HỌC SINH GIỎI | Z35: 9C
A36: 35 | B36: Lê Tú | C36: Uyên | D36: 07/04/2011 | E36: Lê Trung Thông | F36: Xóm 5 | G36: T | H36: T | I36: 7.5 | J36: 6.75 | K36: 5.75 | M36: 20 | O36: x | P36: 9C | Q36: HỌC SINH GIỎI | R36: =IF(Table1[[#This Row],[STT]]="","",ROW()-1) -> 35 | S36: =IF(Table1[[#This Row],[Lơp]]="","",VLOOKUP(Table1[[#This Row],[Lơp]],$AC$3:$AD$14,2,0)) -> 10 | T36: =IF(AND(Q36="HỌC SINH XUẤT SẮC",LEFT(P36,1)="9"),Table1[[#This Row],[Column1]]+(ROUND(M36,3))+400+ROW()/10000,IF(AND(Q36="HỌC SINH XUẤT SẮC",LEFT(P36,1)="8"),Table1[[#This Row],[Column1]]+(ROUND(M36,3))+450+ROW()/10000,IF(AND(Q36="HỌC SINH XUẤT SẮC",LEFT(P36,1)="7"),Table1[[#This Row],[Column1]]+(ROUND(M36,3))+500+ROW()/10000,IF(AND(Q36="HỌC SINH XUẤT SẮC",LEFT(P36,1)="6"),Table1[[#This Row],[Column1]]+(ROUND(M36,3))+550+ROW()/10000,IF(AND(Q36="HỌC SINH GIỎI",LEFT(P36,1)="9"),Table1[[#This Row],[Column1]]+(ROUND(M36,3))+10+ROW()/10000,IF(AND(Q36="HỌC SINH GIỎI",LEFT(P36,1)="8"),Table1[[#This Row],[Column1]]+(ROUND(M36,3))+ 50+ROW()/10000,IF(AND(Q36="HỌC SINH GIỎI",LEFT(P36,1)="7"),Table1[[#This Row],[Column1]]+(ROUND(M36,3))+100+ROW()/10000,IF(AND(Q36="HỌC SINH GIỎI",LEFT(P36,1)="6"),Table1[[#This Row],[Column1]]+(ROUND(M36,3))+150+ROW()/10000,"")))))))) -> 40.0036 | U36: =IF(AND(Q36="HỌC SINH XUẤT SẮC",LEFT(P36,1)="9"),(ROUND(M36,3))+Table1[[#This Row],[Column1]]+10+ROW()/10000,IF(AND(Q36="HỌC SINH XUẤT SẮC",LEFT(P36,1)="8"),Table1[[#This Row],[Column1]]+(ROUND(M36,3))+50+ROW()/10000,IF(AND(Q36="HỌC SINH XUẤT SẮC",LEFT(P36,1)="7"),Table1[[#This Row],[Column1]]+(ROUND(M36,3))+100+ROW()/10000,IF(AND(Q36="HỌC SINH XUẤT SẮC",LEFT(P36,1)="6"),Table1[[#This Row],[Column1]]+(ROUND(M36,3))+150+ROW()/10000,"")))) ->  | V36: =IF(AND(Q36="HỌC SINH GIỎI",LEFT(P36,1)="9"),Table1[[#This Row],[Column1]]+(ROUND(M36,3))+200+ROW()/10000,IF(AND(Q36="HỌC SINH GIỎI",LEFT(P36,1)="8"),Table1[[#This Row],[Column1]]+(ROUND(M36,3))+250+ROW()/10000,IF(AND(Q36="HỌC SINH GIỎI",LEFT(P36,1)="7"),Table1[[#This Row],[Column1]]+(ROUND(M36,3))+300+ROW()/10000,IF(AND(Q36="HỌC SINH GIỎI",LEFT(P36,1)="6"),Table1[[#This Row],[Column1]]+(ROUND(M36,3))+350+ROW()/10000,"")))) -> 230.0036 | W36: Lê Tú | X36: Uyên | Y36: HỌC SINH GIỎI | Z36: 9C
A37: 36 | B37: Lê Tú | C37: Anh | D37: 16/10/2011 | E37: Lê Mạnh Tân | F37: Xóm 6 | G37: T | H37: T | I37: 8.25 | J37: 7.75 | K37: 5.3 | M37: =IF(AND(I37="",J37="",K37="",L37=""),"",SUM(I37:L37)) -> 21.3 | O37: x | P37: 9A | Q37: HỌC SINH GIỎI | R37: =IF(Table1[[#This Row],[STT]]="","",ROW()-1) -> 36 | S37: =IF(Table1[[#This Row],[Lơp]]="","",VLOOKUP(Table1[[#This Row],[Lơp]],$AC$3:$AD$14,2,0)) -> 30 | T37: =IF(AND(Q37="HỌC SINH XUẤT SẮC",LEFT(P37,1)="9"),Table1[[#This Row],[Column1]]+(ROUND(M37,3))+400+ROW()/10000,IF(AND(Q37="HỌC SINH XUẤT SẮC",LEFT(P37,1)="8"),Table1[[#This Row],[Column1]]+(ROUND(M37,3))+450+ROW()/10000,IF(AND(Q37="HỌC SINH XUẤT SẮC",LEFT(P37,1)="7"),Table1[[#This Row],[Column1]]+(ROUND(M37,3))+500+ROW()/10000,IF(AND(Q37="HỌC SINH XUẤT SẮC",LEFT(P37,1)="6"),Table1[[#This Row],[Column1]]+(ROUND(M37,3))+550+ROW()/10000,IF(AND(Q37="HỌC SINH GIỎI",LEFT(P37,1)="9"),Table1[[#This Row],[Column1]]+(ROUND(M37,3))+10+ROW()/10000,IF(AND(Q37="HỌC SINH GIỎI",LEFT(P37,1)="8"),Table1[[#This Row],[Column1]]+(ROUND(M37,3))+ 50+ROW()/10000,IF(AND(Q37="HỌC SINH GIỎI",LEFT(P37,1)="7"),Table1[[#This Row],[Column1]]+(ROUND(M37,3))+100+ROW()/10000,IF(AND(Q37="HỌC SINH GIỎI",LEFT(P37,1)="6"),Table1[[#This Row],[Column1]]+(ROUND(M37,3))+150+ROW()/10000,"")))))))) -> 61.3037 | U37: =IF(AND(Q37="HỌC SINH XUẤT SẮC",LEFT(P37,1)="9"),(ROUND(M37,3))+Table1[[#This Row],[Column1]]+10+ROW()/10000,IF(AND(Q37="HỌC SINH XUẤT SẮC",LEFT(P37,1)="8"),Table1[[#This Row],[Column1]]+(ROUND(M37,3))+50+ROW()/10000,IF(AND(Q37="HỌC SINH XUẤT SẮC",LEFT(P37,1)="7"),Table1[[#This Row],[Column1]]+(ROUND(M37,3))+100+ROW()/10000,IF(AND(Q37="HỌC SINH XUẤT SẮC",LEFT(P37,1)="6"),Table1[[#This Row],[Column1]]+(ROUND(M37,3))+150+ROW()/10000,"")))) ->  | V37: =IF(AND(Q37="HỌC SINH GIỎI",LEFT(P37,1)="9"),Table1[[#This Row],[Column1]]+(ROUND(M37,3))+200+ROW()/10000,IF(AND(Q37="HỌC SINH GIỎI",LEFT(P37,1)="8"),Table1[[#This Row],[Column1]]+(ROUND(M37,3))+250+ROW()/10000,IF(AND(Q37="HỌC SINH GIỎI",LEFT(P37,1)="7"),Table1[[#This Row],[Column1]]+(ROUND(M37,3))+300+ROW()/10000,IF(AND(Q37="HỌC SINH GIỎI",LEFT(P37,1)="6"),Table1[[#This Row],[Column1]]+(ROUND(M37,3))+350+ROW()/10000,"")))) -> 251.3037 | W37: Lê Tú | X37: Anh | Y37: HỌC SINH GIỎI | Z37: 9A
A38: 37 | B38: Trần Xuân | C38: Sang | D38: 2011-05-02 | E38: Trần Văn Thắng | F38: Xóm 3 | G38: T | H38: T | I38: 7.75 | J38: 8.75 | K38: 6.9 | M38: 23.4 | O38: x | P38: 9A | Q38: HỌC SINH GIỎI | R38: =IF(Table1[[#This Row],[STT]]="","",ROW()-1) -> 37 | S38: =IF(Table1[[#This Row],[Lơp]]="","",VLOOKUP(Table1[[#This Row],[Lơp]],$AC$3:$AD$14,2,0)) -> 30 | T38: =IF(AND(Q38="HỌC SINH XUẤT SẮC",LEFT(P38,1)="9"),Table1[[#This Row],[Column1]]+(ROUND(M38,3))+400+ROW()/10000,IF(AND(Q38="HỌC SINH XUẤT SẮC",LEFT(P38,1)="8"),Table1[[#This Row],[Column1]]+(ROUND(M38,3))+450+ROW()/10000,IF(AND(Q38="HỌC SINH XUẤT SẮC",LEFT(P38,1)="7"),Table1[[#This Row],[Column1]]+(ROUND(M38,3))+500+ROW()/10000,IF(AND(Q38="HỌC SINH XUẤT SẮC",LEFT(P38,1)="6"),Table1[[#This Row],[Column1]]+(ROUND(M38,3))+550+ROW()/10000,IF(AND(Q38="HỌC SINH GIỎI",LEFT(P38,1)="9"),Table1[[#This Row],[Column1]]+(ROUND(M38,3))+10+ROW()/10000,IF(AND(Q38="HỌC SINH GIỎI",LEFT(P38,1)="8"),Table1[[#This Row],[Column1]]+(ROUND(M38,3))+ 50+ROW()/10000,IF(AND(Q38="HỌC SINH GIỎI",LEFT(P38,1)="7"),Table1[[#This Row],[Column1]]+(ROUND(M38,3))+100+ROW()/10000,IF(AND(Q38="HỌC SINH GIỎI",LEFT(P38,1)="6"),Table1[[#This Row],[Column1]]+(ROUND(M38,3))+150+ROW()/10000,"")))))))) -> 63.4038 | U38: =IF(AND(Q38="HỌC SINH XUẤT SẮC",LEFT(P38,1)="9"),(ROUND(M38,3))+Table1[[#This Row],[Column1]]+10+ROW()/10000,IF(AND(Q38="HỌC SINH XUẤT SẮC",LEFT(P38,1)="8"),Table1[[#This Row],[Column1]]+(ROUND(M38,3))+50+ROW()/10000,IF(AND(Q38="HỌC SINH XUẤT SẮC",LEFT(P38,1)="7"),Table1[[#This Row],[Column1]]+(ROUND(M38,3))+100+ROW()/10000,IF(AND(Q38="HỌC SINH XUẤT SẮC",LEFT(P38,1)="6"),Table1[[#This Row],[Column1]]+(ROUND(M38,3))+150+ROW()/10000,"")))) ->  | V38: =IF(AND(Q38="HỌC SINH GIỎI",LEFT(P38,1)="9"),Table1[[#This Row],[Column1]]+(ROUND(M38,3))+200+ROW()/10000,IF(AND(Q38="HỌC SINH GIỎI",LEFT(P38,1)="8"),Table1[[#This Row],[Column1]]+(ROUND(M38,3))+250+ROW()/10000,IF(AND(Q38="HỌC SINH GIỎI",LEFT(P38,1)="7"),Table1[[#This Row],[Column1]]+(ROUND(M38,3))+300+ROW()/10000,IF(AND(Q38="HỌC SINH GIỎI",LEFT(P38,1)="6"),Table1[[#This Row],[Column1]]+(ROUND(M38,3))+350+ROW()/10000,"")))) -> 253.4038 | W38: Trần Xuân | X38: Sang | Y38: =IF(X38="","",Q38) -> HỌC SINH GIỎI | Z38: =IF(Y38="","",P38) -> 9A
A39: 38 | B39: Lương Trần Hương | C39: Trà | D39: 22/04/2011 | E39: Trần Thị Thảo | F39: Xóm 8 | G39: T | H39: T | I39: 8.5 | J39: 7.25 | K39: 6.75 | M39: 22.5 | O39: x | P39: 9A | Q39: HỌC SINH GIỎI | R39: =IF(Table1[[#This Row],[STT]]="","",ROW()-1) -> 38 | S39: =IF(Table1[[#This Row],[Lơp]]="","",VLOOKUP(Table1[[#This Row],[Lơp]],$AC$3:$AD$14,2,0)) -> 30 | T39: =IF(AND(Q39="HỌC SINH XUẤT SẮC",LEFT(P39,1)="9"),Table1[[#This Row],[Column1]]+(ROUND(M39,3))+400+ROW()/10000,IF(AND(Q39="HỌC SINH XUẤT SẮC",LEFT(P39,1)="8"),Table1[[#This Row],[Column1]]+(ROUND(M39,3))+450+ROW()/10000,IF(AND(Q39="HỌC SINH XUẤT SẮC",LEFT(P39,1)="7"),Table1[[#This Row],[Column1]]+(ROUND(M39,3))+500+ROW()/10000,IF(AND(Q39="HỌC SINH XUẤT SẮC",LEFT(P39,1)="6"),Table1[[#This Row],[Column1]]+(ROUND(M39,3))+550+ROW()/10000,IF(AND(Q39="HỌC SINH GIỎI",LEFT(P39,1)="9"),Table1[[#This Row],[Column1]]+(ROUND(M39,3))+10+ROW()/10000,IF(AND(Q39="HỌC SINH GIỎI",LEFT(P39,1)="8"),Table1[[#This Row],[Column1]]+(ROUND(M39,3))+ 50+ROW()/10000,IF(AND(Q39="HỌC SINH GIỎI",LEFT(P39,1)="7"),Table1[[#This Row],[Column1]]+(ROUND(M39,3))+100+ROW()/10000,IF(AND(Q39="HỌC SINH GIỎI",LEFT(P39,1)="6"),Table1[[#This Row],[Column1]]+(ROUND(M39,3))+150+ROW()/10000,"")))))))) -> 62.5039 | U39: =IF(AND(Q39="HỌC SINH XUẤT SẮC",LEFT(P39,1)="9"),(ROUND(M39,3))+Table1[[#This Row],[Column1]]+10+ROW()/10000,IF(AND(Q39="HỌC SINH XUẤT SẮC",LEFT(P39,1)="8"),Table1[[#This Row],[Column1]]+(ROUND(M39,3))+50+ROW()/10000,IF(AND(Q39="HỌC SINH XUẤT SẮC",LEFT(P39,1)="7"),Table1[[#This Row],[Column1]]+(ROUND(M39,3))+100+ROW()/10000,IF(AND(Q39="HỌC SINH XUẤT SẮC",LEFT(P39,1)="6"),Table1[[#This Row],[Column1]]+(ROUND(M39,3))+150+ROW()/10000,"")))) ->  | V39: =IF(AND(Q39="HỌC SINH GIỎI",LEFT(P39,1)="9"),Table1[[#This Row],[Column1]]+(ROUND(M39,3))+200+ROW()/10000,IF(AND(Q39="HỌC SINH GIỎI",LEFT(P39,1)="8"),Table1[[#This Row],[Column1]]+(ROUND(M39,3))+250+ROW()/10000,IF(AND(Q39="HỌC SINH GIỎI",LEFT(P39,1)="7"),Table1[[#This Row],[Column1]]+(ROUND(M39,3))+300+ROW()/10000,IF(AND(Q39="HỌC SINH GIỎI",LEFT(P39,1)="6"),Table1[[#This Row],[Column1]]+(ROUND(M39,3))+350+ROW()/10000,"")))) -> 252.5039 | W39: Lương Trần Hương | X39: Trà | Y39: HỌC SINH GIỎI | Z39: 9A
A40: 39 | B40: Lê Mai Hà | C40: Vy | D40: 13/06/2011 | E40: Lê Văn Huy | F40: Xóm 6 | G40: T | H40: T | I40: 8.5 | J40: 7.25 | K40: 6.8 | M40: 22.55 | O40: x | P40: 9A | Q40: HỌC SINH GIỎI | R40: =IF(Table1[[#This Row],[STT]]="","",ROW()-1) -> 39 | S40: =IF(Table1[[#This Row],[Lơp]]="","",VLOOKUP(Table1[[#This Row],[Lơp]],$AC$3:$AD$14,2,0)) -> 30 | T40: =IF(AND(Q40="HỌC SINH XUẤT SẮC",LEFT(P40,1)="9"),Table1[[#This Row],[Column1]]+(ROUND(M40,3))+400+ROW()/10000,IF(AND(Q40="HỌC SINH XUẤT SẮC",LEFT(P40,1)="8"),Table1[[#This Row],[Column1]]+(ROUND(M40,3))+450+ROW()/10000,IF(AND(Q40="HỌC SINH XUẤT SẮC",LEFT(P40,1)="7"),Table1[[#This Row],[Column1]]+(ROUND(M40,3))+500+ROW()/10000,IF(AND(Q40="HỌC SINH XUẤT SẮC",LEFT(P40,1)="6"),Table1[[#This Row],[Column1]]+(ROUND(M40,3))+550+ROW()/10000,IF(AND(Q40="HỌC SINH GIỎI",LEFT(P40,1)="9"),Table1[[#This Row],[Column1]]+(ROUND(M40,3))+10+ROW()/10000,IF(AND(Q40="HỌC SINH GIỎI",LEFT(P40,1)="8"),Table1[[#This Row],[Column1]]+(ROUND(M40,3))+ 50+ROW()/10000,IF(AND(Q40="HỌC SINH GIỎI",LEFT(P40,1)="7"),Table1[[#This Row],[Column1]]+(ROUND(M40,3))+100+ROW()/10000,IF(AND(Q40="HỌC SINH GIỎI",LEFT(P40,1)="6"),Table1[[#This Row],[Column1]]+(ROUND(M40,3))+150+ROW()/10000,"")))))))) -> 62.554 | U40: =IF(AND(Q40="HỌC SINH XUẤT SẮC",LEFT(P40,1)="9"),(ROUND(M40,3))+Table1[[#This Row],[Column1]]+10+ROW()/10000,IF(AND(Q40="HỌC SINH XUẤT SẮC",LEFT(P40,1)="8"),Table1[[#This Row],[Column1]]+(ROUND(M40,3))+50+ROW()/10000,IF(AND(Q40="HỌC SINH XUẤT SẮC",LEFT(P40,1)="7"),Table1[[#This Row],[Column1]]+(ROUND(M40,3))+100+ROW()/10000,IF(AND(Q40="HỌC SINH XUẤT SẮC",LEFT(P40,1)="6"),Table1[[#This Row],[Column1]]+(ROUND(M40,3))+150+ROW()/10000,"")))) ->  | V40: =IF(AND(Q40="HỌC SINH GIỎI",LEFT(P40,1)="9"),Table1[[#This Row],[Column1]]+(ROUND(M40,3))+200+ROW()/10000,IF(AND(Q40="HỌC SINH GIỎI",LEFT(P40,1)="8"),Table1[[#This Row],[Column1]]+(ROUND(M40,3))+250+ROW()/10000,IF(AND(Q40="HỌC SINH GIỎI",LEFT(P40,1)="7"),Table1[[#This Row],[Column1]]+(ROUND(M40,3))+300+ROW()/10000,IF(AND(Q40="HỌC SINH GIỎI",LEFT(P40,1)="6"),Table1[[#This Row],[Column1]]+(ROUND(M40,3))+350+ROW()/10000,"")))) -> 252.554 | W40: Lê Mai Hà | X40: Vy | Y40: HỌC SINH GIỎI | Z40: 9A
A41: 40 | B41: Lê Ngọc Bình | C41: An | D41: 12/01/2014 | E41: Lê Ngọc Dưỡng | F41: Xóm 5 | G41: T | H41: T | I41: 8 | J41: 8.5 | K41: 8.25 | L41: 9.75 | M41: =IF(AND(I41="",J41="",K41="",L41=""),"",SUM(I41:L41)) -> 34.5 | O41: X | P41: 6A | Q41: HỌC SINH GIỎI | R41: =IF(Table1[[#This Row],[STT]]="","",ROW()-1) -> 40 | S41: =IF(Table1[[#This Row],[Lơp]]="","",VLOOKUP(Table1[[#This Row],[Lơp]],$AC$3:$AD$14,2,0)) -> 120 | T41: =IF(AND(Q41="HỌC SINH XUẤT SẮC",LEFT(P41,1)="9"),Table1[[#This Row],[Column1]]+(ROUND(M41,3))+400+ROW()/10000,IF(AND(Q41="HỌC SINH XUẤT SẮC",LEFT(P41,1)="8"),Table1[[#This Row],[Column1]]+(ROUND(M41,3))+450+ROW()/10000,IF(AND(Q41="HỌC SINH XUẤT SẮC",LEFT(P41,1)="7"),Table1[[#This Row],[Column1]]+(ROUND(M41,3))+500+ROW()/10000,IF(AND(Q41="HỌC SINH XUẤT SẮC",LEFT(P41,1)="6"),Table1[[#This Row],[Column1]]+(ROUND(M41,3))+550+ROW()/10000,IF(AND(Q41="HỌC SINH GIỎI",LEFT(P41,1)="9"),Table1[[#This Row],[Column1]]+(ROUND(M41,3))+10+ROW()/10000,IF(AND(Q41="HỌC SINH GIỎI",LEFT(P41,1)="8"),Table1[[#This Row],[Column1]]+(ROUND(M41,3))+ 50+ROW()/10000,IF(AND(Q41="HỌC SINH GIỎI",LEFT(P41,1)="7"),Table1[[#This Row],[Column1]]+(ROUND(M41,3))+100+ROW()/10000,IF(AND(Q41="HỌC SINH GIỎI",LEFT(P41,1)="6"),Table1[[#This Row],[Column1]]+(ROUND(M41,3))+150+ROW()/10000,"")))))))) -> 304.5041 | U41: =IF(AND(Q41="HỌC SINH XUẤT SẮC",LEFT(P41,1)="9"),(ROUND(M41,3))+Table1[[#This Row],[Column1]]+10+ROW()/10000,IF(AND(Q41="HỌC SINH XUẤT SẮC",LEFT(P41,1)="8"),Table1[[#This Row],[Column1]]+(ROUND(M41,3))+50+ROW()/10000,IF(AND(Q41="HỌC SINH XUẤT SẮC",LEFT(P41,1)="7"),Table1[[#This Row],[Column1]]+(ROUND(M41,3))+100+ROW()/10000,IF(AND(Q41="HỌC SINH XUẤT SẮC",LEFT(P41,1)="6"),Table1[[#This Row],[Column1]]+(ROUND(M41,3))+150+ROW()/10000,"")))) ->  | V41: =IF(AND(Q41="HỌC SINH GIỎI",LEFT(P41,1)="9"),Table1[[#This Row],[Column1]]+(ROUND(M41,3))+200+ROW()/10000,IF(AND(Q41="HỌC SINH GIỎI",LEFT(P41,1)="8"),Table1[[#This Row],[Column1]]+(ROUND(M41,3))+250+ROW()/10000,IF(AND(Q41="HỌC SINH GIỎI",LEFT(P41,1)="7"),Table1[[#This Row],[Column1]]+(ROUND(M41,3))+300+ROW()/10000,IF(AND(Q41="HỌC SINH GIỎI",LEFT(P41,1)="6"),Table1[[#This Row],[Column1]]+(ROUND(M41,3))+350+ROW()/10000,"")))) -> 504.5041 | W41: Lê Ngọc Bình | X41: An | Y41: HỌC SINH GIỎI | Z41: 6A
A42: 41 | B42: Lê Quang | C42: Đại | D42: 04/04/2014 | E42: Lê Văn Hiện | F42: Xóm 9 | G42: T | H42: T | I42: 7 | J42: 8.5 | K42: 8.25 | L42: 9.5 | M42: =IF(AND(I42="",J42="",K42="",L42=""),"",SUM(I42:L42)) -> 33.25 | O42: x | P42: 6A | Q42: HỌC SINH GIỎI | R42: =IF(Table1[[#This Row],[STT]]="","",ROW()-1) -> 41 | S42: =IF(Table1[[#This Row],[Lơp]]="","",VLOOKUP(Table1[[#This Row],[Lơp]],$AC$3:$AD$14,2,0)) -> 120 | T42: =IF(AND(Q42="HỌC SINH XUẤT SẮC",LEFT(P42,1)="9"),Table1[[#This Row],[Column1]]+(ROUND(M42,3))+400+ROW()/10000,IF(AND(Q42="HỌC SINH XUẤT SẮC",LEFT(P42,1)="8"),Table1[[#This Row],[Column1]]+(ROUND(M42,3))+450+ROW()/10000,IF(AND(Q42="HỌC SINH XUẤT SẮC",LEFT(P42,1)="7"),Table1[[#This Row],[Column1]]+(ROUND(M42,3))+500+ROW()/10000,IF(AND(Q42="HỌC SINH XUẤT SẮC",LEFT(P42,1)="6"),Table1[[#This Row],[Column1]]+(ROUND(M42,3))+550+ROW()/10000,IF(AND(Q42="HỌC SINH GIỎI",LEFT(P42,1)="9"),Table1[[#This Row],[Column1]]+(ROUND(M42,3))+10+ROW()/10000,IF(AND(Q42="HỌC SINH GIỎI",LEFT(P42,1)="8"),Table1[[#This Row],[Column1]]+(ROUND(M42,3))+ 50+ROW()/10000,IF(AND(Q42="HỌC SINH GIỎI",LEFT(P42,1)="7"),Table1[[#This Row],[Column1]]+(ROUND(M42,3))+100+ROW()/10000,IF(AND(Q42="HỌC SINH GIỎI",LEFT(P42,1)="6"),Table1[[#This Row],[Column1]]+(ROUND(M42,3))+150+ROW()/10000,"")))))))) -> 303.2542 | U42: =IF(AND(Q42="HỌC SINH XUẤT SẮC",LEFT(P42,1)="9"),(ROUND(M42,3))+Table1[[#This Row],[Column1]]+10+ROW()/10000,IF(AND(Q42="HỌC SINH XUẤT SẮC",LEFT(P42,1)="8"),Table1[[#This Row],[Column1]]+(ROUND(M42,3))+50+ROW()/10000,IF(AND(Q42="HỌC SINH XUẤT SẮC",LEFT(P42,1)="7"),Table1[[#This Row],[Column1]]+(ROUND(M42,3))+100+ROW()/10000,IF(AND(Q42="HỌC SINH XUẤT SẮC",LEFT(P42,1)="6"),Table1[[#This Row],[Column1]]+(ROUND(M42,3))+150+ROW()/10000,"")))) ->  | V42: =IF(AND(Q42="HỌC SINH GIỎI",LEFT(P42,1)="9"),Table1[[#This Row],[Column1]]+(ROUND(M42,3))+200+ROW()/10000,IF(AND(Q42="HỌC SINH GIỎI",LEFT(P42,1)="8"),Table1[[#This Row],[Column1]]+(ROUND(M42,3))+250+ROW()/10000,IF(AND(Q42="HỌC SINH GIỎI",LEFT(P42,1)="7"),Table1[[#This Row],[Column1]]+(ROUND(M42,3))+300+ROW()/10000,IF(AND(Q42="HỌC SINH GIỎI",LEFT(P42,1)="6"),Table1[[#This Row],[Column1]]+(ROUND(M42,3))+350+ROW()/10000,"")))) -> 503.2542 | W42: Lê Quang | X42: Đại | Y42: HỌC SINH GIỎI | Z42: 6A
A43: 42 | B43: Tạ Trần Hương | C43: Giang | D43: 16/11/2014 | E43: Tạ Trung Trực | F43: Xóm 9 | G43: T | H43: T | I43: 9.25 | J43: 6.5 | K43: 8.25 | L43: 9.5 | M43: 33.5 | O43: X | P43: 6A | Q43: HỌC SINH GIỎI | R43: =IF(Table1[[#This Row],[STT]]="","",ROW()-1) -> 42 | S43: =IF(Table1[[#This Row],[Lơp]]="","",VLOOKUP(Table1[[#This Row],[Lơp]],$AC$3:$AD$14,2,0)) -> 120 | T43: =IF(AND(Q43="HỌC SINH XUẤT SẮC",LEFT(P43,1)="9"),Table1[[#This Row],[Column1]]+(ROUND(M43,3))+400+ROW()/10000,IF(AND(Q43="HỌC SINH XUẤT SẮC",LEFT(P43,1)="8"),Table1[[#This Row],[Column1]]+(ROUND(M43,3))+450+ROW()/10000,IF(AND(Q43="HỌC SINH XUẤT SẮC",LEFT(P43,1)="7"),Table1[[#This Row],[Column1]]+(ROUND(M43,3))+500+ROW()/10000,IF(AND(Q43="HỌC SINH XUẤT SẮC",LEFT(P43,1)="6"),Table1[[#This Row],[Column1]]+(ROUND(M43,3))+550+ROW()/10000,IF(AND(Q43="HỌC SINH GIỎI",LEFT(P43,1)="9"),Table1[[#This Row],[Column1]]+(ROUND(M43,3))+10+ROW()/10000,IF(AND(Q43="HỌC SINH GIỎI",LEFT(P43,1)="8"),Table1[[#This Row],[Column1]]+(ROUND(M43,3))+ 50+ROW()/10000,IF(AND(Q43="HỌC SINH GIỎI",LEFT(P43,1)="7"),Table1[[#This Row],[Column1]]+(ROUND(M43,3))+100+ROW()/10000,IF(AND(Q43="HỌC SINH GIỎI",LEFT(P43,1)="6"),Table1[[#This Row],[Column1]]+(ROUND(M43,3))+150+ROW()/10000,"")))))))) -> 303.5043 | U43: =IF(AND(Q43="HỌC SINH XUẤT SẮC",LEFT(P43,1)="9"),(ROUND(M43,3))+Table1[[#This Row],[Column1]]+10+ROW()/10000,IF(AND(Q43="HỌC SINH XUẤT SẮC",LEFT(P43,1)="8"),Table1[[#This Row],[Column1]]+(ROUND(M43,3))+50+ROW()/10000,IF(AND(Q43="HỌC SINH XUẤT SẮC",LEFT(P43,1)="7"),Table1[[#This Row],[Column1]]+(ROUND(M43,3))+100+ROW()/10000,IF(AND(Q43="HỌC SINH XUẤT SẮC",LEFT(P43,1)="6"),Table1[[#This Row],[Column1]]+(ROUND(M43,3))+150+ROW()/10000,"")))) ->  | V43: =IF(AND(Q43="HỌC SINH GIỎI",LEFT(P43,1)="9"),Table1[[#This Row],[Column1]]+(ROUND(M43,3))+200+ROW()/10000,IF(AND(Q43="HỌC SINH GIỎI",LEFT(P43,1)="8"),Table1[[#This Row],[Column1]]+(ROUND(M43,3))+250+ROW()/10000,IF(AND(Q43="HỌC SINH GIỎI",LEFT(P43,1)="7"),Table1[[#This Row],[Column1]]+(ROUND(M43,3))+300+ROW()/10000,IF(AND(Q43="HỌC SINH GIỎI",LEFT(P43,1)="6"),Table1[[#This Row],[Column1]]+(ROUND(M43,3))+350+ROW()/10000,"")))) -> 503.5043 | W43: Tạ Trần Hương | X43: Giang | Y43: HỌC SINH GIỎI | Z43: 6A
A44: 43 | B44: Đặng Huyền | C44: Trang | D44: 04/03/2014 | E44: Đặng Văn Quý | F44: Xóm 4 | G44: T | H44: T | I44: 8 | J44: 8.5 | K44: 7.25 | L44: 8.25 | M44: 32 | O44: x | P44: 6A | Q44: HỌC SINH GIỎI | R44: =IF(Table1[[#This Row],[STT]]="","",ROW()-1) -> 43 | S44: =IF(Table1[[#This Row],[Lơp]]="","",VLOOKUP(Table1[[#This Row],[Lơp]],$AC$3:$AD$14,2,0)) -> 120 | T44: =IF(AND(Q44="HỌC SINH XUẤT SẮC",LEFT(P44,1)="9"),Table1[[#This Row],[Column1]]+(ROUND(M44,3))+400+ROW()/10000,IF(AND(Q44="HỌC SINH XUẤT SẮC",LEFT(P44,1)="8"),Table1[[#This Row],[Column1]]+(ROUND(M44,3))+450+ROW()/10000,IF(AND(Q44="HỌC SINH XUẤT SẮC",LEFT(P44,1)="7"),Table1[[#This Row],[Column1]]+(ROUND(M44,3))+500+ROW()/10000,IF(AND(Q44="HỌC SINH XUẤT SẮC",LEFT(P44,1)="6"),Table1[[#This Row],[Column1]]+(ROUND(M44,3))+550+ROW()/10000,IF(AND(Q44="HỌC SINH GIỎI",LEFT(P44,1)="9"),Table1[[#This Row],[Column1]]+(ROUND(M44,3))+10+ROW()/10000,IF(AND(Q44="HỌC SINH GIỎI",LEFT(P44,1)="8"),Table1[[#This Row],[Column1]]+(ROUND(M44,3))+ 50+ROW()/10000,IF(AND(Q44="HỌC SINH GIỎI",LEFT(P44,1)="7"),Table1[[#This Row],[Column1]]+(ROUND(M44,3))+100+ROW()/10000,IF(AND(Q44="HỌC SINH GIỎI",LEFT(P44,1)="6"),Table1[[#This Row],[Column1]]+(ROUND(M44,3))+150+ROW()/10000,"")))))))) -> 302.0044 | U44: =IF(AND(Q44="HỌC SINH XUẤT SẮC",LEFT(P44,1)="9"),(ROUND(M44,3))+Table1[[#This Row],[Column1]]+10+ROW()/10000,IF(AND(Q44="HỌC SINH XUẤT SẮC",LEFT(P44,1)="8"),Table1[[#This Row],[Column1]]+(ROUND(M44,3))+50+ROW()/10000,IF(AND(Q44="HỌC SINH XUẤT SẮC",LEFT(P44,1)="7"),Table1[[#This Row],[Column1]]+(ROUND(M44,3))+100+ROW()/10000,IF(AND(Q44="HỌC SINH XUẤT SẮC",LEFT(P44,1)="6"),Table1[[#This Row],[Column1]]+(ROUND(M44,3))+150+ROW()/10000,"")))) ->  | V44: =IF(AND(Q44="HỌC SINH GIỎI",LEFT(P44,1)="9"),Table1[[#This Row],[Column1]]+(ROUND(M44,3))+200+ROW()/10000,IF(AND(Q44="HỌC SINH GIỎI",LEFT(P44,1)="8"),Table1[[#This Row],[Column1]]+(ROUND(M44,3))+250+ROW()/10000,IF(AND(Q44="HỌC SINH GIỎI",LEFT(P44,1)="7"),Table1[[#This Row],[Column1]]+(ROUND(M44,3))+300+ROW()/10000,IF(AND(Q44="HỌC SINH GIỎI",LEFT(P44,1)="6"),Table1[[#This Row],[Column1]]+(ROUND(M44,3))+350+ROW()/10000,"")))) -> 502.0044 | W44: Đặng Huyền | X44: Trang | Y44: HỌC SINH GIỎI | Z44: 6A
A45: 44 | B45: Tống Bảo | C45: Trâm | D45: 11/07/2014 | E45: Tống Công Đoàn | F45: Xóm 1 | G45: T | H45: T | I45: 9.25 | J45: 8.75 | K45: 6.5 | L45: 9.75 | M45: 34.25 | O45: x | P45: 6A | Q45: HỌC SINH GIỎI | R45: =IF(Table1[[#This Row],[STT]]="","",ROW()-1) -> 44 | S45: =IF(Table1[[#This Row],[Lơp]]="","",VLOOKUP(Table1[[#This Row],[Lơp]],$AC$3:$AD$14,2,0)) -> 120 | T45: =IF(AND(Q45="HỌC SINH XUẤT SẮC",LEFT(P45,1)="9"),Table1[[#This Row],[Column1]]+(ROUND(M45,3))+400+ROW()/10000,IF(AND(Q45="HỌC SINH XUẤT SẮC",LEFT(P45,1)="8"),Table1[[#This Row],[Column1]]+(ROUND(M45,3))+450+ROW()/10000,IF(AND(Q45="HỌC SINH XUẤT SẮC",LEFT(P45,1)="7"),Table1[[#This Row],[Column1]]+(ROUND(M45,3))+500+ROW()/10000,IF(AND(Q45="HỌC SINH XUẤT SẮC",LEFT(P45,1)="6"),Table1[[#This Row],[Column1]]+(ROUND(M45,3))+550+ROW()/10000,IF(AND(Q45="HỌC SINH GIỎI",LEFT(P45,1)="9"),Table1[[#This Row],[Column1]]+(ROUND(M45,3))+10+ROW()/10000,IF(AND(Q45="HỌC SINH GIỎI",LEFT(P45,1)="8"),Table1[[#This Row],[Column1]]+(ROUND(M45,3))+ 50+ROW()/10000,IF(AND(Q45="HỌC SINH GIỎI",LEFT(P45,1)="7"),Table1[[#This Row],[Column1]]+(ROUND(M45,3))+100+ROW()/10000,IF(AND(Q45="HỌC SINH GIỎI",LEFT(P45,1)="6"),Table1[[#This Row],[Column1]]+(ROUND(M45,3))+150+ROW()/10000,"")))))))) -> 304.2545 | U45: =IF(AND(Q45="HỌC SINH XUẤT SẮC",LEFT(P45,1)="9"),(ROUND(M45,3))+Table1[[#This Row],[Column1]]+10+ROW()/10000,IF(AND(Q45="HỌC SINH XUẤT SẮC",LEFT(P45,1)="8"),Table1[[#This Row],[Column1]]+(ROUND(M45,3))+50+ROW()/10000,IF(AND(Q45="HỌC SINH XUẤT SẮC",LEFT(P45,1)="7"),Table1[[#This Row],[Column1]]+(ROUND(M45,3))+100+ROW()/10000,IF(AND(Q45="HỌC SINH XUẤT SẮC",LEFT(P45,1)="6"),Table1[[#This Row],[Column1]]+(ROUND(M45,3))+150+ROW()/10000,"")))) ->  | V45: =IF(AND(Q45="HỌC SINH GIỎI",LEFT(P45,1)="9"),Table1[[#This Row],[Column1]]+(ROUND(M45,3))+200+ROW()/10000,IF(AND(Q45="HỌC SINH GIỎI",LEFT(P45,1)="8"),Table1[[#This Row],[Column1]]+(ROUND(M45,3))+250+ROW()/10000,IF(AND(Q45="HỌC SINH GIỎI",LEFT(P45,1)="7"),Table1[[#This Row],[Column1]]+(ROUND(M45,3))+300+ROW()/10000,IF(AND(Q45="HỌC SINH GIỎI",LEFT(P45,1)="6"),Table1[[#This Row],[Column1]]+(ROUND(M45,3))+350+ROW()/10000,"")))) -> 504.2545 | W45: Tống Bảo | X45: Trâm | Y45: HỌC SINH GIỎI | Z45: 6A
A46: 45 | B46: Lê Anh | C46: Quân | D46: 25/10/2012 | E46: Lê Văn Toàn | F46: Xóm 9 | G46: T | H46: T | I46: 7,0 | J46: 7,5 | K46: 5,0 | L46: 8,0 | M46: 27,50 | O46: x | P46: 8B | Q46: HỌC SINH GIỎI | R46: =IF(Table1[[#This Row],[STT]]="","",ROW()-1) -> 45 | S46: =IF(Table1[[#This Row],[Lơp]]="","",VLOOKUP(Table1[[#This Row],[Lơp]],$AC$3:$AD$14,2,0)) -> 50 | T46: =IF(AND(Q46="HỌC SINH XUẤT SẮC",LEFT(P46,1)="9"),Table1[[#This Row],[Column1]]+(ROUND(M46,3))+400+ROW()/10000,IF(AND(Q46="HỌC SINH XUẤT SẮC",LEFT(P46,1)="8"),Table1[[#This Row],[Column1]]+(ROUND(M46,3))+450+ROW()/10000,IF(AND(Q46="HỌC SINH XUẤT SẮC",LEFT(P46,1)="7"),Table1[[#This Row],[Column1]]+(ROUND(M46,3))+500+ROW()/10000,IF(AND(Q46="HỌC SINH XUẤT SẮC",LEFT(P46,1)="6"),Table1[[#This Row],[Column1]]+(ROUND(M46,3))+550+ROW()/10000,IF(AND(Q46="HỌC SINH GIỎI",LEFT(P46,1)="9"),Table1[[#This Row],[Column1]]+(ROUND(M46,3))+10+ROW()/10000,IF(AND(Q46="HỌC SINH GIỎI",LEFT(P46,1)="8"),Table1[[#This Row],[Column1]]+(ROUND(M46,3))+ 50+ROW()/10000,IF(AND(Q46="HỌC SINH GIỎI",LEFT(P46,1)="7"),Table1[[#This Row],[Column1]]+(ROUND(M46,3))+100+ROW()/10000,IF(AND(Q46="HỌC SINH GIỎI",LEFT(P46,1)="6"),Table1[[#This Row],[Column1]]+(ROUND(M46,3))+150+ROW()/10000,"")))))))) -> 127.5046 | U46: =IF(AND(Q46="HỌC SINH XUẤT SẮC",LEFT(P46,1)="9"),(ROUND(M46,3))+Table1[[#This Row],[Column1]]+10+ROW()/10000,IF(AND(Q46="HỌC SINH XUẤT SẮC",LEFT(P46,1)="8"),Table1[[#This Row],[Column1]]+(ROUND(M46,3))+50+ROW()/10000,IF(AND(Q46="HỌC SINH XUẤT SẮC",LEFT(P46,1)="7"),Table1[[#This Row],[Column1]]+(ROUND(M46,3))+100+ROW()/10000,IF(AND(Q46="HỌC SINH XUẤT SẮC",LEFT(P46,1)="6"),Table1[[#This Row],[Column1]]+(ROUND(M46,3))+150+ROW()/10000,"")))) ->  | V46: =IF(AND(Q46="HỌC SINH GIỎI",LEFT(P46,1)="9"),Table1[[#This Row],[Column1]]+(ROUND(M46,3))+200+ROW()/10000,IF(AND(Q46="HỌC SINH GIỎI",LEFT(P46,1)="8"),Table1[[#This Row],[Column1]]+(ROUND(M46,3))+250+ROW()/10000,IF(AND(Q46="HỌC SINH GIỎI",LEFT(P46,1)="7"),Table1[[#This Row],[Column1]]+(ROUND(M46,3))+300+ROW()/10000,IF(AND(Q46="HỌC SINH GIỎI",LEFT(P46,1)="6"),Table1[[#This Row],[Column1]]+(ROUND(M46,3))+350+ROW()/10000,"")))) -> 327.5046 | W46: Lê Anh | X46: Quân | Y46: HỌC SINH GIỎI | Z46: 8B
A47: 46 | B47: Vũ Quốc | C47: Ân | D47: 13/05/2012 | E47: Vũ Thanh Vương | F47: Xóm 9 | G47: T | H47: T | I47: 8,50 | J47: 7,75 | K47: 7,25 | L47: 7,75 | M47: 31,25 | O47: x | P47: 8B | Q47: HỌC SINH GIỎI | R47: =IF(Table1[[#This Row],[STT]]="","",ROW()-1) -> 46 | S47: =IF(Table1[[#This Row],[Lơp]]="","",VLOOKUP(Table1[[#This Row],[Lơp]],$AC$3:$AD$14,2,0)) -> 50 | T47: =IF(AND(Q47="HỌC SINH XUẤT SẮC",LEFT(P47,1)="9"),Table1[[#This Row],[Column1]]+(ROUND(M47,3))+400+ROW()/10000,IF(AND(Q47="HỌC SINH XUẤT SẮC",LEFT(P47,1)="8"),Table1[[#This Row],[Column1]]+(ROUND(M47,3))+450+ROW()/10000,IF(AND(Q47="HỌC SINH XUẤT SẮC",LEFT(P47,1)="7"),Table1[[#This Row],[Column1]]+(ROUND(M47,3))+500+ROW()/10000,IF(AND(Q47="HỌC SINH XUẤT SẮC",LEFT(P47,1)="6"),Table1[[#This Row],[Column1]]+(ROUND(M47,3))+550+ROW()/10000,IF(AND(Q47="HỌC SINH GIỎI",LEFT(P47,1)="9"),Table1[[#This Row],[Column1]]+(ROUND(M47,3))+10+ROW()/10000,IF(AND(Q47="HỌC SINH GIỎI",LEFT(P47,1)="8"),Table1[[#This Row],[Column1]]+(ROUND(M47,3))+ 50+ROW()/10000,IF(AND(Q47="HỌC SINH GIỎI",LEFT(P47,1)="7"),Table1[[#This Row],[Column1]]+(ROUND(M47,3))+100+ROW()/10000,IF(AND(Q47="HỌC SINH GIỎI",LEFT(P47,1)="6"),Table1[[#This Row],[Column1]]+(ROUND(M47,3))+150+ROW()/10000,"")))))))) -> 131.2547 | U47: =IF(AND(Q47="HỌC SINH XUẤT SẮC",LEFT(P47,1)="9"),(ROUND(M47,3))+Table1[[#This Row],[Column1]]+10+ROW()/10000,IF(AND(Q47="HỌC SINH XUẤT SẮC",LEFT(P47,1)="8"),Table1[[#This Row],[Column1]]+(ROUND(M47,3))+50+ROW()/10000,IF(AND(Q47="HỌC SINH XUẤT SẮC",LEFT(P47,1)="7"),Table1[[#This Row],[Column1]]+(ROUND(M47,3))+100+ROW()/10000,IF(AND(Q47="HỌC SINH XUẤT SẮC",LEFT(P47,1)="6"),Table1[[#This Row],[Column1]]+(ROUND(M47,3))+150+ROW()/10000,"")))) ->  | V47: =IF(AND(Q47="HỌC SINH GIỎI",LEFT(P47,1)="9"),Table1[[#This Row],[Column1]]+(ROUND(M47,3))+200+ROW()/10000,IF(AND(Q47="HỌC SINH GIỎI",LEFT(P47,1)="8"),Table1[[#This Row],[Column1]]+(ROUND(M47,3))+250+ROW()/10000,IF(AND(Q47="HỌC SINH GIỎI",LEFT(P47,1)="7"),Table1[[#This Row],[Column1]]+(ROUND(M47,3))+300+ROW()/10000,IF(AND(Q47="HỌC SINH GIỎI",LEFT(P47,1)="6"),Table1[[#This Row],[Column1]]+(ROUND(M47,3))+350+ROW()/10000,"")))) -> 331.2547 | W47: Vũ Quốc | X47: Ân | Y47: HỌC SINH GIỎI | Z47: 8B
A48: 47 | B48: Trần Thùy | C48: Dương | D48: 2012-12-07 | E48: Trần Ngọc Văn | F48: Xóm 10 | G48: T | H48: T | I48: 8,00 | J48: 8,5 | K48: 6,75 | L48: 7,25 | M48: 30,50 | O48: x | P48: 8B | Q48: HỌC SINH GIỎI | R48: =IF(Table1[[#This Row],[STT]]="","",ROW()-1) -> 47 | S48: =IF(Table1[[#This Row],[Lơp]]="","",VLOOKUP(Table1[[#This Row],[Lơp]],$AC$3:$AD$14,2,0)) -> 50 | T48: =IF(AND(Q48="HỌC SINH XUẤT SẮC",LEFT(P48,1)="9"),Table1[[#This Row],[Column1]]+(ROUND(M48,3))+400+ROW()/10000,IF(AND(Q48="HỌC SINH XUẤT SẮC",LEFT(P48,1)="8"),Table1[[#This Row],[Column1]]+(ROUND(M48,3))+450+ROW()/10000,IF(AND(Q48="HỌC SINH XUẤT SẮC",LEFT(P48,1)="7"),Table1[[#This Row],[Column1]]+(ROUND(M48,3))+500+ROW()/10000,IF(AND(Q48="HỌC SINH XUẤT SẮC",LEFT(P48,1)="6"),Table1[[#This Row],[Column1]]+(ROUND(M48,3))+550+ROW()/10000,IF(AND(Q48="HỌC SINH GIỎI",LEFT(P48,1)="9"),Table1[[#This Row],[Column1]]+(ROUND(M48,3))+10+ROW()/10000,IF(AND(Q48="HỌC SINH GIỎI",LEFT(P48,1)="8"),Table1[[#This Row],[Column1]]+(ROUND(M48,3))+ 50+ROW()/10000,IF(AND(Q48="HỌC SINH GIỎI",LEFT(P48,1)="7"),Table1[[#This Row],[Column1]]+(ROUND(M48,3))+100+ROW()/10000,IF(AND(Q48="HỌC SINH GIỎI",LEFT(P48,1)="6"),Table1[[#This Row],[Column1]]+(ROUND(M48,3))+150+ROW()/10000,"")))))))) -> 130.5048 | U48: =IF(AND(Q48="HỌC SINH XUẤT SẮC",LEFT(P48,1)="9"),(ROUND(M48,3))+Table1[[#This Row],[Column1]]+10+ROW()/10000,IF(AND(Q48="HỌC SINH XUẤT SẮC",LEFT(P48,1)="8"),Table1[[#This Row],[Column1]]+(ROUND(M48,3))+50+ROW()/10000,IF(AND(Q48="HỌC SINH XUẤT SẮC",LEFT(P48,1)="7"),Table1[[#This Row],[Column1]]+(ROUND(M48,3))+100+ROW()/10000,IF(AND(Q48="HỌC SINH XUẤT SẮC",LEFT(P48,1)="6"),Table1[[#This Row],[Column1]]+(ROUND(M48,3))+150+ROW()/10000,"")))) ->  | V48: =IF(AND(Q48="HỌC SINH GIỎI",LEFT(P48,1)="9"),Table1[[#This Row],[Column1]]+(ROUND(M48,3))+200+ROW()/10000,IF(AND(Q48="HỌC SINH GIỎI",LEFT(P48,1)="8"),Table1[[#This Row],[Column1]]+(ROUND(M48,3))+250+ROW()/10000,IF(AND(Q48="HỌC SINH GIỎI",LEFT(P48,1)="7"),Table1[[#This Row],[Column1]]+(ROUND(M48,3))+300+ROW()/10000,IF(AND(Q48="HỌC SINH GIỎI",LEFT(P48,1)="6"),Table1[[#This Row],[Column1]]+(ROUND(M48,3))+350+ROW()/10000,"")))) -> 330.5048 | W48: Trần Thùy | X48: Dương | Y48: HỌC SINH GIỎI | Z48: 8B
A49: 48 | B49: Trần Bảo | C49: Huy | D49: 2012-09-09 | E49: Trần Sỹ Nghị | F49: Xóm 11 | G49: T | H49: T | I49: 7,50 | J49: 8,50 | K49: 7,25 | L49: 7,25 | M49: 31,00 | O49: x | P49: 8B | Q49: HỌC SINH GIỎI | R49: =IF(Table1[[#This Row],[STT]]="","",ROW()-1) -> 48 | S49: =IF(Table1[[#This Row],[Lơp]]="","",VLOOKUP(Table1[[#This Row],[Lơp]],$AC$3:$AD$14,2,0)) -> 50 | T49: =IF(AND(Q49="HỌC SINH XUẤT SẮC",LEFT(P49,1)="9"),Table1[[#This Row],[Column1]]+(ROUND(M49,3))+400+ROW()/10000,IF(AND(Q49="HỌC SINH XUẤT SẮC",LEFT(P49,1)="8"),Table1[[#This Row],[Column1]]+(ROUND(M49,3))+450+ROW()/10000,IF(AND(Q49="HỌC SINH XUẤT SẮC",LEFT(P49,1)="7"),Table1[[#This Row],[Column1]]+(ROUND(M49,3))+500+ROW()/10000,IF(AND(Q49="HỌC SINH XUẤT SẮC",LEFT(P49,1)="6"),Table1[[#This Row],[Column1]]+(ROUND(M49,3))+550+ROW()/10000,IF(AND(Q49="HỌC SINH GIỎI",LEFT(P49,1)="9"),Table1[[#This Row],[Column1]]+(ROUND(M49,3))+10+ROW()/10000,IF(AND(Q49="HỌC SINH GIỎI",LEFT(P49,1)="8"),Table1[[#This Row],[Column1]]+(ROUND(M49,3))+ 50+ROW()/10000,IF(AND(Q49="HỌC SINH GIỎI",LEFT(P49,1)="7"),Table1[[#This Row],[Column1]]+(ROUND(M49,3))+100+ROW()/10000,IF(AND(Q49="HỌC SINH GIỎI",LEFT(P49,1)="6"),Table1[[#This Row],[Column1]]+(ROUND(M49,3))+150+ROW()/10000,"")))))))) -> 131.0049 | U49: =IF(AND(Q49="HỌC SINH XUẤT SẮC",LEFT(P49,1)="9"),(ROUND(M49,3))+Table1[[#This Row],[Column1]]+10+ROW()/10000,IF(AND(Q49="HỌC SINH XUẤT SẮC",LEFT(P49,1)="8"),Table1[[#This Row],[Column1]]+(ROUND(M49,3))+50+ROW()/10000,IF(AND(Q49="HỌC SINH XUẤT SẮC",LEFT(P49,1)="7"),Table1[[#This Row],[Column1]]+(ROUND(M49,3))+100+ROW()/10000,IF(AND(Q49="HỌC SINH XUẤT SẮC",LEFT(P49,1)="6"),Table1[[#This Row],[Column1]]+(ROUND(M49,3))+150+ROW()/10000,"")))) ->  | V49: =IF(AND(Q49="HỌC SINH GIỎI",LEFT(P49,1)="9"),Table1[[#This Row],[Column1]]+(ROUND(M49,3))+200+ROW()/10000,IF(AND(Q49="HỌC SINH GIỎI",LEFT(P49,1)="8"),Table1[[#This Row],[Column1]]+(ROUND(M49,3))+250+ROW()/10000,IF(AND(Q49="HỌC SINH GIỎI",LEFT(P49,1)="7"),Table1[[#This Row],[Column1]]+(ROUND(M49,3))+300+ROW()/10000,IF(AND(Q49="HỌC SINH GIỎI",LEFT(P49,1)="6"),Table1[[#This Row],[Column1]]+(ROUND(M49,3))+350+ROW()/10000,"")))) -> 331.0049 | W49: Trần Bảo | X49: Huy | Y49: HỌC SINH GIỎI | Z49: 8B
A50: 49 | B50: Trần Bình | C50: Minh | D50: 2012-03-11 | E50: Trần Viết Trường | F50: Xóm 12 | G50: T | H50: T | I50: 7,50 | J50: 8,00 | K50: 9,00 | L50: 8,25 | M50: 32,75 | O50: x | P50: 8B | Q50: HỌC SINH GIỎI | R50: =IF(Table1[[#This Row],[STT]]="","",ROW()-1) -> 49 | S50: =IF(Table1[[#This Row],[Lơp]]="","",VLOOKUP(Table1[[#This Row],[Lơp]],$AC$3:$AD$14,2,0)) -> 50 | T50: =IF(AND(Q50="HỌC SINH XUẤT SẮC",LEFT(P50,1)="9"),Table1[[#This Row],[Column1]]+(ROUND(M50,3))+400+ROW()/10000,IF(AND(Q50="HỌC SINH XUẤT SẮC",LEFT(P50,1)="8"),Table1[[#This Row],[Column1]]+(ROUND(M50,3))+450+ROW()/10000,IF(AND(Q50="HỌC SINH XUẤT SẮC",LEFT(P50,1)="7"),Table1[[#This Row],[Column1]]+(ROUND(M50,3))+500+ROW()/10000,IF(AND(Q50="HỌC SINH XUẤT SẮC",LEFT(P50,1)="6"),Table1[[#This Row],[Column1]]+(ROUND(M50,3))+550+ROW()/10000,IF(AND(Q50="HỌC SINH GIỎI",LEFT(P50,1)="9"),Table1[[#This Row],[Column1]]+(ROUND(M50,3))+10+ROW()/10000,IF(AND(Q50="HỌC SINH GIỎI",LEFT(P50,1)="8"),Table1[[#This Row],[Column1]]+(ROUND(M50,3))+ 50+ROW()/10000,IF(AND(Q50="HỌC SINH GIỎI",LEFT(P50,1)="7"),Table1[[#This Row],[Column1]]+(ROUND(M50,3))+100+ROW()/10000,IF(AND(Q50="HỌC SINH GIỎI",LEFT(P50,1)="6"),Table1[[#This Row],[Column1]]+(ROUND(M50,3))+150+ROW()/10000,"")))))))) -> 132.755 | U50: =IF(AND(Q50="HỌC SINH XUẤT SẮC",LEFT(P50,1)="9"),(ROUND(M50,3))+Table1[[#This Row],[Column1]]+10+ROW()/10000,IF(AND(Q50="HỌC SINH XUẤT SẮC",LEFT(P50,1)="8"),Table1[[#This Row],[Column1]]+(ROUND(M50,3))+50+ROW()/10000,IF(AND(Q50="HỌC SINH XUẤT SẮC",LEFT(P50,1)="7"),Table1[[#This Row],[Column1]]+(ROUND(M50,3))+100+ROW()/10000,IF(AND(Q50="HỌC SINH XUẤT SẮC",LEFT(P50,1)="6"),Table1[[#This Row],[Column1]]+(ROUND(M50,3))+150+ROW()/10000,"")))) ->  | V50: =IF(AND(Q50="HỌC SINH GIỎI",LEFT(P50,1)="9"),Table1[[#This Row],[Column1]]+(ROUND(M50,3))+200+ROW()/10000,IF(AND(Q50="HỌC SINH GIỎI",LEFT(P50,1)="8"),Table1[[#This Row],[Column1]]+(ROUND(M50,3))+250+ROW()/10000,IF(AND(Q50="HỌC SINH GIỎI",LEFT(P50,1)="7"),Table1[[#This Row],[Column1]]+(ROUND(M50,3))+300+ROW()/10000,IF(AND(Q50="HỌC SINH GIỎI",LEFT(P50,1)="6"),Table1[[#This Row],[Column1]]+(ROUND(M50,3))+350+ROW()/10000,"")))) -> 332.755 | W50: Trần Bình | X50: Minh | Y50: HỌC SINH GIỎI | Z50: 8B
A51: 50 | B51: Phạm Phương | C51: Trinh | D51: 19/11/2012 | E51: Phạm Văn Cẩn | F51: Xóm 13 | G51: T | H51: T | I51: 8,25 | J51: 9,00 | K51: 6,50 | L51: 8,25 | M51: 32,00 | O51: x | P51: 8B | Q51: HỌC SINH GIỎI | R51: =IF(Table1[[#This Row],[STT]]="","",ROW()-1) -> 50 | S51: =IF(Table1[[#This Row],[Lơp]]="","",VLOOKUP(Table1[[#This Row],[Lơp]],$AC$3:$AD$14,2,0)) -> 50 | T51: =IF(AND(Q51="HỌC SINH XUẤT SẮC",LEFT(P51,1)="9"),Table1[[#This Row],[Column1]]+(ROUND(M51,3))+400+ROW()/10000,IF(AND(Q51="HỌC SINH XUẤT SẮC",LEFT(P51,1)="8"),Table1[[#This Row],[Column1]]+(ROUND(M51,3))+450+ROW()/10000,IF(AND(Q51="HỌC SINH XUẤT SẮC",LEFT(P51,1)="7"),Table1[[#This Row],[Column1]]+(ROUND(M51,3))+500+ROW()/10000,IF(AND(Q51="HỌC SINH XUẤT SẮC",LEFT(P51,1)="6"),Table1[[#This Row],[Column1]]+(ROUND(M51,3))+550+ROW()/10000,IF(AND(Q51="HỌC SINH GIỎI",LEFT(P51,1)="9"),Table1[[#This Row],[Column1]]+(ROUND(M51,3))+10+ROW()/10000,IF(AND(Q51="HỌC SINH GIỎI",LEFT(P51,1)="8"),Table1[[#This Row],[Column1]]+(ROUND(M51,3))+ 50+ROW()/10000,IF(AND(Q51="HỌC SINH GIỎI",LEFT(P51,1)="7"),Table1[[#This Row],[Column1]]+(ROUND(M51,3))+100+ROW()/10000,IF(AND(Q51="HỌC SINH GIỎI",LEFT(P51,1)="6"),Table1[[#This Row],[Column1]]+(ROUND(M51,3))+150+ROW()/10000,"")))))))) -> 132.0051 | U51: =IF(AND(Q51="HỌC SINH XUẤT SẮC",LEFT(P51,1)="9"),(ROUND(M51,3))+Table1[[#This Row],[Column1]]+10+ROW()/10000,IF(AND(Q51="HỌC SINH XUẤT SẮC",LEFT(P51,1)="8"),Table1[[#This Row],[Column1]]+(ROUND(M51,3))+50+ROW()/10000,IF(AND(Q51="HỌC SINH XUẤT SẮC",LEFT(P51,1)="7"),Table1[[#This Row],[Column1]]+(ROUND(M51,3))+100+ROW()/10000,IF(AND(Q51="HỌC SINH XUẤT SẮC",LEFT(P51,1)="6"),Table1[[#This Row],[Column1]]+(ROUND(M51,3))+150+ROW()/10000,"")))) ->  | V51: =IF(AND(Q51="HỌC SINH GIỎI",LEFT(P51,1)="9"),Table1[[#This Row],[Column1]]+(ROUND(M51,3))+200+ROW()/10000,IF(AND(Q51="HỌC SINH GIỎI",LEFT(P51,1)="8"),Table1[[#This Row],[Column1]]+(ROUND(M51,3))+250+ROW()/10000,IF(AND(Q51="HỌC SINH GIỎI",LEFT(P51,1)="7"),Table1[[#This Row],[Column1]]+(ROUND(M51,3))+300+ROW()/10000,IF(AND(Q51="HỌC SINH GIỎI",LEFT(P51,1)="6"),Table1[[#This Row],[Column1]]+(ROUND(M51,3))+350+ROW()/10000,"")))) -> 332.0051 | W51: Phạm Phương | X51: Trinh | Y51: HỌC SINH GIỎI | Z51: 8B
A52: 51 | B52: Nguyễn Thảo | C52: Anh | D52: 2012-10-18 | E52: Nguyễn Văn Cẩn | F52: Xóm 7 | G52: T | H52: T | I52: 8.5 | J52: 9.5 | K52: 5.25 | L52: 9.25 | M52: =IF(AND(I52="",J52="",K52="",L52=""),"",SUM(I52:L52)) -> 32.5 | O52: x | P52: 8A | Q52: HỌC SINH GIỎI | R52: =IF(Table1[[#This Row],[STT]]="","",ROW()-1) -> 51 | S52: =IF(Table1[[#This Row],[Lơp]]="","",VLOOKUP(Table1[[#This Row],[Lơp]],$AC$3:$AD$14,2,0)) -> 60 | T52: =IF(AND(Q52="HỌC SINH XUẤT SẮC",LEFT(P52,1)="9"),Table1[[#This Row],[Column1]]+(ROUND(M52,3))+400+ROW()/10000,IF(AND(Q52="HỌC SINH XUẤT SẮC",LEFT(P52,1)="8"),Table1[[#This Row],[Column1]]+(ROUND(M52,3))+450+ROW()/10000,IF(AND(Q52="HỌC SINH XUẤT SẮC",LEFT(P52,1)="7"),Table1[[#This Row],[Column1]]+(ROUND(M52,3))+500+ROW()/10000,IF(AND(Q52="HỌC SINH XUẤT SẮC",LEFT(P52,1)="6"),Table1[[#This Row],[Column1]]+(ROUND(M52,3))+550+ROW()/10000,IF(AND(Q52="HỌC SINH GIỎI",LEFT(P52,1)="9"),Table1[[#This Row],[Column1]]+(ROUND(M52,3))+10+ROW()/10000,IF(AND(Q52="HỌC SINH GIỎI",LEFT(P52,1)="8"),Table1[[#This Row],[Column1]]+(ROUND(M52,3))+ 50+ROW()/10000,IF(AND(Q52="HỌC SINH GIỎI",LEFT(P52,1)="7"),Table1[[#This Row],[Column1]]+(ROUND(M52,3))+100+ROW()/10000,IF(AND(Q52="HỌC SINH GIỎI",LEFT(P52,1)="6"),Table1[[#This Row],[Column1]]+(ROUND(M52,3))+150+ROW()/10000,"")))))))) -> 142.5052 | U52: =IF(AND(Q52="HỌC SINH XUẤT SẮC",LEFT(P52,1)="9"),(ROUND(M52,3))+Table1[[#This Row],[Column1]]+10+ROW()/10000,IF(AND(Q52="HỌC SINH XUẤT SẮC",LEFT(P52,1)="8"),Table1[[#This Row],[Column1]]+(ROUND(M52,3))+50+ROW()/10000,IF(AND(Q52="HỌC SINH XUẤT SẮC",LEFT(P52,1)="7"),Table1[[#This Row],[Column1]]+(ROUND(M52,3))+100+ROW()/10000,IF(AND(Q52="HỌC SINH XUẤT SẮC",LEFT(P52,1)="6"),Table1[[#This Row],[Column1]]+(ROUND(M52,3))+150+ROW()/10000,"")))) ->  | V52: =IF(AND(Q52="HỌC SINH GIỎI",LEFT(P52,1)="9"),Table1[[#This Row],[Column1]]+(ROUND(M52,3))+200+ROW()/10000,IF(AND(Q52="HỌC SINH GIỎI",LEFT(P52,1)="8"),Table1[[#This Row],[Column1]]+(ROUND(M52,3))+250+ROW()/10000,IF(AND(Q52="HỌC SINH GIỎI",LEFT(P52,1)="7"),Table1[[#This Row],[Column1]]+(ROUND(M52,3))+300+ROW()/10000,IF(AND(Q52="HỌC SINH GIỎI",LEFT(P52,1)="6"),Table1[[#This Row],[Column1]]+(ROUND(M52,3))+350+ROW()/10000,"")))) -> 342.5052 | W52: Nguyễn Thảo | X52: Anh | Y52: HỌC SINH GIỎI | Z52: 8A
A53: 52 | B53: Trần Văn | C53: Hiệu | D53: 2012-02-20 | E53: Trần Văn Hà | F53: Xóm 9 | G53: T | H53: T | I53: 7.75 | J53: 7.75 | K53: 6.5 | L53: 6.5 | M53: =IF(AND(I53="",J53="",K53="",L53=""),"",SUM(I53:L53)) -> 28.5 | O53: x | P53: 8A | Q53: HỌC SINH GIỎI | R53: =IF(Table1[[#This Row],[STT]]="","",ROW()-1) -> 52 | S53: =IF(Table1[[#This Row],[Lơp]]="","",VLOOKUP(Table1[[#This Row],[Lơp]],$AC$3:$AD$14,2,0)) -> 60 | T53: =IF(AND(Q53="HỌC SINH XUẤT SẮC",LEFT(P53,1)="9"),Table1[[#This Row],[Column1]]+(ROUND(M53,3))+400+ROW()/10000,IF(AND(Q53="HỌC SINH XUẤT SẮC",LEFT(P53,1)="8"),Table1[[#This Row],[Column1]]+(ROUND(M53,3))+450+ROW()/10000,IF(AND(Q53="HỌC SINH XUẤT SẮC",LEFT(P53,1)="7"),Table1[[#This Row],[Column1]]+(ROUND(M53,3))+500+ROW()/10000,IF(AND(Q53="HỌC SINH XUẤT SẮC",LEFT(P53,1)="6"),Table1[[#This Row],[Column1]]+(ROUND(M53,3))+550+ROW()/10000,IF(AND(Q53="HỌC SINH GIỎI",LEFT(P53,1)="9"),Table1[[#This Row],[Column1]]+(ROUND(M53,3))+10+ROW()/10000,IF(AND(Q53="HỌC SINH GIỎI",LEFT(P53,1)="8"),Table1[[#This Row],[Column1]]+(ROUND(M53,3))+ 50+ROW()/10000,IF(AND(Q53="HỌC SINH GIỎI",LEFT(P53,1)="7"),Table1[[#This Row],[Column1]]+(ROUND(M53,3))+100+ROW()/10000,IF(AND(Q53="HỌC SINH GIỎI",LEFT(P53,1)="6"),Table1[[#This Row],[Column1]]+(ROUND(M53,3))+150+ROW()/10000,"")))))))) -> 138.5053 | U53: =IF(AND(Q53="HỌC SINH XUẤT SẮC",LEFT(P53,1)="9"),(ROUND(M53,3))+Table1[[#This Row],[Column1]]+10+ROW()/10000,IF(AND(Q53="HỌC SINH XUẤT SẮC",LEFT(P53,1)="8"),Table1[[#This Row],[Column1]]+(ROUND(M53,3))+50+ROW()/10000,IF(AND(Q53="HỌC SINH XUẤT SẮC",LEFT(P53,1)="7"),Table1[[#This Row],[Column1]]+(ROUND(M53,3))+100+ROW()/10000,IF(AND(Q53="HỌC SINH XUẤT SẮC",LEFT(P53,1)="6"),Table1[[#This Row],[Column1]]+(ROUND(M53,3))+150+ROW()/10000,"")))) ->  | V53: =IF(AND(Q53="HỌC SINH GIỎI",LEFT(P53,1)="9"),Table1[[#This Row],[Column1]]+(ROUND(M53,3))+200+ROW()/10000,IF(AND(Q53="HỌC SINH GIỎI",LEFT(P53,1)="8"),Table1[[#This Row],[Column1]]+(ROUND(M53,3))+250+ROW()/10000,IF(AND(Q53="HỌC SINH GIỎI",LEFT(P53,1)="7"),Table1[[#This Row],[Column1]]+(ROUND(M53,3))+300+ROW()/10000,IF(AND(Q53="HỌC SINH GIỎI",LEFT(P53,1)="6"),Table1[[#This Row],[Column1]]+(ROUND(M53,3))+350+ROW()/10000,"")))) -> 338.5053 | W53: Trần Văn | X53: Hiệu | Y53: HỌC SINH GIỎI | Z53: 8A
A54: 53 | B54: Trần Đức | C54: Long | D54: 2012-12-08 | E54: Trần Thế Đạt | F54: Xóm 9 | G54: T | H54: T | I54: 8.5 | J54: 8 | K54: 7.25 | L54: 9.5 | M54: 33.25 | O54: x | P54: 8A | Q54: HỌC SINH GIỎI | R54: =IF(Table1[[#This Row],[STT]]="","",ROW()-1) -> 53 | S54: =IF(Table1[[#This Row],[Lơp]]="","",VLOOKUP(Table1[[#This Row],[Lơp]],$AC$3:$AD$14,2,0)) -> 60 | T54: =IF(AND(Q54="HỌC SINH XUẤT SẮC",LEFT(P54,1)="9"),Table1[[#This Row],[Column1]]+(ROUND(M54,3))+400+ROW()/10000,IF(AND(Q54="HỌC SINH XUẤT SẮC",LEFT(P54,1)="8"),Table1[[#This Row],[Column1]]+(ROUND(M54,3))+450+ROW()/10000,IF(AND(Q54="HỌC SINH XUẤT SẮC",LEFT(P54,1)="7"),Table1[[#This Row],[Column1]]+(ROUND(M54,3))+500+ROW()/10000,IF(AND(Q54="HỌC SINH XUẤT SẮC",LEFT(P54,1)="6"),Table1[[#This Row],[Column1]]+(ROUND(M54,3))+550+ROW()/10000,IF(AND(Q54="HỌC SINH GIỎI",LEFT(P54,1)="9"),Table1[[#This Row],[Column1]]+(ROUND(M54,3))+10+ROW()/10000,IF(AND(Q54="HỌC SINH GIỎI",LEFT(P54,1)="8"),Table1[[#This Row],[Column1]]+(ROUND(M54,3))+ 50+ROW()/10000,IF(AND(Q54="HỌC SINH GIỎI",LEFT(P54,1)="7"),Table1[[#This Row],[Column1]]+(ROUND(M54,3))+100+ROW()/10000,IF(AND(Q54="HỌC SINH GIỎI",LEFT(P54,1)="6"),Table1[[#This Row],[Column1]]+(ROUND(M54,3))+150+ROW()/10000,"")))))))) -> 143.2554 | U54: =IF(AND(Q54="HỌC SINH XUẤT SẮC",LEFT(P54,1)="9"),(ROUND(M54,3))+Table1[[#This Row],[Column1]]+10+ROW()/10000,IF(AND(Q54="HỌC SINH XUẤT SẮC",LEFT(P54,1)="8"),Table1[[#This Row],[Column1]]+(ROUND(M54,3))+50+ROW()/10000,IF(AND(Q54="HỌC SINH XUẤT SẮC",LEFT(P54,1)="7"),Table1[[#This Row],[Column1]]+(ROUND(M54,3))+100+ROW()/10000,IF(AND(Q54="HỌC SINH XUẤT SẮC",LEFT(P54,1)="6"),Table1[[#This Row],[Column1]]+(ROUND(M54,3))+150+ROW()/10000,"")))) ->  | V54: =IF(AND(Q54="HỌC SINH GIỎI",LEFT(P54,1)="9"),Table1[[#This Row],[Column1]]+(ROUND(M54,3))+200+ROW()/10000,IF(AND(Q54="HỌC SINH GIỎI",LEFT(P54,1)="8"),Table1[[#This Row],[Column1]]+(ROUND(M54,3))+250+ROW()/10000,IF(AND(Q54="HỌC SINH GIỎI",LEFT(P54,1)="7"),Table1[[#This Row],[Column1]]+(ROUND(M54,3))+300+ROW()/10000,IF(AND(Q54="HỌC SINH GIỎI",LEFT(P54,1)="6"),Table1[[#This Row],[Column1]]+(ROUND(M54,3))+350+ROW()/10000,"")))) -> 343.2554 | W54: Trần Đức | X54: Long | Y54: HỌC SINH GIỎI | Z54: 8A
A55: 54 | B55: Đặng Thị Minh | C55: Hà | D55: 06/07/2013 | E55: Đặng Văn Trường | F55: Xóm 4 | G55: T | H55: T | I55: 8.5 | J55: 8 | K55: 6 | L55: 7.25 | M55: =IF(AND(I55="",J55="",K55="",L55=""),"",SUM(I55:L55)) -> 29.75 | O55: x | P55: 7A | Q55: HỌC SINH GIỎI | R55: =IF(Table1[[#This Row],[STT]]="","",ROW()-1) -> 54 | S55: =IF(Table1[[#This Row],[Lơp]]="","",VLOOKUP(Table1[[#This Row],[Lơp]],$AC$3:$AD$14,2,0)) -> 90 | T55: =IF(AND(Q55="HỌC SINH XUẤT SẮC",LEFT(P55,1)="9"),Table1[[#This Row],[Column1]]+(ROUND(M55,3))+400+ROW()/10000,IF(AND(Q55="HỌC SINH XUẤT SẮC",LEFT(P55,1)="8"),Table1[[#This Row],[Column1]]+(ROUND(M55,3))+450+ROW()/10000,IF(AND(Q55="HỌC SINH XUẤT SẮC",LEFT(P55,1)="7"),Table1[[#This Row],[Column1]]+(ROUND(M55,3))+500+ROW()/10000,IF(AND(Q55="HỌC SINH XUẤT SẮC",LEFT(P55,1)="6"),Table1[[#This Row],[Column1]]+(ROUND(M55,3))+550+ROW()/10000,IF(AND(Q55="HỌC SINH GIỎI",LEFT(P55,1)="9"),Table1[[#This Row],[Column1]]+(ROUND(M55,3))+10+ROW()/10000,IF(AND(Q55="HỌC SINH GIỎI",LEFT(P55,1)="8"),Table1[[#This Row],[Column1]]+(ROUND(M55,3))+ 50+ROW()/10000,IF(AND(Q55="HỌC SINH GIỎI",LEFT(P55,1)="7"),Table1[[#This Row],[Column1]]+(ROUND(M55,3))+100+ROW()/10000,IF(AND(Q55="HỌC SINH GIỎI",LEFT(P55,1)="6"),Table1[[#This Row],[Column1]]+(ROUND(M55,3))+150+ROW()/10000,"")))))))) -> 219.7555 | U55: =IF(AND(Q55="HỌC SINH XUẤT SẮC",LEFT(P55,1)="9"),(ROUND(M55,3))+Table1[[#This Row],[Column1]]+10+ROW()/10000,IF(AND(Q55="HỌC SINH XUẤT SẮC",LEFT(P55,1)="8"),Table1[[#This Row],[Column1]]+(ROUND(M55,3))+50+ROW()/10000,IF(AND(Q55="HỌC SINH XUẤT SẮC",LEFT(P55,1)="7"),Table1[[#This Row],[Column1]]+(ROUND(M55,3))+100+ROW()/10000,IF(AND(Q55="HỌC SINH XUẤT SẮC",LEFT(P55,1)="6"),Table1[[#This Row],[Column1]]+(ROUND(M55,3))+150+ROW()/10000,"")))) ->  | V55: =IF(AND(Q55="HỌC SINH GIỎI",LEFT(P55,1)="9"),Table1[[#This Row],[Column1]]+(ROUND(M55,3))+200+ROW()/10000,IF(AND(Q55="HỌC SINH GIỎI",LEFT(P55,1)="8"),Table1[[#This Row],[Column1]]+(ROUND(M55,3))+250+ROW()/10000,IF(AND(Q55="HỌC SINH GIỎI",LEFT(P55,1)="7"),Table1[[#This Row],[Column1]]+(ROUND(M55,3))+300+ROW()/10000,IF(AND(Q55="HỌC SINH GIỎI",LEFT(P55,1)="6"),Table1[[#This Row],[Column1]]+(ROUND(M55,3))+350+ROW()/10000,"")))) -> 419.7555 | W55: Đặng Thị Minh | X55: Hà | Y55: HỌC SINH GIỎI | Z55: 7A
A56: 55 | B56: Hoàng Thùy | C56: Linh | D56: 30/06/2013 | E56: Hoàng Văn Hải | F56: Xóm 3 | G56: T | H56: T | I56: 7.5 | J56: 7.25 | K56: 8.5 | L56: 8.5 | M56: =IF(AND(I56="",J56="",K56="",L56=""),"",SUM(I56:L56)) -> 31.75 | O56: x | P56: 7A | Q56: HỌC SINH GIỎI | R56: =IF(Table1[[#This Row],[STT]]="","",ROW()-1) -> 55 | S56: =IF(Table1[[#This Row],[Lơp]]="","",VLOOKUP(Table1[[#This Row],[Lơp]],$AC$3:$AD$14,2,0)) -> 90 | T56: =IF(AND(Q56="HỌC SINH XUẤT SẮC",LEFT(P56,1)="9"),Table1[[#This Row],[Column1]]+(ROUND(M56,3))+400+ROW()/10000,IF(AND(Q56="HỌC SINH XUẤT SẮC",LEFT(P56,1)="8"),Table1[[#This Row],[Column1]]+(ROUND(M56,3))+450+ROW()/10000,IF(AND(Q56="HỌC SINH XUẤT SẮC",LEFT(P56,1)="7"),Table1[[#This Row],[Column1]]+(ROUND(M56,3))+500+ROW()/10000,IF(AND(Q56="HỌC SINH XUẤT SẮC",LEFT(P56,1)="6"),Table1[[#This Row],[Column1]]+(ROUND(M56,3))+550+ROW()/10000,IF(AND(Q56="HỌC SINH GIỎI",LEFT(P56,1)="9"),Table1[[#This Row],[Column1]]+(ROUND(M56,3))+10+ROW()/10000,IF(AND(Q56="HỌC SINH GIỎI",LEFT(P56,1)="8"),Table1[[#This Row],[Column1]]+(ROUND(M56,3))+ 50+ROW()/10000,IF(AND(Q56="HỌC SINH GIỎI",LEFT(P56,1)="7"),Table1[[#This Row],[Column1]]+(ROUND(M56,3))+100+ROW()/10000,IF(AND(Q56="HỌC SINH GIỎI",LEFT(P56,1)="6"),Table1[[#This Row],[Column1]]+(ROUND(M56,3))+150+ROW()/10000,"")))))))) -> 221.7556 | U56: =IF(AND(Q56="HỌC SINH XUẤT SẮC",LEFT(P56,1)="9"),(ROUND(M56,3))+Table1[[#This Row],[Column1]]+10+ROW()/10000,IF(AND(Q56="HỌC SINH XUẤT SẮC",LEFT(P56,1)="8"),Table1[[#This Row],[Column1]]+(ROUND(M56,3))+50+ROW()/10000,IF(AND(Q56="HỌC SINH XUẤT SẮC",LEFT(P56,1)="7"),Table1[[#This Row],[Column1]]+(ROUND(M56,3))+100+ROW()/10000,IF(AND(Q56="HỌC SINH XUẤT SẮC",LEFT(P56,1)="6"),Table1[[#This Row],[Column1]]+(ROUND(M56,3))+150+ROW()/10000,"")))) ->  | V56: =IF(AND(Q56="HỌC SINH GIỎI",LEFT(P56,1)="9"),Table1[[#This Row],[Column1]]+(ROUND(M56,3))+200+ROW()/10000,IF(AND(Q56="HỌC SINH GIỎI",LEFT(P56,1)="8"),Table1[[#This Row],[Column1]]+(ROUND(M56,3))+250+ROW()/10000,IF(AND(Q56="HỌC SINH GIỎI",LEFT(P56,1)="7"),Table1[[#This Row],[Column1]]+(ROUND(M56,3))+300+ROW()/10000,IF(AND(Q56="HỌC SINH GIỎI",LEFT(P56,1)="6"),Table1[[#This Row],[Column1]]+(ROUND(M56,3))+350+ROW()/10000,"")))) -> 421.7556 | W56: Hoàng Thùy | X56: Linh | Y56: HỌC SINH GIỎI | Z56: 7A
A57: 56 | B57: Trần Thị Yến | C57: Nhi | D57: 2013-03-01 | E57: Trần Xuân Nam | F57: Xóm 3 | G57: T | H57: T | I57: 7.25 | J57: 8 | K57: 5.5 | L57: 8 | M57: 28.75 | O57: x | P57: 7A | Q57: HỌC SINH GIỎI | R57: =IF(Table1[[#This Row],[STT]]="","",ROW()-1) -> 56 | S57: =IF(Table1[[#This Row],[Lơp]]="","",VLOOKUP(Table1[[#This Row],[Lơp]],$AC$3:$AD$14,2,0)) -> 90 | T57: =IF(AND(Q57="HỌC SINH XUẤT SẮC",LEFT(P57,1)="9"),Table1[[#This Row],[Column1]]+(ROUND(M57,3))+400+ROW()/10000,IF(AND(Q57="HỌC SINH XUẤT SẮC",LEFT(P57,1)="8"),Table1[[#This Row],[Column1]]+(ROUND(M57,3))+450+ROW()/10000,IF(AND(Q57="HỌC SINH XUẤT SẮC",LEFT(P57,1)="7"),Table1[[#This Row],[Column1]]+(ROUND(M57,3))+500+ROW()/10000,IF(AND(Q57="HỌC SINH XUẤT SẮC",LEFT(P57,1)="6"),Table1[[#This Row],[Column1]]+(ROUND(M57,3))+550+ROW()/10000,IF(AND(Q57="HỌC SINH GIỎI",LEFT(P57,1)="9"),Table1[[#This Row],[Column1]]+(ROUND(M57,3))+10+ROW()/10000,IF(AND(Q57="HỌC SINH GIỎI",LEFT(P57,1)="8"),Table1[[#This Row],[Column1]]+(ROUND(M57,3))+ 50+ROW()/10000,IF(AND(Q57="HỌC SINH GIỎI",LEFT(P57,1)="7"),Table1[[#This Row],[Column1]]+(ROUND(M57,3))+100+ROW()/10000,IF(AND(Q57="HỌC SINH GIỎI",LEFT(P57,1)="6"),Table1[[#This Row],[Column1]]+(ROUND(M57,3))+150+ROW()/10000,"")))))))) -> 218.7557 | U57: =IF(AND(Q57="HỌC SINH XUẤT SẮC",LEFT(P57,1)="9"),(ROUND(M57,3))+Table1[[#This Row],[Column1]]+10+ROW()/10000,IF(AND(Q57="HỌC SINH XUẤT SẮC",LEFT(P57,1)="8"),Table1[[#This Row],[Column1]]+(ROUND(M57,3))+50+ROW()/10000,IF(AND(Q57="HỌC SINH XUẤT SẮC",LEFT(P57,1)="7"),Table1[[#This Row],[Column1]]+(ROUND(M57,3))+100+ROW()/10000,IF(AND(Q57="HỌC SINH XUẤT SẮC",LEFT(P57,1)="6"),Table1[[#This Row],[Column1]]+(ROUND(M57,3))+150+ROW()/10000,"")))) ->  | V57: =IF(AND(Q57="HỌC SINH GIỎI",LEFT(P57,1)="9"),Table1[[#This Row],[Column1]]+(ROUND(M57,3))+200+ROW()/10000,IF(AND(Q57="HỌC SINH GIỎI",LEFT(P57,1)="8"),Table1[[#This Row],[Column1]]+(ROUND(M57,3))+250+ROW()/10000,IF(AND(Q57="HỌC SINH GIỎI",LEFT(P57,1)="7"),Table1[[#This Row],[Column1]]+(ROUND(M57,3))+300+ROW()/10000,IF(AND(Q57="HỌC SINH GIỎI",LEFT(P57,1)="6"),Table1[[#This Row],[Column1]]+(ROUND(M57,3))+350+ROW()/10000,"")))) -> 418.7557 | W57: Trần Thị Yến | X57: Nhi | Y57: HỌC SINH GIỎI | Z57: 7A
A58: 57 | B58: Nguyễn Kim | C58: Oanh | D58: 04/10/2013 | E58: Nguyễn Xuân Kiều | F58: Xóm 3 | G58: T | H58: T | I58: 9 | J58: 7.5 | K58: 7.75 | L58: 8.25 | M58: 32.5 | O58: x | P58: 7A | Q58: HỌC SINH GIỎI | R58: =IF(Table1[[#This Row],[STT]]="","",ROW()-1) -> 57 | S58: =IF(Table1[[#This Row],[Lơp]]="","",VLOOKUP(Table1[[#This Row],[Lơp]],$AC$3:$AD$14,2,0)) -> 90 | T58: =IF(AND(Q58="HỌC SINH XUẤT SẮC",LEFT(P58,1)="9"),Table1[[#This Row],[Column1]]+(ROUND(M58,3))+400+ROW()/10000,IF(AND(Q58="HỌC SINH XUẤT SẮC",LEFT(P58,1)="8"),Table1[[#This Row],[Column1]]+(ROUND(M58,3))+450+ROW()/10000,IF(AND(Q58="HỌC SINH XUẤT SẮC",LEFT(P58,1)="7"),Table1[[#This Row],[Column1]]+(ROUND(M58,3))+500+ROW()/10000,IF(AND(Q58="HỌC SINH XUẤT SẮC",LEFT(P58,1)="6"),Table1[[#This Row],[Column1]]+(ROUND(M58,3))+550+ROW()/10000,IF(AND(Q58="HỌC SINH GIỎI",LEFT(P58,1)="9"),Table1[[#This Row],[Column1]]+(ROUND(M58,3))+10+ROW()/10000,IF(AND(Q58="HỌC SINH GIỎI",LEFT(P58,1)="8"),Table1[[#This Row],[Column1]]+(ROUND(M58,3))+ 50+ROW()/10000,IF(AND(Q58="HỌC SINH GIỎI",LEFT(P58,1)="7"),Table1[[#This Row],[Column1]]+(ROUND(M58,3))+100+ROW()/10000,IF(AND(Q58="HỌC SINH GIỎI",LEFT(P58,1)="6"),Table1[[#This Row],[Column1]]+(ROUND(M58,3))+150+ROW()/10000,"")))))))) -> 222.5058 | U58: =IF(AND(Q58="HỌC SINH XUẤT SẮC",LEFT(P58,1)="9"),(ROUND(M58,3))+Table1[[#This Row],[Column1]]+10+ROW()/10000,IF(AND(Q58="HỌC SINH XUẤT SẮC",LEFT(P58,1)="8"),Table1[[#This Row],[Column1]]+(ROUND(M58,3))+50+ROW()/10000,IF(AND(Q58="HỌC SINH XUẤT SẮC",LEFT(P58,1)="7"),Table1[[#This Row],[Column1]]+(ROUND(M58,3))+100+ROW()/10000,IF(AND(Q58="HỌC SINH XUẤT SẮC",LEFT(P58,1)="6"),Table1[[#This Row],[Column1]]+(ROUND(M58,3))+150+ROW()/10000,"")))) ->  | V58: =IF(AND(Q58="HỌC SINH GIỎI",LEFT(P58,1)="9"),Table1[[#This Row],[Column1]]+(ROUND(M58,3))+200+ROW()/10000,IF(AND(Q58="HỌC SINH GIỎI",LEFT(P58,1)="8"),Table1[[#This Row],[Column1]]+(ROUND(M58,3))+250+ROW()/10000,IF(AND(Q58="HỌC SINH GIỎI",LEFT(P58,1)="7"),Table1[[#This Row],[Column1]]+(ROUND(M58,3))+300+ROW()/10000,IF(AND(Q58="HỌC SINH GIỎI",LEFT(P58,1)="6"),Table1[[#This Row],[Column1]]+(ROUND(M58,3))+350+ROW()/10000,"")))) -> 422.5058 | W58: Nguyễn Kim | X58: =IF(W58="","",C58) -> Oanh | Y58: =IF(X58="","",Q58) -> HỌC SINH GIỎI | Z58: =IF(Y58="","",P58) -> 7A
A59: 58 | B59: Lê Thùy | C59: Anh | D59: 04/05/2014 | E59: Lê Văn Huyển | F59: Xóm 6 | G59: T | H59: T | I59: 9 | J59: 5 | K59: 6.25 | L59: 9.75 | M59: 30 | O59: x | P59: 6B | Q59: HỌC SINH GIỎI | R59: =IF(Table1[[#This Row],[STT]]="","",ROW()-1) -> 58 | S59: =IF(Table1[[#This Row],[Lơp]]="","",VLOOKUP(Table1[[#This Row],[Lơp]],$AC$3:$AD$14,2,0)) -> 110 | T59: =IF(AND(Q59="HỌC SINH XUẤT SẮC",LEFT(P59,1)="9"),Table1[[#This Row],[Column1]]+(ROUND(M59,3))+400+ROW()/10000,IF(AND(Q59="HỌC SINH XUẤT SẮC",LEFT(P59,1)="8"),Table1[[#This Row],[Column1]]+(ROUND(M59,3))+450+ROW()/10000,IF(AND(Q59="HỌC SINH XUẤT SẮC",LEFT(P59,1)="7"),Table1[[#This Row],[Column1]]+(ROUND(M59,3))+500+ROW()/10000,IF(AND(Q59="HỌC SINH XUẤT SẮC",LEFT(P59,1)="6"),Table1[[#This Row],[Column1]]+(ROUND(M59,3))+550+ROW()/10000,IF(AND(Q59="HỌC SINH GIỎI",LEFT(P59,1)="9"),Table1[[#This Row],[Column1]]+(ROUND(M59,3))+10+ROW()/10000,IF(AND(Q59="HỌC SINH GIỎI",LEFT(P59,1)="8"),Table1[[#This Row],[Column1]]+(ROUND(M59,3))+ 50+ROW()/10000,IF(AND(Q59="HỌC SINH GIỎI",LEFT(P59,1)="7"),Table1[[#This Row],[Column1]]+(ROUND(M59,3))+100+ROW()/10000,IF(AND(Q59="HỌC SINH GIỎI",LEFT(P59,1)="6"),Table1[[#This Row],[Column1]]+(ROUND(M59,3))+150+ROW()/10000,"")))))))) -> 290.0059 | U59: =IF(AND(Q59="HỌC SINH XUẤT SẮC",LEFT(P59,1)="9"),(ROUND(M59,3))+Table1[[#This Row],[Column1]]+10+ROW()/10000,IF(AND(Q59="HỌC SINH XUẤT SẮC",LEFT(P59,1)="8"),Table1[[#This Row],[Column1]]+(ROUND(M59,3))+50+ROW()/10000,IF(AND(Q59="HỌC SINH XUẤT SẮC",LEFT(P59,1)="7"),Table1[[#This Row],[Column1]]+(ROUND(M59,3))+100+ROW()/10000,IF(AND(Q59="HỌC SINH XUẤT SẮC",LEFT(P59,1)="6"),Table1[[#This Row],[Column1]]+(ROUND(M59,3))+150+ROW()/10000,"")))) ->  | V59: =IF(AND(Q59="HỌC SINH GIỎI",LEFT(P59,1)="9"),Table1[[#This Row],[Column1]]+(ROUND(M59,3))+200+ROW()/10000,IF(AND(Q59="HỌC SINH GIỎI",LEFT(P59,1)="8"),Table1[[#This Row],[Column1]]+(ROUND(M59,3))+250+ROW()/10000,IF(AND(Q59="HỌC SINH GIỎI",LEFT(P59,1)="7"),Table1[[#This Row],[Column1]]+(ROUND(M59,3))+300+ROW()/10000,IF(AND(Q59="HỌC SINH GIỎI",LEFT(P59,1)="6"),Table1[[#This Row],[Column1]]+(ROUND(M59,3))+350+ROW()/10000,"")))) -> 490.0059 | W59: Lê Thùy | X59: Anh | Y59: HỌC SINH GIỎI | Z59: 6B
A60: 59 | B60: Lê Việt | C60: Anh | D60: 2014-01-03 | E60: Lê Văn Tình | F60: Xóm 9 | G60: T | H60: T | I60: 8.25 | J60: 7 | K60: 5 | L60: 9 | M60: 29.25 | O60: x | P60: 6B | Q60: HỌC SINH GIỎI | R60: =IF(Table1[[#This Row],[STT]]="","",ROW()-1) -> 59 | S60: =IF(Table1[[#This Row],[Lơp]]="","",VLOOKUP(Table1[[#This Row],[Lơp]],$AC$3:$AD$14,2,0)) -> 110 | T60: =IF(AND(Q60="HỌC SINH XUẤT SẮC",LEFT(P60,1)="9"),Table1[[#This Row],[Column1]]+(ROUND(M60,3))+400+ROW()/10000,IF(AND(Q60="HỌC SINH XUẤT SẮC",LEFT(P60,1)="8"),Table1[[#This Row],[Column1]]+(ROUND(M60,3))+450+ROW()/10000,IF(AND(Q60="HỌC SINH XUẤT SẮC",LEFT(P60,1)="7"),Table1[[#This Row],[Column1]]+(ROUND(M60,3))+500+ROW()/10000,IF(AND(Q60="HỌC SINH XUẤT SẮC",LEFT(P60,1)="6"),Table1[[#This Row],[Column1]]+(ROUND(M60,3))+550+ROW()/10000,IF(AND(Q60="HỌC SINH GIỎI",LEFT(P60,1)="9"),Table1[[#This Row],[Column1]]+(ROUND(M60,3))+10+ROW()/10000,IF(AND(Q60="HỌC SINH GIỎI",LEFT(P60,1)="8"),Table1[[#This Row],[Column1]]+(ROUND(M60,3))+ 50+ROW()/10000,IF(AND(Q60="HỌC SINH GIỎI",LEFT(P60,1)="7"),Table1[[#This Row],[Column1]]+(ROUND(M60,3))+100+ROW()/10000,IF(AND(Q60="HỌC SINH GIỎI",LEFT(P60,1)="6"),Table1[[#This Row],[Column1]]+(ROUND(M60,3))+150+ROW()/10000,"")))))))) -> 289.256 | U60: =IF(AND(Q60="HỌC SINH XUẤT SẮC",LEFT(P60,1)="9"),(ROUND(M60,3))+Table1[[#This Row],[Column1]]+10+ROW()/10000,IF(AND(Q60="HỌC SINH XUẤT SẮC",LEFT(P60,1)="8"),Table1[[#This Row],[Column1]]+(ROUND(M60,3))+50+ROW()/10000,IF(AND(Q60="HỌC SINH XUẤT SẮC",LEFT(P60,1)="7"),Table1[[#This Row],[Column1]]+(ROUND(M60,3))+100+ROW()/10000,IF(AND(Q60="HỌC SINH XUẤT SẮC",LEFT(P60,1)="6"),Table1[[#This Row],[Column1]]+(ROUND(M60,3))+150+ROW()/10000,"")))) ->  | V60: =IF(AND(Q60="HỌC SINH GIỎI",LEFT(P60,1)="9"),Table1[[#This Row],[Column1]]+(ROUND(M60,3))+200+ROW()/10000,IF(AND(Q60="HỌC SINH GIỎI",LEFT(P60,1)="8"),Table1[[#This Row],[Column1]]+(ROUND(M60,3))+250+ROW()/10000,IF(AND(Q60="HỌC SINH GIỎI",LEFT(P60,1)="7"),Table1[[#This Row],[Column1]]+(ROUND(M60,3))+300+ROW()/10000,IF(AND(Q60="HỌC SINH GIỎI",LEFT(P60,1)="6"),Table1[[#This Row],[Column1]]+(ROUND(M60,3))+350+ROW()/10000,"")))) -> 489.256 | W60: Lê Việt | X60: Anh | Y60: HỌC SINH GIỎI | Z60: 6B
A61: 60 | B61: Phạm Nhật Mỹ | C61: Anh | D61: 2014-02-07 | E61: Phạm Quốc Hùng | F61: Xóm 3 | G61: T | H61: T | I61: 9.5 | J61: 5 | K61: 7.5 | L61: 10 | M61: 32 | O61: x | P61: 6B | Q61: HỌC SINH GIỎI | R61: =IF(Table1[[#This Row],[STT]]="","",ROW()-1) -> 60 | S61: =IF(Table1[[#This Row],[Lơp]]="","",VLOOKUP(Table1[[#This Row],[Lơp]],$AC$3:$AD$14,2,0)) -> 110 | T61: =IF(AND(Q61="HỌC SINH XUẤT SẮC",LEFT(P61,1)="9"),Table1[[#This Row],[Column1]]+(ROUND(M61,3))+400+ROW()/10000,IF(AND(Q61="HỌC SINH XUẤT SẮC",LEFT(P61,1)="8"),Table1[[#This Row],[Column1]]+(ROUND(M61,3))+450+ROW()/10000,IF(AND(Q61="HỌC SINH XUẤT SẮC",LEFT(P61,1)="7"),Table1[[#This Row],[Column1]]+(ROUND(M61,3))+500+ROW()/10000,IF(AND(Q61="HỌC SINH XUẤT SẮC",LEFT(P61,1)="6"),Table1[[#This Row],[Column1]]+(ROUND(M61,3))+550+ROW()/10000,IF(AND(Q61="HỌC SINH GIỎI",LEFT(P61,1)="9"),Table1[[#This Row],[Column1]]+(ROUND(M61,3))+10+ROW()/10000,IF(AND(Q61="HỌC SINH GIỎI",LEFT(P61,1)="8"),Table1[[#This Row],[Column1]]+(ROUND(M61,3))+ 50+ROW()/10000,IF(AND(Q61="HỌC SINH GIỎI",LEFT(P61,1)="7"),Table1[[#This Row],[Column1]]+(ROUND(M61,3))+100+ROW()/10000,IF(AND(Q61="HỌC SINH GIỎI",LEFT(P61,1)="6"),Table1[[#This Row],[Column1]]+(ROUND(M61,3))+150+ROW()/10000,"")))))))) -> 292.0061 | U61: =IF(AND(Q61="HỌC SINH XUẤT SẮC",LEFT(P61,1)="9"),(ROUND(M61,3))+Table1[[#This Row],[Column1]]+10+ROW()/10000,IF(AND(Q61="HỌC SINH XUẤT SẮC",LEFT(P61,1)="8"),Table1[[#This Row],[Column1]]+(ROUND(M61,3))+50+ROW()/10000,IF(AND(Q61="HỌC SINH XUẤT SẮC",LEFT(P61,1)="7"),Table1[[#This Row],[Column1]]+(ROUND(M61,3))+100+ROW()/10000,IF(AND(Q61="HỌC SINH XUẤT SẮC",LEFT(P61,1)="6"),Table1[[#This Row],[Column1]]+(ROUND(M61,3))+150+ROW()/10000,"")))) ->  | V61: =IF(AND(Q61="HỌC SINH GIỎI",LEFT(P61,1)="9"),Table1[[#This Row],[Column1]]+(ROUND(M61,3))+200+ROW()/10000,IF(AND(Q61="HỌC SINH GIỎI",LEFT(P61,1)="8"),Table1[[#This Row],[Column1]]+(ROUND(M61,3))+250+ROW()/10000,IF(AND(Q61="HỌC SINH GIỎI",LEFT(P61,1)="7"),Table1[[#This Row],[Column1]]+(ROUND(M61,3))+300+ROW()/10000,IF(AND(Q61="HỌC SINH GIỎI",LEFT(P61,1)="6"),Table1[[#This Row],[Column1]]+(ROUND(M61,3))+350+ROW()/10000,"")))) -> 492.0061 | W61: Phạm Nhật Mỹ | X61: Anh | Y61: HỌC SINH GIỎI | Z61: 6B
A62: 61 | B62: Trần Thị Phương | C62: Thúy | D62: 10/03/2014 | E62: Trần Văn Khiêm | F62: Xóm 3 | G62: T | H62: T | I62: 9.25 | J62: 8.5 | K62: 5.5 | L62: 9 | M62: 32.25 | O62: x | P62: 6B | Q62: HỌC SINH GIỎI | R62: =IF(Table1[[#This Row],[STT]]="","",ROW()-1) -> 61 | S62: =IF(Table1[[#This Row],[Lơp]]="","",VLOOKUP(Table1[[#This Row],[Lơp]],$AC$3:$AD$14,2,0)) -> 110 | T62: =IF(AND(Q62="HỌC SINH XUẤT SẮC",LEFT(P62,1)="9"),Table1[[#This Row],[Column1]]+(ROUND(M62,3))+400+ROW()/10000,IF(AND(Q62="HỌC SINH XUẤT SẮC",LEFT(P62,1)="8"),Table1[[#This Row],[Column1]]+(ROUND(M62,3))+450+ROW()/10000,IF(AND(Q62="HỌC SINH XUẤT SẮC",LEFT(P62,1)="7"),Table1[[#This Row],[Column1]]+(ROUND(M62,3))+500+ROW()/10000,IF(AND(Q62="HỌC SINH XUẤT SẮC",LEFT(P62,1)="6"),Table1[[#This Row],[Column1]]+(ROUND(M62,3))+550+ROW()/10000,IF(AND(Q62="HỌC SINH GIỎI",LEFT(P62,1)="9"),Table1[[#This Row],[Column1]]+(ROUND(M62,3))+10+ROW()/10000,IF(AND(Q62="HỌC SINH GIỎI",LEFT(P62,1)="8"),Table1[[#This Row],[Column1]]+(ROUND(M62,3))+ 50+ROW()/10000,IF(AND(Q62="HỌC SINH GIỎI",LEFT(P62,1)="7"),Table1[[#This Row],[Column1]]+(ROUND(M62,3))+100+ROW()/10000,IF(AND(Q62="HỌC SINH GIỎI",LEFT(P62,1)="6"),Table1[[#This Row],[Column1]]+(ROUND(M62,3))+150+ROW()/10000,"")))))))) -> 292.2562 | U62: =IF(AND(Q62="HỌC SINH XUẤT SẮC",LEFT(P62,1)="9"),(ROUND(M62,3))+Table1[[#This Row],[Column1]]+10+ROW()/10000,IF(AND(Q62="HỌC SINH XUẤT SẮC",LEFT(P62,1)="8"),Table1[[#This Row],[Column1]]+(ROUND(M62,3))+50+ROW()/10000,IF(AND(Q62="HỌC SINH XUẤT SẮC",LEFT(P62,1)="7"),Table1[[#This Row],[Column1]]+(ROUND(M62,3))+100+ROW()/10000,IF(AND(Q62="HỌC SINH XUẤT SẮC",LEFT(P62,1)="6"),Table1[[#This Row],[Column1]]+(ROUND(M62,3))+150+ROW()/10000,"")))) ->  | V62: =IF(AND(Q62="HỌC SINH GIỎI",LEFT(P62,1)="9"),Table1[[#This Row],[Column1]]+(ROUND(M62,3))+200+ROW()/10000,IF(AND(Q62="HỌC SINH GIỎI",LEFT(P62,1)="8"),Table1[[#This Row],[Column1]]+(ROUND(M62,3))+250+ROW()/10000,IF(AND(Q62="HỌC SINH GIỎI",LEFT(P62,1)="7"),Table1[[#This Row],[Column1]]+(ROUND(M62,3))+300+ROW()/10000,IF(AND(Q62="HỌC SINH GIỎI",LEFT(P62,1)="6"),Table1[[#This Row],[Column1]]+(ROUND(M62,3))+350+ROW()/10000,"")))) -> 492.2562 | W62: Trần Thị Phương | X62: Thúy | Y62: HỌC SINH GIỎI | Z62: 6B
A63: 62 | B63: Trần Cẩm | C63: Tú | D63: 29/07/2014 | E63: Trần Văn Thưởng | F63: Xóm 7 | G63: T | H63: T | I63: 8.75 | J63: 7.5 | K63: 5 | L63: 8.75 | M63: 30 | O63: x | P63: 6B | Q63: HỌC SINH GIỎI | R63: =IF(Table1[[#This Row],[STT]]="","",ROW()-1) -> 62 | S63: =IF(Table1[[#This Row],[Lơp]]="","",VLOOKUP(Table1[[#This Row],[Lơp]],$AC$3:$AD$14,2,0)) -> 110 | T63: =IF(AND(Q63="HỌC SINH XUẤT SẮC",LEFT(P63,1)="9"),Table1[[#This Row],[Column1]]+(ROUND(M63,3))+400+ROW()/10000,IF(AND(Q63="HỌC SINH XUẤT SẮC",LEFT(P63,1)="8"),Table1[[#This Row],[Column1]]+(ROUND(M63,3))+450+ROW()/10000,IF(AND(Q63="HỌC SINH XUẤT SẮC",LEFT(P63,1)="7"),Table1[[#This Row],[Column1]]+(ROUND(M63,3))+500+ROW()/10000,IF(AND(Q63="HỌC SINH XUẤT SẮC",LEFT(P63,1)="6"),Table1[[#This Row],[Column1]]+(ROUND(M63,3))+550+ROW()/10000,IF(AND(Q63="HỌC SINH GIỎI",LEFT(P63,1)="9"),Table1[[#This Row],[Column1]]+(ROUND(M63,3))+10+ROW()/10000,IF(AND(Q63="HỌC SINH GIỎI",LEFT(P63,1)="8"),Table1[[#This Row],[Column1]]+(ROUND(M63,3))+ 50+ROW()/10000,IF(AND(Q63="HỌC SINH GIỎI",LEFT(P63,1)="7"),Table1[[#This Row],[Column1]]+(ROUND(M63,3))+100+ROW()/10000,IF(AND(Q63="HỌC SINH GIỎI",LEFT(P63,1)="6"),Table1[[#This Row],[Column1]]+(ROUND(M63,3))+150+ROW()/10000,"")))))))) -> 290.0063 | U63: =IF(AND(Q63="HỌC SINH XUẤT SẮC",LEFT(P63,1)="9"),(ROUND(M63,3))+Table1[[#This Row],[Column1]]+10+ROW()/10000,IF(AND(Q63="HỌC SINH XUẤT SẮC",LEFT(P63,1)="8"),Table1[[#This Row],[Column1]]+(ROUND(M63,3))+50+ROW()/10000,IF(AND(Q63="HỌC SINH XUẤT SẮC",LEFT(P63,1)="7"),Table1[[#This Row],[Column1]]+(ROUND(M63,3))+100+ROW()/10000,IF(AND(Q63="HỌC SINH XUẤT SẮC",LEFT(P63,1)="6"),Table1[[#This Row],[Column1]]+(ROUND(M63,3))+150+ROW()/10000,"")))) ->  | V63: =IF(AND(Q63="HỌC SINH GIỎI",LEFT(P63,1)="9"),Table1[[#This Row],[Column1]]+(ROUND(M63,3))+200+ROW()/10000,IF(AND(Q63="HỌC SINH GIỎI",LEFT(P63,1)="8"),Table1[[#This Row],[Column1]]+(ROUND(M63,3))+250+ROW()/10000,IF(AND(Q63="HỌC SINH GIỎI",LEFT(P63,1)="7"),Table1[[#This Row],[Column1]]+(ROUND(M63,3))+300+ROW()/10000,IF(AND(Q63="HỌC SINH GIỎI",LEFT(P63,1)="6"),Table1[[#This Row],[Column1]]+(ROUND(M63,3))+350+ROW()/10000,"")))) -> 490.0063 | W63: Trần Cẩm | X63: Tú | Y63: HỌC SINH GIỎI | Z63: 6B
A64: 63 | B64: Lê Ngọc | C64: Anh | D64: 09/06/2013 | E64: Lê Văn Dũng | F64: Xóm 9 | G64: T | H64: T | I64: 8.25 | J64: 5.75 | K64: 8 | L64: 6 | M64: =IF(AND(I64="",J64="",K64="",L64=""),"",SUM(I64:L64)) -> 28 | O64: x | P64: 7C | Q64: HỌC SINH GIỎI | R64: =IF(Table1[[#This Row],[STT]]="","",ROW()-1) -> 63 | S64: =IF(Table1[[#This Row],[Lơp]]="","",VLOOKUP(Table1[[#This Row],[Lơp]],$AC$3:$AD$14,2,0)) -> 70 | T64: =IF(AND(Q64="HỌC SINH XUẤT SẮC",LEFT(P64,1)="9"),Table1[[#This Row],[Column1]]+(ROUND(M64,3))+400+ROW()/10000,IF(AND(Q64="HỌC SINH XUẤT SẮC",LEFT(P64,1)="8"),Table1[[#This Row],[Column1]]+(ROUND(M64,3))+450+ROW()/10000,IF(AND(Q64="HỌC SINH XUẤT SẮC",LEFT(P64,1)="7"),Table1[[#This Row],[Column1]]+(ROUND(M64,3))+500+ROW()/10000,IF(AND(Q64="HỌC SINH XUẤT SẮC",LEFT(P64,1)="6"),Table1[[#This Row],[Column1]]+(ROUND(M64,3))+550+ROW()/10000,IF(AND(Q64="HỌC SINH GIỎI",LEFT(P64,1)="9"),Table1[[#This Row],[Column1]]+(ROUND(M64,3))+10+ROW()/10000,IF(AND(Q64="HỌC SINH GIỎI",LEFT(P64,1)="8"),Table1[[#This Row],[Column1]]+(ROUND(M64,3))+ 50+ROW()/10000,IF(AND(Q64="HỌC SINH GIỎI",LEFT(P64,1)="7"),Table1[[#This Row],[Column1]]+(ROUND(M64,3))+100+ROW()/10000,IF(AND(Q64="HỌC SINH GIỎI",LEFT(P64,1)="6"),Table1[[#This Row],[Column1]]+(ROUND(M64,3))+150+ROW()/10000,"")))))))) -> 198.0064 | U64: =IF(AND(Q64="HỌC SINH XUẤT SẮC",LEFT(P64,1)="9"),(ROUND(M64,3))+Table1[[#This Row],[Column1]]+10+ROW()/10000,IF(AND(Q64="HỌC SINH XUẤT SẮC",LEFT(P64,1)="8"),Table1[[#This Row],[Column1]]+(ROUND(M64,3))+50+ROW()/10000,IF(AND(Q64="HỌC SINH XUẤT SẮC",LEFT(P64,1)="7"),Table1[[#This Row],[Column1]]+(ROUND(M64,3))+100+ROW()/10000,IF(AND(Q64="HỌC SINH XUẤT SẮC",LEFT(P64,1)="6"),Table1[[#This Row],[Column1]]+(ROUND(M64,3))+150+ROW()/10000,"")))) ->  | V64: =IF(AND(Q64="HỌC SINH GIỎI",LEFT(P64,1)="9"),Table1[[#This Row],[Column1]]+(ROUND(M64,3))+200+ROW()/10000,IF(AND(Q64="HỌC SINH GIỎI",LEFT(P64,1)="8"),Table1[[#This Row],[Column1]]+(ROUND(M64,3))+250+ROW()/10000,IF(AND(Q64="HỌC SINH GIỎI",LEFT(P64,1)="7"),Table1[[#This Row],[Column1]]+(ROUND(M64,3))+300+ROW()/10000,IF(AND(Q64="HỌC SINH GIỎI",LEFT(P64,1)="6"),Table1[[#This Row],[Column1]]+(ROUND(M64,3))+350+ROW()/10000,"")))) -> 398.0064 | W64: Lê Ngọc | X64: Anh | Y64: HỌC SINH GIỎI | Z64: 7C
A65: 64 | B65: Phạm Bảo | C65: Anh | D65: 08/06/2013 | E65: Phạm Văn Triệu | F65: Xóm 7 | G65: T | H65: T | I65: 8.5 | J65: 8.75 | K65: 9 | L65: 8.5 | M65: =IF(AND(I65="",J65="",K65="",L65=""),"",SUM(I65:L65)) -> 34.75 | O65: x | P65: 7C | Q65: HỌC SINH GIỎI | R65: =IF(Table1[[#This Row],[STT]]="","",ROW()-1) -> 64 | S65: =IF(Table1[[#This Row],[Lơp]]="","",VLOOKUP(Table1[[#This Row],[Lơp]],$AC$3:$AD$14,2,0)) -> 70 | T65: =IF(AND(Q65="HỌC SINH XUẤT SẮC",LEFT(P65,1)="9"),Table1[[#This Row],[Column1]]+(ROUND(M65,3))+400+ROW()/10000,IF(AND(Q65="HỌC SINH XUẤT SẮC",LEFT(P65,1)="8"),Table1[[#This Row],[Column1]]+(ROUND(M65,3))+450+ROW()/10000,IF(AND(Q65="HỌC SINH XUẤT SẮC",LEFT(P65,1)="7"),Table1[[#This Row],[Column1]]+(ROUND(M65,3))+500+ROW()/10000,IF(AND(Q65="HỌC SINH XUẤT SẮC",LEFT(P65,1)="6"),Table1[[#This Row],[Column1]]+(ROUND(M65,3))+550+ROW()/10000,IF(AND(Q65="HỌC SINH GIỎI",LEFT(P65,1)="9"),Table1[[#This Row],[Column1]]+(ROUND(M65,3))+10+ROW()/10000,IF(AND(Q65="HỌC SINH GIỎI",LEFT(P65,1)="8"),Table1[[#This Row],[Column1]]+(ROUND(M65,3))+ 50+ROW()/10000,IF(AND(Q65="HỌC SINH GIỎI",LEFT(P65,1)="7"),Table1[[#This Row],[Column1]]+(ROUND(M65,3))+100+ROW()/10000,IF(AND(Q65="HỌC SINH GIỎI",LEFT(P65,1)="6"),Table1[[#This Row],[Column1]]+(ROUND(M65,3))+150+ROW()/10000,"")))))))) -> 204.7565 | U65: =IF(AND(Q65="HỌC SINH XUẤT SẮC",LEFT(P65,1)="9"),(ROUND(M65,3))+Table1[[#This Row],[Column1]]+10+ROW()/10000,IF(AND(Q65="HỌC SINH XUẤT SẮC",LEFT(P65,1)="8"),Table1[[#This Row],[Column1]]+(ROUND(M65,3))+50+ROW()/10000,IF(AND(Q65="HỌC SINH XUẤT SẮC",LEFT(P65,1)="7"),Table1[[#This Row],[Column1]]+(ROUND(M65,3))+100+ROW()/10000,IF(AND(Q65="HỌC SINH XUẤT SẮC",LEFT(P65,1)="6"),Table1[[#This Row],[Column1]]+(ROUND(M65,3))+150+ROW()/10000,"")))) ->  | V65: =IF(AND(Q65="HỌC SINH GIỎI",LEFT(P65,1)="9"),Table1[[#This Row],[Column1]]+(ROUND(M65,3))+200+ROW()/10000,IF(AND(Q65="HỌC SINH GIỎI",LEFT(P65,1)="8"),Table1[[#This Row],[Column1]]+(ROUND(M65,3))+250+ROW()/10000,IF(AND(Q65="HỌC SINH GIỎI",LEFT(P65,1)="7"),Table1[[#This Row],[Column1]]+(ROUND(M65,3))+300+ROW()/10000,IF(AND(Q65="HỌC SINH GIỎI",LEFT(P65,1)="6"),Table1[[#This Row],[Column1]]+(ROUND(M65,3))+350+ROW()/10000,"")))) -> 404.7565 | W65: Phạm Bảo | X65: Anh | Y65: HỌC SINH GIỎI | Z65: 7C
A66: 65 | B66: Trần Bảo | C66: Châu | D66: 10/04/2013 | E66: Trần Văn Khánh | F66: Xóm 7 | G66: T | H66: T | I66: 8.25 | J66: 6 | K66: 7.5 | L66: 7.5 | M66: 29.25 | O66: x | P66: 7C | Q66: HỌC SINH GIỎI | R66: =IF(Table1[[#This Row],[STT]]="","",ROW()-1) -> 65 | S66: =IF(Table1[[#This Row],[Lơp]]="","",VLOOKUP(Table1[[#This Row],[Lơp]],$AC$3:$AD$14,2,0)) -> 70 | T66: =IF(AND(Q66="HỌC SINH XUẤT SẮC",LEFT(P66,1)="9"),Table1[[#This Row],[Column1]]+(ROUND(M66,3))+400+ROW()/10000,IF(AND(Q66="HỌC SINH XUẤT SẮC",LEFT(P66,1)="8"),Table1[[#This Row],[Column1]]+(ROUND(M66,3))+450+ROW()/10000,IF(AND(Q66="HỌC SINH XUẤT SẮC",LEFT(P66,1)="7"),Table1[[#This Row],[Column1]]+(ROUND(M66,3))+500+ROW()/10000,IF(AND(Q66="HỌC SINH XUẤT SẮC",LEFT(P66,1)="6"),Table1[[#This Row],[Column1]]+(ROUND(M66,3))+550+ROW()/10000,IF(AND(Q66="HỌC SINH GIỎI",LEFT(P66,1)="9"),Table1[[#This Row],[Column1]]+(ROUND(M66,3))+10+ROW()/10000,IF(AND(Q66="HỌC SINH GIỎI",LEFT(P66,1)="8"),Table1[[#This Row],[Column1]]+(ROUND(M66,3))+ 50+ROW()/10000,IF(AND(Q66="HỌC SINH GIỎI",LEFT(P66,1)="7"),Table1[[#This Row],[Column1]]+(ROUND(M66,3))+100+ROW()/10000,IF(AND(Q66="HỌC SINH GIỎI",LEFT(P66,1)="6"),Table1[[#This Row],[Column1]]+(ROUND(M66,3))+150+ROW()/10000,"")))))))) -> 199.2566 | U66: =IF(AND(Q66="HỌC SINH XUẤT SẮC",LEFT(P66,1)="9"),(ROUND(M66,3))+Table1[[#This Row],[Column1]]+10+ROW()/10000,IF(AND(Q66="HỌC SINH XUẤT SẮC",LEFT(P66,1)="8"),Table1[[#This Row],[Column1]]+(ROUND(M66,3))+50+ROW()/10000,IF(AND(Q66="HỌC SINH XUẤT SẮC",LEFT(P66,1)="7"),Table1[[#This Row],[Column1]]+(ROUND(M66,3))+100+ROW()/10000,IF(AND(Q66="HỌC SINH XUẤT SẮC",LEFT(P66,1)="6"),Table1[[#This Row],[Column1]]+(ROUND(M66,3))+150+ROW()/10000,"")))) ->  | V66: =IF(AND(Q66="HỌC SINH GIỎI",LEFT(P66,1)="9"),Table1[[#This Row],[Column1]]+(ROUND(M66,3))+200+ROW()/10000,IF(AND(Q66="HỌC SINH GIỎI",LEFT(P66,1)="8"),Table1[[#This Row],[Column1]]+(ROUND(M66,3))+250+ROW()/10000,IF(AND(Q66="HỌC SINH GIỎI",LEFT(P66,1)="7"),Table1[[#This Row],[Column1]]+(ROUND(M66,3))+300+ROW()/10000,IF(AND(Q66="HỌC SINH GIỎI",LEFT(P66,1)="6"),Table1[[#This Row],[Column1]]+(ROUND(M66,3))+350+ROW()/10000,"")))) -> 399.2566 | W66: Trần Bảo | X66: Châu | Y66: HỌC SINH GIỎI | Z66: 7C
A67: 66 | B67: Mai Bích | C67: Diệp | D67: 27/11/2013 | E67: Mai Ngọc Khảo | F67: Xóm 3 | G67: T | H67: T | I67: 9 | J67: 7.75 | K67: 8 | L67: 8 | M67: 32.75 | O67: x | P67: 7C | Q67: =IF(AND(N67="",O67=""),"",IF(N67="x","HỌC SINH XUẤT SẮC","HỌC SINH GIỎI")) -> HỌC SINH GIỎI | R67: =IF(Table1[[#This Row],[STT]]="","",ROW()-1) -> 66 | S67: =IF(Table1[[#This Row],[Lơp]]="","",VLOOKUP(Table1[[#This Row],[Lơp]],$AC$3:$AD$14,2,0)) -> 70 | T67: =IF(AND(Q67="HỌC SINH XUẤT SẮC",LEFT(P67,1)="9"),Table1[[#This Row],[Column1]]+(ROUND(M67,3))+400+ROW()/10000,IF(AND(Q67="HỌC SINH XUẤT SẮC",LEFT(P67,1)="8"),Table1[[#This Row],[Column1]]+(ROUND(M67,3))+450+ROW()/10000,IF(AND(Q67="HỌC SINH XUẤT SẮC",LEFT(P67,1)="7"),Table1[[#This Row],[Column1]]+(ROUND(M67,3))+500+ROW()/10000,IF(AND(Q67="HỌC SINH XUẤT SẮC",LEFT(P67,1)="6"),Table1[[#This Row],[Column1]]+(ROUND(M67,3))+550+ROW()/10000,IF(AND(Q67="HỌC SINH GIỎI",LEFT(P67,1)="9"),Table1[[#This Row],[Column1]]+(ROUND(M67,3))+10+ROW()/10000,IF(AND(Q67="HỌC SINH GIỎI",LEFT(P67,1)="8"),Table1[[#This Row],[Column1]]+(ROUND(M67,3))+ 50+ROW()/10000,IF(AND(Q67="HỌC SINH GIỎI",LEFT(P67,1)="7"),Table1[[#This Row],[Column1]]+(ROUND(M67,3))+100+ROW()/10000,IF(AND(Q67="HỌC SINH GIỎI",LEFT(P67,1)="6"),Table1[[#This Row],[Column1]]+(ROUND(M67,3))+150+ROW()/10000,"")))))))) -> 202.7567 | U67: =IF(AND(Q67="HỌC SINH XUẤT SẮC",LEFT(P67,1)="9"),(ROUND(M67,3))+Table1[[#This Row],[Column1]]+10+ROW()/10000,IF(AND(Q67="HỌC SINH XUẤT SẮC",LEFT(P67,1)="8"),Table1[[#This Row],[Column1]]+(ROUND(M67,3))+50+ROW()/10000,IF(AND(Q67="HỌC SINH XUẤT SẮC",LEFT(P67,1)="7"),Table1[[#This Row],[Column1]]+(ROUND(M67,3))+100+ROW()/10000,IF(AND(Q67="HỌC SINH XUẤT SẮC",LEFT(P67,1)="6"),Table1[[#This Row],[Column1]]+(ROUND(M67,3))+150+ROW()/10000,"")))) ->  | V67: =IF(AND(Q67="HỌC SINH GIỎI",LEFT(P67,1)="9"),Table1[[#This Row],[Column1]]+(ROUND(M67,3))+200+ROW()/10000,IF(AND(Q67="HỌC SINH GIỎI",LEFT(P67,1)="8"),Table1[[#This Row],[Column1]]+(ROUND(M67,3))+250+ROW()/10000,IF(AND(Q67="HỌC SINH GIỎI",LEFT(P67,1)="7"),Table1[[#This Row],[Column1]]+(ROUND(M67,3))+300+ROW()/10000,IF(AND(Q67="HỌC SINH GIỎI",LEFT(P67,1)="6"),Table1[[#This Row],[Column1]]+(ROUND(M67,3))+350+ROW()/10000,"")))) -> 402.7567 | W67: =IF(AND(V67="",U67=""),"",B67) -> Mai Bích | X67: Diệp | Y67: HỌC SINH GIỎI | Z67: 7C
A68: 67 | B68: Trần Ngọc | C68: Diệp | D68: 10/10/2013 | E68: Trần Ngọc Thắng | F68: Xóm 7 | G68: T | H68: T | I68: 8 | J68: 8.25 | K68: 8.25 | L68: 5.5 | M68: =IF(AND(I68="",J68="",K68="",L68=""),"",SUM(I68:L68)) -> 30 | O68: x | P68: 7C | Q68: HỌC SINH GIỎI | R68: =IF(Table1[[#This Row],[STT]]="","",ROW()-1) -> 67 | S68: =IF(Table1[[#This Row],[Lơp]]="","",VLOOKUP(Table1[[#This Row],[Lơp]],$AC$3:$AD$14,2,0)) -> 70 | T68: =IF(AND(Q68="HỌC SINH XUẤT SẮC",LEFT(P68,1)="9"),Table1[[#This Row],[Column1]]+(ROUND(M68,3))+400+ROW()/10000,IF(AND(Q68="HỌC SINH XUẤT SẮC",LEFT(P68,1)="8"),Table1[[#This Row],[Column1]]+(ROUND(M68,3))+450+ROW()/10000,IF(AND(Q68="HỌC SINH XUẤT SẮC",LEFT(P68,1)="7"),Table1[[#This Row],[Column1]]+(ROUND(M68,3))+500+ROW()/10000,IF(AND(Q68="HỌC SINH XUẤT SẮC",LEFT(P68,1)="6"),Table1[[#This Row],[Column1]]+(ROUND(M68,3))+550+ROW()/10000,IF(AND(Q68="HỌC SINH GIỎI",LEFT(P68,1)="9"),Table1[[#This Row],[Column1]]+(ROUND(M68,3))+10+ROW()/10000,IF(AND(Q68="HỌC SINH GIỎI",LEFT(P68,1)="8"),Table1[[#This Row],[Column1]]+(ROUND(M68,3))+ 50+ROW()/10000,IF(AND(Q68="HỌC SINH GIỎI",LEFT(P68,1)="7"),Table1[[#This Row],[Column1]]+(ROUND(M68,3))+100+ROW()/10000,IF(AND(Q68="HỌC SINH GIỎI",LEFT(P68,1)="6"),Table1[[#This Row],[Column1]]+(ROUND(M68,3))+150+ROW()/10000,"")))))))) -> 200.0068 | U68: =IF(AND(Q68="HỌC SINH XUẤT SẮC",LEFT(P68,1)="9"),(ROUND(M68,3))+Table1[[#This Row],[Column1]]+10+ROW()/10000,IF(AND(Q68="HỌC SINH XUẤT SẮC",LEFT(P68,1)="8"),Table1[[#This Row],[Column1]]+(ROUND(M68,3))+50+ROW()/10000,IF(AND(Q68="HỌC SINH XUẤT SẮC",LEFT(P68,1)="7"),Table1[[#This Row],[Column1]]+(ROUND(M68,3))+100+ROW()/10000,IF(AND(Q68="HỌC SINH XUẤT SẮC",LEFT(P68,1)="6"),Table1[[#This Row],[Column1]]+(ROUND(M68,3))+150+ROW()/10000,"")))) ->  | V68: =IF(AND(Q68="HỌC SINH GIỎI",LEFT(P68,1)="9"),Table1[[#This Row],[Column1]]+(ROUND(M68,3))+200+ROW()/10000,IF(AND(Q68="HỌC SINH GIỎI",LEFT(P68,1)="8"),Table1[[#This Row],[Column1]]+(ROUND(M68,3))+250+ROW()/10000,IF(AND(Q68="HỌC SINH GIỎI",LEFT(P68,1)="7"),Table1[[#This Row],[Column1]]+(ROUND(M68,3))+300+ROW()/10000,IF(AND(Q68="HỌC SINH GIỎI",LEFT(P68,1)="6"),Table1[[#This Row],[Column1]]+(ROUND(M68,3))+350+ROW()/10000,"")))) -> 400.0068 | W68: Trần Ngọc | X68: Diệp | Y68: HỌC SINH GIỎI | Z68: 7C
A69: 68 | B69: Lê Thùy | C69: Dương | D69: 04/02/2013 | E69: Lê Văn Nguyện | F69: Xóm 6 | G69: T | H69: T | I69: 8 | J69: 8.75 | K69: 7.5 | L69: 8 | M69: =IF(AND(I69="",J69="",K69="",L69=""),"",SUM(I69:L69)) -> 32.25 | N69: x | P69: 7C | Q69: HỌC SINH XUẤT SẮC | R69: =IF(Table1[[#This Row],[STT]]="","",ROW()-1) -> 68 | S69: =IF(Table1[[#This Row],[Lơp]]="","",VLOOKUP(Table1[[#This Row],[Lơp]],$AC$3:$AD$14,2,0)) -> 70 | T69: =IF(AND(Q69="HỌC SINH XUẤT SẮC",LEFT(P69,1)="9"),Table1[[#This Row],[Column1]]+(ROUND(M69,3))+400+ROW()/10000,IF(AND(Q69="HỌC SINH XUẤT SẮC",LEFT(P69,1)="8"),Table1[[#This Row],[Column1]]+(ROUND(M69,3))+450+ROW()/10000,IF(AND(Q69="HỌC SINH XUẤT SẮC",LEFT(P69,1)="7"),Table1[[#This Row],[Column1]]+(ROUND(M69,3))+500+ROW()/10000,IF(AND(Q69="HỌC SINH XUẤT SẮC",LEFT(P69,1)="6"),Table1[[#This Row],[Column1]]+(ROUND(M69,3))+550+ROW()/10000,IF(AND(Q69="HỌC SINH GIỎI",LEFT(P69,1)="9"),Table1[[#This Row],[Column1]]+(ROUND(M69,3))+10+ROW()/10000,IF(AND(Q69="HỌC SINH GIỎI",LEFT(P69,1)="8"),Table1[[#This Row],[Column1]]+(ROUND(M69,3))+ 50+ROW()/10000,IF(AND(Q69="HỌC SINH GIỎI",LEFT(P69,1)="7"),Table1[[#This Row],[Column1]]+(ROUND(M69,3))+100+ROW()/10000,IF(AND(Q69="HỌC SINH GIỎI",LEFT(P69,1)="6"),Table1[[#This Row],[Column1]]+(ROUND(M69,3))+150+ROW()/10000,"")))))))) -> 602.2569 | U69: =IF(AND(Q69="HỌC SINH XUẤT SẮC",LEFT(P69,1)="9"),(ROUND(M69,3))+Table1[[#This Row],[Column1]]+10+ROW()/10000,IF(AND(Q69="HỌC SINH XUẤT SẮC",LEFT(P69,1)="8"),Table1[[#This Row],[Column1]]+(ROUND(M69,3))+50+ROW()/10000,IF(AND(Q69="HỌC SINH XUẤT SẮC",LEFT(P69,1)="7"),Table1[[#This Row],[Column1]]+(ROUND(M69,3))+100+ROW()/10000,IF(AND(Q69="HỌC SINH XUẤT SẮC",LEFT(P69,1)="6"),Table1[[#This Row],[Column1]]+(ROUND(M69,3))+150+ROW()/10000,"")))) -> 202.2569 | V69: =IF(AND(Q69="HỌC SINH GIỎI",LEFT(P69,1)="9"),Table1[[#This Row],[Column1]]+(ROUND(M69,3))+200+ROW()/10000,IF(AND(Q69="HỌC SINH GIỎI",LEFT(P69,1)="8"),Table1[[#This Row],[Column1]]+(ROUND(M69,3))+250+ROW()/10000,IF(AND(Q69="HỌC SINH GIỎI",LEFT(P69,1)="7"),Table1[[#This Row],[Column1]]+(ROUND(M69,3))+300+ROW()/10000,IF(AND(Q69="HỌC SINH GIỎI",LEFT(P69,1)="6"),Table1[[#This Row],[Column1]]+(ROUND(M69,3))+350+ROW()/10000,"")))) ->  | W69: Lê Thùy | X69: Dương | Y69: HỌC SINH XUẤT SẮC | Z69: 7C
A70: 69 | B70: Trần Anh | C70: Đức | D70: 14/03/2013 | E70: Trần Văn Bằng | F70: Xóm 6 | G70: T | H70: T | I70: 9 | J70: 6 | K70: 9.25 | L70: 7 | M70: =IF(AND(I70="",J70="",K70="",L70=""),"",SUM(I70:L70)) -> 31.25 | O70: x | P70: 7C | Q70: HỌC SINH GIỎI | R70: =IF(Table1[[#This Row],[STT]]="","",ROW()-1) -> 69 | S70: =IF(Table1[[#This Row],[Lơp]]="","",VLOOKUP(Table1[[#This Row],[Lơp]],$AC$3:$AD$14,2,0)) -> 70 | T70: =IF(AND(Q70="HỌC SINH XUẤT SẮC",LEFT(P70,1)="9"),Table1[[#This Row],[Column1]]+(ROUND(M70,3))+400+ROW()/10000,IF(AND(Q70="HỌC SINH XUẤT SẮC",LEFT(P70,1)="8"),Table1[[#This Row],[Column1]]+(ROUND(M70,3))+450+ROW()/10000,IF(AND(Q70="HỌC SINH XUẤT SẮC",LEFT(P70,1)="7"),Table1[[#This Row],[Column1]]+(ROUND(M70,3))+500+ROW()/10000,IF(AND(Q70="HỌC SINH XUẤT SẮC",LEFT(P70,1)="6"),Table1[[#This Row],[Column1]]+(ROUND(M70,3))+550+ROW()/10000,IF(AND(Q70="HỌC SINH GIỎI",LEFT(P70,1)="9"),Table1[[#This Row],[Column1]]+(ROUND(M70,3))+10+ROW()/10000,IF(AND(Q70="HỌC SINH GIỎI",LEFT(P70,1)="8"),Table1[[#This Row],[Column1]]+(ROUND(M70,3))+ 50+ROW()/10000,IF(AND(Q70="HỌC SINH GIỎI",LEFT(P70,1)="7"),Table1[[#This Row],[Column1]]+(ROUND(M70,3))+100+ROW()/10000,IF(AND(Q70="HỌC SINH GIỎI",LEFT(P70,1)="6"),Table1[[#This Row],[Column1]]+(ROUND(M70,3))+150+ROW()/10000,"")))))))) -> 201.257 | U70: =IF(AND(Q70="HỌC SINH XUẤT SẮC",LEFT(P70,1)="9"),(ROUND(M70,3))+Table1[[#This Row],[Column1]]+10+ROW()/10000,IF(AND(Q70="HỌC SINH XUẤT SẮC",LEFT(P70,1)="8"),Table1[[#This Row],[Column1]]+(ROUND(M70,3))+50+ROW()/10000,IF(AND(Q70="HỌC SINH XUẤT SẮC",LEFT(P70,1)="7"),Table1[[#This Row],[Column1]]+(ROUND(M70,3))+100+ROW()/10000,IF(AND(Q70="HỌC SINH XUẤT SẮC",LEFT(P70,1)="6"),Table1[[#This Row],[Column1]]+(ROUND(M70,3))+150+ROW()/10000,"")))) ->  | V70: =IF(AND(Q70="HỌC SINH GIỎI",LEFT(P70,1)="9"),Table1[[#This Row],[Column1]]+(ROUND(M70,3))+200+ROW()/10000,IF(AND(Q70="HỌC SINH GIỎI",LEFT(P70,1)="8"),Table1[[#This Row],[Column1]]+(ROUND(M70,3))+250+ROW()/10000,IF(AND(Q70="HỌC SINH GIỎI",LEFT(P70,1)="7"),Table1[[#This Row],[Column1]]+(ROUND(M70,3))+300+ROW()/10000,IF(AND(Q70="HỌC SINH GIỎI",LEFT(P70,1)="6"),Table1[[#This Row],[Column1]]+(ROUND(M70,3))+350+ROW()/10000,"")))) -> 401.257 | W70: Trần Anh | X70: Đức | Y70: HỌC SINH GIỎI | Z70: 7C
A71: 70 | B71: Lương Minh | C71: Hằng | D71: 11/08/2013 | E71: Lương Công Chửng | F71: Xóm 7 | G71: T | H71: T | I71: 9.25 | J71: 8 | K71: 9 | L71: 7.75 | M71: =IF(AND(I71="",J71="",K71="",L71=""),"",SUM(I71:L71)) -> 34 | O71: x | P71: 7C | Q71: HỌC SINH GIỎI | R71: =IF(Table1[[#This Row],[STT]]="","",ROW()-1) -> 70 | S71: =IF(Table1[[#This Row],[Lơp]]="","",VLOOKUP(Table1[[#This Row],[Lơp]],$AC$3:$AD$14,2,0)) -> 70 | T71: =IF(AND(Q71="HỌC SINH XUẤT SẮC",LEFT(P71,1)="9"),Table1[[#This Row],[Column1]]+(ROUND(M71,3))+400+ROW()/10000,IF(AND(Q71="HỌC SINH XUẤT SẮC",LEFT(P71,1)="8"),Table1[[#This Row],[Column1]]+(ROUND(M71,3))+450+ROW()/10000,IF(AND(Q71="HỌC SINH XUẤT SẮC",LEFT(P71,1)="7"),Table1[[#This Row],[Column1]]+(ROUND(M71,3))+500+ROW()/10000,IF(AND(Q71="HỌC SINH XUẤT SẮC",LEFT(P71,1)="6"),Table1[[#This Row],[Column1]]+(ROUND(M71,3))+550+ROW()/10000,IF(AND(Q71="HỌC SINH GIỎI",LEFT(P71,1)="9"),Table1[[#This Row],[Column1]]+(ROUND(M71,3))+10+ROW()/10000,IF(AND(Q71="HỌC SINH GIỎI",LEFT(P71,1)="8"),Table1[[#This Row],[Column1]]+(ROUND(M71,3))+ 50+ROW()/10000,IF(AND(Q71="HỌC SINH GIỎI",LEFT(P71,1)="7"),Table1[[#This Row],[Column1]]+(ROUND(M71,3))+100+ROW()/10000,IF(AND(Q71="HỌC SINH GIỎI",LEFT(P71,1)="6"),Table1[[#This Row],[Column1]]+(ROUND(M71,3))+150+ROW()/10000,"")))))))) -> 204.0071 | U71: =IF(AND(Q71="HỌC SINH XUẤT SẮC",LEFT(P71,1)="9"),(ROUND(M71,3))+Table1[[#This Row],[Column1]]+10+ROW()/10000,IF(AND(Q71="HỌC SINH XUẤT SẮC",LEFT(P71,1)="8"),Table1[[#This Row],[Column1]]+(ROUND(M71,3))+50+ROW()/10000,IF(AND(Q71="HỌC SINH XUẤT SẮC",LEFT(P71,1)="7"),Table1[[#This Row],[Column1]]+(ROUND(M71,3))+100+ROW()/10000,IF(AND(Q71="HỌC SINH XUẤT SẮC",LEFT(P71,1)="6"),Table1[[#This Row],[Column1]]+(ROUND(M71,3))+150+ROW()/10000,"")))) ->  | V71: =IF(AND(Q71="HỌC SINH GIỎI",LEFT(P71,1)="9"),Table1[[#This Row],[Column1]]+(ROUND(M71,3))+200+ROW()/10000,IF(AND(Q71="HỌC SINH GIỎI",LEFT(P71,1)="8"),Table1[[#This Row],[Column1]]+(ROUND(M71,3))+250+ROW()/10000,IF(AND(Q71="HỌC SINH GIỎI",LEFT(P71,1)="7"),Table1[[#This Row],[Column1]]+(ROUND(M71,3))+300+ROW()/10000,IF(AND(Q71="HỌC SINH GIỎI",LEFT(P71,1)="6"),Table1[[#This Row],[Column1]]+(ROUND(M71,3))+350+ROW()/10000,"")))) -> 404.0071 | W71: Lương Minh | X71: Hằng | Y71: HỌC SINH GIỎI | Z71: 7C
A72: 71 | B72: Nguyễn Phạm Bảo | C72: Hân | D72: 06/12/2013 | E72: Nguyễn Đình Khẩn | F72: Xóm 2 | G72: T | H72: T | I72: 8.75 | J72: 8.75 | K72: 9.25 | L72: 6 | M72: =IF(AND(I72="",J72="",K72="",L72=""),"",SUM(I72:L72)) -> 32.75 | O72: x | P72: 7C | Q72: HỌC SINH GIỎI | R72: =IF(Table1[[#This Row],[STT]]="","",ROW()-1) -> 71 | S72: =IF(Table1[[#This Row],[Lơp]]="","",VLOOKUP(Table1[[#This Row],[Lơp]],$AC$3:$AD$14,2,0)) -> 70 | T72: =IF(AND(Q72="HỌC SINH XUẤT SẮC",LEFT(P72,1)="9"),Table1[[#This Row],[Column1]]+(ROUND(M72,3))+400+ROW()/10000,IF(AND(Q72="HỌC SINH XUẤT SẮC",LEFT(P72,1)="8"),Table1[[#This Row],[Column1]]+(ROUND(M72,3))+450+ROW()/10000,IF(AND(Q72="HỌC SINH XUẤT SẮC",LEFT(P72,1)="7"),Table1[[#This Row],[Column1]]+(ROUND(M72,3))+500+ROW()/10000,IF(AND(Q72="HỌC SINH XUẤT SẮC",LEFT(P72,1)="6"),Table1[[#This Row],[Column1]]+(ROUND(M72,3))+550+ROW()/10000,IF(AND(Q72="HỌC SINH GIỎI",LEFT(P72,1)="9"),Table1[[#This Row],[Column1]]+(ROUND(M72,3))+10+ROW()/10000,IF(AND(Q72="HỌC SINH GIỎI",LEFT(P72,1)="8"),Table1[[#This Row],[Column1]]+(ROUND(M72,3))+ 50+ROW()/10000,IF(AND(Q72="HỌC SINH GIỎI",LEFT(P72,1)="7"),Table1[[#This Row],[Column1]]+(ROUND(M72,3))+100+ROW()/10000,IF(AND(Q72="HỌC SINH GIỎI",LEFT(P72,1)="6"),Table1[[#This Row],[Column1]]+(ROUND(M72,3))+150+ROW()/10000,"")))))))) -> 202.7572 | U72: =IF(AND(Q72="HỌC SINH XUẤT SẮC",LEFT(P72,1)="9"),(ROUND(M72,3))+Table1[[#This Row],[Column1]]+10+ROW()/10000,IF(AND(Q72="HỌC SINH XUẤT SẮC",LEFT(P72,1)="8"),Table1[[#This Row],[Column1]]+(ROUND(M72,3))+50+ROW()/10000,IF(AND(Q72="HỌC SINH XUẤT SẮC",LEFT(P72,1)="7"),Table1[[#This Row],[Column1]]+(ROUND(M72,3))+100+ROW()/10000,IF(AND(Q72="HỌC SINH XUẤT SẮC",LEFT(P72,1)="6"),Table1[[#This Row],[Column1]]+(ROUND(M72,3))+150+ROW()/10000,"")))) ->  | V72: =IF(AND(Q72="HỌC SINH GIỎI",LEFT(P72,1)="9"),Table1[[#This Row],[Column1]]+(ROUND(M72,3))+200+ROW()/10000,IF(AND(Q72="HỌC SINH GIỎI",LEFT(P72,1)="8"),Table1[[#This Row],[Column1]]+(ROUND(M72,3))+250+ROW()/10000,IF(AND(Q72="HỌC SINH GIỎI",LEFT(P72,1)="7"),Table1[[#This Row],[Column1]]+(ROUND(M72,3))+300+ROW()/10000,IF(AND(Q72="HỌC SINH GIỎI",LEFT(P72,1)="6"),Table1[[#This Row],[Column1]]+(ROUND(M72,3))+350+ROW()/10000,"")))) -> 402.7572 | W72: Nguyễn Phạm Bảo | X72: Hân | Y72: HỌC SINH GIỎI | Z72: 7C
A73: 72 | B73: Hoàng Thanh | C73: Hiền | D73: 07/10/2013 | E73: Hoàng Văn Sinh | F73: Xóm 7 | G73: T | H73: T | I73: 9 | J73: 9.25 | K73: 9 | L73: 7.75 | M73: 35 | N73: x | P73: 7C | Q73: HỌC SINH XUẤT SẮC | R73: =IF(Table1[[#This Row],[STT]]="","",ROW()-1) -> 72 | S73: =IF(Table1[[#This Row],[Lơp]]="","",VLOOKUP(Table1[[#This Row],[Lơp]],$AC$3:$AD$14,2,0)) -> 70 | T73: =IF(AND(Q73="HỌC SINH XUẤT SẮC",LEFT(P73,1)="9"),Table1[[#This Row],[Column1]]+(ROUND(M73,3))+400+ROW()/10000,IF(AND(Q73="HỌC SINH XUẤT SẮC",LEFT(P73,1)="8"),Table1[[#This Row],[Column1]]+(ROUND(M73,3))+450+ROW()/10000,IF(AND(Q73="HỌC SINH XUẤT SẮC",LEFT(P73,1)="7"),Table1[[#This Row],[Column1]]+(ROUND(M73,3))+500+ROW()/10000,IF(AND(Q73="HỌC SINH XUẤT SẮC",LEFT(P73,1)="6"),Table1[[#This Row],[Column1]]+(ROUND(M73,3))+550+ROW()/10000,IF(AND(Q73="HỌC SINH GIỎI",LEFT(P73,1)="9"),Table1[[#This Row],[Column1]]+(ROUND(M73,3))+10+ROW()/10000,IF(AND(Q73="HỌC SINH GIỎI",LEFT(P73,1)="8"),Table1[[#This Row],[Column1]]+(ROUND(M73,3))+ 50+ROW()/10000,IF(AND(Q73="HỌC SINH GIỎI",LEFT(P73,1)="7"),Table1[[#This Row],[Column1]]+(ROUND(M73,3))+100+ROW()/10000,IF(AND(Q73="HỌC SINH GIỎI",LEFT(P73,1)="6"),Table1[[#This Row],[Column1]]+(ROUND(M73,3))+150+ROW()/10000,"")))))))) -> 605.0073 | U73: =IF(AND(Q73="HỌC SINH XUẤT SẮC",LEFT(P73,1)="9"),(ROUND(M73,3))+Table1[[#This Row],[Column1]]+10+ROW()/10000,IF(AND(Q73="HỌC SINH XUẤT SẮC",LEFT(P73,1)="8"),Table1[[#This Row],[Column1]]+(ROUND(M73,3))+50+ROW()/10000,IF(AND(Q73="HỌC SINH XUẤT SẮC",LEFT(P73,1)="7"),Table1[[#This Row],[Column1]]+(ROUND(M73,3))+100+ROW()/10000,IF(AND(Q73="HỌC SINH XUẤT SẮC",LEFT(P73,1)="6"),Table1[[#This Row],[Column1]]+(ROUND(M73,3))+150+ROW()/10000,"")))) -> 205.0073 | V73: =IF(AND(Q73="HỌC SINH GIỎI",LEFT(P73,1)="9"),Table1[[#This Row],[Column1]]+(ROUND(M73,3))+200+ROW()/10000,IF(AND(Q73="HỌC SINH GIỎI",LEFT(P73,1)="8"),Table1[[#This Row],[Column1]]+(ROUND(M73,3))+250+ROW()/10000,IF(AND(Q73="HỌC SINH GIỎI",LEFT(P73,1)="7"),Table1[[#This Row],[Column1]]+(ROUND(M73,3))+300+ROW()/10000,IF(AND(Q73="HỌC SINH GIỎI",LEFT(P73,1)="6"),Table1[[#This Row],[Column1]]+(ROUND(M73,3))+350+ROW()/10000,"")))) ->  | W73: Hoàng Thanh | X73: Hiền | Y73: HỌC SINH XUẤT SẮC | Z73: 7C
A74: 73 | B74: Lê Quốc | C74: Hội | D74: 18/09/2013 | E74: Lê Văn Huy | F74: Xóm 9 | G74: T | H74: T | I74: 8.5 | J74: 7 | K74: 7 | L74: 7 | M74: 29.5 | O74: x | P74: 7C | Q74: HỌC SINH GIỎI | R74: =IF(Table1[[#This Row],[STT]]="","",ROW()-1) -> 73 | S74: =IF(Table1[[#This Row],[Lơp]]="","",VLOOKUP(Table1[[#This Row],[Lơp]],$AC$3:$AD$14,2,0)) -> 70 | T74: =IF(AND(Q74="HỌC SINH XUẤT SẮC",LEFT(P74,1)="9"),Table1[[#This Row],[Column1]]+(ROUND(M74,3))+400+ROW()/10000,IF(AND(Q74="HỌC SINH XUẤT SẮC",LEFT(P74,1)="8"),Table1[[#This Row],[Column1]]+(ROUND(M74,3))+450+ROW()/10000,IF(AND(Q74="HỌC SINH XUẤT SẮC",LEFT(P74,1)="7"),Table1[[#This Row],[Column1]]+(ROUND(M74,3))+500+ROW()/10000,IF(AND(Q74="HỌC SINH XUẤT SẮC",LEFT(P74,1)="6"),Table1[[#This Row],[Column1]]+(ROUND(M74,3))+550+ROW()/10000,IF(AND(Q74="HỌC SINH GIỎI",LEFT(P74,1)="9"),Table1[[#This Row],[Column1]]+(ROUND(M74,3))+10+ROW()/10000,IF(AND(Q74="HỌC SINH GIỎI",LEFT(P74,1)="8"),Table1[[#This Row],[Column1]]+(ROUND(M74,3))+ 50+ROW()/10000,IF(AND(Q74="HỌC SINH GIỎI",LEFT(P74,1)="7"),Table1[[#This Row],[Column1]]+(ROUND(M74,3))+100+ROW()/10000,IF(AND(Q74="HỌC SINH GIỎI",LEFT(P74,1)="6"),Table1[[#This Row],[Column1]]+(ROUND(M74,3))+150+ROW()/10000,"")))))))) -> 199.5074 | U74: =IF(AND(Q74="HỌC SINH XUẤT SẮC",LEFT(P74,1)="9"),(ROUND(M74,3))+Table1[[#This Row],[Column1]]+10+ROW()/10000,IF(AND(Q74="HỌC SINH XUẤT SẮC",LEFT(P74,1)="8"),Table1[[#This Row],[Column1]]+(ROUND(M74,3))+50+ROW()/10000,IF(AND(Q74="HỌC SINH XUẤT SẮC",LEFT(P74,1)="7"),Table1[[#This Row],[Column1]]+(ROUND(M74,3))+100+ROW()/10000,IF(AND(Q74="HỌC SINH XUẤT SẮC",LEFT(P74,1)="6"),Table1[[#This Row],[Column1]]+(ROUND(M74,3))+150+ROW()/10000,"")))) ->  | V74: =IF(AND(Q74="HỌC SINH GIỎI",LEFT(P74,1)="9"),Table1[[#This Row],[Column1]]+(ROUND(M74,3))+200+ROW()/10000,IF(AND(Q74="HỌC SINH GIỎI",LEFT(P74,1)="8"),Table1[[#This Row],[Column1]]+(ROUND(M74,3))+250+ROW()/10000,IF(AND(Q74="HỌC SINH GIỎI",LEFT(P74,1)="7"),Table1[[#This Row],[Column1]]+(ROUND(M74,3))+300+ROW()/10000,IF(AND(Q74="HỌC SINH GIỎI",LEFT(P74,1)="6"),Table1[[#This Row],[Column1]]+(ROUND(M74,3))+350+ROW()/10000,"")))) -> 399.5074 | W74: Lê Quốc | X74: Hội | Y74: HỌC SINH GIỎI | Z74: 7C
A75: 74 | B75: Vũ Quang | C75: Hưng | D75: 16/04/2013 | E75: Vũ Quốc Trưởng | F75: Xóm 3 | G75: T | H75: T | I75: 8.5 | J75: 9.25 | K75: 10 | L75: 9.25 | M75: 37 | N75: x | P75: 7C | Q75: HỌC SINH XUẤT SẮC | R75: =IF(Table1[[#This Row],[STT]]="","",ROW()-1) -> 74 | S75: =IF(Table1[[#This Row],[Lơp]]="","",VLOOKUP(Table1[[#This Row],[Lơp]],$AC$3:$AD$14,2,0)) -> 70 | T75: =IF(AND(Q75="HỌC SINH XUẤT SẮC",LEFT(P75,1)="9"),Table1[[#This Row],[Column1]]+(ROUND(M75,3))+400+ROW()/10000,IF(AND(Q75="HỌC SINH XUẤT SẮC",LEFT(P75,1)="8"),Table1[[#This Row],[Column1]]+(ROUND(M75,3))+450+ROW()/10000,IF(AND(Q75="HỌC SINH XUẤT SẮC",LEFT(P75,1)="7"),Table1[[#This Row],[Column1]]+(ROUND(M75,3))+500+ROW()/10000,IF(AND(Q75="HỌC SINH XUẤT SẮC",LEFT(P75,1)="6"),Table1[[#This Row],[Column1]]+(ROUND(M75,3))+550+ROW()/10000,IF(AND(Q75="HỌC SINH GIỎI",LEFT(P75,1)="9"),Table1[[#This Row],[Column1]]+(ROUND(M75,3))+10+ROW()/10000,IF(AND(Q75="HỌC SINH GIỎI",LEFT(P75,1)="8"),Table1[[#This Row],[Column1]]+(ROUND(M75,3))+ 50+ROW()/10000,IF(AND(Q75="HỌC SINH GIỎI",LEFT(P75,1)="7"),Table1[[#This Row],[Column1]]+(ROUND(M75,3))+100+ROW()/10000,IF(AND(Q75="HỌC SINH GIỎI",LEFT(P75,1)="6"),Table1[[#This Row],[Column1]]+(ROUND(M75,3))+150+ROW()/10000,"")))))))) -> 607.0075 | U75: =IF(AND(Q75="HỌC SINH XUẤT SẮC",LEFT(P75,1)="9"),(ROUND(M75,3))+Table1[[#This Row],[Column1]]+10+ROW()/10000,IF(AND(Q75="HỌC SINH XUẤT SẮC",LEFT(P75,1)="8"),Table1[[#This Row],[Column1]]+(ROUND(M75,3))+50+ROW()/10000,IF(AND(Q75="HỌC SINH XUẤT SẮC",LEFT(P75,1)="7"),Table1[[#This Row],[Column1]]+(ROUND(M75,3))+100+ROW()/10000,IF(AND(Q75="HỌC SINH XUẤT SẮC",LEFT(P75,1)="6"),Table1[[#This Row],[Column1]]+(ROUND(M75,3))+150+ROW()/10000,"")))) -> 207.0075 | V75: =IF(AND(Q75="HỌC SINH GIỎI",LEFT(P75,1)="9"),Table1[[#This Row],[Column1]]+(ROUND(M75,3))+200+ROW()/10000,IF(AND(Q75="HỌC SINH GIỎI",LEFT(P75,1)="8"),Table1[[#This Row],[Column1]]+(ROUND(M75,3))+250+ROW()/10000,IF(AND(Q75="HỌC SINH GIỎI",LEFT(P75,1)="7"),Table1[[#This Row],[Column1]]+(ROUND(M75,3))+300+ROW()/10000,IF(AND(Q75="HỌC SINH GIỎI",LEFT(P75,1)="6"),Table1[[#This Row],[Column1]]+(ROUND(M75,3))+350+ROW()/10000,"")))) ->  | W75: Vũ Quang | X75: Hưng | Y75: HỌC SINH XUẤT SẮC | Z75: 7C
A76: 75 | B76: Lê Bảo | C76: Khanh | D76: 16/04/2013 | E76: Lê Gia Thọ | F76: Xóm 6 | G76: T | H76: T | I76: 9 | J76: 7.75 | K76: 9.25 | L76: 6.75 | M76: 32.75 | O76: x | P76: 7C | Q76: HỌC SINH GIỎI | R76: =IF(Table1[[#This Row],[STT]]="","",ROW()-1) -> 75 | S76: =IF(Table1[[#This Row],[Lơp]]="","",VLOOKUP(Table1[[#This Row],[Lơp]],$AC$3:$AD$14,2,0)) -> 70 | T76: =IF(AND(Q76="HỌC SINH XUẤT SẮC",LEFT(P76,1)="9"),Table1[[#This Row],[Column1]]+(ROUND(M76,3))+400+ROW()/10000,IF(AND(Q76="HỌC SINH XUẤT SẮC",LEFT(P76,1)="8"),Table1[[#This Row],[Column1]]+(ROUND(M76,3))+450+ROW()/10000,IF(AND(Q76="HỌC SINH XUẤT SẮC",LEFT(P76,1)="7"),Table1[[#This Row],[Column1]]+(ROUND(M76,3))+500+ROW()/10000,IF(AND(Q76="HỌC SINH XUẤT SẮC",LEFT(P76,1)="6"),Table1[[#This Row],[Column1]]+(ROUND(M76,3))+550+ROW()/10000,IF(AND(Q76="HỌC SINH GIỎI",LEFT(P76,1)="9"),Table1[[#This Row],[Column1]]+(ROUND(M76,3))+10+ROW()/10000,IF(AND(Q76="HỌC SINH GIỎI",LEFT(P76,1)="8"),Table1[[#This Row],[Column1]]+(ROUND(M76,3))+ 50+ROW()/10000,IF(AND(Q76="HỌC SINH GIỎI",LEFT(P76,1)="7"),Table1[[#This Row],[Column1]]+(ROUND(M76,3))+100+ROW()/10000,IF(AND(Q76="HỌC SINH GIỎI",LEFT(P76,1)="6"),Table1[[#This Row],[Column1]]+(ROUND(M76,3))+150+ROW()/10000,"")))))))) -> 202.7576 | U76: =IF(AND(Q76="HỌC SINH XUẤT SẮC",LEFT(P76,1)="9"),(ROUND(M76,3))+Table1[[#This Row],[Column1]]+10+ROW()/10000,IF(AND(Q76="HỌC SINH XUẤT SẮC",LEFT(P76,1)="8"),Table1[[#This Row],[Column1]]+(ROUND(M76,3))+50+ROW()/10000,IF(AND(Q76="HỌC SINH XUẤT SẮC",LEFT(P76,1)="7"),Table1[[#This Row],[Column1]]+(ROUND(M76,3))+100+ROW()/10000,IF(AND(Q76="HỌC SINH XUẤT SẮC",LEFT(P76,1)="6"),Table1[[#This Row],[Column1]]+(ROUND(M76,3))+150+ROW()/10000,"")))) ->  | V76: =IF(AND(Q76="HỌC SINH GIỎI",LEFT(P76,1)="9"),Table1[[#This Row],[Column1]]+(ROUND(M76,3))+200+ROW()/10000,IF(AND(Q76="HỌC SINH GIỎI",LEFT(P76,1)="8"),Table1[[#This Row],[Column1]]+(ROUND(M76,3))+250+ROW()/10000,IF(AND(Q76="HỌC SINH GIỎI",LEFT(P76,1)="7"),Table1[[#This Row],[Column1]]+(ROUND(M76,3))+300+ROW()/10000,IF(AND(Q76="HỌC SINH GIỎI",LEFT(P76,1)="6"),Table1[[#This Row],[Column1]]+(ROUND(M76,3))+350+ROW()/10000,"")))) -> 402.7576 | W76: Lê Bảo | X76: Khanh | Y76: HỌC SINH GIỎI | Z76: 7C
A77: 76 | B77: Nguyễn Thị Khánh | C77: Ly | D77: 13/02/2013 | E77: Nguyễn Văn Long | F77: Xóm 9 | G77: T | H77: T | I77: 9 | J77: 8.5 | K77: 8.75 | L77: 9.5 | M77: 35.75 | N77: x | P77: 7C | Q77: HỌC SINH XUẤT SẮC | R77: =IF(Table1[[#This Row],[STT]]="","",ROW()-1) -> 76 | S77: =IF(Table1[[#This Row],[Lơp]]="","",VLOOKUP(Table1[[#This Row],[Lơp]],$AC$3:$AD$14,2,0)) -> 70 | T77: =IF(AND(Q77="HỌC SINH XUẤT SẮC",LEFT(P77,1)="9"),Table1[[#This Row],[Column1]]+(ROUND(M77,3))+400+ROW()/10000,IF(AND(Q77="HỌC SINH XUẤT SẮC",LEFT(P77,1)="8"),Table1[[#This Row],[Column1]]+(ROUND(M77,3))+450+ROW()/10000,IF(AND(Q77="HỌC SINH XUẤT SẮC",LEFT(P77,1)="7"),Table1[[#This Row],[Column1]]+(ROUND(M77,3))+500+ROW()/10000,IF(AND(Q77="HỌC SINH XUẤT SẮC",LEFT(P77,1)="6"),Table1[[#This Row],[Column1]]+(ROUND(M77,3))+550+ROW()/10000,IF(AND(Q77="HỌC SINH GIỎI",LEFT(P77,1)="9"),Table1[[#This Row],[Column1]]+(ROUND(M77,3))+10+ROW()/10000,IF(AND(Q77="HỌC SINH GIỎI",LEFT(P77,1)="8"),Table1[[#This Row],[Column1]]+(ROUND(M77,3))+ 50+ROW()/10000,IF(AND(Q77="HỌC SINH GIỎI",LEFT(P77,1)="7"),Table1[[#This Row],[Column1]]+(ROUND(M77,3))+100+ROW()/10000,IF(AND(Q77="HỌC SINH GIỎI",LEFT(P77,1)="6"),Table1[[#This Row],[Column1]]+(ROUND(M77,3))+150+ROW()/10000,"")))))))) -> 605.7577 | U77: =IF(AND(Q77="HỌC SINH XUẤT SẮC",LEFT(P77,1)="9"),(ROUND(M77,3))+Table1[[#This Row],[Column1]]+10+ROW()/10000,IF(AND(Q77="HỌC SINH XUẤT SẮC",LEFT(P77,1)="8"),Table1[[#This Row],[Column1]]+(ROUND(M77,3))+50+ROW()/10000,IF(AND(Q77="HỌC SINH XUẤT SẮC",LEFT(P77,1)="7"),Table1[[#This Row],[Column1]]+(ROUND(M77,3))+100+ROW()/10000,IF(AND(Q77="HỌC SINH XUẤT SẮC",LEFT(P77,1)="6"),Table1[[#This Row],[Column1]]+(ROUND(M77,3))+150+ROW()/10000,"")))) -> 205.7577 | V77: =IF(AND(Q77="HỌC SINH GIỎI",LEFT(P77,1)="9"),Table1[[#This Row],[Column1]]+(ROUND(M77,3))+200+ROW()/10000,IF(AND(Q77="HỌC SINH GIỎI",LEFT(P77,1)="8"),Table1[[#This Row],[Column1]]+(ROUND(M77,3))+250+ROW()/10000,IF(AND(Q77="HỌC SINH GIỎI",LEFT(P77,1)="7"),Table1[[#This Row],[Column1]]+(ROUND(M77,3))+300+ROW()/10000,IF(AND(Q77="HỌC SINH GIỎI",LEFT(P77,1)="6"),Table1[[#This Row],[Column1]]+(ROUND(M77,3))+350+ROW()/10000,"")))) ->  | W77: Nguyễn Thị Khánh | X77: Ly | Y77: HỌC SINH XUẤT SẮC | Z77: 7C
A78: 77 | B78: Trần Thu | C78: Minh | D78: 21/09/2013 | E78: Trần Văn Hưng | F78: Xóm 9 | G78: T | H78: T | I78: 9 | J78: 8.25 | K78: 9.25 | L78: 8.75 | M78: 35.25 | O78: x | P78: 7C | Q78: HỌC SINH GIỎI | R78: =IF(Table1[[#This Row],[STT]]="","",ROW()-1) -> 77 | S78: =IF(Table1[[#This Row],[Lơp]]="","",VLOOKUP(Table1[[#This Row],[Lơp]],$AC$3:$AD$14,2,0)) -> 70 | T78: =IF(AND(Q78="HỌC SINH XUẤT SẮC",LEFT(P78,1)="9"),Table1[[#This Row],[Column1]]+(ROUND(M78,3))+400+ROW()/10000,IF(AND(Q78="HỌC SINH XUẤT SẮC",LEFT(P78,1)="8"),Table1[[#This Row],[Column1]]+(ROUND(M78,3))+450+ROW()/10000,IF(AND(Q78="HỌC SINH XUẤT SẮC",LEFT(P78,1)="7"),Table1[[#This Row],[Column1]]+(ROUND(M78,3))+500+ROW()/10000,IF(AND(Q78="HỌC SINH XUẤT SẮC",LEFT(P78,1)="6"),Table1[[#This Row],[Column1]]+(ROUND(M78,3))+550+ROW()/10000,IF(AND(Q78="HỌC SINH GIỎI",LEFT(P78,1)="9"),Table1[[#This Row],[Column1]]+(ROUND(M78,3))+10+ROW()/10000,IF(AND(Q78="HỌC SINH GIỎI",LEFT(P78,1)="8"),Table1[[#This Row],[Column1]]+(ROUND(M78,3))+ 50+ROW()/10000,IF(AND(Q78="HỌC SINH GIỎI",LEFT(P78,1)="7"),Table1[[#This Row],[Column1]]+(ROUND(M78,3))+100+ROW()/10000,IF(AND(Q78="HỌC SINH GIỎI",LEFT(P78,1)="6"),Table1[[#This Row],[Column1]]+(ROUND(M78,3))+150+ROW()/10000,"")))))))) -> 205.2578 | U78: =IF(AND(Q78="HỌC SINH XUẤT SẮC",LEFT(P78,1)="9"),(ROUND(M78,3))+Table1[[#This Row],[Column1]]+10+ROW()/10000,IF(AND(Q78="HỌC SINH XUẤT SẮC",LEFT(P78,1)="8"),Table1[[#This Row],[Column1]]+(ROUND(M78,3))+50+ROW()/10000,IF(AND(Q78="HỌC SINH XUẤT SẮC",LEFT(P78,1)="7"),Table1[[#This Row],[Column1]]+(ROUND(M78,3))+100+ROW()/10000,IF(AND(Q78="HỌC SINH XUẤT SẮC",LEFT(P78,1)="6"),Table1[[#This Row],[Column1]]+(ROUND(M78,3))+150+ROW()/10000,"")))) ->  | V78: =IF(AND(Q78="HỌC SINH GIỎI",LEFT(P78,1)="9"),Table1[[#This Row],[Column1]]+(ROUND(M78,3))+200+ROW()/10000,IF(AND(Q78="HỌC SINH GIỎI",LEFT(P78,1)="8"),Table1[[#This Row],[Column1]]+(ROUND(M78,3))+250+ROW()/10000,IF(AND(Q78="HỌC SINH GIỎI",LEFT(P78,1)="7"),Table1[[#This Row],[Column1]]+(ROUND(M78,3))+300+ROW()/10000,IF(AND(Q78="HỌC SINH GIỎI",LEFT(P78,1)="6"),Table1[[#This Row],[Column1]]+(ROUND(M78,3))+350+ROW()/10000,"")))) -> 405.2578 | W78: Trần Thu | X78: Minh | Y78: HỌC SINH GIỎI | Z78: 7C
A79: 78 | B79: Trần Huyền | C79: My | D79: 01/10/2013 | E79: Trần Thanh Huấn | F79: Xóm 8 | G79: T | H79: T | I79: 9.25 | J79: 8.5 | K79: 9.75 | L79: 8.75 | M79: 36.25 | N79: x | P79: 7C | Q79: HỌC SINH XUẤT SẮC | R79: =IF(Table1[[#This Row],[STT]]="","",ROW()-1) -> 78 | S79: =IF(Table1[[#This Row],[Lơp]]="","",VLOOKUP(Table1[[#This Row],[Lơp]],$AC$3:$AD$14,2,0)) -> 70 | T79: =IF(AND(Q79="HỌC SINH XUẤT SẮC",LEFT(P79,1)="9"),Table1[[#This Row],[Column1]]+(ROUND(M79,3))+400+ROW()/10000,IF(AND(Q79="HỌC SINH XUẤT SẮC",LEFT(P79,1)="8"),Table1[[#This Row],[Column1]]+(ROUND(M79,3))+450+ROW()/10000,IF(AND(Q79="HỌC SINH XUẤT SẮC",LEFT(P79,1)="7"),Table1[[#This Row],[Column1]]+(ROUND(M79,3))+500+ROW()/10000,IF(AND(Q79="HỌC SINH XUẤT SẮC",LEFT(P79,1)="6"),Table1[[#This Row],[Column1]]+(ROUND(M79,3))+550+ROW()/10000,IF(AND(Q79="HỌC SINH GIỎI",LEFT(P79,1)="9"),Table1[[#This Row],[Column1]]+(ROUND(M79,3))+10+ROW()/10000,IF(AND(Q79="HỌC SINH GIỎI",LEFT(P79,1)="8"),Table1[[#This Row],[Column1]]+(ROUND(M79,3))+ 50+ROW()/10000,IF(AND(Q79="HỌC SINH GIỎI",LEFT(P79,1)="7"),Table1[[#This Row],[Column1]]+(ROUND(M79,3))+100+ROW()/10000,IF(AND(Q79="HỌC SINH GIỎI",LEFT(P79,1)="6"),Table1[[#This Row],[Column1]]+(ROUND(M79,3))+150+ROW()/10000,"")))))))) -> 606.2579 | U79: =IF(AND(Q79="HỌC SINH XUẤT SẮC",LEFT(P79,1)="9"),(ROUND(M79,3))+Table1[[#This Row],[Column1]]+10+ROW()/10000,IF(AND(Q79="HỌC SINH XUẤT SẮC",LEFT(P79,1)="8"),Table1[[#This Row],[Column1]]+(ROUND(M79,3))+50+ROW()/10000,IF(AND(Q79="HỌC SINH XUẤT SẮC",LEFT(P79,1)="7"),Table1[[#This Row],[Column1]]+(ROUND(M79,3))+100+ROW()/10000,IF(AND(Q79="HỌC SINH XUẤT SẮC",LEFT(P79,1)="6"),Table1[[#This Row],[Column1]]+(ROUND(M79,3))+150+ROW()/10000,"")))) -> 206.2579 | V79: =IF(AND(Q79="HỌC SINH GIỎI",LEFT(P79,1)="9"),Table1[[#This Row],[Column1]]+(ROUND(M79,3))+200+ROW()/10000,IF(AND(Q79="HỌC SINH GIỎI",LEFT(P79,1)="8"),Table1[[#This Row],[Column1]]+(ROUND(M79,3))+250+ROW()/10000,IF(AND(Q79="HỌC SINH GIỎI",LEFT(P79,1)="7"),Table1[[#This Row],[Column1]]+(ROUND(M79,3))+300+ROW()/10000,IF(AND(Q79="HỌC SINH GIỎI",LEFT(P79,1)="6"),Table1[[#This Row],[Column1]]+(ROUND(M79,3))+350+ROW()/10000,"")))) ->  | W79: Trần Huyền | X79: My | Y79: HỌC SINH XUẤT SẮC | Z79: 7C
A80: 79 | B80: Cao Trần Khánh | C80: My | D80: 06/03/2013 | E80: Cao Duy Hiếu | F80: Xóm 7 | G80: T | H80: T | I80: 8.5 | J80: 8.25 | K80: 9 | L80: 8.25 | M80: 34 | O80: x | P80: 7C | Q80: HỌC SINH GIỎI | R80: =IF(Table1[[#This Row],[STT]]="","",ROW()-1) -> 79 | S80: =IF(Table1[[#This Row],[Lơp]]="","",VLOOKUP(Table1[[#This Row],[Lơp]],$AC$3:$AD$14,2,0)) -> 70 | T80: =IF(AND(Q80="HỌC SINH XUẤT SẮC",LEFT(P80,1)="9"),Table1[[#This Row],[Column1]]+(ROUND(M80,3))+400+ROW()/10000,IF(AND(Q80="HỌC SINH XUẤT SẮC",LEFT(P80,1)="8"),Table1[[#This Row],[Column1]]+(ROUND(M80,3))+450+ROW()/10000,IF(AND(Q80="HỌC SINH XUẤT SẮC",LEFT(P80,1)="7"),Table1[[#This Row],[Column1]]+(ROUND(M80,3))+500+ROW()/10000,IF(AND(Q80="HỌC SINH XUẤT SẮC",LEFT(P80,1)="6"),Table1[[#This Row],[Column1]]+(ROUND(M80,3))+550+ROW()/10000,IF(AND(Q80="HỌC SINH GIỎI",LEFT(P80,1)="9"),Table1[[#This Row],[Column1]]+(ROUND(M80,3))+10+ROW()/10000,IF(AND(Q80="HỌC SINH GIỎI",LEFT(P80,1)="8"),Table1[[#This Row],[Column1]]+(ROUND(M80,3))+ 50+ROW()/10000,IF(AND(Q80="HỌC SINH GIỎI",LEFT(P80,1)="7"),Table1[[#This Row],[Column1]]+(ROUND(M80,3))+100+ROW()/10000,IF(AND(Q80="HỌC SINH GIỎI",LEFT(P80,1)="6"),Table1[[#This Row],[Column1]]+(ROUND(M80,3))+150+ROW()/10000,"")))))))) -> 204.008 | U80: =IF(AND(Q80="HỌC SINH XUẤT SẮC",LEFT(P80,1)="9"),(ROUND(M80,3))+Table1[[#This Row],[Column1]]+10+ROW()/10000,IF(AND(Q80="HỌC SINH XUẤT SẮC",LEFT(P80,1)="8"),Table1[[#This Row],[Column1]]+(ROUND(M80,3))+50+ROW()/10000,IF(AND(Q80="HỌC SINH XUẤT SẮC",LEFT(P80,1)="7"),Table1[[#This Row],[Column1]]+(ROUND(M80,3))+100+ROW()/10000,IF(AND(Q80="HỌC SINH XUẤT SẮC",LEFT(P80,1)="6"),Table1[[#This Row],[Column1]]+(ROUND(M80,3))+150+ROW()/10000,"")))) ->  | V80: =IF(AND(Q80="HỌC SINH GIỎI",LEFT(P80,1)="9"),Table1[[#This Row],[Column1]]+(ROUND(M80,3))+200+ROW()/10000,IF(AND(Q80="HỌC SINH GIỎI",LEFT(P80,1)="8"),Table1[[#This Row],[Column1]]+(ROUND(M80,3))+250+ROW()/10000,IF(AND(Q80="HỌC SINH GIỎI",LEFT(P80,1)="7"),Table1[[#This Row],[Column1]]+(ROUND(M80,3))+300+ROW()/10000,IF(AND(Q80="HỌC SINH GIỎI",LEFT(P80,1)="6"),Table1[[#This Row],[Column1]]+(ROUND(M80,3))+350+ROW()/10000,"")))) -> 404.008 | W80: Cao Trần Khánh | X80: My | Y80: HỌC SINH GIỎI | Z80: 7C
A81: 80 | B81: Bùi Thành | C81: Nam | D81: 01/01/2013 | E81: Bùi Văn Hân | F81: Xóm 7 | G81: T | H81: T | I81: 9.5 | J81: 8.25 | K81: 9.5 | L81: 8 | M81: 35.25 | N81: x | P81: 7C | Q81: HỌC SINH XUẤT SẮC | R81: =IF(Table1[[#This Row],[STT]]="","",ROW()-1) -> 80 | S81: =IF(Table1[[#This Row],[Lơp]]="","",VLOOKUP(Table1[[#This Row],[Lơp]],$AC$3:$AD$14,2,0)) -> 70 | T81: =IF(AND(Q81="HỌC SINH XUẤT SẮC",LEFT(P81,1)="9"),Table1[[#This Row],[Column1]]+(ROUND(M81,3))+400+ROW()/10000,IF(AND(Q81="HỌC SINH XUẤT SẮC",LEFT(P81,1)="8"),Table1[[#This Row],[Column1]]+(ROUND(M81,3))+450+ROW()/10000,IF(AND(Q81="HỌC SINH XUẤT SẮC",LEFT(P81,1)="7"),Table1[[#This Row],[Column1]]+(ROUND(M81,3))+500+ROW()/10000,IF(AND(Q81="HỌC SINH XUẤT SẮC",LEFT(P81,1)="6"),Table1[[#This Row],[Column1]]+(ROUND(M81,3))+550+ROW()/10000,IF(AND(Q81="HỌC SINH GIỎI",LEFT(P81,1)="9"),Table1[[#This Row],[Column1]]+(ROUND(M81,3))+10+ROW()/10000,IF(AND(Q81="HỌC SINH GIỎI",LEFT(P81,1)="8"),Table1[[#This Row],[Column1]]+(ROUND(M81,3))+ 50+ROW()/10000,IF(AND(Q81="HỌC SINH GIỎI",LEFT(P81,1)="7"),Table1[[#This Row],[Column1]]+(ROUND(M81,3))+100+ROW()/10000,IF(AND(Q81="HỌC SINH GIỎI",LEFT(P81,1)="6"),Table1[[#This Row],[Column1]]+(ROUND(M81,3))+150+ROW()/10000,"")))))))) -> 605.2581 | U81: =IF(AND(Q81="HỌC SINH XUẤT SẮC",LEFT(P81,1)="9"),(ROUND(M81,3))+Table1[[#This Row],[Column1]]+10+ROW()/10000,IF(AND(Q81="HỌC SINH XUẤT SẮC",LEFT(P81,1)="8"),Table1[[#This Row],[Column1]]+(ROUND(M81,3))+50+ROW()/10000,IF(AND(Q81="HỌC SINH XUẤT SẮC",LEFT(P81,1)="7"),Table1[[#This Row],[Column1]]+(ROUND(M81,3))+100+ROW()/10000,IF(AND(Q81="HỌC SINH XUẤT SẮC",LEFT(P81,1)="6"),Table1[[#This Row],[Column1]]+(ROUND(M81,3))+150+ROW()/10000,"")))) -> 205.2581 | V81: =IF(AND(Q81="HỌC SINH GIỎI",LEFT(P81,1)="9"),Table1[[#This Row],[Column1]]+(ROUND(M81,3))+200+ROW()/10000,IF(AND(Q81="HỌC SINH GIỎI",LEFT(P81,1)="8"),Table1[[#This Row],[Column1]]+(ROUND(M81,3))+250+ROW()/10000,IF(AND(Q81="HỌC SINH GIỎI",LEFT(P81,1)="7"),Table1[[#This Row],[Column1]]+(ROUND(M81,3))+300+ROW()/10000,IF(AND(Q81="HỌC SINH GIỎI",LEFT(P81,1)="6"),Table1[[#This Row],[Column1]]+(ROUND(M81,3))+350+ROW()/10000,"")))) ->  | W81: Bùi Thành | X81: Nam | Y81: HỌC SINH XUẤT SẮC | Z81: 7C
A82: 81 | B82: Mai Hải | C82: Nam | D82: 06/07/2013 | E82: Mai Ngọc Yên | F82: Xóm 2 | G82: T | H82: T | I82: 9 | J82: 5.25 | K82: 9.25 | L82: 6.75 | M82: 30.25 | O82: x | P82: 7C | Q82: HỌC SINH GIỎI | R82: =IF(Table1[[#This Row],[STT]]="","",ROW()-1) -> 81 | S82: =IF(Table1[[#This Row],[Lơp]]="","",VLOOKUP(Table1[[#This Row],[Lơp]],$AC$3:$AD$14,2,0)) -> 70 | T82: =IF(AND(Q82="HỌC SINH XUẤT SẮC",LEFT(P82,1)="9"),Table1[[#This Row],[Column1]]+(ROUND(M82,3))+400+ROW()/10000,IF(AND(Q82="HỌC SINH XUẤT SẮC",LEFT(P82,1)="8"),Table1[[#This Row],[Column1]]+(ROUND(M82,3))+450+ROW()/10000,IF(AND(Q82="HỌC SINH XUẤT SẮC",LEFT(P82,1)="7"),Table1[[#This Row],[Column1]]+(ROUND(M82,3))+500+ROW()/10000,IF(AND(Q82="HỌC SINH XUẤT SẮC",LEFT(P82,1)="6"),Table1[[#This Row],[Column1]]+(ROUND(M82,3))+550+ROW()/10000,IF(AND(Q82="HỌC SINH GIỎI",LEFT(P82,1)="9"),Table1[[#This Row],[Column1]]+(ROUND(M82,3))+10+ROW()/10000,IF(AND(Q82="HỌC SINH GIỎI",LEFT(P82,1)="8"),Table1[[#This Row],[Column1]]+(ROUND(M82,3))+ 50+ROW()/10000,IF(AND(Q82="HỌC SINH GIỎI",LEFT(P82,1)="7"),Table1[[#This Row],[Column1]]+(ROUND(M82,3))+100+ROW()/10000,IF(AND(Q82="HỌC SINH GIỎI",LEFT(P82,1)="6"),Table1[[#This Row],[Column1]]+(ROUND(M82,3))+150+ROW()/10000,"")))))))) -> 200.2582 | U82: =IF(AND(Q82="HỌC SINH XUẤT SẮC",LEFT(P82,1)="9"),(ROUND(M82,3))+Table1[[#This Row],[Column1]]+10+ROW()/10000,IF(AND(Q82="HỌC SINH XUẤT SẮC",LEFT(P82,1)="8"),Table1[[#This Row],[Column1]]+(ROUND(M82,3))+50+ROW()/10000,IF(AND(Q82="HỌC SINH XUẤT SẮC",LEFT(P82,1)="7"),Table1[[#This Row],[Column1]]+(ROUND(M82,3))+100+ROW()/10000,IF(AND(Q82="HỌC SINH XUẤT SẮC",LEFT(P82,1)="6"),Table1[[#This Row],[Column1]]+(ROUND(M82,3))+150+ROW()/10000,"")))) ->  | V82: =IF(AND(Q82="HỌC SINH GIỎI",LEFT(P82,1)="9"),Table1[[#This Row],[Column1]]+(ROUND(M82,3))+200+ROW()/10000,IF(AND(Q82="HỌC SINH GIỎI",LEFT(P82,1)="8"),Table1[[#This Row],[Column1]]+(ROUND(M82,3))+250+ROW()/10000,IF(AND(Q82="HỌC SINH GIỎI",LEFT(P82,1)="7"),Table1[[#This Row],[Column1]]+(ROUND(M82,3))+300+ROW()/10000,IF(AND(Q82="HỌC SINH GIỎI",LEFT(P82,1)="6"),Table1[[#This Row],[Column1]]+(ROUND(M82,3))+350+ROW()/10000,"")))) -> 400.2582 | W82: Mai Hải | X82: Nam | Y82: HỌC SINH GIỎI | Z82: 7C
A83: 82 | B83: Trần Linh | C83: Nhi | D83: 03/07/2013 | E83: Trần Trung Kiên | F83: Xóm 8 | G83: T | H83: T | I83: 8.25 | J83: 7.25 | K83: 9.75 | L83: 8.25 | M83: 33.5 | O83: x | P83: 7C | Q83: HỌC SINH GIỎI | R83: =IF(Table1[[#This Row],[STT]]="","",ROW()-1) -> 82 | S83: =IF(Table1[[#This Row],[Lơp]]="","",VLOOKUP(Table1[[#This Row],[Lơp]],$AC$3:$AD$14,2,0)) -> 70 | T83: =IF(AND(Q83="HỌC SINH XUẤT SẮC",LEFT(P83,1)="9"),Table1[[#This Row],[Column1]]+(ROUND(M83,3))+400+ROW()/10000,IF(AND(Q83="HỌC SINH XUẤT SẮC",LEFT(P83,1)="8"),Table1[[#This Row],[Column1]]+(ROUND(M83,3))+450+ROW()/10000,IF(AND(Q83="HỌC SINH XUẤT SẮC",LEFT(P83,1)="7"),Table1[[#This Row],[Column1]]+(ROUND(M83,3))+500+ROW()/10000,IF(AND(Q83="HỌC SINH XUẤT SẮC",LEFT(P83,1)="6"),Table1[[#This Row],[Column1]]+(ROUND(M83,3))+550+ROW()/10000,IF(AND(Q83="HỌC SINH GIỎI",LEFT(P83,1)="9"),Table1[[#This Row],[Column1]]+(ROUND(M83,3))+10+ROW()/10000,IF(AND(Q83="HỌC SINH GIỎI",LEFT(P83,1)="8"),Table1[[#This Row],[Column1]]+(ROUND(M83,3))+ 50+ROW()/10000,IF(AND(Q83="HỌC SINH GIỎI",LEFT(P83,1)="7"),Table1[[#This Row],[Column1]]+(ROUND(M83,3))+100+ROW()/10000,IF(AND(Q83="HỌC SINH GIỎI",LEFT(P83,1)="6"),Table1[[#This Row],[Column1]]+(ROUND(M83,3))+150+ROW()/10000,"")))))))) -> 203.5083 | U83: =IF(AND(Q83="HỌC SINH XUẤT SẮC",LEFT(P83,1)="9"),(ROUND(M83,3))+Table1[[#This Row],[Column1]]+10+ROW()/10000,IF(AND(Q83="HỌC SINH XUẤT SẮC",LEFT(P83,1)="8"),Table1[[#This Row],[Column1]]+(ROUND(M83,3))+50+ROW()/10000,IF(AND(Q83="HỌC SINH XUẤT SẮC",LEFT(P83,1)="7"),Table1[[#This Row],[Column1]]+(ROUND(M83,3))+100+ROW()/10000,IF(AND(Q83="HỌC SINH XUẤT SẮC",LEFT(P83,1)="6"),Table1[[#This Row],[Column1]]+(ROUND(M83,3))+150+ROW()/10000,"")))) ->  | V83: =IF(AND(Q83="HỌC SINH GIỎI",LEFT(P83,1)="9"),Table1[[#This Row],[Column1]]+(ROUND(M83,3))+200+ROW()/10000,IF(AND(Q83="HỌC SINH GIỎI",LEFT(P83,1)="8"),Table1[[#This Row],[Column1]]+(ROUND(M83,3))+250+ROW()/10000,IF(AND(Q83="HỌC SINH GIỎI",LEFT(P83,1)="7"),Table1[[#This Row],[Column1]]+(ROUND(M83,3))+300+ROW()/10000,IF(AND(Q83="HỌC SINH GIỎI",LEFT(P83,1)="6"),Table1[[#This Row],[Column1]]+(ROUND(M83,3))+350+ROW()/10000,"")))) -> 403.5083 | W83: Trần Linh | X83: Nhi | Y83: HỌC SINH GIỎI | Z83: 7C
A84: 83 | B84: Trần Thị Yến | C84: Nhi | D84: 08/09/2013 | E84: Trần Văn Trường | F84: Xóm 6 | G84: T | H84: T | I84: 8 | J84: 8 | K84: 8.5 | L84: 7 | M84: 31.5 | O84: x | P84: 7C | Q84: HỌC SINH GIỎI | R84: =IF(Table1[[#This Row],[STT]]="","",ROW()-1) -> 83 | S84: =IF(Table1[[#This Row],[Lơp]]="","",VLOOKUP(Table1[[#This Row],[Lơp]],$AC$3:$AD$14,2,0)) -> 70 | T84: =IF(AND(Q84="HỌC SINH XUẤT SẮC",LEFT(P84,1)="9"),Table1[[#This Row],[Column1]]+(ROUND(M84,3))+400+ROW()/10000,IF(AND(Q84="HỌC SINH XUẤT SẮC",LEFT(P84,1)="8"),Table1[[#This Row],[Column1]]+(ROUND(M84,3))+450+ROW()/10000,IF(AND(Q84="HỌC SINH XUẤT SẮC",LEFT(P84,1)="7"),Table1[[#This Row],[Column1]]+(ROUND(M84,3))+500+ROW()/10000,IF(AND(Q84="HỌC SINH XUẤT SẮC",LEFT(P84,1)="6"),Table1[[#This Row],[Column1]]+(ROUND(M84,3))+550+ROW()/10000,IF(AND(Q84="HỌC SINH GIỎI",LEFT(P84,1)="9"),Table1[[#This Row],[Column1]]+(ROUND(M84,3))+10+ROW()/10000,IF(AND(Q84="HỌC SINH GIỎI",LEFT(P84,1)="8"),Table1[[#This Row],[Column1]]+(ROUND(M84,3))+ 50+ROW()/10000,IF(AND(Q84="HỌC SINH GIỎI",LEFT(P84,1)="7"),Table1[[#This Row],[Column1]]+(ROUND(M84,3))+100+ROW()/10000,IF(AND(Q84="HỌC SINH GIỎI",LEFT(P84,1)="6"),Table1[[#This Row],[Column1]]+(ROUND(M84,3))+150+ROW()/10000,"")))))))) -> 201.5084 | U84: =IF(AND(Q84="HỌC SINH XUẤT SẮC",LEFT(P84,1)="9"),(ROUND(M84,3))+Table1[[#This Row],[Column1]]+10+ROW()/10000,IF(AND(Q84="HỌC SINH XUẤT SẮC",LEFT(P84,1)="8"),Table1[[#This Row],[Column1]]+(ROUND(M84,3))+50+ROW()/10000,IF(AND(Q84="HỌC SINH XUẤT SẮC",LEFT(P84,1)="7"),Table1[[#This Row],[Column1]]+(ROUND(M84,3))+100+ROW()/10000,IF(AND(Q84="HỌC SINH XUẤT SẮC",LEFT(P84,1)="6"),Table1[[#This Row],[Column1]]+(ROUND(M84,3))+150+ROW()/10000,"")))) ->  | V84: =IF(AND(Q84="HỌC SINH GIỎI",LEFT(P84,1)="9"),Table1[[#This Row],[Column1]]+(ROUND(M84,3))+200+ROW()/10000,IF(AND(Q84="HỌC SINH GIỎI",LEFT(P84,1)="8"),Table1[[#This Row],[Column1]]+(ROUND(M84,3))+250+ROW()/10000,IF(AND(Q84="HỌC SINH GIỎI",LEFT(P84,1)="7"),Table1[[#This Row],[Column1]]+(ROUND(M84,3))+300+ROW()/10000,IF(AND(Q84="HỌC SINH GIỎI",LEFT(P84,1)="6"),Table1[[#This Row],[Column1]]+(ROUND(M84,3))+350+ROW()/10000,"")))) -> 401.5084 | W84: Trần Thị Yến | X84: Nhi | Y84: HỌC SINH GIỎI | Z84: 7C
A85: 84 | B85: Lê Phước | C85: Sang | D85: 07/11/2013 | E85: Lê Văn Nam | F85: Xóm 6 | G85: T | H85: T | I85: 9 | J85: 8.5 | K85: 8 | L85: 8.25 | M85: 33.75 | O85: x | P85: 7C | Q85: HỌC SINH GIỎI | R85: =IF(Table1[[#This Row],[STT]]="","",ROW()-1) -> 84 | S85: =IF(Table1[[#This Row],[Lơp]]="","",VLOOKUP(Table1[[#This Row],[Lơp]],$AC$3:$AD$14,2,0)) -> 70 | T85: =IF(AND(Q85="HỌC SINH XUẤT SẮC",LEFT(P85,1)="9"),Table1[[#This Row],[Column1]]+(ROUND(M85,3))+400+ROW()/10000,IF(AND(Q85="HỌC SINH XUẤT SẮC",LEFT(P85,1)="8"),Table1[[#This Row],[Column1]]+(ROUND(M85,3))+450+ROW()/10000,IF(AND(Q85="HỌC SINH XUẤT SẮC",LEFT(P85,1)="7"),Table1[[#This Row],[Column1]]+(ROUND(M85,3))+500+ROW()/10000,IF(AND(Q85="HỌC SINH XUẤT SẮC",LEFT(P85,1)="6"),Table1[[#This Row],[Column1]]+(ROUND(M85,3))+550+ROW()/10000,IF(AND(Q85="HỌC SINH GIỎI",LEFT(P85,1)="9"),Table1[[#This Row],[Column1]]+(ROUND(M85,3))+10+ROW()/10000,IF(AND(Q85="HỌC SINH GIỎI",LEFT(P85,1)="8"),Table1[[#This Row],[Column1]]+(ROUND(M85,3))+ 50+ROW()/10000,IF(AND(Q85="HỌC SINH GIỎI",LEFT(P85,1)="7"),Table1[[#This Row],[Column1]]+(ROUND(M85,3))+100+ROW()/10000,IF(AND(Q85="HỌC SINH GIỎI",LEFT(P85,1)="6"),Table1[[#This Row],[Column1]]+(ROUND(M85,3))+150+ROW()/10000,"")))))))) -> 203.7585 | U85: =IF(AND(Q85="HỌC SINH XUẤT SẮC",LEFT(P85,1)="9"),(ROUND(M85,3))+Table1[[#This Row],[Column1]]+10+ROW()/10000,IF(AND(Q85="HỌC SINH XUẤT SẮC",LEFT(P85,1)="8"),Table1[[#This Row],[Column1]]+(ROUND(M85,3))+50+ROW()/10000,IF(AND(Q85="HỌC SINH XUẤT SẮC",LEFT(P85,1)="7"),Table1[[#This Row],[Column1]]+(ROUND(M85,3))+100+ROW()/10000,IF(AND(Q85="HỌC SINH XUẤT SẮC",LEFT(P85,1)="6"),Table1[[#This Row],[Column1]]+(ROUND(M85,3))+150+ROW()/10000,"")))) ->  | V85: =IF(AND(Q85="HỌC SINH GIỎI",LEFT(P85,1)="9"),Table1[[#This Row],[Column1]]+(ROUND(M85,3))+200+ROW()/10000,IF(AND(Q85="HỌC SINH GIỎI",LEFT(P85,1)="8"),Table1[[#This Row],[Column1]]+(ROUND(M85,3))+250+ROW()/10000,IF(AND(Q85="HỌC SINH GIỎI",LEFT(P85,1)="7"),Table1[[#This Row],[Column1]]+(ROUND(M85,3))+300+ROW()/10000,IF(AND(Q85="HỌC SINH GIỎI",LEFT(P85,1)="6"),Table1[[#This Row],[Column1]]+(ROUND(M85,3))+350+ROW()/10000,"")))) -> 403.7585 | W85: Lê Phước | X85: Sang | Y85: HỌC SINH GIỎI | Z85: 7C
A86: 85 | B86: Nguyễn Phúc | C86: Tài | D86: 02/06/2013 | E86: Nguyễn Văn Tuân | F86: Xóm 1 | G86: T | H86: T | I86: 8.5 | J86: 6.5 | K86: 9 | L86: 7.25 | M86: 31.25 | O86: x | P86: 7C | Q86: HỌC SINH GIỎI | R86: =IF(Table1[[#This Row],[STT]]="","",ROW()-1) -> 85 | S86: =IF(Table1[[#This Row],[Lơp]]="","",VLOOKUP(Table1[[#This Row],[Lơp]],$AC$3:$AD$14,2,0)) -> 70 | T86: =IF(AND(Q86="HỌC SINH XUẤT SẮC",LEFT(P86,1)="9"),Table1[[#This Row],[Column1]]+(ROUND(M86,3))+400+ROW()/10000,IF(AND(Q86="HỌC SINH XUẤT SẮC",LEFT(P86,1)="8"),Table1[[#This Row],[Column1]]+(ROUND(M86,3))+450+ROW()/10000,IF(AND(Q86="HỌC SINH XUẤT SẮC",LEFT(P86,1)="7"),Table1[[#This Row],[Column1]]+(ROUND(M86,3))+500+ROW()/10000,IF(AND(Q86="HỌC SINH XUẤT SẮC",LEFT(P86,1)="6"),Table1[[#This Row],[Column1]]+(ROUND(M86,3))+550+ROW()/10000,IF(AND(Q86="HỌC SINH GIỎI",LEFT(P86,1)="9"),Table1[[#This Row],[Column1]]+(ROUND(M86,3))+10+ROW()/10000,IF(AND(Q86="HỌC SINH GIỎI",LEFT(P86,1)="8"),Table1[[#This Row],[Column1]]+(ROUND(M86,3))+ 50+ROW()/10000,IF(AND(Q86="HỌC SINH GIỎI",LEFT(P86,1)="7"),Table1[[#This Row],[Column1]]+(ROUND(M86,3))+100+ROW()/10000,IF(AND(Q86="HỌC SINH GIỎI",LEFT(P86,1)="6"),Table1[[#This Row],[Column1]]+(ROUND(M86,3))+150+ROW()/10000,"")))))))) -> 201.2586 | U86: =IF(AND(Q86="HỌC SINH XUẤT SẮC",LEFT(P86,1)="9"),(ROUND(M86,3))+Table1[[#This Row],[Column1]]+10+ROW()/10000,IF(AND(Q86="HỌC SINH XUẤT SẮC",LEFT(P86,1)="8"),Table1[[#This Row],[Column1]]+(ROUND(M86,3))+50+ROW()/10000,IF(AND(Q86="HỌC SINH XUẤT SẮC",LEFT(P86,1)="7"),Table1[[#This Row],[Column1]]+(ROUND(M86,3))+100+ROW()/10000,IF(AND(Q86="HỌC SINH XUẤT SẮC",LEFT(P86,1)="6"),Table1[[#This Row],[Column1]]+(ROUND(M86,3))+150+ROW()/10000,"")))) ->  | V86: =IF(AND(Q86="HỌC SINH GIỎI",LEFT(P86,1)="9"),Table1[[#This Row],[Column1]]+(ROUND(M86,3))+200+ROW()/10000,IF(AND(Q86="HỌC SINH GIỎI",LEFT(P86,1)="8"),Table1[[#This Row],[Column1]]+(ROUND(M86,3))+250+ROW()/10000,IF(AND(Q86="HỌC SINH GIỎI",LEFT(P86,1)="7"),Table1[[#This Row],[Column1]]+(ROUND(M86,3))+300+ROW()/10000,IF(AND(Q86="HỌC SINH GIỎI",LEFT(P86,1)="6"),Table1[[#This Row],[Column1]]+(ROUND(M86,3))+350+ROW()/10000,"")))) -> 401.2586 | W86: Nguyễn Phúc | X86: Tài | Y86: HỌC SINH GIỎI | Z86: 7C
A87: 86 | B87: Nguyễn Minh | C87: Tâm | D87: 09/07/2013 | E87: Nguyễn Văn Vịnh | F87: Xóm 8 | G87: T | H87: T | I87: 9.5 | J87: 9.5 | K87: 9.75 | L87: 8 | M87: 36.75 | N87: x | P87: 7C | Q87: HỌC SINH XUẤT SẮC | R87: =IF(Table1[[#This Row],[STT]]="","",ROW()-1) -> 86 | S87: =IF(Table1[[#This Row],[Lơp]]="","",VLOOKUP(Table1[[#This Row],[Lơp]],$AC$3:$AD$14,2,0)) -> 70 | T87: =IF(AND(Q87="HỌC SINH XUẤT SẮC",LEFT(P87,1)="9"),Table1[[#This Row],[Column1]]+(ROUND(M87,3))+400+ROW()/10000,IF(AND(Q87="HỌC SINH XUẤT SẮC",LEFT(P87,1)="8"),Table1[[#This Row],[Column1]]+(ROUND(M87,3))+450+ROW()/10000,IF(AND(Q87="HỌC SINH XUẤT SẮC",LEFT(P87,1)="7"),Table1[[#This Row],[Column1]]+(ROUND(M87,3))+500+ROW()/10000,IF(AND(Q87="HỌC SINH XUẤT SẮC",LEFT(P87,1)="6"),Table1[[#This Row],[Column1]]+(ROUND(M87,3))+550+ROW()/10000,IF(AND(Q87="HỌC SINH GIỎI",LEFT(P87,1)="9"),Table1[[#This Row],[Column1]]+(ROUND(M87,3))+10+ROW()/10000,IF(AND(Q87="HỌC SINH GIỎI",LEFT(P87,1)="8"),Table1[[#This Row],[Column1]]+(ROUND(M87,3))+ 50+ROW()/10000,IF(AND(Q87="HỌC SINH GIỎI",LEFT(P87,1)="7"),Table1[[#This Row],[Column1]]+(ROUND(M87,3))+100+ROW()/10000,IF(AND(Q87="HỌC SINH GIỎI",LEFT(P87,1)="6"),Table1[[#This Row],[Column1]]+(ROUND(M87,3))+150+ROW()/10000,"")))))))) -> 606.7587 | U87: =IF(AND(Q87="HỌC SINH XUẤT SẮC",LEFT(P87,1)="9"),(ROUND(M87,3))+Table1[[#This Row],[Column1]]+10+ROW()/10000,IF(AND(Q87="HỌC SINH XUẤT SẮC",LEFT(P87,1)="8"),Table1[[#This Row],[Column1]]+(ROUND(M87,3))+50+ROW()/10000,IF(AND(Q87="HỌC SINH XUẤT SẮC",LEFT(P87,1)="7"),Table1[[#This Row],[Column1]]+(ROUND(M87,3))+100+ROW()/10000,IF(AND(Q87="HỌC SINH XUẤT SẮC",LEFT(P87,1)="6"),Table1[[#This Row],[Column1]]+(ROUND(M87,3))+150+ROW()/10000,"")))) -> 206.7587 | V87: =IF(AND(Q87="HỌC SINH GIỎI",LEFT(P87,1)="9"),Table1[[#This Row],[Column1]]+(ROUND(M87,3))+200+ROW()/10000,IF(AND(Q87="HỌC SINH GIỎI",LEFT(P87,1)="8"),Table1[[#This Row],[Column1]]+(ROUND(M87,3))+250+ROW()/10000,IF(AND(Q87="HỌC SINH GIỎI",LEFT(P87,1)="7"),Table1[[#This Row],[Column1]]+(ROUND(M87,3))+300+ROW()/10000,IF(AND(Q87="HỌC SINH GIỎI",LEFT(P87,1)="6"),Table1[[#This Row],[Column1]]+(ROUND(M87,3))+350+ROW()/10000,"")))) ->  | W87: Nguyễn Minh | X87: Tâm | Y87: HỌC SINH XUẤT SẮC | Z87: 7C
A88: 87 | B88: Phạm Anh | C88: Thư | D88: 22/03/2013 | E88: Phạm Thanh Thuấn | F88: Xóm 7 | G88: T | H88: T | I88: 9.25 | J88: 5.25 | K88: 8.5 | L88: 7 | M88: 30 | O88: x | P88: 7C | Q88: HỌC SINH GIỎI | R88: =IF(Table1[[#This Row],[STT]]="","",ROW()-1) -> 87 | S88: =IF(Table1[[#This Row],[Lơp]]="","",VLOOKUP(Table1[[#This Row],[Lơp]],$AC$3:$AD$14,2,0)) -> 70 | T88: =IF(AND(Q88="HỌC SINH XUẤT SẮC",LEFT(P88,1)="9"),Table1[[#This Row],[Column1]]+(ROUND(M88,3))+400+ROW()/10000,IF(AND(Q88="HỌC SINH XUẤT SẮC",LEFT(P88,1)="8"),Table1[[#This Row],[Column1]]+(ROUND(M88,3))+450+ROW()/10000,IF(AND(Q88="HỌC SINH XUẤT SẮC",LEFT(P88,1)="7"),Table1[[#This Row],[Column1]]+(ROUND(M88,3))+500+ROW()/10000,IF(AND(Q88="HỌC SINH XUẤT SẮC",LEFT(P88,1)="6"),Table1[[#This Row],[Column1]]+(ROUND(M88,3))+550+ROW()/10000,IF(AND(Q88="HỌC SINH GIỎI",LEFT(P88,1)="9"),Table1[[#This Row],[Column1]]+(ROUND(M88,3))+10+ROW()/10000,IF(AND(Q88="HỌC SINH GIỎI",LEFT(P88,1)="8"),Table1[[#This Row],[Column1]]+(ROUND(M88,3))+ 50+ROW()/10000,IF(AND(Q88="HỌC SINH GIỎI",LEFT(P88,1)="7"),Table1[[#This Row],[Column1]]+(ROUND(M88,3))+100+ROW()/10000,IF(AND(Q88="HỌC SINH GIỎI",LEFT(P88,1)="6"),Table1[[#This Row],[Column1]]+(ROUND(M88,3))+150+ROW()/10000,"")))))))) -> 200.0088 | U88: =IF(AND(Q88="HỌC SINH XUẤT SẮC",LEFT(P88,1)="9"),(ROUND(M88,3))+Table1[[#This Row],[Column1]]+10+ROW()/10000,IF(AND(Q88="HỌC SINH XUẤT SẮC",LEFT(P88,1)="8"),Table1[[#This Row],[Column1]]+(ROUND(M88,3))+50+ROW()/10000,IF(AND(Q88="HỌC SINH XUẤT SẮC",LEFT(P88,1)="7"),Table1[[#This Row],[Column1]]+(ROUND(M88,3))+100+ROW()/10000,IF(AND(Q88="HỌC SINH XUẤT SẮC",LEFT(P88,1)="6"),Table1[[#This Row],[Column1]]+(ROUND(M88,3))+150+ROW()/10000,"")))) ->  | V88: =IF(AND(Q88="HỌC SINH GIỎI",LEFT(P88,1)="9"),Table1[[#This Row],[Column1]]+(ROUND(M88,3))+200+ROW()/10000,IF(AND(Q88="HỌC SINH GIỎI",LEFT(P88,1)="8"),Table1[[#This Row],[Column1]]+(ROUND(M88,3))+250+ROW()/10000,IF(AND(Q88="HỌC SINH GIỎI",LEFT(P88,1)="7"),Table1[[#This Row],[Column1]]+(ROUND(M88,3))+300+ROW()/10000,IF(AND(Q88="HỌC SINH GIỎI",LEFT(P88,1)="6"),Table1[[#This Row],[Column1]]+(ROUND(M88,3))+350+ROW()/10000,"")))) -> 400.0088 | W88: Phạm Anh | X88: Thư | Y88: HỌC SINH GIỎI | Z88: 7C
A89: 88 | B89: Vũ Đức | C89: Trí | D89: 22/05/2013 | E89: Vũ Minh Đắc | F89: Xóm 4 | G89: T | H89: T | I89: 9.5 | J89: 8.75 | K89: 9.75 | L89: 8.25 | M89: 36.25 | N89: x | P89: 7C | Q89: HỌC SINH XUẤT SẮC | R89: =IF(Table1[[#This Row],[STT]]="","",ROW()-1) -> 88 | S89: =IF(Table1[[#This Row],[Lơp]]="","",VLOOKUP(Table1[[#This Row],[Lơp]],$AC$3:$AD$14,2,0)) -> 70 | T89: =IF(AND(Q89="HỌC SINH XUẤT SẮC",LEFT(P89,1)="9"),Table1[[#This Row],[Column1]]+(ROUND(M89,3))+400+ROW()/10000,IF(AND(Q89="HỌC SINH XUẤT SẮC",LEFT(P89,1)="8"),Table1[[#This Row],[Column1]]+(ROUND(M89,3))+450+ROW()/10000,IF(AND(Q89="HỌC SINH XUẤT SẮC",LEFT(P89,1)="7"),Table1[[#This Row],[Column1]]+(ROUND(M89,3))+500+ROW()/10000,IF(AND(Q89="HỌC SINH XUẤT SẮC",LEFT(P89,1)="6"),Table1[[#This Row],[Column1]]+(ROUND(M89,3))+550+ROW()/10000,IF(AND(Q89="HỌC SINH GIỎI",LEFT(P89,1)="9"),Table1[[#This Row],[Column1]]+(ROUND(M89,3))+10+ROW()/10000,IF(AND(Q89="HỌC SINH GIỎI",LEFT(P89,1)="8"),Table1[[#This Row],[Column1]]+(ROUND(M89,3))+ 50+ROW()/10000,IF(AND(Q89="HỌC SINH GIỎI",LEFT(P89,1)="7"),Table1[[#This Row],[Column1]]+(ROUND(M89,3))+100+ROW()/10000,IF(AND(Q89="HỌC SINH GIỎI",LEFT(P89,1)="6"),Table1[[#This Row],[Column1]]+(ROUND(M89,3))+150+ROW()/10000,"")))))))) -> 606.2589 | U89: =IF(AND(Q89="HỌC SINH XUẤT SẮC",LEFT(P89,1)="9"),(ROUND(M89,3))+Table1[[#This Row],[Column1]]+10+ROW()/10000,IF(AND(Q89="HỌC SINH XUẤT SẮC",LEFT(P89,1)="8"),Table1[[#This Row],[Column1]]+(ROUND(M89,3))+50+ROW()/10000,IF(AND(Q89="HỌC SINH XUẤT SẮC",LEFT(P89,1)="7"),Table1[[#This Row],[Column1]]+(ROUND(M89,3))+100+ROW()/10000,IF(AND(Q89="HỌC SINH XUẤT SẮC",LEFT(P89,1)="6"),Table1[[#This Row],[Column1]]+(ROUND(M89,3))+150+ROW()/10000,"")))) -> 206.2589 | V89: =IF(AND(Q89="HỌC SINH GIỎI",LEFT(P89,1)="9"),Table1[[#This Row],[Column1]]+(ROUND(M89,3))+200+ROW()/10000,IF(AND(Q89="HỌC SINH GIỎI",LEFT(P89,1)="8"),Table1[[#This Row],[Column1]]+(ROUND(M89,3))+250+ROW()/10000,IF(AND(Q89="HỌC SINH GIỎI",LEFT(P89,1)="7"),Table1[[#This Row],[Column1]]+(ROUND(M89,3))+300+ROW()/10000,IF(AND(Q89="HỌC SINH GIỎI",LEFT(P89,1)="6"),Table1[[#This Row],[Column1]]+(ROUND(M89,3))+350+ROW()/10000,"")))) ->  | W89: Vũ Đức | X89: Trí | Y89: HỌC SINH XUẤT SẮC | Z89: 7C
A90: 89 | B90: Tống Nguyễn Phương | C90: Uyên | D90: 09/07/2013 | E90: Tống Văn Chính | F90: Xóm 3 | G90: T | H90: T | I90: 8.5 | J90: 7.5 | K90: 7 | L90: 7.5 | M90: 30.5 | O90: x | P90: 7C | Q90: HỌC SINH GIỎI | R90: =IF(Table1[[#This Row],[STT]]="","",ROW()-1) -> 89 | S90: =IF(Table1[[#This Row],[Lơp]]="","",VLOOKUP(Table1[[#This Row],[Lơp]],$AC$3:$AD$14,2,0)) -> 70 | T90: =IF(AND(Q90="HỌC SINH XUẤT SẮC",LEFT(P90,1)="9"),Table1[[#This Row],[Column1]]+(ROUND(M90,3))+400+ROW()/10000,IF(AND(Q90="HỌC SINH XUẤT SẮC",LEFT(P90,1)="8"),Table1[[#This Row],[Column1]]+(ROUND(M90,3))+450+ROW()/10000,IF(AND(Q90="HỌC SINH XUẤT SẮC",LEFT(P90,1)="7"),Table1[[#This Row],[Column1]]+(ROUND(M90,3))+500+ROW()/10000,IF(AND(Q90="HỌC SINH XUẤT SẮC",LEFT(P90,1)="6"),Table1[[#This Row],[Column1]]+(ROUND(M90,3))+550+ROW()/10000,IF(AND(Q90="HỌC SINH GIỎI",LEFT(P90,1)="9"),Table1[[#This Row],[Column1]]+(ROUND(M90,3))+10+ROW()/10000,IF(AND(Q90="HỌC SINH GIỎI",LEFT(P90,1)="8"),Table1[[#This Row],[Column1]]+(ROUND(M90,3))+ 50+ROW()/10000,IF(AND(Q90="HỌC SINH GIỎI",LEFT(P90,1)="7"),Table1[[#This Row],[Column1]]+(ROUND(M90,3))+100+ROW()/10000,IF(AND(Q90="HỌC SINH GIỎI",LEFT(P90,1)="6"),Table1[[#This Row],[Column1]]+(ROUND(M90,3))+150+ROW()/10000,"")))))))) -> 200.509 | U90: =IF(AND(Q90="HỌC SINH XUẤT SẮC",LEFT(P90,1)="9"),(ROUND(M90,3))+Table1[[#This Row],[Column1]]+10+ROW()/10000,IF(AND(Q90="HỌC SINH XUẤT SẮC",LEFT(P90,1)="8"),Table1[[#This Row],[Column1]]+(ROUND(M90,3))+50+ROW()/10000,IF(AND(Q90="HỌC SINH XUẤT SẮC",LEFT(P90,1)="7"),Table1[[#This Row],[Column1]]+(ROUND(M90,3))+100+ROW()/10000,IF(AND(Q90="HỌC SINH XUẤT SẮC",LEFT(P90,1)="6"),Table1[[#This Row],[Column1]]+(ROUND(M90,3))+150+ROW()/10000,"")))) ->  | V90: =IF(AND(Q90="HỌC SINH GIỎI",LEFT(P90,1)="9"),Table1[[#This Row],[Column1]]+(ROUND(M90,3))+200+ROW()/10000,IF(AND(Q90="HỌC SINH GIỎI",LEFT(P90,1)="8"),Table1[[#This Row],[Column1]]+(ROUND(M90,3))+250+ROW()/10000,IF(AND(Q90="HỌC SINH GIỎI",LEFT(P90,1)="7"),Table1[[#This Row],[Column1]]+(ROUND(M90,3))+300+ROW()/10000,IF(AND(Q90="HỌC SINH GIỎI",LEFT(P90,1)="6"),Table1[[#This Row],[Column1]]+(ROUND(M90,3))+350+ROW()/10000,"")))) -> 400.509 | W90: Tống Nguyễn Phương | X90: Uyên | Y90: HỌC SINH GIỎI | Z90: 7C
A91: 90 | B91: Trần Nguyễn Tường | C91: Vy | D91: 27/06/2013 | E91: Trần Đại Nghĩa | F91: Xóm 3 | G91: T | H91: T | I91: 9 | J91: 7.75 | K91: 7.25 | L91: 7 | M91: 31 | O91: x | P91: 7C | Q91: HỌC SINH GIỎI | R91: =IF(Table1[[#This Row],[STT]]="","",ROW()-1) -> 90 | S91: =IF(Table1[[#This Row],[Lơp]]="","",VLOOKUP(Table1[[#This Row],[Lơp]],$AC$3:$AD$14,2,0)) -> 70 | T91: =IF(AND(Q91="HỌC SINH XUẤT SẮC",LEFT(P91,1)="9"),Table1[[#This Row],[Column1]]+(ROUND(M91,3))+400+ROW()/10000,IF(AND(Q91="HỌC SINH XUẤT SẮC",LEFT(P91,1)="8"),Table1[[#This Row],[Column1]]+(ROUND(M91,3))+450+ROW()/10000,IF(AND(Q91="HỌC SINH XUẤT SẮC",LEFT(P91,1)="7"),Table1[[#This Row],[Column1]]+(ROUND(M91,3))+500+ROW()/10000,IF(AND(Q91="HỌC SINH XUẤT SẮC",LEFT(P91,1)="6"),Table1[[#This Row],[Column1]]+(ROUND(M91,3))+550+ROW()/10000,IF(AND(Q91="HỌC SINH GIỎI",LEFT(P91,1)="9"),Table1[[#This Row],[Column1]]+(ROUND(M91,3))+10+ROW()/10000,IF(AND(Q91="HỌC SINH GIỎI",LEFT(P91,1)="8"),Table1[[#This Row],[Column1]]+(ROUND(M91,3))+ 50+ROW()/10000,IF(AND(Q91="HỌC SINH GIỎI",LEFT(P91,1)="7"),Table1[[#This Row],[Column1]]+(ROUND(M91,3))+100+ROW()/10000,IF(AND(Q91="HỌC SINH GIỎI",LEFT(P91,1)="6"),Table1[[#This Row],[Column1]]+(ROUND(M91,3))+150+ROW()/10000,"")))))))) -> 201.0091 | U91: =IF(AND(Q91="HỌC SINH XUẤT SẮC",LEFT(P91,1)="9"),(ROUND(M91,3))+Table1[[#This Row],[Column1]]+10+ROW()/10000,IF(AND(Q91="HỌC SINH XUẤT SẮC",LEFT(P91,1)="8"),Table1[[#This Row],[Column1]]+(ROUND(M91,3))+50+ROW()/10000,IF(AND(Q91="HỌC SINH XUẤT SẮC",LEFT(P91,1)="7"),Table1[[#This Row],[Column1]]+(ROUND(M91,3))+100+ROW()/10000,IF(AND(Q91="HỌC SINH XUẤT SẮC",LEFT(P91,1)="6"),Table1[[#This Row],[Column1]]+(ROUND(M91,3))+150+ROW()/10000,"")))) ->  | V91: =IF(AND(Q91="HỌC SINH GIỎI",LEFT(P91,1)="9"),Table1[[#This Row],[Column1]]+(ROUND(M91,3))+200+ROW()/10000,IF(AND(Q91="HỌC SINH GIỎI",LEFT(P91,1)="8"),Table1[[#This Row],[Column1]]+(ROUND(M91,3))+250+ROW()/10000,IF(AND(Q91="HỌC SINH GIỎI",LEFT(P91,1)="7"),Table1[[#This Row],[Column1]]+(ROUND(M91,3))+300+ROW()/10000,IF(AND(Q91="HỌC SINH GIỎI",LEFT(P91,1)="6"),Table1[[#This Row],[Column1]]+(ROUND(M91,3))+350+ROW()/10000,"")))) -> 401.0091 | W91: Trần Nguyễn Tường | X91: Vy | Y91: HỌC SINH GIỎI | Z91: 7C
A92: 91 | B92: Phạm Hoàng | C92: Anh | D92: 2013-10-18 | E92: Phạm công Chính | F92: Xóm 1 | G92: T | H92: T | I92: 9 | J92: 5 | K92: 6.5 | L92: 8 | M92: 28.5 | O92: x | P92: 7C | Q92: HỌC SINH GIỎI | R92: =IF(Table1[[#This Row],[STT]]="","",ROW()-1) -> 91 | S92: =IF(Table1[[#This Row],[Lơp]]="","",VLOOKUP(Table1[[#This Row],[Lơp]],$AC$3:$AD$14,2,0)) -> 70 | T92: =IF(AND(Q92="HỌC SINH XUẤT SẮC",LEFT(P92,1)="9"),Table1[[#This Row],[Column1]]+(ROUND(M92,3))+400+ROW()/10000,IF(AND(Q92="HỌC SINH XUẤT SẮC",LEFT(P92,1)="8"),Table1[[#This Row],[Column1]]+(ROUND(M92,3))+450+ROW()/10000,IF(AND(Q92="HỌC SINH XUẤT SẮC",LEFT(P92,1)="7"),Table1[[#This Row],[Column1]]+(ROUND(M92,3))+500+ROW()/10000,IF(AND(Q92="HỌC SINH XUẤT SẮC",LEFT(P92,1)="6"),Table1[[#This Row],[Column1]]+(ROUND(M92,3))+550+ROW()/10000,IF(AND(Q92="HỌC SINH GIỎI",LEFT(P92,1)="9"),Table1[[#This Row],[Column1]]+(ROUND(M92,3))+10+ROW()/10000,IF(AND(Q92="HỌC SINH GIỎI",LEFT(P92,1)="8"),Table1[[#This Row],[Column1]]+(ROUND(M92,3))+ 50+ROW()/10000,IF(AND(Q92="HỌC SINH GIỎI",LEFT(P92,1)="7"),Table1[[#This Row],[Column1]]+(ROUND(M92,3))+100+ROW()/10000,IF(AND(Q92="HỌC SINH GIỎI",LEFT(P92,1)="6"),Table1[[#This Row],[Column1]]+(ROUND(M92,3))+150+ROW()/10000,"")))))))) -> 198.5092 | U92: =IF(AND(Q92="HỌC SINH XUẤT SẮC",LEFT(P92,1)="9"),(ROUND(M92,3))+Table1[[#This Row],[Column1]]+10+ROW()/10000,IF(AND(Q92="HỌC SINH XUẤT SẮC",LEFT(P92,1)="8"),Table1[[#This Row],[Column1]]+(ROUND(M92,3))+50+ROW()/10000,IF(AND(Q92="HỌC SINH XUẤT SẮC",LEFT(P92,1)="7"),Table1[[#This Row],[Column1]]+(ROUND(M92,3))+100+ROW()/10000,IF(AND(Q92="HỌC SINH XUẤT SẮC",LEFT(P92,1)="6"),Table1[[#This Row],[Column1]]+(ROUND(M92,3))+150+ROW()/10000,"")))) ->  | V92: =IF(AND(Q92="HỌC SINH GIỎI",LEFT(P92,1)="9"),Table1[[#This Row],[Column1]]+(ROUND(M92,3))+200+ROW()/10000,IF(AND(Q92="HỌC SINH GIỎI",LEFT(P92,1)="8"),Table1[[#This Row],[Column1]]+(ROUND(M92,3))+250+ROW()/10000,IF(AND(Q92="HỌC SINH GIỎI",LEFT(P92,1)="7"),Table1[[#This Row],[Column1]]+(ROUND(M92,3))+300+ROW()/10000,IF(AND(Q92="HỌC SINH GIỎI",LEFT(P92,1)="6"),Table1[[#This Row],[Column1]]+(ROUND(M92,3))+350+ROW()/10000,"")))) -> 398.5092 | W92: Phạm Hoàng | X92: Anh | Y92: HỌC SINH GIỎI | Z92: 7C
A93: 92 | B93: Nguyễn Linh | C93: An | D93: 2013-06-24 | E93: Nguyễn Hồng Phong | F93: Xóm 3 | G93: T | H93: T | I93: 9 | J93: 6.5 | K93: 6.75 | L93: 7 | M93: =IF(AND(I93="",J93="",K93="",L93=""),"",SUM(I93:L93)) -> 29.25 | O93: x | P93: 7B | Q93: HỌC SINH GIỎI | R93: =IF(Table1[[#This Row],[STT]]="","",ROW()-1) -> 92 | S93: =IF(Table1[[#This Row],[Lơp]]="","",VLOOKUP(Table1[[#This Row],[Lơp]],$AC$3:$AD$14,2,0)) -> 80 | T93: =IF(AND(Q93="HỌC SINH XUẤT SẮC",LEFT(P93,1)="9"),Table1[[#This Row],[Column1]]+(ROUND(M93,3))+400+ROW()/10000,IF(AND(Q93="HỌC SINH XUẤT SẮC",LEFT(P93,1)="8"),Table1[[#This Row],[Column1]]+(ROUND(M93,3))+450+ROW()/10000,IF(AND(Q93="HỌC SINH XUẤT SẮC",LEFT(P93,1)="7"),Table1[[#This Row],[Column1]]+(ROUND(M93,3))+500+ROW()/10000,IF(AND(Q93="HỌC SINH XUẤT SẮC",LEFT(P93,1)="6"),Table1[[#This Row],[Column1]]+(ROUND(M93,3))+550+ROW()/10000,IF(AND(Q93="HỌC SINH GIỎI",LEFT(P93,1)="9"),Table1[[#This Row],[Column1]]+(ROUND(M93,3))+10+ROW()/10000,IF(AND(Q93="HỌC SINH GIỎI",LEFT(P93,1)="8"),Table1[[#This Row],[Column1]]+(ROUND(M93,3))+ 50+ROW()/10000,IF(AND(Q93="HỌC SINH GIỎI",LEFT(P93,1)="7"),Table1[[#This Row],[Column1]]+(ROUND(M93,3))+100+ROW()/10000,IF(AND(Q93="HỌC SINH GIỎI",LEFT(P93,1)="6"),Table1[[#This Row],[Column1]]+(ROUND(M93,3))+150+ROW()/10000,"")))))))) -> 209.2593 | U93: =IF(AND(Q93="HỌC SINH XUẤT SẮC",LEFT(P93,1)="9"),(ROUND(M93,3))+Table1[[#This Row],[Column1]]+10+ROW()/10000,IF(AND(Q93="HỌC SINH XUẤT SẮC",LEFT(P93,1)="8"),Table1[[#This Row],[Column1]]+(ROUND(M93,3))+50+ROW()/10000,IF(AND(Q93="HỌC SINH XUẤT SẮC",LEFT(P93,1)="7"),Table1[[#This Row],[Column1]]+(ROUND(M93,3))+100+ROW()/10000,IF(AND(Q93="HỌC SINH XUẤT SẮC",LEFT(P93,1)="6"),Table1[[#This Row],[Column1]]+(ROUND(M93,3))+150+ROW()/10000,"")))) ->  | V93: =IF(AND(Q93="HỌC SINH GIỎI",LEFT(P93,1)="9"),Table1[[#This Row],[Column1]]+(ROUND(M93,3))+200+ROW()/10000,IF(AND(Q93="HỌC SINH GIỎI",LEFT(P93,1)="8"),Table1[[#This Row],[Column1]]+(ROUND(M93,3))+250+ROW()/10000,IF(AND(Q93="HỌC SINH GIỎI",LEFT(P93,1)="7"),Table1[[#This Row],[Column1]]+(ROUND(M93,3))+300+ROW()/10000,IF(AND(Q93="HỌC SINH GIỎI",LEFT(P93,1)="6"),Table1[[#This Row],[Column1]]+(ROUND(M93,3))+350+ROW()/10000,"")))) -> 409.2593 | W93: Nguyễn Linh | X93: An | Y93: HỌC SINH GIỎI | Z93: 7B
A94: 93 | B94: Vũ Thành | C94: Danh | D94: 2013-11-07 | E94: Vũ Văn Dụng | F94: Xóm 9 | G94: T | H94: T | I94: 8 | J94: 7.25 | K94: 6.75 | L94: 5.5 | M94: =IF(AND(I94="",J94="",K94="",L94=""),"",SUM(I94:L94)) -> 27.5 | O94: x | P94: 7B | Q94: HỌC SINH GIỎI | R94: =IF(Table1[[#This Row],[STT]]="","",ROW()-1) -> 93 | S94: =IF(Table1[[#This Row],[Lơp]]="","",VLOOKUP(Table1[[#This Row],[Lơp]],$AC$3:$AD$14,2,0)) -> 80 | T94: =IF(AND(Q94="HỌC SINH XUẤT SẮC",LEFT(P94,1)="9"),Table1[[#This Row],[Column1]]+(ROUND(M94,3))+400+ROW()/10000,IF(AND(Q94="HỌC SINH XUẤT SẮC",LEFT(P94,1)="8"),Table1[[#This Row],[Column1]]+(ROUND(M94,3))+450+ROW()/10000,IF(AND(Q94="HỌC SINH XUẤT SẮC",LEFT(P94,1)="7"),Table1[[#This Row],[Column1]]+(ROUND(M94,3))+500+ROW()/10000,IF(AND(Q94="HỌC SINH XUẤT SẮC",LEFT(P94,1)="6"),Table1[[#This Row],[Column1]]+(ROUND(M94,3))+550+ROW()/10000,IF(AND(Q94="HỌC SINH GIỎI",LEFT(P94,1)="9"),Table1[[#This Row],[Column1]]+(ROUND(M94,3))+10+ROW()/10000,IF(AND(Q94="HỌC SINH GIỎI",LEFT(P94,1)="8"),Table1[[#This Row],[Column1]]+(ROUND(M94,3))+ 50+ROW()/10000,IF(AND(Q94="HỌC SINH GIỎI",LEFT(P94,1)="7"),Table1[[#This Row],[Column1]]+(ROUND(M94,3))+100+ROW()/10000,IF(AND(Q94="HỌC SINH GIỎI",LEFT(P94,1)="6"),Table1[[#This Row],[Column1]]+(ROUND(M94,3))+150+ROW()/10000,"")))))))) -> 207.5094 | U94: =IF(AND(Q94="HỌC SINH XUẤT SẮC",LEFT(P94,1)="9"),(ROUND(M94,3))+Table1[[#This Row],[Column1]]+10+ROW()/10000,IF(AND(Q94="HỌC SINH XUẤT SẮC",LEFT(P94,1)="8"),Table1[[#This Row],[Column1]]+(ROUND(M94,3))+50+ROW()/10000,IF(AND(Q94="HỌC SINH XUẤT SẮC",LEFT(P94,1)="7"),Table1[[#This Row],[Column1]]+(ROUND(M94,3))+100+ROW()/10000,IF(AND(Q94="HỌC SINH XUẤT SẮC",LEFT(P94,1)="6"),Table1[[#This Row],[Column1]]+(ROUND(M94,3))+150+ROW()/10000,"")))) ->  | V94: =IF(AND(Q94="HỌC SINH GIỎI",LEFT(P94,1)="9"),Table1[[#This Row],[Column1]]+(ROUND(M94,3))+200+ROW()/10000,IF(AND(Q94="HỌC SINH GIỎI",LEFT(P94,1)="8"),Table1[[#This Row],[Column1]]+(ROUND(M94,3))+250+ROW()/10000,IF(AND(Q94="HỌC SINH GIỎI",LEFT(P94,1)="7"),Table1[[#This Row],[Column1]]+(ROUND(M94,3))+300+ROW()/10000,IF(AND(Q94="HỌC SINH GIỎI",LEFT(P94,1)="6"),Table1[[#This Row],[Column1]]+(ROUND(M94,3))+350+ROW()/10000,"")))) -> 407.5094 | W94: Vũ Thành | X94: Danh | Y94: HỌC SINH GIỎI | Z94: 7B
A95: 94 | B95: Mai Huyền | C95: Diệu | D95: 2013-11-21 | E95: Mai Văn Tứ | F95: Xóm 2 | G95: T | H95: T | I95: 7 | J95: 7 | K95: 7.75 | L95: 5.25 | M95: 27 | O95: x | P95: 7B | Q95: HỌC SINH GIỎI | R95: =IF(Table1[[#This Row],[STT]]="","",ROW()-1) -> 94 | S95: =IF(Table1[[#This Row],[Lơp]]="","",VLOOKUP(Table1[[#This Row],[Lơp]],$AC$3:$AD$14,2,0)) -> 80 | T95: =IF(AND(Q95="HỌC SINH XUẤT SẮC",LEFT(P95,1)="9"),Table1[[#This Row],[Column1]]+(ROUND(M95,3))+400+ROW()/10000,IF(AND(Q95="HỌC SINH XUẤT SẮC",LEFT(P95,1)="8"),Table1[[#This Row],[Column1]]+(ROUND(M95,3))+450+ROW()/10000,IF(AND(Q95="HỌC SINH XUẤT SẮC",LEFT(P95,1)="7"),Table1[[#This Row],[Column1]]+(ROUND(M95,3))+500+ROW()/10000,IF(AND(Q95="HỌC SINH XUẤT SẮC",LEFT(P95,1)="6"),Table1[[#This Row],[Column1]]+(ROUND(M95,3))+550+ROW()/10000,IF(AND(Q95="HỌC SINH GIỎI",LEFT(P95,1)="9"),Table1[[#This Row],[Column1]]+(ROUND(M95,3))+10+ROW()/10000,IF(AND(Q95="HỌC SINH GIỎI",LEFT(P95,1)="8"),Table1[[#This Row],[Column1]]+(ROUND(M95,3))+ 50+ROW()/10000,IF(AND(Q95="HỌC SINH GIỎI",LEFT(P95,1)="7"),Table1[[#This Row],[Column1]]+(ROUND(M95,3))+100+ROW()/10000,IF(AND(Q95="HỌC SINH GIỎI",LEFT(P95,1)="6"),Table1[[#This Row],[Column1]]+(ROUND(M95,3))+150+ROW()/10000,"")))))))) -> 207.0095 | U95: =IF(AND(Q95="HỌC SINH XUẤT SẮC",LEFT(P95,1)="9"),(ROUND(M95,3))+Table1[[#This Row],[Column1]]+10+ROW()/10000,IF(AND(Q95="HỌC SINH XUẤT SẮC",LEFT(P95,1)="8"),Table1[[#This Row],[Column1]]+(ROUND(M95,3))+50+ROW()/10000,IF(AND(Q95="HỌC SINH XUẤT SẮC",LEFT(P95,1)="7"),Table1[[#This Row],[Column1]]+(ROUND(M95,3))+100+ROW()/10000,IF(AND(Q95="HỌC SINH XUẤT SẮC",LEFT(P95,1)="6"),Table1[[#This Row],[Column1]]+(ROUND(M95,3))+150+ROW()/10000,"")))) ->  | V95: =IF(AND(Q95="HỌC SINH GIỎI",LEFT(P95,1)="9"),Table1[[#This Row],[Column1]]+(ROUND(M95,3))+200+ROW()/10000,IF(AND(Q95="HỌC SINH GIỎI",LEFT(P95,1)="8"),Table1[[#This Row],[Column1]]+(ROUND(M95,3))+250+ROW()/10000,IF(AND(Q95="HỌC SINH GIỎI",LEFT(P95,1)="7"),Table1[[#This Row],[Column1]]+(ROUND(M95,3))+300+ROW()/10000,IF(AND(Q95="HỌC SINH GIỎI",LEFT(P95,1)="6"),Table1[[#This Row],[Column1]]+(ROUND(M95,3))+350+ROW()/10000,"")))) -> 407.0095 | W95: Mai Huyền | X95: Diệu | Y95: HỌC SINH GIỎI | Z95: 7B
A96: 95 | B96: Bùi Mai Bảo | C96: An | D96: 30/04/2014 | E96: Bùi Văn Nam | F96: Xóm 8 | G96: T | H96: T | I96: 9 | J96: 7.75 | K96: 6 | L96: 8.25 | M96: =IF(AND(I96="",J96="",K96="",L96=""),"",SUM(I96:L96)) -> 31 | O96: X | P96: 6C | Q96: HỌC SINH GIỎI | R96: =IF(Table1[[#This Row],[STT]]="","",ROW()-1) -> 95 | S96: =IF(Table1[[#This Row],[Lơp]]="","",VLOOKUP(Table1[[#This Row],[Lơp]],$AC$3:$AD$14,2,0)) -> 100 | T96: =IF(AND(Q96="HỌC SINH XUẤT SẮC",LEFT(P96,1)="9"),Table1[[#This Row],[Column1]]+(ROUND(M96,3))+400+ROW()/10000,IF(AND(Q96="HỌC SINH XUẤT SẮC",LEFT(P96,1)="8"),Table1[[#This Row],[Column1]]+(ROUND(M96,3))+450+ROW()/10000,IF(AND(Q96="HỌC SINH XUẤT SẮC",LEFT(P96,1)="7"),Table1[[#This Row],[Column1]]+(ROUND(M96,3))+500+ROW()/10000,IF(AND(Q96="HỌC SINH XUẤT SẮC",LEFT(P96,1)="6"),Table1[[#This Row],[Column1]]+(ROUND(M96,3))+550+ROW()/10000,IF(AND(Q96="HỌC SINH GIỎI",LEFT(P96,1)="9"),Table1[[#This Row],[Column1]]+(ROUND(M96,3))+10+ROW()/10000,IF(AND(Q96="HỌC SINH GIỎI",LEFT(P96,1)="8"),Table1[[#This Row],[Column1]]+(ROUND(M96,3))+ 50+ROW()/10000,IF(AND(Q96="HỌC SINH GIỎI",LEFT(P96,1)="7"),Table1[[#This Row],[Column1]]+(ROUND(M96,3))+100+ROW()/10000,IF(AND(Q96="HỌC SINH GIỎI",LEFT(P96,1)="6"),Table1[[#This Row],[Column1]]+(ROUND(M96,3))+150+ROW()/10000,"")))))))) -> 281.0096 | U96: =IF(AND(Q96="HỌC SINH XUẤT SẮC",LEFT(P96,1)="9"),(ROUND(M96,3))+Table1[[#This Row],[Column1]]+10+ROW()/10000,IF(AND(Q96="HỌC SINH XUẤT SẮC",LEFT(P96,1)="8"),Table1[[#This Row],[Column1]]+(ROUND(M96,3))+50+ROW()/10000,IF(AND(Q96="HỌC SINH XUẤT SẮC",LEFT(P96,1)="7"),Table1[[#This Row],[Column1]]+(ROUND(M96,3))+100+ROW()/10000,IF(AND(Q96="HỌC SINH XUẤT SẮC",LEFT(P96,1)="6"),Table1[[#This Row],[Column1]]+(ROUND(M96,3))+150+ROW()/10000,"")))) ->  | V96: =IF(AND(Q96="HỌC SINH GIỎI",LEFT(P96,1)="9"),Table1[[#This Row],[Column1]]+(ROUND(M96,3))+200+ROW()/10000,IF(AND(Q96="HỌC SINH GIỎI",LEFT(P96,1)="8"),Table1[[#This Row],[Column1]]+(ROUND(M96,3))+250+ROW()/10000,IF(AND(Q96="HỌC SINH GIỎI",LEFT(P96,1)="7"),Table1[[#This Row],[Column1]]+(ROUND(M96,3))+300+ROW()/10000,IF(AND(Q96="HỌC SINH GIỎI",LEFT(P96,1)="6"),Table1[[#This Row],[Column1]]+(ROUND(M96,3))+350+ROW()/10000,"")))) -> 481.0096 | W96: Bùi Mai Bảo | X96: An | Y96: HỌC SINH GIỎI | Z96: 6C
A97: 96 | B97: Trần Ngọc | C97: Ánh | D97: 20/01/2014 | E97: Trần Văn Hữu | F97: Xóm 9 | G97: T | H97: T | I97: 7 | J97: 9 | K97: 7.5 | L97: 9 | M97: =IF(AND(I97="",J97="",K97="",L97=""),"",SUM(I97:L97)) -> 32.5 | O97: X | P97: 6C | Q97: HỌC SINH GIỎI | R97: =IF(Table1[[#This Row],[STT]]="","",ROW()-1) -> 96 | S97: =IF(Table1[[#This Row],[Lơp]]="","",VLOOKUP(Table1[[#This Row],[Lơp]],$AC$3:$AD$14,2,0)) -> 100 | T97: =IF(AND(Q97="HỌC SINH XUẤT SẮC",LEFT(P97,1)="9"),Table1[[#This Row],[Column1]]+(ROUND(M97,3))+400+ROW()/10000,IF(AND(Q97="HỌC SINH XUẤT SẮC",LEFT(P97,1)="8"),Table1[[#This Row],[Column1]]+(ROUND(M97,3))+450+ROW()/10000,IF(AND(Q97="HỌC SINH XUẤT SẮC",LEFT(P97,1)="7"),Table1[[#This Row],[Column1]]+(ROUND(M97,3))+500+ROW()/10000,IF(AND(Q97="HỌC SINH XUẤT SẮC",LEFT(P97,1)="6"),Table1[[#This Row],[Column1]]+(ROUND(M97,3))+550+ROW()/10000,IF(AND(Q97="HỌC SINH GIỎI",LEFT(P97,1)="9"),Table1[[#This Row],[Column1]]+(ROUND(M97,3))+10+ROW()/10000,IF(AND(Q97="HỌC SINH GIỎI",LEFT(P97,1)="8"),Table1[[#This Row],[Column1]]+(ROUND(M97,3))+ 50+ROW()/10000,IF(AND(Q97="HỌC SINH GIỎI",LEFT(P97,1)="7"),Table1[[#This Row],[Column1]]+(ROUND(M97,3))+100+ROW()/10000,IF(AND(Q97="HỌC SINH GIỎI",LEFT(P97,1)="6"),Table1[[#This Row],[Column1]]+(ROUND(M97,3))+150+ROW()/10000,"")))))))) -> 282.5097 | U97: =IF(AND(Q97="HỌC SINH XUẤT SẮC",LEFT(P97,1)="9"),(ROUND(M97,3))+Table1[[#This Row],[Column1]]+10+ROW()/10000,IF(AND(Q97="HỌC SINH XUẤT SẮC",LEFT(P97,1)="8"),Table1[[#This Row],[Column1]]+(ROUND(M97,3))+50+ROW()/10000,IF(AND(Q97="HỌC SINH XUẤT SẮC",LEFT(P97,1)="7"),Table1[[#This Row],[Column1]]+(ROUND(M97,3))+100+ROW()/10000,IF(AND(Q97="HỌC SINH XUẤT SẮC",LEFT(P97,1)="6"),Table1[[#This Row],[Column1]]+(ROUND(M97,3))+150+ROW()/10000,"")))) ->  | V97: =IF(AND(Q97="HỌC SINH GIỎI",LEFT(P97,1)="9"),Table1[[#This Row],[Column1]]+(ROUND(M97,3))+200+ROW()/10000,IF(AND(Q97="HỌC SINH GIỎI",LEFT(P97,1)="8"),Table1[[#This Row],[Column1]]+(ROUND(M97,3))+250+ROW()/10000,IF(AND(Q97="HỌC SINH GIỎI",LEFT(P97,1)="7"),Table1[[#This Row],[Column1]]+(ROUND(M97,3))+300+ROW()/10000,IF(AND(Q97="HỌC SINH GIỎI",LEFT(P97,1)="6"),Table1[[#This Row],[Column1]]+(ROUND(M97,3))+350+ROW()/10000,"")))) -> 482.5097 | W97: Trần Ngọc | X97: Ánh | Y97: HỌC SINH GIỎI | Z97: 6C
A98: 97 | B98: Trần Quốc | C98: Bảo | D98: 30/11/2014 | E98: Trần Xuân Nam | F98: Xóm 3 | G98: T | H98: T | I98: 8.5 | J98: 6.5 | K98: 5.5 | L98: 9.5 | M98: =IF(AND(I98="",J98="",K98="",L98=""),"",SUM(I98:L98)) -> 30 | O98: X | P98: 6C | Q98: HỌC SINH GIỎI | R98: =IF(Table1[[#This Row],[STT]]="","",ROW()-1) -> 97 | S98: =IF(Table1[[#This Row],[Lơp]]="","",VLOOKUP(Table1[[#This Row],[Lơp]],$AC$3:$AD$14,2,0)) -> 100 | T98: =IF(AND(Q98="HỌC SINH XUẤT SẮC",LEFT(P98,1)="9"),Table1[[#This Row],[Column1]]+(ROUND(M98,3))+400+ROW()/10000,IF(AND(Q98="HỌC SINH XUẤT SẮC",LEFT(P98,1)="8"),Table1[[#This Row],[Column1]]+(ROUND(M98,3))+450+ROW()/10000,IF(AND(Q98="HỌC SINH XUẤT SẮC",LEFT(P98,1)="7"),Table1[[#This Row],[Column1]]+(ROUND(M98,3))+500+ROW()/10000,IF(AND(Q98="HỌC SINH XUẤT SẮC",LEFT(P98,1)="6"),Table1[[#This Row],[Column1]]+(ROUND(M98,3))+550+ROW()/10000,IF(AND(Q98="HỌC SINH GIỎI",LEFT(P98,1)="9"),Table1[[#This Row],[Column1]]+(ROUND(M98,3))+10+ROW()/10000,IF(AND(Q98="HỌC SINH GIỎI",LEFT(P98,1)="8"),Table1[[#This Row],[Column1]]+(ROUND(M98,3))+ 50+ROW()/10000,IF(AND(Q98="HỌC SINH GIỎI",LEFT(P98,1)="7"),Table1[[#This Row],[Column1]]+(ROUND(M98,3))+100+ROW()/10000,IF(AND(Q98="HỌC SINH GIỎI",LEFT(P98,1)="6"),Table1[[#This Row],[Column1]]+(ROUND(M98,3))+150+ROW()/10000,"")))))))) -> 280.0098 | U98: =IF(AND(Q98="HỌC SINH XUẤT SẮC",LEFT(P98,1)="9"),(ROUND(M98,3))+Table1[[#This Row],[Column1]]+10+ROW()/10000,IF(AND(Q98="HỌC SINH XUẤT SẮC",LEFT(P98,1)="8"),Table1[[#This Row],[Column1]]+(ROUND(M98,3))+50+ROW()/10000,IF(AND(Q98="HỌC SINH XUẤT SẮC",LEFT(P98,1)="7"),Table1[[#This Row],[Column1]]+(ROUND(M98,3))+100+ROW()/10000,IF(AND(Q98="HỌC SINH XUẤT SẮC",LEFT(P98,1)="6"),Table1[[#This Row],[Column1]]+(ROUND(M98,3))+150+ROW()/10000,"")))) ->  | V98: =IF(AND(Q98="HỌC SINH GIỎI",LEFT(P98,1)="9"),Table1[[#This Row],[Column1]]+(ROUND(M98,3))+200+ROW()/10000,IF(AND(Q98="HỌC SINH GIỎI",LEFT(P98,1)="8"),Table1[[#This Row],[Column1]]+(ROUND(M98,3))+250+ROW()/10000,IF(AND(Q98="HỌC SINH GIỎI",LEFT(P98,1)="7"),Table1[[#This Row],[Column1]]+(ROUND(M98,3))+300+ROW()/10000,IF(AND(Q98="HỌC SINH GIỎI",LEFT(P98,1)="6"),Table1[[#This Row],[Column1]]+(ROUND(M98,3))+350+ROW()/10000,"")))) -> 480.0098 | W98: Trần Quốc | X98: Bảo | Y98: HỌC SINH GIỎI | Z98: 6C
A99: 98 | B99: Trần Thị Huyền | C99: Châu | D99: 12/09/2014 | E99: Trần Đại Lượng | F99: Xóm 2 | G99: T | H99: T | I99: 9 | J99: 7 | K99: 6.75 | L99: 9.25 | M99: =IF(AND(I99="",J99="",K99="",L99=""),"",SUM(I99:L99)) -> 32 | O99: X | P99: 6C | Q99: HỌC SINH GIỎI | R99: =IF(Table1[[#This Row],[STT]]="","",ROW()-1) -> 98 | S99: =IF(Table1[[#This Row],[Lơp]]="","",VLOOKUP(Table1[[#This Row],[Lơp]],$AC$3:$AD$14,2,0)) -> 100 | T99: =IF(AND(Q99="HỌC SINH XUẤT SẮC",LEFT(P99,1)="9"),Table1[[#This Row],[Column1]]+(ROUND(M99,3))+400+ROW()/10000,IF(AND(Q99="HỌC SINH XUẤT SẮC",LEFT(P99,1)="8"),Table1[[#This Row],[Column1]]+(ROUND(M99,3))+450+ROW()/10000,IF(AND(Q99="HỌC SINH XUẤT SẮC",LEFT(P99,1)="7"),Table1[[#This Row],[Column1]]+(ROUND(M99,3))+500+ROW()/10000,IF(AND(Q99="HỌC SINH XUẤT SẮC",LEFT(P99,1)="6"),Table1[[#This Row],[Column1]]+(ROUND(M99,3))+550+ROW()/10000,IF(AND(Q99="HỌC SINH GIỎI",LEFT(P99,1)="9"),Table1[[#This Row],[Column1]]+(ROUND(M99,3))+10+ROW()/10000,IF(AND(Q99="HỌC SINH GIỎI",LEFT(P99,1)="8"),Table1[[#This Row],[Column1]]+(ROUND(M99,3))+ 50+ROW()/10000,IF(AND(Q99="HỌC SINH GIỎI",LEFT(P99,1)="7"),Table1[[#This Row],[Column1]]+(ROUND(M99,3))+100+ROW()/10000,IF(AND(Q99="HỌC SINH GIỎI",LEFT(P99,1)="6"),Table1[[#This Row],[Column1]]+(ROUND(M99,3))+150+ROW()/10000,"")))))))) -> 282.0099 | U99: =IF(AND(Q99="HỌC SINH XUẤT SẮC",LEFT(P99,1)="9"),(ROUND(M99,3))+Table1[[#This Row],[Column1]]+10+ROW()/10000,IF(AND(Q99="HỌC SINH XUẤT SẮC",LEFT(P99,1)="8"),Table1[[#This Row],[Column1]]+(ROUND(M99,3))+50+ROW()/10000,IF(AND(Q99="HỌC SINH XUẤT SẮC",LEFT(P99,1)="7"),Table1[[#This Row],[Column1]]+(ROUND(M99,3))+100+ROW()/10000,IF(AND(Q99="HỌC SINH XUẤT SẮC",LEFT(P99,1)="6"),Table1[[#This Row],[Column1]]+(ROUND(M99,3))+150+ROW()/10000,"")))) ->  | V99: =IF(AND(Q99="HỌC SINH GIỎI",LEFT(P99,1)="9"),Table1[[#This Row],[Column1]]+(ROUND(M99,3))+200+ROW()/10000,IF(AND(Q99="HỌC SINH GIỎI",LEFT(P99,1)="8"),Table1[[#This Row],[Column1]]+(ROUND(M99,3))+250+ROW()/10000,IF(AND(Q99="HỌC SINH GIỎI",LEFT(P99,1)="7"),Table1[[#This Row],[Column1]]+(ROUND(M99,3))+300+ROW()/10000,IF(AND(Q99="HỌC SINH GIỎI",LEFT(P99,1)="6"),Table1[[#This Row],[Column1]]+(ROUND(M99,3))+350+ROW()/10000,"")))) -> 482.0099 | W99: Trần Thị Huyền | X99: Châu | Y99: HỌC SINH GIỎI | Z99: 6C
A100: 99 | B100: Lê Quỳnh | C100: Chi | D100: 02/07/2014 | E100: Lê Chí Thức | F100: Xóm 7 | G100: T | H100: T | I100: 9.5 | J100: 9.25 | K100: 7 | L100: 10 | M100: =IF(AND(I100="",J100="",K100="",L100=""),"",SUM(I100:L100)) -> 35.75 | N100: X | P100: 6C | Q100: HỌC SINH XUẤT SẮC | R100: =IF(Table1[[#This Row],[STT]]="","",ROW()-1) -> 99 | S100: =IF(Table1[[#This Row],[Lơp]]="","",VLOOKUP(Table1[[#This Row],[Lơp]],$AC$3:$AD$14,2,0)) -> 100 | T100: =IF(AND(Q100="HỌC SINH XUẤT SẮC",LEFT(P100,1)="9"),Table1[[#This Row],[Column1]]+(ROUND(M100,3))+400+ROW()/10000,IF(AND(Q100="HỌC SINH XUẤT SẮC",LEFT(P100,1)="8"),Table1[[#This Row],[Column1]]+(ROUND(M100,3))+450+ROW()/10000,IF(AND(Q100="HỌC SINH XUẤT SẮC",LEFT(P100,1)="7"),Table1[[#This Row],[Column1]]+(ROUND(M100,3))+500+ROW()/10000,IF(AND(Q100="HỌC SINH XUẤT SẮC",LEFT(P100,1)="6"),Table1[[#This Row],[Column1]]+(ROUND(M100,3))+550+ROW()/10000,IF(AND(Q100="HỌC SINH GIỎI",LEFT(P100,1)="9"),Table1[[#This Row],[Column1]]+(ROUND(M100,3))+10+ROW()/10000,IF(AND(Q100="HỌC SINH GIỎI",LEFT(P100,1)="8"),Table1[[#This Row],[Column1]]+(ROUND(M100,3))+ 50+ROW()/10000,IF(AND(Q100="HỌC SINH GIỎI",LEFT(P100,1)="7"),Table1[[#This Row],[Column1]]+(ROUND(M100,3))+100+ROW()/10000,IF(AND(Q100="HỌC SINH GIỎI",LEFT(P100,1)="6"),Table1[[#This Row],[Column1]]+(ROUND(M100,3))+150+ROW()/10000,"")))))))) -> 685.76 | U100: =IF(AND(Q100="HỌC SINH XUẤT SẮC",LEFT(P100,1)="9"),(ROUND(M100,3))+Table1[[#This Row],[Column1]]+10+ROW()/10000,IF(AND(Q100="HỌC SINH XUẤT SẮC",LEFT(P100,1)="8"),Table1[[#This Row],[Column1]]+(ROUND(M100,3))+50+ROW()/10000,IF(AND(Q100="HỌC SINH XUẤT SẮC",LEFT(P100,1)="7"),Table1[[#This Row],[Column1]]+(ROUND(M100,3))+100+ROW()/10000,IF(AND(Q100="HỌC SINH XUẤT SẮC",LEFT(P100,1)="6"),Table1[[#This Row],[Column1]]+(ROUND(M100,3))+150+ROW()/10000,"")))) -> 285.76 | V100: =IF(AND(Q100="HỌC SINH GIỎI",LEFT(P100,1)="9"),Table1[[#This Row],[Column1]]+(ROUND(M100,3))+200+ROW()/10000,IF(AND(Q100="HỌC SINH GIỎI",LEFT(P100,1)="8"),Table1[[#This Row],[Column1]]+(ROUND(M100,3))+250+ROW()/10000,IF(AND(Q100="HỌC SINH GIỎI",LEFT(P100,1)="7"),Table1[[#This Row],[Column1]]+(ROUND(M100,3))+300+ROW()/10000,IF(AND(Q100="HỌC SINH GIỎI",LEFT(P100,1)="6"),Table1[[#This Row],[Column1]]+(ROUND(M100,3))+350+ROW()/10000,"")))) ->  | W100: Lê Quỳnh | X100: Chi | Y100: HỌC SINH XUẤT SẮC | Z100: 6C
A101: 100 | B101: Nguyễn Bích | C101: Diệp | D101: 24/06/2014 | E101: Nguyễn Hải Bắc | F101: Xóm 9 | G101: T | H101: T | I101: 8.5 | J101: 9.25 | K101: 5.25 | L101: 9.5 | M101: 32.5 | O101: X | P101: 6C | Q101: HỌC SINH GIỎI | R101: =IF(Table1[[#This Row],[STT]]="","",ROW()-1) -> 100 | S101: =IF(Table1[[#This Row],[Lơp]]="","",VLOOKUP(Table1[[#This Row],[Lơp]],$AC$3:$AD$14,2,0)) -> 100 | T101: =IF(AND(Q101="HỌC SINH XUẤT SẮC",LEFT(P101,1)="9"),Table1[[#This Row],[Column1]]+(ROUND(M101,3))+400+ROW()/10000,IF(AND(Q101="HỌC SINH XUẤT SẮC",LEFT(P101,1)="8"),Table1[[#This Row],[Column1]]+(ROUND(M101,3))+450+ROW()/10000,IF(AND(Q101="HỌC SINH XUẤT SẮC",LEFT(P101,1)="7"),Table1[[#This Row],[Column1]]+(ROUND(M101,3))+500+ROW()/10000,IF(AND(Q101="HỌC SINH XUẤT SẮC",LEFT(P101,1)="6"),Table1[[#This Row],[Column1]]+(ROUND(M101,3))+550+ROW()/10000,IF(AND(Q101="HỌC SINH GIỎI",LEFT(P101,1)="9"),Table1[[#This Row],[Column1]]+(ROUND(M101,3))+10+ROW()/10000,IF(AND(Q101="HỌC SINH GIỎI",LEFT(P101,1)="8"),Table1[[#This Row],[Column1]]+(ROUND(M101,3))+ 50+ROW()/10000,IF(AND(Q101="HỌC SINH GIỎI",LEFT(P101,1)="7"),Table1[[#This Row],[Column1]]+(ROUND(M101,3))+100+ROW()/10000,IF(AND(Q101="HỌC SINH GIỎI",LEFT(P101,1)="6"),Table1[[#This Row],[Column1]]+(ROUND(M101,3))+150+ROW()/10000,"")))))))) -> 282.5101 | U101: =IF(AND(Q101="HỌC SINH XUẤT SẮC",LEFT(P101,1)="9"),(ROUND(M101,3))+Table1[[#This Row],[Column1]]+10+ROW()/10000,IF(AND(Q101="HỌC SINH XUẤT SẮC",LEFT(P101,1)="8"),Table1[[#This Row],[Column1]]+(ROUND(M101,3))+50+ROW()/10000,IF(AND(Q101="HỌC SINH XUẤT SẮC",LEFT(P101,1)="7"),Table1[[#This Row],[Column1]]+(ROUND(M101,3))+100+ROW()/10000,IF(AND(Q101="HỌC SINH XUẤT SẮC",LEFT(P101,1)="6"),Table1[[#This Row],[Column1]]+(ROUND(M101,3))+150+ROW()/10000,"")))) ->  | V101: =IF(AND(Q101="HỌC SINH GIỎI",LEFT(P101,1)="9"),Table1[[#This Row],[Column1]]+(ROUND(M101,3))+200+ROW()/10000,IF(AND(Q101="HỌC SINH GIỎI",LEFT(P101,1)="8"),Table1[[#This Row],[Column1]]+(ROUND(M101,3))+250+ROW()/10000,IF(AND(Q101="HỌC SINH GIỎI",LEFT(P101,1)="7"),Table1[[#This Row],[Column1]]+(ROUND(M101,3))+300+ROW()/10000,IF(AND(Q101="HỌC SINH GIỎI",LEFT(P101,1)="6"),Table1[[#This Row],[Column1]]+(ROUND(M101,3))+350+ROW()/10000,"")))) -> 482.5101 | W101: Nguyễn Bích | X101: Diệp | Y101: HỌC SINH GIỎI | Z101: 6C
A102: 101 | B102: Trần Ngọc | C102: Diệp | D102: 18/07/2014 | E102: Trần Văn Chiến | F102: Xóm 9 | G102: T | H102: T | I102: 9 | J102: 9.25 | K102: 5.5 | L102: 9.75 | M102: 33.5 | O102: X | P102: 6C | Q102: HỌC SINH GIỎI | R102: =IF(Table1[[#This Row],[STT]]="","",ROW()-1) -> 101 | S102: =IF(Table1[[#This Row],[Lơp]]="","",VLOOKUP(Table1[[#This Row],[Lơp]],$AC$3:$AD$14,2,0)) -> 100 | T102: =IF(AND(Q102="HỌC SINH XUẤT SẮC",LEFT(P102,1)="9"),Table1[[#This Row],[Column1]]+(ROUND(M102,3))+400+ROW()/10000,IF(AND(Q102="HỌC SINH XUẤT SẮC",LEFT(P102,1)="8"),Table1[[#This Row],[Column1]]+(ROUND(M102,3))+450+ROW()/10000,IF(AND(Q102="HỌC SINH XUẤT SẮC",LEFT(P102,1)="7"),Table1[[#This Row],[Column1]]+(ROUND(M102,3))+500+ROW()/10000,IF(AND(Q102="HỌC SINH XUẤT SẮC",LEFT(P102,1)="6"),Table1[[#This Row],[Column1]]+(ROUND(M102,3))+550+ROW()/10000,IF(AND(Q102="HỌC SINH GIỎI",LEFT(P102,1)="9"),Table1[[#This Row],[Column1]]+(ROUND(M102,3))+10+ROW()/10000,IF(AND(Q102="HỌC SINH GIỎI",LEFT(P102,1)="8"),Table1[[#This Row],[Column1]]+(ROUND(M102,3))+ 50+ROW()/10000,IF(AND(Q102="HỌC SINH GIỎI",LEFT(P102,1)="7"),Table1[[#This Row],[Column1]]+(ROUND(M102,3))+100+ROW()/10000,IF(AND(Q102="HỌC SINH GIỎI",LEFT(P102,1)="6"),Table1[[#This Row],[Column1]]+(ROUND(M102,3))+150+ROW()/10000,"")))))))) -> 283.5102 | U102: =IF(AND(Q102="HỌC SINH XUẤT SẮC",LEFT(P102,1)="9"),(ROUND(M102,3))+Table1[[#This Row],[Column1]]+10+ROW()/10000,IF(AND(Q102="HỌC SINH XUẤT SẮC",LEFT(P102,1)="8"),Table1[[#This Row],[Column1]]+(ROUND(M102,3))+50+ROW()/10000,IF(AND(Q102="HỌC SINH XUẤT SẮC",LEFT(P102,1)="7"),Table1[[#This Row],[Column1]]+(ROUND(M102,3))+100+ROW()/10000,IF(AND(Q102="HỌC SINH XUẤT SẮC",LEFT(P102,1)="6"),Table1[[#This Row],[Column1]]+(ROUND(M102,3))+150+ROW()/10000,"")))) ->  | V102: =IF(AND(Q102="HỌC SINH GIỎI",LEFT(P102,1)="9"),Table1[[#This Row],[Column1]]+(ROUND(M102,3))+200+ROW()/10000,IF(AND(Q102="HỌC SINH GIỎI",LEFT(P102,1)="8"),Table1[[#This Row],[Column1]]+(ROUND(M102,3))+250+ROW()/10000,IF(AND(Q102="HỌC SINH GIỎI",LEFT(P102,1)="7"),Table1[[#This Row],[Column1]]+(ROUND(M102,3))+300+ROW()/10000,IF(AND(Q102="HỌC SINH GIỎI",LEFT(P102,1)="6"),Table1[[#This Row],[Column1]]+(ROUND(M102,3))+350+ROW()/10000,"")))) -> 483.5102 | W102: Trần Ngọc | X102: Diệp | Y102: HỌC SINH GIỎI | Z102: 6C
A103: 102 | B103: Lê Thu | C103: Diệu | D103: 26/06/2014 | E103: Phạm Thị Lụa | F103: Xóm 6 | G103: T | H103: T | I103: 9.5 | J103: 9 | K103: 6.75 | L103: 9.5 | M103: 34.75 | O103: X | P103: 6C | Q103: HỌC SINH GIỎI | R103: =IF(Table1[[#This Row],[STT]]="","",ROW()-1) -> 102 | S103: =IF(Table1[[#This Row],[Lơp]]="","",VLOOKUP(Table1[[#This Row],[Lơp]],$AC$3:$AD$14,2,0)) -> 100 | T103: =IF(AND(Q103="HỌC SINH XUẤT SẮC",LEFT(P103,1)="9"),Table1[[#This Row],[Column1]]+(ROUND(M103,3))+400+ROW()/10000,IF(AND(Q103="HỌC SINH XUẤT SẮC",LEFT(P103,1)="8"),Table1[[#This Row],[Column1]]+(ROUND(M103,3))+450+ROW()/10000,IF(AND(Q103="HỌC SINH XUẤT SẮC",LEFT(P103,1)="7"),Table1[[#This Row],[Column1]]+(ROUND(M103,3))+500+ROW()/10000,IF(AND(Q103="HỌC SINH XUẤT SẮC",LEFT(P103,1)="6"),Table1[[#This Row],[Column1]]+(ROUND(M103,3))+550+ROW()/10000,IF(AND(Q103="HỌC SINH GIỎI",LEFT(P103,1)="9"),Table1[[#This Row],[Column1]]+(ROUND(M103,3))+10+ROW()/10000,IF(AND(Q103="HỌC SINH GIỎI",LEFT(P103,1)="8"),Table1[[#This Row],[Column1]]+(ROUND(M103,3))+ 50+ROW()/10000,IF(AND(Q103="HỌC SINH GIỎI",LEFT(P103,1)="7"),Table1[[#This Row],[Column1]]+(ROUND(M103,3))+100+ROW()/10000,IF(AND(Q103="HỌC SINH GIỎI",LEFT(P103,1)="6"),Table1[[#This Row],[Column1]]+(ROUND(M103,3))+150+ROW()/10000,"")))))))) -> 284.7603 | U103: =IF(AND(Q103="HỌC SINH XUẤT SẮC",LEFT(P103,1)="9"),(ROUND(M103,3))+Table1[[#This Row],[Column1]]+10+ROW()/10000,IF(AND(Q103="HỌC SINH XUẤT SẮC",LEFT(P103,1)="8"),Table1[[#This Row],[Column1]]+(ROUND(M103,3))+50+ROW()/10000,IF(AND(Q103="HỌC SINH XUẤT SẮC",LEFT(P103,1)="7"),Table1[[#This Row],[Column1]]+(ROUND(M103,3))+100+ROW()/10000,IF(AND(Q103="HỌC SINH XUẤT SẮC",LEFT(P103,1)="6"),Table1[[#This Row],[Column1]]+(ROUND(M103,3))+150+ROW()/10000,"")))) ->  | V103: =IF(AND(Q103="HỌC SINH GIỎI",LEFT(P103,1)="9"),Table1[[#This Row],[Column1]]+(ROUND(M103,3))+200+ROW()/10000,IF(AND(Q103="HỌC SINH GIỎI",LEFT(P103,1)="8"),Table1[[#This Row],[Column1]]+(ROUND(M103,3))+250+ROW()/10000,IF(AND(Q103="HỌC SINH GIỎI",LEFT(P103,1)="7"),Table1[[#This Row],[Column1]]+(ROUND(M103,3))+300+ROW()/10000,IF(AND(Q103="HỌC SINH GIỎI",LEFT(P103,1)="6"),Table1[[#This Row],[Column1]]+(ROUND(M103,3))+350+ROW()/10000,"")))) -> 484.7603 | W103: Lê Thu | X103: Diệu | Y103: HỌC SINH GIỎI | Z103: 6C
A104: 103 | B104: Nguyễn Kim | C104: Dung | D104: 23/04/2014 | E104: Nguyễn Văn Đoàn | F104: Xóm 9 | G104: T | H104: T | I104: 8 | J104: 8 | K104: 6 | L104: 9 | M104: 31 | O104: X | P104: 6C | Q104: HỌC SINH GIỎI | R104: =IF(Table1[[#This Row],[STT]]="","",ROW()-1) -> 103 | S104: =IF(Table1[[#This Row],[Lơp]]="","",VLOOKUP(Table1[[#This Row],[Lơp]],$AC$3:$AD$14,2,0)) -> 100 | T104: =IF(AND(Q104="HỌC SINH XUẤT SẮC",LEFT(P104,1)="9"),Table1[[#This Row],[Column1]]+(ROUND(M104,3))+400+ROW()/10000,IF(AND(Q104="HỌC SINH XUẤT SẮC",LEFT(P104,1)="8"),Table1[[#This Row],[Column1]]+(ROUND(M104,3))+450+ROW()/10000,IF(AND(Q104="HỌC SINH XUẤT SẮC",LEFT(P104,1)="7"),Table1[[#This Row],[Column1]]+(ROUND(M104,3))+500+ROW()/10000,IF(AND(Q104="HỌC SINH XUẤT SẮC",LEFT(P104,1)="6"),Table1[[#This Row],[Column1]]+(ROUND(M104,3))+550+ROW()/10000,IF(AND(Q104="HỌC SINH GIỎI",LEFT(P104,1)="9"),Table1[[#This Row],[Column1]]+(ROUND(M104,3))+10+ROW()/10000,IF(AND(Q104="HỌC SINH GIỎI",LEFT(P104,1)="8"),Table1[[#This Row],[Column1]]+(ROUND(M104,3))+ 50+ROW()/10000,IF(AND(Q104="HỌC SINH GIỎI",LEFT(P104,1)="7"),Table1[[#This Row],[Column1]]+(ROUND(M104,3))+100+ROW()/10000,IF(AND(Q104="HỌC SINH GIỎI",LEFT(P104,1)="6"),Table1[[#This Row],[Column1]]+(ROUND(M104,3))+150+ROW()/10000,"")))))))) -> 281.0104 | U104: =IF(AND(Q104="HỌC SINH XUẤT SẮC",LEFT(P104,1)="9"),(ROUND(M104,3))+Table1[[#This Row],[Column1]]+10+ROW()/10000,IF(AND(Q104="HỌC SINH XUẤT SẮC",LEFT(P104,1)="8"),Table1[[#This Row],[Column1]]+(ROUND(M104,3))+50+ROW()/10000,IF(AND(Q104="HỌC SINH XUẤT SẮC",LEFT(P104,1)="7"),Table1[[#This Row],[Column1]]+(ROUND(M104,3))+100+ROW()/10000,IF(AND(Q104="HỌC SINH XUẤT SẮC",LEFT(P104,1)="6"),Table1[[#This Row],[Column1]]+(ROUND(M104,3))+150+ROW()/10000,"")))) ->  | V104: =IF(AND(Q104="HỌC SINH GIỎI",LEFT(P104,1)="9"),Table1[[#This Row],[Column1]]+(ROUND(M104,3))+200+ROW()/10000,IF(AND(Q104="HỌC SINH GIỎI",LEFT(P104,1)="8"),Table1[[#This Row],[Column1]]+(ROUND(M104,3))+250+ROW()/10000,IF(AND(Q104="HỌC SINH GIỎI",LEFT(P104,1)="7"),Table1[[#This Row],[Column1]]+(ROUND(M104,3))+300+ROW()/10000,IF(AND(Q104="HỌC SINH GIỎI",LEFT(P104,1)="6"),Table1[[#This Row],[Column1]]+(ROUND(M104,3))+350+ROW()/10000,"")))) -> 481.0104 | W104: Nguyễn Kim | X104: Dung | Y104: HỌC SINH GIỎI | Z104: 6C
A105: 104 | B105: Trần Thị | C105: Dung | D105: 02/05/2014 | E105: Trần Văn Tuyển | F105: Xóm 8 | G105: T | H105: T | I105: 9.25 | J105: 9.25 | K105: 7 | L105: 8.5 | M105: 34 | N105: X | P105: 6C | Q105: HỌC SINH XUẤT SẮC | R105: =IF(Table1[[#This Row],[STT]]="","",ROW()-1) -> 104 | S105: =IF(Table1[[#This Row],[Lơp]]="","",VLOOKUP(Table1[[#This Row],[Lơp]],$AC$3:$AD$14,2,0)) -> 100 | T105: =IF(AND(Q105="HỌC SINH XUẤT SẮC",LEFT(P105,1)="9"),Table1[[#This Row],[Column1]]+(ROUND(M105,3))+400+ROW()/10000,IF(AND(Q105="HỌC SINH XUẤT SẮC",LEFT(P105,1)="8"),Table1[[#This Row],[Column1]]+(ROUND(M105,3))+450+ROW()/10000,IF(AND(Q105="HỌC SINH XUẤT SẮC",LEFT(P105,1)="7"),Table1[[#This Row],[Column1]]+(ROUND(M105,3))+500+ROW()/10000,IF(AND(Q105="HỌC SINH XUẤT SẮC",LEFT(P105,1)="6"),Table1[[#This Row],[Column1]]+(ROUND(M105,3))+550+ROW()/10000,IF(AND(Q105="HỌC SINH GIỎI",LEFT(P105,1)="9"),Table1[[#This Row],[Column1]]+(ROUND(M105,3))+10+ROW()/10000,IF(AND(Q105="HỌC SINH GIỎI",LEFT(P105,1)="8"),Table1[[#This Row],[Column1]]+(ROUND(M105,3))+ 50+ROW()/10000,IF(AND(Q105="HỌC SINH GIỎI",LEFT(P105,1)="7"),Table1[[#This Row],[Column1]]+(ROUND(M105,3))+100+ROW()/10000,IF(AND(Q105="HỌC SINH GIỎI",LEFT(P105,1)="6"),Table1[[#This Row],[Column1]]+(ROUND(M105,3))+150+ROW()/10000,"")))))))) -> 684.0105 | U105: =IF(AND(Q105="HỌC SINH XUẤT SẮC",LEFT(P105,1)="9"),(ROUND(M105,3))+Table1[[#This Row],[Column1]]+10+ROW()/10000,IF(AND(Q105="HỌC SINH XUẤT SẮC",LEFT(P105,1)="8"),Table1[[#This Row],[Column1]]+(ROUND(M105,3))+50+ROW()/10000,IF(AND(Q105="HỌC SINH XUẤT SẮC",LEFT(P105,1)="7"),Table1[[#This Row],[Column1]]+(ROUND(M105,3))+100+ROW()/10000,IF(AND(Q105="HỌC SINH XUẤT SẮC",LEFT(P105,1)="6"),Table1[[#This Row],[Column1]]+(ROUND(M105,3))+150+ROW()/10000,"")))) -> 284.0105 | V105: =IF(AND(Q105="HỌC SINH GIỎI",LEFT(P105,1)="9"),Table1[[#This Row],[Column1]]+(ROUND(M105,3))+200+ROW()/10000,IF(AND(Q105="HỌC SINH GIỎI",LEFT(P105,1)="8"),Table1[[#This Row],[Column1]]+(ROUND(M105,3))+250+ROW()/10000,IF(AND(Q105="HỌC SINH GIỎI",LEFT(P105,1)="7"),Table1[[#This Row],[Column1]]+(ROUND(M105,3))+300+ROW()/10000,IF(AND(Q105="HỌC SINH GIỎI",LEFT(P105,1)="6"),Table1[[#This Row],[Column1]]+(ROUND(M105,3))+350+ROW()/10000,"")))) ->  | W105: Trần Thị | X105: Dung | Y105: HỌC SINH XUẤT SẮC | Z105: 6C
A106: 105 | B106: Đặng Quang | C106: Dũng | D106: 12/09/2014 | E106: Đặng Thanh Quý | F106: Xóm 13 | G106: T | H106: T | I106: 9.25 | J106: 9 | K106: 6 | L106: 8.5 | M106: 32.75 | O106: X | P106: 6C | Q106: HỌC SINH GIỎI | R106: =IF(Table1[[#This Row],[STT]]="","",ROW()-1) -> 105 | S106: =IF(Table1[[#This Row],[Lơp]]="","",VLOOKUP(Table1[[#This Row],[Lơp]],$AC$3:$AD$14,2,0)) -> 100 | T106: =IF(AND(Q106="HỌC SINH XUẤT SẮC",LEFT(P106,1)="9"),Table1[[#This Row],[Column1]]+(ROUND(M106,3))+400+ROW()/10000,IF(AND(Q106="HỌC SINH XUẤT SẮC",LEFT(P106,1)="8"),Table1[[#This Row],[Column1]]+(ROUND(M106,3))+450+ROW()/10000,IF(AND(Q106="HỌC SINH XUẤT SẮC",LEFT(P106,1)="7"),Table1[[#This Row],[Column1]]+(ROUND(M106,3))+500+ROW()/10000,IF(AND(Q106="HỌC SINH XUẤT SẮC",LEFT(P106,1)="6"),Table1[[#This Row],[Column1]]+(ROUND(M106,3))+550+ROW()/10000,IF(AND(Q106="HỌC SINH GIỎI",LEFT(P106,1)="9"),Table1[[#This Row],[Column1]]+(ROUND(M106,3))+10+ROW()/10000,IF(AND(Q106="HỌC SINH GIỎI",LEFT(P106,1)="8"),Table1[[#This Row],[Column1]]+(ROUND(M106,3))+ 50+ROW()/10000,IF(AND(Q106="HỌC SINH GIỎI",LEFT(P106,1)="7"),Table1[[#This Row],[Column1]]+(ROUND(M106,3))+100+ROW()/10000,IF(AND(Q106="HỌC SINH GIỎI",LEFT(P106,1)="6"),Table1[[#This Row],[Column1]]+(ROUND(M106,3))+150+ROW()/10000,"")))))))) -> 282.7606 | U106: =IF(AND(Q106="HỌC SINH XUẤT SẮC",LEFT(P106,1)="9"),(ROUND(M106,3))+Table1[[#This Row],[Column1]]+10+ROW()/10000,IF(AND(Q106="HỌC SINH XUẤT SẮC",LEFT(P106,1)="8"),Table1[[#This Row],[Column1]]+(ROUND(M106,3))+50+ROW()/10000,IF(AND(Q106="HỌC SINH XUẤT SẮC",LEFT(P106,1)="7"),Table1[[#This Row],[Column1]]+(ROUND(M106,3))+100+ROW()/10000,IF(AND(Q106="HỌC SINH XUẤT SẮC",LEFT(P106,1)="6"),Table1[[#This Row],[Column1]]+(ROUND(M106,3))+150+ROW()/10000,"")))) ->  | V106: =IF(AND(Q106="HỌC SINH GIỎI",LEFT(P106,1)="9"),Table1[[#This Row],[Column1]]+(ROUND(M106,3))+200+ROW()/10000,IF(AND(Q106="HỌC SINH GIỎI",LEFT(P106,1)="8"),Table1[[#This Row],[Column1]]+(ROUND(M106,3))+250+ROW()/10000,IF(AND(Q106="HỌC SINH GIỎI",LEFT(P106,1)="7"),Table1[[#This Row],[Column1]]+(ROUND(M106,3))+300+ROW()/10000,IF(AND(Q106="HỌC SINH GIỎI",LEFT(P106,1)="6"),Table1[[#This Row],[Column1]]+(ROUND(M106,3))+350+ROW()/10000,"")))) -> 482.7606 | W106: Đặng Quang | X106: Dũng | Y106: HỌC SINH GIỎI | Z106: 6C
A107: 106 | B107: Tống Thùy | C107: Dương | D107: 09/04/2014 | E107: Tống Văn Hiến | F107: Xóm 5 | G107: T | H107: T | I107: 9.75 | J107: 9.25 | K107: 8.25 | L107: 9.5 | M107: 36.75 | N107: X | P107: 6C | Q107: HỌC SINH XUẤT SẮC | R107: =IF(Table1[[#This Row],[STT]]="","",ROW()-1) -> 106 | S107: =IF(Table1[[#This Row],[Lơp]]="","",VLOOKUP(Table1[[#This Row],[Lơp]],$AC$3:$AD$14,2,0)) -> 100 | T107: =IF(AND(Q107="HỌC SINH XUẤT SẮC",LEFT(P107,1)="9"),Table1[[#This Row],[Column1]]+(ROUND(M107,3))+400+ROW()/10000,IF(AND(Q107="HỌC SINH XUẤT SẮC",LEFT(P107,1)="8"),Table1[[#This Row],[Column1]]+(ROUND(M107,3))+450+ROW()/10000,IF(AND(Q107="HỌC SINH XUẤT SẮC",LEFT(P107,1)="7"),Table1[[#This Row],[Column1]]+(ROUND(M107,3))+500+ROW()/10000,IF(AND(Q107="HỌC SINH XUẤT SẮC",LEFT(P107,1)="6"),Table1[[#This Row],[Column1]]+(ROUND(M107,3))+550+ROW()/10000,IF(AND(Q107="HỌC SINH GIỎI",LEFT(P107,1)="9"),Table1[[#This Row],[Column1]]+(ROUND(M107,3))+10+ROW()/10000,IF(AND(Q107="HỌC SINH GIỎI",LEFT(P107,1)="8"),Table1[[#This Row],[Column1]]+(ROUND(M107,3))+ 50+ROW()/10000,IF(AND(Q107="HỌC SINH GIỎI",LEFT(P107,1)="7"),Table1[[#This Row],[Column1]]+(ROUND(M107,3))+100+ROW()/10000,IF(AND(Q107="HỌC SINH GIỎI",LEFT(P107,1)="6"),Table1[[#This Row],[Column1]]+(ROUND(M107,3))+150+ROW()/10000,"")))))))) -> 686.7607 | U107: =IF(AND(Q107="HỌC SINH XUẤT SẮC",LEFT(P107,1)="9"),(ROUND(M107,3))+Table1[[#This Row],[Column1]]+10+ROW()/10000,IF(AND(Q107="HỌC SINH XUẤT SẮC",LEFT(P107,1)="8"),Table1[[#This Row],[Column1]]+(ROUND(M107,3))+50+ROW()/10000,IF(AND(Q107="HỌC SINH XUẤT SẮC",LEFT(P107,1)="7"),Table1[[#This Row],[Column1]]+(ROUND(M107,3))+100+ROW()/10000,IF(AND(Q107="HỌC SINH XUẤT SẮC",LEFT(P107,1)="6"),Table1[[#This Row],[Column1]]+(ROUND(M107,3))+150+ROW()/10000,"")))) -> 286.7607 | V107: =IF(AND(Q107="HỌC SINH GIỎI",LEFT(P107,1)="9"),Table1[[#This Row],[Column1]]+(ROUND(M107,3))+200+ROW()/10000,IF(AND(Q107="HỌC SINH GIỎI",LEFT(P107,1)="8"),Table1[[#This Row],[Column1]]+(ROUND(M107,3))+250+ROW()/10000,IF(AND(Q107="HỌC SINH GIỎI",LEFT(P107,1)="7"),Table1[[#This Row],[Column1]]+(ROUND(M107,3))+300+ROW()/10000,IF(AND(Q107="HỌC SINH GIỎI",LEFT(P107,1)="6"),Table1[[#This Row],[Column1]]+(ROUND(M107,3))+350+ROW()/10000,"")))) ->  | W107: Tống Thùy | X107: Dương | Y107: HỌC SINH XUẤT SẮC | Z107: 6C
A108: 107 | B108: Phạm Minh | C108: Đăng | D108: 29/10/2014 | E108: Phạm Văn Tài | F108: Xóm 1 | G108: T | H108: T | I108: 8 | J108: 9 | K108: 7.5 | L108: 9.5 | M108: 34 | O108: X | P108: 6C | Q108: HỌC SINH GIỎI | R108: =IF(Table1[[#This Row],[STT]]="","",ROW()-1) -> 107 | S108: =IF(Table1[[#This Row],[Lơp]]="","",VLOOKUP(Table1[[#This Row],[Lơp]],$AC$3:$AD$14,2,0)) -> 100 | T108: =IF(AND(Q108="HỌC SINH XUẤT SẮC",LEFT(P108,1)="9"),Table1[[#This Row],[Column1]]+(ROUND(M108,3))+400+ROW()/10000,IF(AND(Q108="HỌC SINH XUẤT SẮC",LEFT(P108,1)="8"),Table1[[#This Row],[Column1]]+(ROUND(M108,3))+450+ROW()/10000,IF(AND(Q108="HỌC SINH XUẤT SẮC",LEFT(P108,1)="7"),Table1[[#This Row],[Column1]]+(ROUND(M108,3))+500+ROW()/10000,IF(AND(Q108="HỌC SINH XUẤT SẮC",LEFT(P108,1)="6"),Table1[[#This Row],[Column1]]+(ROUND(M108,3))+550+ROW()/10000,IF(AND(Q108="HỌC SINH GIỎI",LEFT(P108,1)="9"),Table1[[#This Row],[Column1]]+(ROUND(M108,3))+10+ROW()/10000,IF(AND(Q108="HỌC SINH GIỎI",LEFT(P108,1)="8"),Table1[[#This Row],[Column1]]+(ROUND(M108,3))+ 50+ROW()/10000,IF(AND(Q108="HỌC SINH GIỎI",LEFT(P108,1)="7"),Table1[[#This Row],[Column1]]+(ROUND(M108,3))+100+ROW()/10000,IF(AND(Q108="HỌC SINH GIỎI",LEFT(P108,1)="6"),Table1[[#This Row],[Column1]]+(ROUND(M108,3))+150+ROW()/10000,"")))))))) -> 284.0108 | U108: =IF(AND(Q108="HỌC SINH XUẤT SẮC",LEFT(P108,1)="9"),(ROUND(M108,3))+Table1[[#This Row],[Column1]]+10+ROW()/10000,IF(AND(Q108="HỌC SINH XUẤT SẮC",LEFT(P108,1)="8"),Table1[[#This Row],[Column1]]+(ROUND(M108,3))+50+ROW()/10000,IF(AND(Q108="HỌC SINH XUẤT SẮC",LEFT(P108,1)="7"),Table1[[#This Row],[Column1]]+(ROUND(M108,3))+100+ROW()/10000,IF(AND(Q108="HỌC SINH XUẤT SẮC",LEFT(P108,1)="6"),Table1[[#This Row],[Column1]]+(ROUND(M108,3))+150+ROW()/10000,"")))) ->  | V108: =IF(AND(Q108="HỌC SINH GIỎI",LEFT(P108,1)="9"),Table1[[#This Row],[Column1]]+(ROUND(M108,3))+200+ROW()/10000,IF(AND(Q108="HỌC SINH GIỎI",LEFT(P108,1)="8"),Table1[[#This Row],[Column1]]+(ROUND(M108,3))+250+ROW()/10000,IF(AND(Q108="HỌC SINH GIỎI",LEFT(P108,1)="7"),Table1[[#This Row],[Column1]]+(ROUND(M108,3))+300+ROW()/10000,IF(AND(Q108="HỌC SINH GIỎI",LEFT(P108,1)="6"),Table1[[#This Row],[Column1]]+(ROUND(M108,3))+350+ROW()/10000,"")))) -> 484.0108 | W108: Phạm Minh | X108: Đăng | Y108: HỌC SINH GIỎI | Z108: 6C
A109: 108 | B109: Trần Hải | C109: Đăng | D109: 22/02/2014 | E109: Trần Văn Du | F109: Xóm 5 | G109: T | H109: T | I109: 8.25 | J109: 8 | K109: 6 | L109: 9.25 | M109: 31.5 | O109: X | P109: 6C | Q109: HỌC SINH GIỎI | R109: =IF(Table1[[#This Row],[STT]]="","",ROW()-1) -> 108 | S109: =IF(Table1[[#This Row],[Lơp]]="","",VLOOKUP(Table1[[#This Row],[Lơp]],$AC$3:$AD$14,2,0)) -> 100 | T109: =IF(AND(Q109="HỌC SINH XUẤT SẮC",LEFT(P109,1)="9"),Table1[[#This Row],[Column1]]+(ROUND(M109,3))+400+ROW()/10000,IF(AND(Q109="HỌC SINH XUẤT SẮC",LEFT(P109,1)="8"),Table1[[#This Row],[Column1]]+(ROUND(M109,3))+450+ROW()/10000,IF(AND(Q109="HỌC SINH XUẤT SẮC",LEFT(P109,1)="7"),Table1[[#This Row],[Column1]]+(ROUND(M109,3))+500+ROW()/10000,IF(AND(Q109="HỌC SINH XUẤT SẮC",LEFT(P109,1)="6"),Table1[[#This Row],[Column1]]+(ROUND(M109,3))+550+ROW()/10000,IF(AND(Q109="HỌC SINH GIỎI",LEFT(P109,1)="9"),Table1[[#This Row],[Column1]]+(ROUND(M109,3))+10+ROW()/10000,IF(AND(Q109="HỌC SINH GIỎI",LEFT(P109,1)="8"),Table1[[#This Row],[Column1]]+(ROUND(M109,3))+ 50+ROW()/10000,IF(AND(Q109="HỌC SINH GIỎI",LEFT(P109,1)="7"),Table1[[#This Row],[Column1]]+(ROUND(M109,3))+100+ROW()/10000,IF(AND(Q109="HỌC SINH GIỎI",LEFT(P109,1)="6"),Table1[[#This Row],[Column1]]+(ROUND(M109,3))+150+ROW()/10000,"")))))))) -> 281.5109 | U109: =IF(AND(Q109="HỌC SINH XUẤT SẮC",LEFT(P109,1)="9"),(ROUND(M109,3))+Table1[[#This Row],[Column1]]+10+ROW()/10000,IF(AND(Q109="HỌC SINH XUẤT SẮC",LEFT(P109,1)="8"),Table1[[#This Row],[Column1]]+(ROUND(M109,3))+50+ROW()/10000,IF(AND(Q109="HỌC SINH XUẤT SẮC",LEFT(P109,1)="7"),Table1[[#This Row],[Column1]]+(ROUND(M109,3))+100+ROW()/10000,IF(AND(Q109="HỌC SINH XUẤT SẮC",LEFT(P109,1)="6"),Table1[[#This Row],[Column1]]+(ROUND(M109,3))+150+ROW()/10000,"")))) ->  | V109: =IF(AND(Q109="HỌC SINH GIỎI",LEFT(P109,1)="9"),Table1[[#This Row],[Column1]]+(ROUND(M109,3))+200+ROW()/10000,IF(AND(Q109="HỌC SINH GIỎI",LEFT(P109,1)="8"),Table1[[#This Row],[Column1]]+(ROUND(M109,3))+250+ROW()/10000,IF(AND(Q109="HỌC SINH GIỎI",LEFT(P109,1)="7"),Table1[[#This Row],[Column1]]+(ROUND(M109,3))+300+ROW()/10000,IF(AND(Q109="HỌC SINH GIỎI",LEFT(P109,1)="6"),Table1[[#This Row],[Column1]]+(ROUND(M109,3))+350+ROW()/10000,"")))) -> 481.5109 | W109: Trần Hải | X109: Đăng | Y109: HỌC SINH GIỎI | Z109: 6C
A110: 109 | B110: Trần Hương | C110: Giang | D110: 15/04/2014 | E110: Trần Văn Lưỡng | F110: Xóm 7 | G110: T | H110: T | I110: 9.5 | J110: 8.5 | K110: 7.5 | L110: 9.75 | M110: 35.25 | O110: X | P110: 6C | Q110: HỌC SINH GIỎI | R110: =IF(Table1[[#This Row],[STT]]="","",ROW()-1) -> 109 | S110: =IF(Table1[[#This Row],[Lơp]]="","",VLOOKUP(Table1[[#This Row],[Lơp]],$AC$3:$AD$14,2,0)) -> 100 | T110: =IF(AND(Q110="HỌC SINH XUẤT SẮC",LEFT(P110,1)="9"),Table1[[#This Row],[Column1]]+(ROUND(M110,3))+400+ROW()/10000,IF(AND(Q110="HỌC SINH XUẤT SẮC",LEFT(P110,1)="8"),Table1[[#This Row],[Column1]]+(ROUND(M110,3))+450+ROW()/10000,IF(AND(Q110="HỌC SINH XUẤT SẮC",LEFT(P110,1)="7"),Table1[[#This Row],[Column1]]+(ROUND(M110,3))+500+ROW()/10000,IF(AND(Q110="HỌC SINH XUẤT SẮC",LEFT(P110,1)="6"),Table1[[#This Row],[Column1]]+(ROUND(M110,3))+550+ROW()/10000,IF(AND(Q110="HỌC SINH GIỎI",LEFT(P110,1)="9"),Table1[[#This Row],[Column1]]+(ROUND(M110,3))+10+ROW()/10000,IF(AND(Q110="HỌC SINH GIỎI",LEFT(P110,1)="8"),Table1[[#This Row],[Column1]]+(ROUND(M110,3))+ 50+ROW()/10000,IF(AND(Q110="HỌC SINH GIỎI",LEFT(P110,1)="7"),Table1[[#This Row],[Column1]]+(ROUND(M110,3))+100+ROW()/10000,IF(AND(Q110="HỌC SINH GIỎI",LEFT(P110,1)="6"),Table1[[#This Row],[Column1]]+(ROUND(M110,3))+150+ROW()/10000,"")))))))) -> 285.261 | U110: =IF(AND(Q110="HỌC SINH XUẤT SẮC",LEFT(P110,1)="9"),(ROUND(M110,3))+Table1[[#This Row],[Column1]]+10+ROW()/10000,IF(AND(Q110="HỌC SINH XUẤT SẮC",LEFT(P110,1)="8"),Table1[[#This Row],[Column1]]+(ROUND(M110,3))+50+ROW()/10000,IF(AND(Q110="HỌC SINH XUẤT SẮC",LEFT(P110,1)="7"),Table1[[#This Row],[Column1]]+(ROUND(M110,3))+100+ROW()/10000,IF(AND(Q110="HỌC SINH XUẤT SẮC",LEFT(P110,1)="6"),Table1[[#This Row],[Column1]]+(ROUND(M110,3))+150+ROW()/10000,"")))) ->  | V110: =IF(AND(Q110="HỌC SINH GIỎI",LEFT(P110,1)="9"),Table1[[#This Row],[Column1]]+(ROUND(M110,3))+200+ROW()/10000,IF(AND(Q110="HỌC SINH GIỎI",LEFT(P110,1)="8"),Table1[[#This Row],[Column1]]+(ROUND(M110,3))+250+ROW()/10000,IF(AND(Q110="HỌC SINH GIỎI",LEFT(P110,1)="7"),Table1[[#This Row],[Column1]]+(ROUND(M110,3))+300+ROW()/10000,IF(AND(Q110="HỌC SINH GIỎI",LEFT(P110,1)="6"),Table1[[#This Row],[Column1]]+(ROUND(M110,3))+350+ROW()/10000,"")))) -> 485.261 | W110: Trần Hương | X110: Giang | Y110: HỌC SINH GIỎI | Z110: 6C
A111: 110 | B111: Phạm Ngân | C111: Hà | D111: 20/10/2014 | E111: Phạm Đăng Quỳ | F111: Xóm 2 | G111: T | H111: T | I111: 8.5 | J111: 8.75 | K111: 7.25 | L111: 9.5 | M111: 34 | O111: X | P111: 6C | Q111: HỌC SINH GIỎI | R111: =IF(Table1[[#This Row],[STT]]="","",ROW()-1) -> 110 | S111: =IF(Table1[[#This Row],[Lơp]]="","",VLOOKUP(Table1[[#This Row],[Lơp]],$AC$3:$AD$14,2,0)) -> 100 | T111: =IF(AND(Q111="HỌC SINH XUẤT SẮC",LEFT(P111,1)="9"),Table1[[#This Row],[Column1]]+(ROUND(M111,3))+400+ROW()/10000,IF(AND(Q111="HỌC SINH XUẤT SẮC",LEFT(P111,1)="8"),Table1[[#This Row],[Column1]]+(ROUND(M111,3))+450+ROW()/10000,IF(AND(Q111="HỌC SINH XUẤT SẮC",LEFT(P111,1)="7"),Table1[[#This Row],[Column1]]+(ROUND(M111,3))+500+ROW()/10000,IF(AND(Q111="HỌC SINH XUẤT SẮC",LEFT(P111,1)="6"),Table1[[#This Row],[Column1]]+(ROUND(M111,3))+550+ROW()/10000,IF(AND(Q111="HỌC SINH GIỎI",LEFT(P111,1)="9"),Table1[[#This Row],[Column1]]+(ROUND(M111,3))+10+ROW()/10000,IF(AND(Q111="HỌC SINH GIỎI",LEFT(P111,1)="8"),Table1[[#This Row],[Column1]]+(ROUND(M111,3))+ 50+ROW()/10000,IF(AND(Q111="HỌC SINH GIỎI",LEFT(P111,1)="7"),Table1[[#This Row],[Column1]]+(ROUND(M111,3))+100+ROW()/10000,IF(AND(Q111="HỌC SINH GIỎI",LEFT(P111,1)="6"),Table1[[#This Row],[Column1]]+(ROUND(M111,3))+150+ROW()/10000,"")))))))) -> 284.0111 | U111: =IF(AND(Q111="HỌC SINH XUẤT SẮC",LEFT(P111,1)="9"),(ROUND(M111,3))+Table1[[#This Row],[Column1]]+10+ROW()/10000,IF(AND(Q111="HỌC SINH XUẤT SẮC",LEFT(P111,1)="8"),Table1[[#This Row],[Column1]]+(ROUND(M111,3))+50+ROW()/10000,IF(AND(Q111="HỌC SINH XUẤT SẮC",LEFT(P111,1)="7"),Table1[[#This Row],[Column1]]+(ROUND(M111,3))+100+ROW()/10000,IF(AND(Q111="HỌC SINH XUẤT SẮC",LEFT(P111,1)="6"),Table1[[#This Row],[Column1]]+(ROUND(M111,3))+150+ROW()/10000,"")))) ->  | V111: =IF(AND(Q111="HỌC SINH GIỎI",LEFT(P111,1)="9"),Table1[[#This Row],[Column1]]+(ROUND(M111,3))+200+ROW()/10000,IF(AND(Q111="HỌC SINH GIỎI",LEFT(P111,1)="8"),Table1[[#This Row],[Column1]]+(ROUND(M111,3))+250+ROW()/10000,IF(AND(Q111="HỌC SINH GIỎI",LEFT(P111,1)="7"),Table1[[#This Row],[Column1]]+(ROUND(M111,3))+300+ROW()/10000,IF(AND(Q111="HỌC SINH GIỎI",LEFT(P111,1)="6"),Table1[[#This Row],[Column1]]+(ROUND(M111,3))+350+ROW()/10000,"")))) -> 484.0111 | W111: Phạm Ngân | X111: Hà | Y111: HỌC SINH GIỎI | Z111: 6C
A112: 111 | B112: Phạm Huy | C112: Hiệu | D112: 24/03/2014 | E112: Phạm Thế Hưng | F112: Xóm 1 | G112: T | H112: T | I112: 7.75 | J112: 7.5 | K112: 7 | L112: 9.5 | M112: 31.75 | O112: X | P112: 6C | Q112: HỌC SINH GIỎI | R112: =IF(Table1[[#This Row],[STT]]="","",ROW()-1) -> 111 | S112: =IF(Table1[[#This Row],[Lơp]]="","",VLOOKUP(Table1[[#This Row],[Lơp]],$AC$3:$AD$14,2,0)) -> 100 | T112: =IF(AND(Q112="HỌC SINH XUẤT SẮC",LEFT(P112,1)="9"),Table1[[#This Row],[Column1]]+(ROUND(M112,3))+400+ROW()/10000,IF(AND(Q112="HỌC SINH XUẤT SẮC",LEFT(P112,1)="8"),Table1[[#This Row],[Column1]]+(ROUND(M112,3))+450+ROW()/10000,IF(AND(Q112="HỌC SINH XUẤT SẮC",LEFT(P112,1)="7"),Table1[[#This Row],[Column1]]+(ROUND(M112,3))+500+ROW()/10000,IF(AND(Q112="HỌC SINH XUẤT SẮC",LEFT(P112,1)="6"),Table1[[#This Row],[Column1]]+(ROUND(M112,3))+550+ROW()/10000,IF(AND(Q112="HỌC SINH GIỎI",LEFT(P112,1)="9"),Table1[[#This Row],[Column1]]+(ROUND(M112,3))+10+ROW()/10000,IF(AND(Q112="HỌC SINH GIỎI",LEFT(P112,1)="8"),Table1[[#This Row],[Column1]]+(ROUND(M112,3))+ 50+ROW()/10000,IF(AND(Q112="HỌC SINH GIỎI",LEFT(P112,1)="7"),Table1[[#This Row],[Column1]]+(ROUND(M112,3))+100+ROW()/10000,IF(AND(Q112="HỌC SINH GIỎI",LEFT(P112,1)="6"),Table1[[#This Row],[Column1]]+(ROUND(M112,3))+150+ROW()/10000,"")))))))) -> 281.7612 | U112: =IF(AND(Q112="HỌC SINH XUẤT SẮC",LEFT(P112,1)="9"),(ROUND(M112,3))+Table1[[#This Row],[Column1]]+10+ROW()/10000,IF(AND(Q112="HỌC SINH XUẤT SẮC",LEFT(P112,1)="8"),Table1[[#This Row],[Column1]]+(ROUND(M112,3))+50+ROW()/10000,IF(AND(Q112="HỌC SINH XUẤT SẮC",LEFT(P112,1)="7"),Table1[[#This Row],[Column1]]+(ROUND(M112,3))+100+ROW()/10000,IF(AND(Q112="HỌC SINH XUẤT SẮC",LEFT(P112,1)="6"),Table1[[#This Row],[Column1]]+(ROUND(M112,3))+150+ROW()/10000,"")))) ->  | V112: =IF(AND(Q112="HỌC SINH GIỎI",LEFT(P112,1)="9"),Table1[[#This Row],[Column1]]+(ROUND(M112,3))+200+ROW()/10000,IF(AND(Q112="HỌC SINH GIỎI",LEFT(P112,1)="8"),Table1[[#This Row],[Column1]]+(ROUND(M112,3))+250+ROW()/10000,IF(AND(Q112="HỌC SINH GIỎI",LEFT(P112,1)="7"),Table1[[#This Row],[Column1]]+(ROUND(M112,3))+300+ROW()/10000,IF(AND(Q112="HỌC SINH GIỎI",LEFT(P112,1)="6"),Table1[[#This Row],[Column1]]+(ROUND(M112,3))+350+ROW()/10000,"")))) -> 481.7612 | W112: Phạm Huy | X112: Hiệu | Y112: HỌC SINH GIỎI | Z112: 6C
A113: 112 | B113: Hoàng Khánh | C113: Huyền | D113: 14/07/2014 | E113: Hoàng Đức Hạnh | F113: Xóm 3 | G113: T | H113: T | I113: 8.75 | J113: 7.25 | K113: 6 | L113: 9.75 | M113: 31.75 | O113: X | P113: 6C | Q113: HỌC SINH GIỎI | R113: =IF(Table1[[#This Row],[STT]]="","",ROW()-1) -> 112 | S113: =IF(Table1[[#This Row],[Lơp]]="","",VLOOKUP(Table1[[#This Row],[Lơp]],$AC$3:$AD$14,2,0)) -> 100 | T113: =IF(AND(Q113="HỌC SINH XUẤT SẮC",LEFT(P113,1)="9"),Table1[[#This Row],[Column1]]+(ROUND(M113,3))+400+ROW()/10000,IF(AND(Q113="HỌC SINH XUẤT SẮC",LEFT(P113,1)="8"),Table1[[#This Row],[Column1]]+(ROUND(M113,3))+450+ROW()/10000,IF(AND(Q113="HỌC SINH XUẤT SẮC",LEFT(P113,1)="7"),Table1[[#This Row],[Column1]]+(ROUND(M113,3))+500+ROW()/10000,IF(AND(Q113="HỌC SINH XUẤT SẮC",LEFT(P113,1)="6"),Table1[[#This Row],[Column1]]+(ROUND(M113,3))+550+ROW()/10000,IF(AND(Q113="HỌC SINH GIỎI",LEFT(P113,1)="9"),Table1[[#This Row],[Column1]]+(ROUND(M113,3))+10+ROW()/10000,IF(AND(Q113="HỌC SINH GIỎI",LEFT(P113,1)="8"),Table1[[#This Row],[Column1]]+(ROUND(M113,3))+ 50+ROW()/10000,IF(AND(Q113="HỌC SINH GIỎI",LEFT(P113,1)="7"),Table1[[#This Row],[Column1]]+(ROUND(M113,3))+100+ROW()/10000,IF(AND(Q113="HỌC SINH GIỎI",LEFT(P113,1)="6"),Table1[[#This Row],[Column1]]+(ROUND(M113,3))+150+ROW()/10000,"")))))))) -> 281.7613 | U113: =IF(AND(Q113="HỌC SINH XUẤT SẮC",LEFT(P113,1)="9"),(ROUND(M113,3))+Table1[[#This Row],[Column1]]+10+ROW()/10000,IF(AND(Q113="HỌC SINH XUẤT SẮC",LEFT(P113,1)="8"),Table1[[#This Row],[Column1]]+(ROUND(M113,3))+50+ROW()/10000,IF(AND(Q113="HỌC SINH XUẤT SẮC",LEFT(P113,1)="7"),Table1[[#This Row],[Column1]]+(ROUND(M113,3))+100+ROW()/10000,IF(AND(Q113="HỌC SINH XUẤT SẮC",LEFT(P113,1)="6"),Table1[[#This Row],[Column1]]+(ROUND(M113,3))+150+ROW()/10000,"")))) ->  | V113: =IF(AND(Q113="HỌC SINH GIỎI",LEFT(P113,1)="9"),Table1[[#This Row],[Column1]]+(ROUND(M113,3))+200+ROW()/10000,IF(AND(Q113="HỌC SINH GIỎI",LEFT(P113,1)="8"),Table1[[#This Row],[Column1]]+(ROUND(M113,3))+250+ROW()/10000,IF(AND(Q113="HỌC SINH GIỎI",LEFT(P113,1)="7"),Table1[[#This Row],[Column1]]+(ROUND(M113,3))+300+ROW()/10000,IF(AND(Q113="HỌC SINH GIỎI",LEFT(P113,1)="6"),Table1[[#This Row],[Column1]]+(ROUND(M113,3))+350+ROW()/10000,"")))) -> 481.7613 | W113: Hoàng Khánh | X113: Huyền | Y113: HỌC SINH GIỎI | Z113: 6C
A114: 113 | B114: Lê Nguyên | C114: Khánh | D114: 18/03/2014 | E114: Lê Trường Thanh | F114: Xóm 5 | G114: T | H114: T | I114: 7.75 | J114: 9 | K114: 8.5 | L114: 9.5 | M114: 34.75 | N114: X | P114: 6C | Q114: HỌC SINH XUẤT SẮC | R114: =IF(Table1[[#This Row],[STT]]="","",ROW()-1) -> 113 | S114: =IF(Table1[[#This Row],[Lơp]]="","",VLOOKUP(Table1[[#This Row],[Lơp]],$AC$3:$AD$14,2,0)) -> 100 | T114: =IF(AND(Q114="HỌC SINH XUẤT SẮC",LEFT(P114,1)="9"),Table1[[#This Row],[Column1]]+(ROUND(M114,3))+400+ROW()/10000,IF(AND(Q114="HỌC SINH XUẤT SẮC",LEFT(P114,1)="8"),Table1[[#This Row],[Column1]]+(ROUND(M114,3))+450+ROW()/10000,IF(AND(Q114="HỌC SINH XUẤT SẮC",LEFT(P114,1)="7"),Table1[[#This Row],[Column1]]+(ROUND(M114,3))+500+ROW()/10000,IF(AND(Q114="HỌC SINH XUẤT SẮC",LEFT(P114,1)="6"),Table1[[#This Row],[Column1]]+(ROUND(M114,3))+550+ROW()/10000,IF(AND(Q114="HỌC SINH GIỎI",LEFT(P114,1)="9"),Table1[[#This Row],[Column1]]+(ROUND(M114,3))+10+ROW()/10000,IF(AND(Q114="HỌC SINH GIỎI",LEFT(P114,1)="8"),Table1[[#This Row],[Column1]]+(ROUND(M114,3))+ 50+ROW()/10000,IF(AND(Q114="HỌC SINH GIỎI",LEFT(P114,1)="7"),Table1[[#This Row],[Column1]]+(ROUND(M114,3))+100+ROW()/10000,IF(AND(Q114="HỌC SINH GIỎI",LEFT(P114,1)="6"),Table1[[#This Row],[Column1]]+(ROUND(M114,3))+150+ROW()/10000,"")))))))) -> 684.7614 | U114: =IF(AND(Q114="HỌC SINH XUẤT SẮC",LEFT(P114,1)="9"),(ROUND(M114,3))+Table1[[#This Row],[Column1]]+10+ROW()/10000,IF(AND(Q114="HỌC SINH XUẤT SẮC",LEFT(P114,1)="8"),Table1[[#This Row],[Column1]]+(ROUND(M114,3))+50+ROW()/10000,IF(AND(Q114="HỌC SINH XUẤT SẮC",LEFT(P114,1)="7"),Table1[[#This Row],[Column1]]+(ROUND(M114,3))+100+ROW()/10000,IF(AND(Q114="HỌC SINH XUẤT SẮC",LEFT(P114,1)="6"),Table1[[#This Row],[Column1]]+(ROUND(M114,3))+150+ROW()/10000,"")))) -> 284.7614 | V114: =IF(AND(Q114="HỌC SINH GIỎI",LEFT(P114,1)="9"),Table1[[#This Row],[Column1]]+(ROUND(M114,3))+200+ROW()/10000,IF(AND(Q114="HỌC SINH GIỎI",LEFT(P114,1)="8"),Table1[[#This Row],[Column1]]+(ROUND(M114,3))+250+ROW()/10000,IF(AND(Q114="HỌC SINH GIỎI",LEFT(P114,1)="7"),Table1[[#This Row],[Column1]]+(ROUND(M114,3))+300+ROW()/10000,IF(AND(Q114="HỌC SINH GIỎI",LEFT(P114,1)="6"),Table1[[#This Row],[Column1]]+(ROUND(M114,3))+350+ROW()/10000,"")))) ->  | W114: Lê Nguyên | X114: Khánh | Y114: HỌC SINH XUẤT SẮC | Z114: 6C
A115: 114 | B115: Phạm Ngọc | C115: Khánh | D115: 22/08/2014 | E115: Phạm Văn Lượng | F115: Xóm 1 | G115: T | H115: T | I115: 9.25 | J115: 9.25 | K115: 7.75 | L115: 9.5 | M115: 35.75 | N115: X | P115: 6C | Q115: HỌC SINH XUẤT SẮC | R115: =IF(Table1[[#This Row],[STT]]="","",ROW()-1) -> 114 | S115: =IF(Table1[[#This Row],[Lơp]]="","",VLOOKUP(Table1[[#This Row],[Lơp]],$AC$3:$AD$14,2,0)) -> 100 | T115: =IF(AND(Q115="HỌC SINH XUẤT SẮC",LEFT(P115,1)="9"),Table1[[#This Row],[Column1]]+(ROUND(M115,3))+400+ROW()/10000,IF(AND(Q115="HỌC SINH XUẤT SẮC",LEFT(P115,1)="8"),Table1[[#This Row],[Column1]]+(ROUND(M115,3))+450+ROW()/10000,IF(AND(Q115="HỌC SINH XUẤT SẮC",LEFT(P115,1)="7"),Table1[[#This Row],[Column1]]+(ROUND(M115,3))+500+ROW()/10000,IF(AND(Q115="HỌC SINH XUẤT SẮC",LEFT(P115,1)="6"),Table1[[#This Row],[Column1]]+(ROUND(M115,3))+550+ROW()/10000,IF(AND(Q115="HỌC SINH GIỎI",LEFT(P115,1)="9"),Table1[[#This Row],[Column1]]+(ROUND(M115,3))+10+ROW()/10000,IF(AND(Q115="HỌC SINH GIỎI",LEFT(P115,1)="8"),Table1[[#This Row],[Column1]]+(ROUND(M115,3))+ 50+ROW()/10000,IF(AND(Q115="HỌC SINH GIỎI",LEFT(P115,1)="7"),Table1[[#This Row],[Column1]]+(ROUND(M115,3))+100+ROW()/10000,IF(AND(Q115="HỌC SINH GIỎI",LEFT(P115,1)="6"),Table1[[#This Row],[Column1]]+(ROUND(M115,3))+150+ROW()/10000,"")))))))) -> 685.7615 | U115: =IF(AND(Q115="HỌC SINH XUẤT SẮC",LEFT(P115,1)="9"),(ROUND(M115,3))+Table1[[#This Row],[Column1]]+10+ROW()/10000,IF(AND(Q115="HỌC SINH XUẤT SẮC",LEFT(P115,1)="8"),Table1[[#This Row],[Column1]]+(ROUND(M115,3))+50+ROW()/10000,IF(AND(Q115="HỌC SINH XUẤT SẮC",LEFT(P115,1)="7"),Table1[[#This Row],[Column1]]+(ROUND(M115,3))+100+ROW()/10000,IF(AND(Q115="HỌC SINH XUẤT SẮC",LEFT(P115,1)="6"),Table1[[#This Row],[Column1]]+(ROUND(M115,3))+150+ROW()/10000,"")))) -> 285.7615 | V115: =IF(AND(Q115="HỌC SINH GIỎI",LEFT(P115,1)="9"),Table1[[#This Row],[Column1]]+(ROUND(M115,3))+200+ROW()/10000,IF(AND(Q115="HỌC SINH GIỎI",LEFT(P115,1)="8"),Table1[[#This Row],[Column1]]+(ROUND(M115,3))+250+ROW()/10000,IF(AND(Q115="HỌC SINH GIỎI",LEFT(P115,1)="7"),Table1[[#This Row],[Column1]]+(ROUND(M115,3))+300+ROW()/10000,IF(AND(Q115="HỌC SINH GIỎI",LEFT(P115,1)="6"),Table1[[#This Row],[Column1]]+(ROUND(M115,3))+350+ROW()/10000,"")))) ->  | W115: Phạm Ngọc | X115: Khánh | Y115: HỌC SINH XUẤT SẮC | Z115: 6C
A116: 115 | B116: Trần Đức | C116: Khoa | D116: 15/03/2014 | E116: Trần Văn Đăng | F116: Xóm 7 | G116: T | H116: T | I116: 8.5 | J116: 9.25 | K116: 7.25 | L116: 9.5 | M116: 34.5 | O116: X | P116: 6C | Q116: HỌC SINH GIỎI | R116: =IF(Table1[[#This Row],[STT]]="","",ROW()-1) -> 115 | S116: =IF(Table1[[#This Row],[Lơp]]="","",VLOOKUP(Table1[[#This Row],[Lơp]],$AC$3:$AD$14,2,0)) -> 100 | T116: =IF(AND(Q116="HỌC SINH XUẤT SẮC",LEFT(P116,1)="9"),Table1[[#This Row],[Column1]]+(ROUND(M116,3))+400+ROW()/10000,IF(AND(Q116="HỌC SINH XUẤT SẮC",LEFT(P116,1)="8"),Table1[[#This Row],[Column1]]+(ROUND(M116,3))+450+ROW()/10000,IF(AND(Q116="HỌC SINH XUẤT SẮC",LEFT(P116,1)="7"),Table1[[#This Row],[Column1]]+(ROUND(M116,3))+500+ROW()/10000,IF(AND(Q116="HỌC SINH XUẤT SẮC",LEFT(P116,1)="6"),Table1[[#This Row],[Column1]]+(ROUND(M116,3))+550+ROW()/10000,IF(AND(Q116="HỌC SINH GIỎI",LEFT(P116,1)="9"),Table1[[#This Row],[Column1]]+(ROUND(M116,3))+10+ROW()/10000,IF(AND(Q116="HỌC SINH GIỎI",LEFT(P116,1)="8"),Table1[[#This Row],[Column1]]+(ROUND(M116,3))+ 50+ROW()/10000,IF(AND(Q116="HỌC SINH GIỎI",LEFT(P116,1)="7"),Table1[[#This Row],[Column1]]+(ROUND(M116,3))+100+ROW()/10000,IF(AND(Q116="HỌC SINH GIỎI",LEFT(P116,1)="6"),Table1[[#This Row],[Column1]]+(ROUND(M116,3))+150+ROW()/10000,"")))))))) -> 284.5116 | U116: =IF(AND(Q116="HỌC SINH XUẤT SẮC",LEFT(P116,1)="9"),(ROUND(M116,3))+Table1[[#This Row],[Column1]]+10+ROW()/10000,IF(AND(Q116="HỌC SINH XUẤT SẮC",LEFT(P116,1)="8"),Table1[[#This Row],[Column1]]+(ROUND(M116,3))+50+ROW()/10000,IF(AND(Q116="HỌC SINH XUẤT SẮC",LEFT(P116,1)="7"),Table1[[#This Row],[Column1]]+(ROUND(M116,3))+100+ROW()/10000,IF(AND(Q116="HỌC SINH XUẤT SẮC",LEFT(P116,1)="6"),Table1[[#This Row],[Column1]]+(ROUND(M116,3))+150+ROW()/10000,"")))) ->  | V116: =IF(AND(Q116="HỌC SINH GIỎI",LEFT(P116,1)="9"),Table1[[#This Row],[Column1]]+(ROUND(M116,3))+200+ROW()/10000,IF(AND(Q116="HỌC SINH GIỎI",LEFT(P116,1)="8"),Table1[[#This Row],[Column1]]+(ROUND(M116,3))+250+ROW()/10000,IF(AND(Q116="HỌC SINH GIỎI",LEFT(P116,1)="7"),Table1[[#This Row],[Column1]]+(ROUND(M116,3))+300+ROW()/10000,IF(AND(Q116="HỌC SINH GIỎI",LEFT(P116,1)="6"),Table1[[#This Row],[Column1]]+(ROUND(M116,3))+350+ROW()/10000,"")))) -> 484.5116 | W116: Trần Đức | X116: Khoa | Y116: HỌC SINH GIỎI | Z116: 6C
A117: 116 | B117: Nguyễn Tùng | C117: Lâm | D117: 05/03/2014 | E117: Nguyễn Văn Duy | F117: Xóm 9 | G117: T | H117: T | I117: 9 | J117: 8.75 | K117: 8.5 | L117: 9.75 | M117: 36 | N117: X | P117: 6C | Q117: HỌC SINH XUẤT SẮC | R117: =IF(Table1[[#This Row],[STT]]="","",ROW()-1) -> 116 | S117: =IF(Table1[[#This Row],[Lơp]]="","",VLOOKUP(Table1[[#This Row],[Lơp]],$AC$3:$AD$14,2,0)) -> 100 | T117: =IF(AND(Q117="HỌC SINH XUẤT SẮC",LEFT(P117,1)="9"),Table1[[#This Row],[Column1]]+(ROUND(M117,3))+400+ROW()/10000,IF(AND(Q117="HỌC SINH XUẤT SẮC",LEFT(P117,1)="8"),Table1[[#This Row],[Column1]]+(ROUND(M117,3))+450+ROW()/10000,IF(AND(Q117="HỌC SINH XUẤT SẮC",LEFT(P117,1)="7"),Table1[[#This Row],[Column1]]+(ROUND(M117,3))+500+ROW()/10000,IF(AND(Q117="HỌC SINH XUẤT SẮC",LEFT(P117,1)="6"),Table1[[#This Row],[Column1]]+(ROUND(M117,3))+550+ROW()/10000,IF(AND(Q117="HỌC SINH GIỎI",LEFT(P117,1)="9"),Table1[[#This Row],[Column1]]+(ROUND(M117,3))+10+ROW()/10000,IF(AND(Q117="HỌC SINH GIỎI",LEFT(P117,1)="8"),Table1[[#This Row],[Column1]]+(ROUND(M117,3))+ 50+ROW()/10000,IF(AND(Q117="HỌC SINH GIỎI",LEFT(P117,1)="7"),Table1[[#This Row],[Column1]]+(ROUND(M117,3))+100+ROW()/10000,IF(AND(Q117="HỌC SINH GIỎI",LEFT(P117,1)="6"),Table1[[#This Row],[Column1]]+(ROUND(M117,3))+150+ROW()/10000,"")))))))) -> 686.0117 | U117: =IF(AND(Q117="HỌC SINH XUẤT SẮC",LEFT(P117,1)="9"),(ROUND(M117,3))+Table1[[#This Row],[Column1]]+10+ROW()/10000,IF(AND(Q117="HỌC SINH XUẤT SẮC",LEFT(P117,1)="8"),Table1[[#This Row],[Column1]]+(ROUND(M117,3))+50+ROW()/10000,IF(AND(Q117="HỌC SINH XUẤT SẮC",LEFT(P117,1)="7"),Table1[[#This Row],[Column1]]+(ROUND(M117,3))+100+ROW()/10000,IF(AND(Q117="HỌC SINH XUẤT SẮC",LEFT(P117,1)="6"),Table1[[#This Row],[Column1]]+(ROUND(M117,3))+150+ROW()/10000,"")))) -> 286.0117 | V117: =IF(AND(Q117="HỌC SINH GIỎI",LEFT(P117,1)="9"),Table1[[#This Row],[Column1]]+(ROUND(M117,3))+200+ROW()/10000,IF(AND(Q117="HỌC SINH GIỎI",LEFT(P117,1)="8"),Table1[[#This Row],[Column1]]+(ROUND(M117,3))+250+ROW()/10000,IF(AND(Q117="HỌC SINH GIỎI",LEFT(P117,1)="7"),Table1[[#This Row],[Column1]]+(ROUND(M117,3))+300+ROW()/10000,IF(AND(Q117="HỌC SINH GIỎI",LEFT(P117,1)="6"),Table1[[#This Row],[Column1]]+(ROUND(M117,3))+350+ROW()/10000,"")))) ->  | W117: Nguyễn Tùng | X117: Lâm | Y117: HỌC SINH XUẤT SẮC | Z117: 6C
A118: 117 | B118: Mai Khánh | C118: Lệ | D118: 04/04/2014 | E118: Mai Văn Điện | F118: Xóm 3 | G118: T | H118: T | I118: 9.25 | J118: 9 | K118: 7 | L118: 9.25 | M118: 34.5 | O118: X | P118: 6C | Q118: HỌC SINH GIỎI | R118: =IF(Table1[[#This Row],[STT]]="","",ROW()-1) -> 117 | S118: =IF(Table1[[#This Row],[Lơp]]="","",VLOOKUP(Table1[[#This Row],[Lơp]],$AC$3:$AD$14,2,0)) -> 100 | T118: =IF(AND(Q118="HỌC SINH XUẤT SẮC",LEFT(P118,1)="9"),Table1[[#This Row],[Column1]]+(ROUND(M118,3))+400+ROW()/10000,IF(AND(Q118="HỌC SINH XUẤT SẮC",LEFT(P118,1)="8"),Table1[[#This Row],[Column1]]+(ROUND(M118,3))+450+ROW()/10000,IF(AND(Q118="HỌC SINH XUẤT SẮC",LEFT(P118,1)="7"),Table1[[#This Row],[Column1]]+(ROUND(M118,3))+500+ROW()/10000,IF(AND(Q118="HỌC SINH XUẤT SẮC",LEFT(P118,1)="6"),Table1[[#This Row],[Column1]]+(ROUND(M118,3))+550+ROW()/10000,IF(AND(Q118="HỌC SINH GIỎI",LEFT(P118,1)="9"),Table1[[#This Row],[Column1]]+(ROUND(M118,3))+10+ROW()/10000,IF(AND(Q118="HỌC SINH GIỎI",LEFT(P118,1)="8"),Table1[[#This Row],[Column1]]+(ROUND(M118,3))+ 50+ROW()/10000,IF(AND(Q118="HỌC SINH GIỎI",LEFT(P118,1)="7"),Table1[[#This Row],[Column1]]+(ROUND(M118,3))+100+ROW()/10000,IF(AND(Q118="HỌC SINH GIỎI",LEFT(P118,1)="6"),Table1[[#This Row],[Column1]]+(ROUND(M118,3))+150+ROW()/10000,"")))))))) -> 284.5118 | U118: =IF(AND(Q118="HỌC SINH XUẤT SẮC",LEFT(P118,1)="9"),(ROUND(M118,3))+Table1[[#This Row],[Column1]]+10+ROW()/10000,IF(AND(Q118="HỌC SINH XUẤT SẮC",LEFT(P118,1)="8"),Table1[[#This Row],[Column1]]+(ROUND(M118,3))+50+ROW()/10000,IF(AND(Q118="HỌC SINH XUẤT SẮC",LEFT(P118,1)="7"),Table1[[#This Row],[Column1]]+(ROUND(M118,3))+100+ROW()/10000,IF(AND(Q118="HỌC SINH XUẤT SẮC",LEFT(P118,1)="6"),Table1[[#This Row],[Column1]]+(ROUND(M118,3))+150+ROW()/10000,"")))) ->  | V118: =IF(AND(Q118="HỌC SINH GIỎI",LEFT(P118,1)="9"),Table1[[#This Row],[Column1]]+(ROUND(M118,3))+200+ROW()/10000,IF(AND(Q118="HỌC SINH GIỎI",LEFT(P118,1)="8"),Table1[[#This Row],[Column1]]+(ROUND(M118,3))+250+ROW()/10000,IF(AND(Q118="HỌC SINH GIỎI",LEFT(P118,1)="7"),Table1[[#This Row],[Column1]]+(ROUND(M118,3))+300+ROW()/10000,IF(AND(Q118="HỌC SINH GIỎI",LEFT(P118,1)="6"),Table1[[#This Row],[Column1]]+(ROUND(M118,3))+350+ROW()/10000,"")))) -> 484.5118 | W118: Mai Khánh | X118: Lệ | Y118: HỌC SINH GIỎI | Z118: 6C
A119: 118 | B119: Đỗ Thảo | C119: Linh | D119: 25/06/2014 | E119: Đỗ Ngọc Diễm | F119: Xóm 2 | G119: T | H119: T | I119: 9 | J119: 8.75 | K119: 6.5 | L119: 8.25 | M119: 32.5 | O119: X | P119: 6C | Q119: HỌC SINH GIỎI | R119: =IF(Table1[[#This Row],[STT]]="","",ROW()-1) -> 118 | S119: =IF(Table1[[#This Row],[Lơp]]="","",VLOOKUP(Table1[[#This Row],[Lơp]],$AC$3:$AD$14,2,0)) -> 100 | T119: =IF(AND(Q119="HỌC SINH XUẤT SẮC",LEFT(P119,1)="9"),Table1[[#This Row],[Column1]]+(ROUND(M119,3))+400+ROW()/10000,IF(AND(Q119="HỌC SINH XUẤT SẮC",LEFT(P119,1)="8"),Table1[[#This Row],[Column1]]+(ROUND(M119,3))+450+ROW()/10000,IF(AND(Q119="HỌC SINH XUẤT SẮC",LEFT(P119,1)="7"),Table1[[#This Row],[Column1]]+(ROUND(M119,3))+500+ROW()/10000,IF(AND(Q119="HỌC SINH XUẤT SẮC",LEFT(P119,1)="6"),Table1[[#This Row],[Column1]]+(ROUND(M119,3))+550+ROW()/10000,IF(AND(Q119="HỌC SINH GIỎI",LEFT(P119,1)="9"),Table1[[#This Row],[Column1]]+(ROUND(M119,3))+10+ROW()/10000,IF(AND(Q119="HỌC SINH GIỎI",LEFT(P119,1)="8"),Table1[[#This Row],[Column1]]+(ROUND(M119,3))+ 50+ROW()/10000,IF(AND(Q119="HỌC SINH GIỎI",LEFT(P119,1)="7"),Table1[[#This Row],[Column1]]+(ROUND(M119,3))+100+ROW()/10000,IF(AND(Q119="HỌC SINH GIỎI",LEFT(P119,1)="6"),Table1[[#This Row],[Column1]]+(ROUND(M119,3))+150+ROW()/10000,"")))))))) -> 282.5119 | U119: =IF(AND(Q119="HỌC SINH XUẤT SẮC",LEFT(P119,1)="9"),(ROUND(M119,3))+Table1[[#This Row],[Column1]]+10+ROW()/10000,IF(AND(Q119="HỌC SINH XUẤT SẮC",LEFT(P119,1)="8"),Table1[[#This Row],[Column1]]+(ROUND(M119,3))+50+ROW()/10000,IF(AND(Q119="HỌC SINH XUẤT SẮC",LEFT(P119,1)="7"),Table1[[#This Row],[Column1]]+(ROUND(M119,3))+100+ROW()/10000,IF(AND(Q119="HỌC SINH XUẤT SẮC",LEFT(P119,1)="6"),Table1[[#This Row],[Column1]]+(ROUND(M119,3))+150+ROW()/10000,"")))) ->  | V119: =IF(AND(Q119="HỌC SINH GIỎI",LEFT(P119,1)="9"),Table1[[#This Row],[Column1]]+(ROUND(M119,3))+200+ROW()/10000,IF(AND(Q119="HỌC SINH GIỎI",LEFT(P119,1)="8"),Table1[[#This Row],[Column1]]+(ROUND(M119,3))+250+ROW()/10000,IF(AND(Q119="HỌC SINH GIỎI",LEFT(P119,1)="7"),Table1[[#This Row],[Column1]]+(ROUND(M119,3))+300+ROW()/10000,IF(AND(Q119="HỌC SINH GIỎI",LEFT(P119,1)="6"),Table1[[#This Row],[Column1]]+(ROUND(M119,3))+350+ROW()/10000,"")))) -> 482.5119 | W119: Đỗ Thảo | X119: Linh | Y119: HỌC SINH GIỎI | Z119: 6C
A120: 119 | B120: Lê Thị Thùy | C120: Linh | D120: 09/05/2014 | E120: Lê Hồng Duy | F120: Xóm 5 | G120: T | H120: T | I120: 8.75 | J120: 5.25 | K120: 6.75 | L120: 9 | M120: 29.75 | O120: X | P120: 6C | Q120: HỌC SINH GIỎI | R120: =IF(Table1[[#This Row],[STT]]="","",ROW()-1) -> 119 | S120: =IF(Table1[[#This Row],[Lơp]]="","",VLOOKUP(Table1[[#This Row],[Lơp]],$AC$3:$AD$14,2,0)) -> 100 | T120: =IF(AND(Q120="HỌC SINH XUẤT SẮC",LEFT(P120,1)="9"),Table1[[#This Row],[Column1]]+(ROUND(M120,3))+400+ROW()/10000,IF(AND(Q120="HỌC SINH XUẤT SẮC",LEFT(P120,1)="8"),Table1[[#This Row],[Column1]]+(ROUND(M120,3))+450+ROW()/10000,IF(AND(Q120="HỌC SINH XUẤT SẮC",LEFT(P120,1)="7"),Table1[[#This Row],[Column1]]+(ROUND(M120,3))+500+ROW()/10000,IF(AND(Q120="HỌC SINH XUẤT SẮC",LEFT(P120,1)="6"),Table1[[#This Row],[Column1]]+(ROUND(M120,3))+550+ROW()/10000,IF(AND(Q120="HỌC SINH GIỎI",LEFT(P120,1)="9"),Table1[[#This Row],[Column1]]+(ROUND(M120,3))+10+ROW()/10000,IF(AND(Q120="HỌC SINH GIỎI",LEFT(P120,1)="8"),Table1[[#This Row],[Column1]]+(ROUND(M120,3))+ 50+ROW()/10000,IF(AND(Q120="HỌC SINH GIỎI",LEFT(P120,1)="7"),Table1[[#This Row],[Column1]]+(ROUND(M120,3))+100+ROW()/10000,IF(AND(Q120="HỌC SINH GIỎI",LEFT(P120,1)="6"),Table1[[#This Row],[Column1]]+(ROUND(M120,3))+150+ROW()/10000,"")))))))) -> 279.762 | U120: =IF(AND(Q120="HỌC SINH XUẤT SẮC",LEFT(P120,1)="9"),(ROUND(M120,3))+Table1[[#This Row],[Column1]]+10+ROW()/10000,IF(AND(Q120="HỌC SINH XUẤT SẮC",LEFT(P120,1)="8"),Table1[[#This Row],[Column1]]+(ROUND(M120,3))+50+ROW()/10000,IF(AND(Q120="HỌC SINH XUẤT SẮC",LEFT(P120,1)="7"),Table1[[#This Row],[Column1]]+(ROUND(M120,3))+100+ROW()/10000,IF(AND(Q120="HỌC SINH XUẤT SẮC",LEFT(P120,1)="6"),Table1[[#This Row],[Column1]]+(ROUND(M120,3))+150+ROW()/10000,"")))) ->  | V120: =IF(AND(Q120="HỌC SINH GIỎI",LEFT(P120,1)="9"),Table1[[#This Row],[Column1]]+(ROUND(M120,3))+200+ROW()/10000,IF(AND(Q120="HỌC SINH GIỎI",LEFT(P120,1)="8"),Table1[[#This Row],[Column1]]+(ROUND(M120,3))+250+ROW()/10000,IF(AND(Q120="HỌC SINH GIỎI",LEFT(P120,1)="7"),Table1[[#This Row],[Column1]]+(ROUND(M120,3))+300+ROW()/10000,IF(AND(Q120="HỌC SINH GIỎI",LEFT(P120,1)="6"),Table1[[#This Row],[Column1]]+(ROUND(M120,3))+350+ROW()/10000,"")))) -> 479.762 | W120: Lê Thị Thùy | X120: Linh | Y120: HỌC SINH GIỎI | Z120: 6C
